Workbook

Sheet Explanation
A1: You can safely delete this sheet once you have read it.
A2: This work book is an attempt at creating a grade book that can be used in several different classes.
A3: Each class has a class room component and a lab component.
A4: The data from the lab component is imported in to the class sheet, for grade calculations.
A5: There is one sheet or tab for each student. All information on the student sheet is updated as data is changed in the class sheet.
A6: Using open offices excellent PDF converter, each sheet or tab can be converted to PDF for emailing to the students
A7: Or you can simply print of the sheets sequentially and give to the student.
A8: The Misc data sheet contains the student ID and names, this information is used in the subsequent sheets.
A9: Class names are also given in that sheet, and used in subsequent sheets.
A10: The next sheet is attendance. You copy and paste the date set to the right for the next day.
A11: Accumulated attendance and percentage is calculated, using the perfect attendance data.
A12: The next sheet is professionalism. Here the attendance data is used as weighted data for a professionalism grade.
A13: Next several sheets are the classes and lab sheets. Note that if a student fails a competency, the shop grade is 0.
A14: Note that a letter grade is calculated using a nested IF – THEN statement. Possibly a look up table would be better.
A15: The number of points available in class is calculated from the individual test, homework, and lab work sheets.
A16: If the number of points is changed on one or more of the assignments on one or more of the class sheet(s), all other sheets will automatically update.
A17: Finally, the information specific to each student is tabulated in a sheet for that student. Data from all the classes are imported.
A18: Notice that the memory footprint of this work book is small, relative to the amount of data it contains.

Sheet Misc data
A1: ID: | B1: First: | C1: Last: | E1: Final | F1: Grade: | H1: Classes:
A2: 00000001 | B2: Student | C2: One | E2: Final Grade | H2: Course 1 Engine Diagnosis. Class
A3: 00000002 | B3: Student | C3: Two | E3: 0% | F3: F | H3: Course 1 Engine Diagnosis. Lab
A4: 00000003 | B4: Student | C4: Three | E4: 70% | F4: D- | H4: Course 2 Engine Theory & Repair. Class
A5: 00000004 | B5: Student | C5: Four | E5: 72% | F5: D | H5: Course 2 Engine Theory & Repair. Lab
A6: 00000005 | B6: Student | C6: Five | E6: 74% | F6: D+ | H6: Course 3 Steering & Suspension. Class.
A7: 00000006 | B7: Student | C7: Six | E7: 76% | F7: C- | H7: Course 3 Steering & Suspension. Lab
A8: 00000007 | B8: Student | C8: Seven | E8: 79% | F8: C | H8: Course 4 Alignment. Class.
A9: 00000008 | B9: Student | C9: Eight | E9: 82% | F9: C+ | H9: Course 4 Alignment. Lab
A10: 00000009 | B10: Student | C10: Nine | E10: 85% | F10: B- | H10: Course 5 Brake Systems. Class.
A11: 00000010 | B11: Student | C11: Ten | E11: 88% | F11: B | H11: Course 5 Brake Systems. Lab
A12: 00000011 | B12: Student | C12: Eleven | E12: 90% | F12: B+
A13: 00000012 | B13: Student | C13: Twelve | E13: 93% | F13: A-
A14: 00000013 | B14: Student | C14: Thirteen | E14: 95% | F14: A
A15: 00000014 | B15: Student | C15: Fourteen | E15: 100% | F15: A
A16: 00000015 | B16: Student | C16: Fifteen
A17: 00000016 | B17: Student | C17: Sixteen
A18: 00000017 | B18: Student | C18: Seventeen | F18: Don't edit anything on any sheet unless you know what you are doing! Especially on the other sheets!!
A19: 00000018 | B19: Student | C19: Eighteen
A20: 00000019 | B20: Student | C20: Nineteen
A21: 00000020 | B21: Student | C21: Twenty
A22: 00000021 | B22: Student | C22: Twenty one
A23: 00000022 | B23: Student | C23: Twenty two
A24: 00000023 | B24: Student | C24: Twenty three
A25: 00000024 | B25: Student | C25: Twenty four
A26: 00000025 | B26: Student | C26: Twenty five

Sheet Attendance
F1: Date
A2: ID# | B2: First Name | C2: Last Name | D2: Hours | E2: Percentage | F2: 7-7:50 | G2: 8-8:50 | H2: 9-9:50 | I2: 10-10:50 | J2: 11-11:50 | K2: 1-1:50 | L2: 2-2:50
A3: ='Misc data'!$A$2 -> 00000001 | B3: ='Misc data'!$B$2 -> Student | C3: ='Misc data'!$C$2 -> One | D3: =SUM(F3:N3) -> 7 | E3: =D3/D27 -> 100% | F3: 1 | G3: 1 | H3: 1 | I3: 1 | J3: 1 | K3: 1 | L3: 1
A4: ='Misc data'!$A$3 -> 00000002 | B4: ='Misc data'!$B$3 -> Student | C4: ='Misc data'!$C$3 -> Two | D4: =SUM(F4:N4) -> 6.5 | E4: =D4/($D27) -> 93% | F4: 0.5 | G4: 1 | H4: 1 | I4: 1 | J4: 1 | K4: 1 | L4: 1
A5: ='Misc data'!$A$4 -> 00000003 | B5: ='Misc data'!$B$4 -> Student | C5: ='Misc data'!$C$4 -> Three | D5: =SUM(F5:N5) -> 7 | E5: =D5/D27 -> 100% | F5: 1 | G5: 1 | H5: 1 | I5: 1 | J5: 1 | K5: 1 | L5: 1
A6: ='Misc data'!$A$5 -> 00000004 | B6: ='Misc data'!$B$5 -> Student | C6: ='Misc data'!$C$5 -> Four | D6: =SUM(F6:N6) -> 7 | E6: =D6/D27 -> 100% | F6: 1 | G6: 1 | H6: 1 | I6: 1 | J6: 1 | K6: 1 | L6: 1
A7: ='Misc data'!$A$6 -> 00000005 | B7: ='Misc data'!$B$6 -> Student | C7: ='Misc data'!$C$6 -> Five | D7: =SUM(F7:N7) -> 7 | E7: =D7/D27 -> 100% | F7: 1 | G7: 1 | H7: 1 | I7: 1 | J7: 1 | K7: 1 | L7: 1
A8: ='Misc data'!$A$7 -> 00000006 | B8: ='Misc data'!$B$7 -> Student | C8: ='Misc data'!$C$7 -> Six | D8: =SUM(F8:N8) -> 7 | E8: =D8/D27 -> 100% | F8: 1 | G8: 1 | H8: 1 | I8: 1 | J8: 1 | K8: 1 | L8: 1
A9: ='Misc data'!$A$8 -> 00000007 | B9: ='Misc data'!$B$8 -> Student | C9: ='Misc data'!$C$8 -> Seven | D9: =SUM(F9:N9) -> 7 | E9: =D9/D27 -> 100% | F9: 1 | G9: 1 | H9: 1 | I9: 1 | J9: 1 | K9: 1 | L9: 1
A10: ='Misc data'!$A$9 -> 00000008 | B10: ='Misc data'!$B$9 -> Student | C10: ='Misc data'!$C$9 -> Eight | D10: =SUM(F10:N10) -> 7 | E10: =D10/D27 -> 100% | F10: 1 | G10: 1 | H10: 1 | I10: 1 | J10: 1 | K10: 1 | L10: 1
A11: ='Misc data'!$A$10 -> 00000009 | B11: ='Misc data'!$B$10 -> Student | C11: ='Misc data'!$C$10 -> Nine | D11: =SUM(F11:N11) -> 7 | E11: =D11/D27 -> 100% | F11: 1 | G11: 1 | H11: 1 | I11: 1 | J11: 1 | K11: 1 | L11: 1
A12: ='Misc data'!$A$11 -> 00000010 | B12: ='Misc data'!$B$11 -> Student | C12: ='Misc data'!$C$11 -> Ten | D12: =SUM(F12:N12) -> 7 | E12: =D12/D27 -> 100% | F12: 1 | G12: 1 | H12: 1 | I12: 1 | J12: 1 | K12: 1 | L12: 1
A13: ='Misc data'!$A$12 -> 00000011 | B13: ='Misc data'!$B$12 -> Student | C13: ='Misc data'!$C$12 -> Eleven | D13: =SUM(F13:N13) -> 7 | E13: =D13/D27 -> 100% | F13: 1 | G13: 1 | H13: 1 | I13: 1 | J13: 1 | K13: 1 | L13: 1
A14: ='Misc data'!$A$13 -> 00000012 | B14: ='Misc data'!$B$13 -> Student | C14: ='Misc data'!$C$13 -> Twelve | D14: =SUM(F14:N14) -> 6.5 | E14: =D14/D27 -> 93% | F14: 0.5 | G14: 1 | H14: 1 | I14: 1 | J14: 1 | K14: 1 | L14: 1
A15: ='Misc data'!$A$14 -> 00000013 | B15: ='Misc data'!$B$14 -> Student | C15: ='Misc data'!$C$14 -> Thirteen | D15: =SUM(F15:N15) -> 7 | E15: =D15/D27 -> 100% | F15: 1 | G15: 1 | H15: 1 | I15: 1 | J15: 1 | K15: 1 | L15: 1
A16: ='Misc data'!$A$15 -> 00000014 | B16: ='Misc data'!$B$15 -> Student | C16: ='Misc data'!$C$15 -> Fourteen | D16: =SUM(F16:N16) -> 7 | E16: =D16/D27 -> 100% | F16: 1 | G16: 1 | H16: 1 | I16: 1 | J16: 1 | K16: 1 | L16: 1
A17: ='Misc data'!$A$16 -> 00000015 | B17: ='Misc data'!$B$16 -> Student | C17: ='Misc data'!$C$16 -> Fifteen | D17: =SUM(F17:N17) -> 7 | E17: =D17/D27 -> 100% | F17: 1 | G17: 1 | H17: 1 | I17: 1 | J17: 1 | K17: 1 | L17: 1
A18: ='Misc data'!$A$17 -> 00000016 | B18: ='Misc data'!$B$17 -> Student | C18: ='Misc data'!$C$17 -> Sixteen | D18: =SUM(F18:N18) -> 7 | E18: =D18/D27 -> 100% | F18: 1 | G18: 1 | H18: 1 | I18: 1 | J18: 1 | K18: 1 | L18: 1
A19: ='Misc data'!$A$18 -> 00000017 | B19: ='Misc data'!$B$18 -> Student | C19: ='Misc data'!$C$18 -> Seventeen | D19: =SUM(F19:N19) -> 7 | E19: =D19/D27 -> 100% | F19: 1 | G19: 1 | H19: 1 | I19: 1 | J19: 1 | K19: 1 | L19: 1
A20: ='Misc data'!$A$19 -> 00000018 | B20: ='Misc data'!$B$19 -> Student | C20: ='Misc data'!$C$19 -> Eighteen | D20: =SUM(F20:N20) -> 7 | E20: =D20/D27 -> 100% | F20: 1 | G20: 1 | H20: 1 | I20: 1 | J20: 1 | K20: 1 | L20: 1
A21: ='Misc data'!$A$20 -> 00000019 | B21: ='Misc data'!$B$20 -> Student | C21: ='Misc data'!$C$20 -> Nineteen | D21: =SUM(F21:N21) -> 7 | E21: =D21/D27 -> 100% | F21: 1 | G21: 1 | H21: 1 | I21: 1 | J21: 1 | K21: 1 | L21: 1
A22: ='Misc data'!$A$21 -> 00000020 | B22: ='Misc data'!$B$21 -> Student | C22: ='Misc data'!$C$21 -> Twenty | D22: =SUM(F22:N22) -> 7 | E22: =D22/D27 -> 100% | F22: 1 | G22: 1 | H22: 1 | I22: 1 | J22: 1 | K22: 1 | L22: 1
A23: ='Misc data'!$A$22 -> 00000021 | B23: ='Misc data'!$B$22 -> Student | C23: ='Misc data'!$C$22 -> Twenty one | D23: =SUM(F23:N23) -> 7 | E23: =D23/D27 -> 100% | F23: 1 | G23: 1 | H23: 1 | I23: 1 | J23: 1 | K23: 1 | L23: 1
A24: ='Misc data'!$A$23 -> 00000022 | B24: ='Misc data'!$B$23 -> Student | C24: ='Misc data'!$C$23 -> Twenty two | D24: =SUM(F24:N24) -> 7 | E24: =D24/D27 -> 100% | F24: 1 | G24: 1 | H24: 1 | I24: 1 | J24: 1 | K24: 1 | L24: 1
A25: ='Misc data'!$A$24 -> 00000023 | B25: ='Misc data'!$B$24 -> Student | C25: ='Misc data'!$C$24 -> Twenty three | D25: =SUM(F25:N25) -> 7 | E25: =D25/D27 -> 100% | F25: 1 | G25: 1 | H25: 1 | I25: 1 | J25: 1 | K25: 1 | L25: 1
B27: Perfect attendance | D27: =SUM(F27:N27) -> 7 | E27: =D27/D27 -> 100% | F27: 1 | G27: 1 | H27: 1 | I27: 1 | J27: 1 | K27: 1 | L27: 1

Sheet Professionalism
A1: ID# | B1: First Name | C1: Last Name | D1: Att points | E1: Prof points | F1: Percent
A2: ='Misc data'!$A$2 -> 00000001 | B2: ='Misc data'!$B$2 -> Student | C2: ='Misc data'!$C$2 -> One | D2: =Attendance!$E$3*6 -> 6 | E2: =66+D2 -> 72 | F2: =E2/72 -> 100%
A3: ='Misc data'!$A$3 -> 00000002 | B3: ='Misc data'!$B$3 -> Student | C3: ='Misc data'!$C$3 -> Two | D3: =Attendance!$E$4*6 -> 5.571428571 | E3: =66+D3 -> 72 | F3: =E3/72 -> 99%
A4: ='Misc data'!$A$4 -> 00000003 | B4: ='Misc data'!$B$4 -> Student | C4: ='Misc data'!$C$4 -> Three | D4: =Attendance!$E$5*6 -> 6 | E4: =66+D4 -> 72 | F4: =E4/72 -> 100%
A5: ='Misc data'!$A$5 -> 00000004 | B5: ='Misc data'!$B$5 -> Student | C5: ='Misc data'!$C$5 -> Four | D5: =Attendance!$E$6*6 -> 6 | E5: =66+D5 -> 72 | F5: =E5/72 -> 100%
A6: ='Misc data'!$A$6 -> 00000005 | B6: ='Misc data'!$B$6 -> Student | C6: ='Misc data'!$C$6 -> Five | D6: =Attendance!$E$7*6 -> 6 | E6: =66+D6 -> 72 | F6: =E6/72 -> 100%
A7: ='Misc data'!$A$7 -> 00000006 | B7: ='Misc data'!$B$7 -> Student | C7: ='Misc data'!$C$7 -> Six | D7: =Attendance!$E$8*6 -> 6 | E7: =66+D7 -> 72 | F7: =E7/72 -> 100%
A8: ='Misc data'!$A$8 -> 00000007 | B8: ='Misc data'!$B$8 -> Student | C8: ='Misc data'!$C$8 -> Seven | D8: =Attendance!$E$9*6 -> 6 | E8: =66+D8 -> 72 | F8: =E8/72 -> 100%
A9: ='Misc data'!$A$9 -> 00000008 | B9: ='Misc data'!$B$9 -> Student | C9: ='Misc data'!$C$9 -> Eight | D9: =Attendance!$E$10*6 -> 6 | E9: =66+D9 -> 72 | F9: =E9/72 -> 100%
A10: ='Misc data'!$A$10 -> 00000009 | B10: ='Misc data'!$B$10 -> Student | C10: ='Misc data'!$C$10 -> Nine | D10: =Attendance!$E$11*6 -> 6 | E10: =66+D10 -> 72 | F10: =E10/72 -> 100%
A11: ='Misc data'!$A$11 -> 00000010 | B11: ='Misc data'!$B$11 -> Student | C11: ='Misc data'!$C$11 -> Ten | D11: =Attendance!$E$12*6 -> 6 | E11: =66+D11 -> 72 | F11: =E11/72 -> 100%
A12: ='Misc data'!$A$12 -> 00000011 | B12: ='Misc data'!$B$12 -> Student | C12: ='Misc data'!$C$12 -> Eleven | D12: =Attendance!$E$13*6 -> 6 | E12: =66+D12 -> 72 | F12: =E12/72 -> 100%
A13: ='Misc data'!$A$13 -> 00000012 | B13: ='Misc data'!$B$13 -> Student | C13: ='Misc data'!$C$13 -> Twelve | D13: =Attendance!$E$14*6 -> 5.571428571 | E13: =66+D13 -> 72 | F13: =E13/72 -> 99%
A14: ='Misc data'!$A$14 -> 00000013 | B14: ='Misc data'!$B$14 -> Student | C14: ='Misc data'!$C$14 -> Thirteen | D14: =Attendance!$E$15*6 -> 6 | E14: =66+D14 -> 72 | F14: =E14/72 -> 100%
A15: ='Misc data'!$A$15 -> 00000014 | B15: ='Misc data'!$B$15 -> Student | C15: ='Misc data'!$C$15 -> Fourteen | D15: =Attendance!$E$16*6 -> 6 | E15: =66+D15 -> 72 | F15: =E15/72 -> 100%
A16: ='Misc data'!$A$16 -> 00000015 | B16: ='Misc data'!$B$16 -> Student | C16: ='Misc data'!$C$16 -> Fifteen | D16: =Attendance!$E$17*6 -> 6 | E16: =66+D16 -> 72 | F16: =E16/72 -> 100%
A17: ='Misc data'!$A$17 -> 00000016 | B17: ='Misc data'!$B$17 -> Student | C17: ='Misc data'!$C$17 -> Sixteen | D17: =Attendance!$E$18*6 -> 6 | E17: =66+D17 -> 72 | F17: =E17/72 -> 100%
A18: ='Misc data'!$A$18 -> 00000017 | B18: ='Misc data'!$B$18 -> Student | C18: ='Misc data'!$C$18 -> Seventeen | D18: =Attendance!$E$19*6 -> 6 | E18: =66+D18 -> 72 | F18: =E18/72 -> 100%
A19: ='Misc data'!$A$19 -> 00000018 | B19: ='Misc data'!$B$19 -> Student | C19: ='Misc data'!$C$19 -> Eighteen | D19: =Attendance!$E$20*6 -> 6 | E19: =66+D19 -> 72 | F19: =E19/72 -> 100%
A20: ='Misc data'!$A$20 -> 00000019 | B20: ='Misc data'!$B$20 -> Student | C20: ='Misc data'!$C$20 -> Nineteen | D20: =Attendance!$E$21*6 -> 6 | E20: =66+D20 -> 72 | F20: =E20/72 -> 100%
A21: ='Misc data'!$A$21 -> 00000020 | B21: ='Misc data'!$B$21 -> Student | C21: ='Misc data'!$C$21 -> Twenty | D21: =Attendance!$E$22*6 -> 6 | E21: =66+D21 -> 72 | F21: =E21/72 -> 100%
A22: ='Misc data'!$A$22 -> 00000021 | B22: ='Misc data'!$B$22 -> Student | C22: ='Misc data'!$C$22 -> Twenty one | D22: =Attendance!$E$23*6 -> 6 | E22: =66+D22 -> 72 | F22: =E22/72 -> 100%
A23: ='Misc data'!$A$23 -> 00000022 | B23: ='Misc data'!$B$23 -> Student | C23: ='Misc data'!$C$23 -> Twenty two | D23: =Attendance!$E$24*6 -> 6 | E23: =66+D23 -> 72 | F23: =E23/72 -> 100%
A24: ='Misc data'!$A$24 -> 00000023 | B24: ='Misc data'!$B$24 -> Student | C24: ='Misc data'!$C$24 -> Twenty three | D24: =Attendance!$E$25*6 -> 6 | E24: =66+D24 -> 72 | F24: =E24/72 -> 100%

Sheet Course 1 Class
A1: ='Misc data'!$H$2 -> Course 1 Engine Diagnosis. Class | H1: 25
A2: Date assignment is due | D2: TBD | E2: TBD | F2: TBD | G2: TBD | H2: TBD | I2: TBD
A3: Class Room Points: | C3: =SUM(D3:I3) -> 160 | D3: 20 | E3: 20 | F3: 20 | G3: 25 | I3: 75 | J3: Evaluation
A4: Red is late turn-in | C4: Blue is absent | D4: CH 13 | E4: Lube | F4: Lube | G4: Condition | H4: Extra | I4: Final | J4: Classroom | L4: Professionalism | O4: Lab | Q4: Total | R4: Letter
A5: I D | B5: First: | C5: Last: | D5: Test | E5: HW | F5: Test | G5: Class | H5: Credit | I5: Test | J5: Points | K5: % | L5: Attendance | M5: Points | N5: % | O5: Points | P5: % | Q5: % | R5: Grade
A6: ='Misc data'!$A$2 -> 00000001 | B6: ='Misc data'!$B$2 -> Student | C6: ='Misc data'!$C$2 -> One | D6: 0 | E6: 0 | F6: 0 | G6: 0 | H6: 0 | I6: 0 | J6: =SUM(D6:I6) -> 0 | K6: =(J6/C3) -> 0% | L6: =Attendance!$E$3 -> 100% | M6: =Professionalism!$E$2 -> 72.0 | N6: =Professionalism!$F$2 -> 100% | O6: ='Course 1 Lab'!$Q$7 -> 0 | P6: ='Course 1 Lab'!$R$7 -> 0% | Q6: =(0.5*K6)+(0.25*N6)+(0.25*P6) -> 25.0% | R6: =IF(Q6>0.95,"A",IF(Q6>0.93,"A-",IF(Q6>0.9,"B+",IF(Q6>0.88,"B",IF(Q6>0.85,"B-",IF(Q6>0.82,"C+",IF(Q6>0.79,"C",IF(Q6>0.76,"C-",IF(Q6>0.74,"D+",IF(Q6>0.72,"D",IF(Q6>0.7,"D-",IF(Q6<0.7,"F")))))))))))) -> F
A7: ='Misc data'!$A$3 -> 00000002 | B7: ='Misc data'!$B$3 -> Student | C7: ='Misc data'!$C$3 -> Two | D7: 0 | E7: 0 | F7: 0 | G7: 0 | H7: 0 | I7: 0 | J7: =SUM(D7:I7) -> 0 | K7: =(J7/C3) -> 0% | L7: =Attendance!$E$4 -> 93% | M7: =Professionalism!$E$3 -> 71.6 | N7: =Professionalism!$F$3 -> 99% | O7: ='Course 1 Lab'!$Q$8 -> 0 | P7: ='Course 1 Lab'!$R$8 -> 0% | Q7: =(0.5*K7)+(0.25*N7)+(0.25*P7) -> 24.9% | R7: =IF(Q7>0.95,"A",IF(Q7>0.93,"A-",IF(Q7>0.9,"B+",IF(Q7>0.88,"B",IF(Q7>0.85,"B-",IF(Q7>0.82,"C+",IF(Q7>0.79,"C",IF(Q7>0.76,"C-",IF(Q7>0.74,"D+",IF(Q7>0.72,"D",IF(Q7>0.7,"D-",IF(Q7<0.7,"F")))))))))))) -> F
A8: ='Misc data'!$A$4 -> 00000003 | B8: ='Misc data'!$B$4 -> Student | C8: ='Misc data'!$C$4 -> Three | D8: 0 | E8: 0 | F8: 0 | G8: 0 | H8: 0 | I8: 0 | J8: =SUM(D8:I8) -> 0 | K8: =(J8/C3) -> 0% | L8: =Attendance!$E$5 -> 100% | M8: =Professionalism!$E$4 -> 72.0 | N8: =Professionalism!$F$4 -> 100% | O8: ='Course 1 Lab'!$Q$9 -> 0 | P8: ='Course 1 Lab'!$R$9 -> 0% | Q8: =(0.5*K8)+(0.25*N8)+(0.25*P8) -> 25.0% | R8: =IF(Q8>0.95,"A",IF(Q8>0.93,"A-",IF(Q8>0.9,"B+",IF(Q8>0.88,"B",IF(Q8>0.85,"B-",IF(Q8>0.82,"C+",IF(Q8>0.79,"C",IF(Q8>0.76,"C-",IF(Q8>0.74,"D+",IF(Q8>0.72,"D",IF(Q8>0.7,"D-",IF(Q8<0.7,"F")))))))))))) -> F
A9: ='Misc data'!$A$5 -> 00000004 | B9: ='Misc data'!$B$5 -> Student | C9: ='Misc data'!$C$5 -> Four | D9: 0 | E9: 0 | F9: 0 | G9: 0 | H9: 0 | I9: 0 | J9: =SUM(D9:I9) -> 0 | K9: =(J9/C3) -> 0% | L9: =Attendance!$E$6 -> 100% | M9: =Professionalism!$E$5 -> 72.0 | N9: =Professionalism!$F$5 -> 100% | O9: ='Course 1 Lab'!$Q$10 -> 0 | P9: ='Course 1 Lab'!$R$10 -> 0% | Q9: =(0.5*K9)+(0.25*N9)+(0.25*P9) -> 25.0% | R9: =IF(Q9>0.95,"A",IF(Q9>0.93,"A-",IF(Q9>0.9,"B+",IF(Q9>0.88,"B",IF(Q9>0.85,"B-",IF(Q9>0.82,"C+",IF(Q9>0.79,"C",IF(Q9>0.76,"C-",IF(Q9>0.74,"D+",IF(Q9>0.72,"D",IF(Q9>0.7,"D-",IF(Q9<0.7,"F")))))))))))) -> F
A10: ='Misc data'!$A$6 -> 00000005 | B10: ='Misc data'!$B$6 -> Student | C10: ='Misc data'!$C$6 -> Five | D10: 0 | E10: 0 | F10: 0 | G10: 0 | H10: 0 | I10: 0 | J10: =SUM(D10:I10) -> 0 | K10: =(J10/C3) -> 0% | L10: =Attendance!$E$7 -> 100% | M10: =Professionalism!$E$6 -> 72.0 | N10: =Professionalism!$F$6 -> 100% | O10: ='Course 1 Lab'!$Q$11 -> 0 | P10: ='Course 1 Lab'!$R$11 -> 0% | Q10: =(0.5*K10)+(0.25*N10)+(0.25*P10) -> 25.0% | R10: =IF(Q10>0.95,"A",IF(Q10>0.93,"A-",IF(Q10>0.9,"B+",IF(Q10>0.88,"B",IF(Q10>0.85,"B-",IF(Q10>0.82,"C+",IF(Q10>0.79,"C",IF(Q10>0.76,"C-",IF(Q10>0.74,"D+",IF(Q10>0.72,"D",IF(Q10>0.7,"D-",IF(Q10<0.7,"F")))))))))))) -> F
A11: ='Misc data'!$A$7 -> 00000006 | B11: ='Misc data'!$B$7 -> Student | C11: ='Misc data'!$C$7 -> Six | D11: 0 | E11: 0 | F11: 0 | G11: 0 | H11: 0 | I11: 0 | J11: =SUM(D11:I11) -> 0 | K11: =(J11/C3) -> 0% | L11: =Attendance!$E$8 -> 100% | M11: =Professionalism!$E$7 -> 72.0 | N11: =Professionalism!$F$7 -> 100% | O11: ='Course 1 Lab'!$Q$12 -> 0 | P11: ='Course 1 Lab'!$R$12 -> 0% | Q11: =(0.5*K11)+(0.25*N11)+(0.25*P11) -> 25.0% | R11: =IF(Q11>0.95,"A",IF(Q11>0.93,"A-",IF(Q11>0.9,"B+",IF(Q11>0.88,"B",IF(Q11>0.85,"B-",IF(Q11>0.82,"C+",IF(Q11>0.79,"C",IF(Q11>0.76,"C-",IF(Q11>0.74,"D+",IF(Q11>0.72,"D",IF(Q11>0.7,"D-",IF(Q11<0.7,"F")))))))))))) -> F
A12: ='Misc data'!$A$8 -> 00000007 | B12: ='Misc data'!$B$8 -> Student | C12: ='Misc data'!$C$8 -> Seven | D12: 0 | E12: 0 | F12: 0 | G12: 0 | H12: 0 | I12: 0 | J12: =SUM(D12:I12) -> 0 | K12: =(J12/C3) -> 0% | L12: =Attendance!$E$9 -> 100% | M12: =Professionalism!$E$8 -> 72.0 | N12: =Professionalism!$F$8 -> 100% | O12: ='Course 1 Lab'!$Q$13 -> 0 | P12: ='Course 1 Lab'!$R$13 -> 0% | Q12: =(0.5*K12)+(0.25*N12)+(0.25*P12) -> 25.0% | R12: =IF(Q12>0.95,"A",IF(Q12>0.93,"A-",IF(Q12>0.9,"B+",IF(Q12>0.88,"B",IF(Q12>0.85,"B-",IF(Q12>0.82,"C+",IF(Q12>0.79,"C",IF(Q12>0.76,"C-",IF(Q12>0.74,"D+",IF(Q12>0.72,"D",IF(Q12>0.7,"D-",IF(Q12<0.7,"F")))))))))))) -> F
A13: ='Misc data'!$A$9 -> 00000008 | B13: ='Misc data'!$B$9 -> Student | C13: ='Misc data'!$C$9 -> Eight | D13: 0 | E13: 0 | F13: 0 | G13: 0 | H13: 0 | I13: 0 | J13: =SUM(D13:I13) -> 0 | K13: =(J13/C3) -> 0% | L13: =Attendance!$E$10 -> 100% | M13: =Professionalism!$E$9 -> 72.0 | N13: =Professionalism!$F$9 -> 100% | O13: ='Course 1 Lab'!$Q$14 -> 0 | P13: ='Course 1 Lab'!$R$14 -> 0% | Q13: =(0.5*K13)+(0.25*N13)+(0.25*P13) -> 25.0% | R13: =IF(Q13>0.95,"A",IF(Q13>0.93,"A-",IF(Q13>0.9,"B+",IF(Q13>0.88,"B",IF(Q13>0.85,"B-",IF(Q13>0.82,"C+",IF(Q13>0.79,"C",IF(Q13>0.76,"C-",IF(Q13>0.74,"D+",IF(Q13>0.72,"D",IF(Q13>0.7,"D-",IF(Q13<0.7,"F")))))))))))) -> F
A14: ='Misc data'!$A$10 -> 00000009 | B14: ='Misc data'!$B$10 -> Student | C14: ='Misc data'!$C$10 -> Nine | D14: 0 | E14: 0 | F14: 0 | G14: 0 | H14: 0 | I14: 0 | J14: =SUM(D14:I14) -> 0 | K14: =(J14/C3) -> 0% | L14: =Attendance!$E$11 -> 100% | M14: =Professionalism!$E$10 -> 72.0 | N14: =Professionalism!$F$10 -> 100% | O14: ='Course 1 Lab'!$Q$15 -> 0 | P14: ='Course 1 Lab'!$R$15 -> 0% | Q14: =(0.5*K14)+(0.25*N14)+(0.25*P14) -> 25.0% | R14: =IF(Q14>0.95,"A",IF(Q14>0.93,"A-",IF(Q14>0.9,"B+",IF(Q14>0.88,"B",IF(Q14>0.85,"B-",IF(Q14>0.82,"C+",IF(Q14>0.79,"C",IF(Q14>0.76,"C-",IF(Q14>0.74,"D+",IF(Q14>0.72,"D",IF(Q14>0.7,"D-",IF(Q14<0.7,"F")))))))))))) -> F
A15: ='Misc data'!$A$11 -> 00000010 | B15: ='Misc data'!$B$11 -> Student | C15: ='Misc data'!$C$11 -> Ten | D15: 0 | E15: 0 | F15: 0 | G15: 0 | H15: 0 | I15: 0 | J15: =SUM(D15:I15) -> 0 | K15: =(J15/C3) -> 0% | L15: =Attendance!$E$12 -> 100% | M15: =Professionalism!$E$11 -> 72.0 | N15: =Professionalism!$F$11 -> 100% | O15: ='Course 1 Lab'!$Q$16 -> 0 | P15: ='Course 1 Lab'!$R$16 -> 0% | Q15: =(0.5*K15)+(0.25*N15)+(0.25*P15) -> 25.0% | R15: =IF(Q15>0.95,"A",IF(Q15>0.93,"A-",IF(Q15>0.9,"B+",IF(Q15>0.88,"B",IF(Q15>0.85,"B-",IF(Q15>0.82,"C+",IF(Q15>0.79,"C",IF(Q15>0.76,"C-",IF(Q15>0.74,"D+",IF(Q15>0.72,"D",IF(Q15>0.7,"D-",IF(Q15<0.7,"F")))))))))))) -> F
A16: ='Misc data'!$A$12 -> 00000011 | B16: ='Misc data'!$B$12 -> Student | C16: ='Misc data'!$C$12 -> Eleven | D16: 0 | E16: 0 | F16: 0 | G16: 0 | H16: 0 | I16: 0 | J16: =SUM(D16:I16) -> 0 | K16: =(J16/C3) -> 0% | L16: =Attendance!$E$13 -> 100% | M16: =Professionalism!$E$12 -> 72.0 | N16: =Professionalism!$F$12 -> 100% | O16: ='Course 1 Lab'!$Q$17 -> 0 | P16: ='Course 1 Lab'!$R$17 -> 0% | Q16: =(0.5*K16)+(0.25*N16)+(0.25*P16) -> 25.0% | R16: =IF(Q16>0.95,"A",IF(Q16>0.93,"A-",IF(Q16>0.9,"B+",IF(Q16>0.88,"B",IF(Q16>0.85,"B-",IF(Q16>0.82,"C+",IF(Q16>0.79,"C",IF(Q16>0.76,"C-",IF(Q16>0.74,"D+",IF(Q16>0.72,"D",IF(Q16>0.7,"D-",IF(Q16<0.7,"F")))))))))))) -> F
A17: ='Misc data'!$A$13 -> 00000012 | B17: ='Misc data'!$B$13 -> Student | C17: ='Misc data'!$C$13 -> Twelve | D17: 0 | E17: 0 | F17: 0 | G17: 0 | H17: 0 | I17: 0 | J17: =SUM(D17:I17) -> 0 | K17: =(J17/C3) -> 0% | L17: =Attendance!$E$14 -> 93% | M17: =Professionalism!$E$13 -> 71.6 | N17: =Professionalism!$F$13 -> 99% | O17: ='Course 1 Lab'!$Q$18 -> 0 | P17: ='Course 1 Lab'!$R$18 -> 0% | Q17: =(0.5*K17)+(0.25*N17)+(0.25*P17) -> 24.9% | R17: =IF(Q17>0.95,"A",IF(Q17>0.93,"A-",IF(Q17>0.9,"B+",IF(Q17>0.88,"B",IF(Q17>0.85,"B-",IF(Q17>0.82,"C+",IF(Q17>0.79,"C",IF(Q17>0.76,"C-",IF(Q17>0.74,"D+",IF(Q17>0.72,"D",IF(Q17>0.7,"D-",IF(Q17<0.7,"F")))))))))))) -> F
A18: ='Misc data'!$A$14 -> 00000013 | B18: ='Misc data'!$B$14 -> Student | C18: ='Misc data'!$C$14 -> Thirteen | D18: 0 | E18: 0 | F18: 0 | G18: 0 | H18: 0 | I18: 0 | J18: =SUM(D18:I18) -> 0 | K18: =(J18/C3) -> 0% | L18: =Attendance!$E$15 -> 100% | M18: =Professionalism!$E$14 -> 72.0 | N18: =Professionalism!$F$14 -> 100% | O18: ='Course 1 Lab'!$Q$19 -> 0 | P18: ='Course 1 Lab'!$R$19 -> 0% | Q18: =(0.5*K18)+(0.25*N18)+(0.25*P18) -> 25.0% | R18: =IF(Q18>0.95,"A",IF(Q18>0.93,"A-",IF(Q18>0.9,"B+",IF(Q18>0.88,"B",IF(Q18>0.85,"B-",IF(Q18>0.82,"C+",IF(Q18>0.79,"C",IF(Q18>0.76,"C-",IF(Q18>0.74,"D+",IF(Q18>0.72,"D",IF(Q18>0.7,"D-",IF(Q18<0.7,"F")))))))))))) -> F
A19: ='Misc data'!$A$15 -> 00000014 | B19: ='Misc data'!$B$15 -> Student | C19: ='Misc data'!$C$15 -> Fourteen | D19: 0 | E19: 0 | F19: 0 | G19: 0 | H19: 0 | I19: 0 | J19: =SUM(D19:I19) -> 0 | K19: =(J19/C3) -> 0% | L19: =Attendance!$E$16 -> 100% | M19: =Professionalism!$E$15 -> 72.0 | N19: =Professionalism!$F$15 -> 100% | O19: ='Course 1 Lab'!$Q$20 -> 0 | P19: ='Course 1 Lab'!$R$20 -> 0% | Q19: =(0.5*K19)+(0.25*N19)+(0.25*P19) -> 25.0% | R19: =IF(Q19>0.95,"A",IF(Q19>0.93,"A-",IF(Q19>0.9,"B+",IF(Q19>0.88,"B",IF(Q19>0.85,"B-",IF(Q19>0.82,"C+",IF(Q19>0.79,"C",IF(Q19>0.76,"C-",IF(Q19>0.74,"D+",IF(Q19>0.72,"D",IF(Q19>0.7,"D-",IF(Q19<0.7,"F")))))))))))) -> F
A20: ='Misc data'!$A$16 -> 00000015 | B20: ='Misc data'!$B$16 -> Student | C20: ='Misc data'!$C$16 -> Fifteen | D20: 0 | E20: 0 | F20: 0 | G20: 0 | H20: 0 | I20: 0 | J20: =SUM(D20:I20) -> 0 | K20: =(J20/C3) -> 0% | L20: =Attendance!$E$17 -> 100% | M20: =Professionalism!$E$16 -> 72.0 | N20: =Professionalism!$F$16 -> 100% | O20: ='Course 1 Lab'!$Q$21 -> 0 | P20: ='Course 1 Lab'!$R$21 -> 0% | Q20: =(0.5*K20)+(0.25*N20)+(0.25*P20) -> 25.0% | R20: =IF(Q20>0.95,"A",IF(Q20>0.93,"A-",IF(Q20>0.9,"B+",IF(Q20>0.88,"B",IF(Q20>0.85,"B-",IF(Q20>0.82,"C+",IF(Q20>0.79,"C",IF(Q20>0.76,"C-",IF(Q20>0.74,"D+",IF(Q20>0.72,"D",IF(Q20>0.7,"D-",IF(Q20<0.7,"F")))))))))))) -> F
A21: ='Misc data'!$A$17 -> 00000016 | B21: ='Misc data'!$B$17 -> Student | C21: ='Misc data'!$C$17 -> Sixteen | D21: 0 | E21: 0 | F21: 0 | G21: 0 | H21: 0 | I21: 0 | J21: =SUM(D21:I21) -> 0 | K21: =(J21/C3) -> 0% | L21: =Attendance!$E$18 -> 100% | M21: =Professionalism!$E$17 -> 72.0 | N21: =Professionalism!$F$17 -> 100% | O21: ='Course 1 Lab'!$Q$22 -> 0 | P21: ='Course 1 Lab'!$R$22 -> 0% | Q21: =(0.5*K21)+(0.25*N21)+(0.25*P21) -> 25.0% | R21: =IF(Q21>0.95,"A",IF(Q21>0.93,"A-",IF(Q21>0.9,"B+",IF(Q21>0.88,"B",IF(Q21>0.85,"B-",IF(Q21>0.82,"C+",IF(Q21>0.79,"C",IF(Q21>0.76,"C-",IF(Q21>0.74,"D+",IF(Q21>0.72,"D",IF(Q21>0.7,"D-",IF(Q21<0.7,"F")))))))))))) -> F
A22: ='Misc data'!$A$18 -> 00000017 | B22: ='Misc data'!$B$18 -> Student | C22: ='Misc data'!$C$18 -> Seventeen | D22: 0 | E22: 0 | F22: 0 | G22: 0 | H22: 0 | I22: 0 | J22: =SUM(D22:I22) -> 0 | K22: =(J22/C3) -> 0% | L22: =Attendance!$E$19 -> 100% | M22: =Professionalism!$E$18 -> 72.0 | N22: =Professionalism!$F$18 -> 100% | O22: ='Course 1 Lab'!$Q$23 -> 0 | P22: ='Course 1 Lab'!$R$23 -> 0% | Q22: =(0.5*K22)+(0.25*N22)+(0.25*P22) -> 25.0% | R22: =IF(Q22>0.95,"A",IF(Q22>0.93,"A-",IF(Q22>0.9,"B+",IF(Q22>0.88,"B",IF(Q22>0.85,"B-",IF(Q22>0.82,"C+",IF(Q22>0.79,"C",IF(Q22>0.76,"C-",IF(Q22>0.74,"D+",IF(Q22>0.72,"D",IF(Q22>0.7,"D-",IF(Q22<0.7,"F")))))))))))) -> F
A23: ='Misc data'!$A$19 -> 00000018 | B23: ='Misc data'!$B$19 -> Student | C23: ='Misc data'!$C$19 -> Eighteen | D23: 0 | E23: 0 | F23: 0 | G23: 0 | H23: 0 | I23: 0 | J23: =SUM(D23:I23) -> 0 | K23: =(J23/C3) -> 0% | L23: =Attendance!$E$20 -> 100% | M23: =Professionalism!$E$19 -> 72.0 | N23: =Professionalism!$F$19 -> 100% | O23: ='Course 1 Lab'!$Q$24 -> 0 | P23: ='Course 1 Lab'!$R$24 -> 0% | Q23: =(0.5*K23)+(0.25*N23)+(0.25*P23) -> 25.0% | R23: =IF(Q23>0.95,"A",IF(Q23>0.93,"A-",IF(Q23>0.9,"B+",IF(Q23>0.88,"B",IF(Q23>0.85,"B-",IF(Q23>0.82,"C+",IF(Q23>0.79,"C",IF(Q23>0.76,"C-",IF(Q23>0.74,"D+",IF(Q23>0.72,"D",IF(Q23>0.7,"D-",IF(Q23<0.7,"F")))))))))))) -> F
A24: ='Misc data'!$A$20 -> 00000019 | B24: ='Misc data'!$B$20 -> Student | C24: ='Misc data'!$C$20 -> Nineteen | D24: 0 | E24: 0 | F24: 0 | G24: 0 | H24: 0 | I24: 0 | J24: =SUM(D24:I24) -> 0 | K24: =(J24/C3) -> 0% | L24: =Attendance!$E$21 -> 100% | M24: =Professionalism!$E$20 -> 72.0 | N24: =Professionalism!$F$20 -> 100% | O24: ='Course 1 Lab'!$Q$25 -> 0 | P24: ='Course 1 Lab'!$R$25 -> 0% | Q24: =(0.5*K24)+(0.25*N24)+(0.25*P24) -> 25.0% | R24: =IF(Q24>0.95,"A",IF(Q24>0.93,"A-",IF(Q24>0.9,"B+",IF(Q24>0.88,"B",IF(Q24>0.85,"B-",IF(Q24>0.82,"C+",IF(Q24>0.79,"C",IF(Q24>0.76,"C-",IF(Q24>0.74,"D+",IF(Q24>0.72,"D",IF(Q24>0.7,"D-",IF(Q24<0.7,"F")))))))))))) -> F
A25: ='Misc data'!$A$21 -> 00000020 | B25: ='Misc data'!$B$21 -> Student | C25: ='Misc data'!$C$21 -> Twenty | D25: 0 | E25: 0 | F25: 0 | G25: 0 | H25: 0 | I25: 0 | J25: =SUM(D25:I25) -> 0 | K25: =(J25/C3) -> 0% | L25: =Attendance!$E$22 -> 100% | M25: =Professionalism!$E$21 -> 72.0 | N25: =Professionalism!$F$21 -> 100% | O25: ='Course 1 Lab'!$Q$26 -> 0 | P25: ='Course 1 Lab'!$R$26 -> 0% | Q25: =(0.5*K25)+(0.25*N25)+(0.25*P25) -> 25.0% | R25: =IF(Q25>0.95,"A",IF(Q25>0.93,"A-",IF(Q25>0.9,"B+",IF(Q25>0.88,"B",IF(Q25>0.85,"B-",IF(Q25>0.82,"C+",IF(Q25>0.79,"C",IF(Q25>0.76,"C-",IF(Q25>0.74,"D+",IF(Q25>0.72,"D",IF(Q25>0.7,"D-",IF(Q25<0.7,"F")))))))))))) -> F
A26: ='Misc data'!$A$22 -> 00000021 | B26: ='Misc data'!$B$22 -> Student | C26: ='Misc data'!$C$22 -> Twenty one | D26: 0 | E26: 0 | F26: 0 | G26: 0 | H26: 0 | I26: 0 | J26: =SUM(D26:I26) -> 0 | K26: =(J26/C3) -> 0% | L26: =Attendance!$E$23 -> 100% | M26: =Professionalism!$E$22 -> 72.0 | N26: =Professionalism!$F$22 -> 100% | O26: ='Course 1 Lab'!$Q$27 -> 0 | P26: ='Course 1 Lab'!$R$27 -> 0% | Q26: =(0.5*K26)+(0.25*N26)+(0.25*P26) -> 25.0% | R26: =IF(Q26>0.95,"A",IF(Q26>0.93,"A-",IF(Q26>0.9,"B+",IF(Q26>0.88,"B",IF(Q26>0.85,"B-",IF(Q26>0.82,"C+",IF(Q26>0.79,"C",IF(Q26>0.76,"C-",IF(Q26>0.74,"D+",IF(Q26>0.72,"D",IF(Q26>0.7,"D-",IF(Q26<0.7,"F")))))))))))) -> F
A27: ='Misc data'!$A$23 -> 00000022 | B27: ='Misc data'!$B$23 -> Student | C27: ='Misc data'!$C$23 -> Twenty two | D27: 0 | E27: 0 | F27: 0 | G27: 0 | H27: 0 | I27: 0 | J27: =SUM(D27:I27) -> 0 | K27: =(J27/C3) -> 0% | L27: =Attendance!$E$24 -> 100% | M27: =Professionalism!$E$23 -> 72.0 | N27: =Professionalism!$F$23 -> 100% | O27: ='Course 1 Lab'!$Q$28 -> 0 | P27: ='Course 1 Lab'!$R$28 -> 0% | Q27: =(0.5*K27)+(0.25*N27)+(0.25*P27) -> 25.0% | R27: =IF(Q27>0.95,"A",IF(Q27>0.93,"A-",IF(Q27>0.9,"B+",IF(Q27>0.88,"B",IF(Q27>0.85,"B-",IF(Q27>0.82,"C+",IF(Q27>0.79,"C",IF(Q27>0.76,"C-",IF(Q27>0.74,"D+",IF(Q27>0.72,"D",IF(Q27>0.7,"D-",IF(Q27<0.7,"F")))))))))))) -> F
A28: ='Misc data'!$A$24 -> 00000023 | B28: ='Misc data'!$B$24 -> Student | C28: ='Misc data'!$C$24 -> Twenty three | D28: 0 | E28: 0 | F28: 0 | G28: 0 | H28: 0 | I28: 0 | J28: =SUM(D28:I28) -> 0 | K28: =(J28/C3) -> 0% | L28: =Attendance!$E$25 -> 100% | M28: =Professionalism!$E$24 -> 72.0 | N28: =Professionalism!$F$24 -> 100% | O28: ='Course 1 Lab'!$Q$29 -> 0 | P28: ='Course 1 Lab'!$R$29 -> 0% | Q28: =(0.5*K28)+(0.25*N28)+(0.25*P28) -> 25.0% | R28: =IF(Q28>0.95,"A",IF(Q28>0.93,"A-",IF(Q28>0.9,"B+",IF(Q28>0.88,"B",IF(Q28>0.85,"B-",IF(Q28>0.82,"C+",IF(Q28>0.79,"C",IF(Q28>0.76,"C-",IF(Q28>0.74,"D+",IF(Q28>0.72,"D",IF(Q28>0.7,"D-",IF(Q28<0.7,"F")))))))))))) -> F
A29: ='Misc data'!$A$25 -> 00000024 | B29: ='Misc data'!$B$25 -> Student | C29: ='Misc data'!$C$25 -> Twenty four | D29: 0 | E29: 0 | F29: 0 | G29: 0 | H29: 0 | I29: 0 | J29: =SUM(D29:I29) -> 0 | K29: =(J29/C3) -> 0% | L29: =Attendance!$E$25 -> 100% | M29: =Professionalism!$E$24 -> 72.0 | N29: =Professionalism!$F$24 -> 100% | O29: ='Course 1 Lab'!$Q$29 -> 0 | P29: ='Course 1 Lab'!$R$29 -> 0% | Q29: =(0.5*K29)+(0.25*N29)+(0.25*P29) -> 25.0% | R29: =IF(Q29>0.95,"A",IF(Q29>0.93,"A-",IF(Q29>0.9,"B+",IF(Q29>0.88,"B",IF(Q29>0.85,"B-",IF(Q29>0.82,"C+",IF(Q29>0.79,"C",IF(Q29>0.76,"C-",IF(Q29>0.74,"D+",IF(Q29>0.72,"D",IF(Q29>0.7,"D-",IF(Q29<0.7,"F")))))))))))) -> F
A30: ='Misc data'!$A$26 -> 00000025 | B30: ='Misc data'!$B$26 -> Student | C30: ='Misc data'!$C$26 -> Twenty five | D30: 0 | E30: 0 | F30: 0 | G30: 0 | H30: 0 | I30: 0 | J30: =SUM(D30:I30) -> 0 | K30: =(J30/C3) -> 0% | L30: =Attendance!$E$25 -> 100% | M30: =Professionalism!$E$24 -> 72.0 | N30: =Professionalism!$F$24 -> 100% | O30: ='Course 1 Lab'!$Q$29 -> 0 | P30: ='Course 1 Lab'!$R$29 -> 0% | Q30: =(0.5*K30)+(0.25*N30)+(0.25*P30) -> 25.0% | R30: =IF(Q30>0.95,"A",IF(Q30>0.93,"A-",IF(Q30>0.9,"B+",IF(Q30>0.88,"B",IF(Q30>0.85,"B-",IF(Q30>0.82,"C+",IF(Q30>0.79,"C",IF(Q30>0.76,"C-",IF(Q30>0.74,"D+",IF(Q30>0.72,"D",IF(Q30>0.7,"D-",IF(Q30<0.7,"F")))))))))))) -> F

Sheet Course 1 Lab
A1: ='Misc data'!$H$3 -> Course 1 Engine Diagnosis. Lab
A2: Max Shop Points: | C2: =SUM(D6:O6) -> 1325 | D2: Dry | E2: Wet | F2: Running | G2: Cylinder | H2: Oil | I2: Cooling | J2: Vacuum | K2: PCV | L2: Thermostat | M2: Fluid | N2: Diag
A3: Max shop points available depend on how much customer work is done. | D3: Compr | E3: Compr | F3: Compr | G3: Leakage | H3: Pressure | I3: System | J3: Gauge | K3: System | L3: and fan | M3: Leak | N3: gauges | O3: Cus | P3: Comp
D4: Test | E4: Test | F4: Test | G4: Test | H4: Test | I4: Test | J4: Test | K4: Check | L4: Operation | M4: Check | N4: any vehicle | O4: tomer | P4: etency
D5: 2 | E5: 2 | F5: 2 | G5: 2 | H5: 2 | I5: 2 | J5: 2 | K5: 2 | L5: 2 | M5: 1 | N5: 1 | O5: Work | P5: 0 or 1 | Q5: Lab
A6: ID | B6: First: | C6: Last: | D6: 100 | E6: 100 | F6: 100 | G6: 100 | H6: 100 | I6: 150 | J6: 100 | K6: 50 | L6: 100 | M6: 25 | N6: 100 | O6: 300 | P6: * | Q6: Points | R6: %
A7: ='Misc data'!$A$2 -> 00000001 | B7: ='Misc data'!$B$2 -> Student | C7: ='Misc data'!$C$2 -> One | D7: 0 | E7: 0 | F7: 0 | G7: 0 | H7: 0 | I7: 0 | J7: 0 | K7: 0 | L7: 0 | M7: 0 | N7: 0 | O7: 0 | P7: 1 | Q7: =SUM(D7:O7)*P7 -> 0 | R7: =(Q7/C2) -> 0%
A8: ='Misc data'!$A$3 -> 00000002 | B8: ='Misc data'!$B$3 -> Student | C8: ='Misc data'!$C$3 -> Two | D8: 0 | E8: 0 | F8: 0 | G8: 0 | H8: 0 | I8: 0 | J8: 0 | K8: 0 | L8: 0 | M8: 0 | N8: 0 | O8: 0 | P8: 1 | Q8: =SUM(D8:O8) -> 0 | R8: =(Q8/C2) -> 0%
A9: ='Misc data'!$A$4 -> 00000003 | B9: ='Misc data'!$B$4 -> Student | C9: ='Misc data'!$C$4 -> Three | D9: 0 | E9: 0 | F9: 0 | G9: 0 | H9: 0 | I9: 0 | J9: 0 | K9: 0 | L9: 0 | M9: 0 | N9: 0 | O9: 0 | P9: 1 | Q9: =SUM(D9:O9) -> 0 | R9: =(Q9/C2) -> 0%
A10: ='Misc data'!$A$5 -> 00000004 | B10: ='Misc data'!$B$5 -> Student | C10: ='Misc data'!$C$5 -> Four | D10: 0 | E10: 0 | F10: 0 | G10: 0 | H10: 0 | I10: 0 | J10: 0 | K10: 0 | L10: 0 | M10: 0 | N10: 0 | O10: 0 | P10: 1 | Q10: =SUM(D10:O10) -> 0 | R10: =(Q10/C2) -> 0%
A11: ='Misc data'!$A$6 -> 00000005 | B11: ='Misc data'!$B$6 -> Student | C11: ='Misc data'!$C$6 -> Five | D11: 0 | E11: 0 | F11: 0 | G11: 0 | H11: 0 | I11: 0 | J11: 0 | K11: 0 | L11: 0 | M11: 0 | N11: 0 | O11: 0 | P11: 1 | Q11: =SUM(D11:O11) -> 0 | R11: =(Q11/C2) -> 0%
A12: ='Misc data'!$A$7 -> 00000006 | B12: ='Misc data'!$B$7 -> Student | C12: ='Misc data'!$C$7 -> Six | D12: 0 | E12: 0 | F12: 0 | G12: 0 | H12: 0 | I12: 0 | J12: 0 | K12: 0 | L12: 0 | M12: 0 | N12: 0 | O12: 0 | P12: 1 | Q12: =SUM(D12:O12) -> 0 | R12: =(Q12/C2) -> 0%
A13: ='Misc data'!$A$8 -> 00000007 | B13: ='Misc data'!$B$8 -> Student | C13: ='Misc data'!$C$8 -> Seven | D13: 0 | E13: 0 | F13: 0 | G13: 0 | H13: 0 | I13: 0 | J13: 0 | K13: 0 | L13: 0 | M13: 0 | N13: 0 | O13: 0 | P13: 1 | Q13: =SUM(D13:O13) -> 0 | R13: =(Q13/C2) -> 0%
A14: ='Misc data'!$A$9 -> 00000008 | B14: ='Misc data'!$B$9 -> Student | C14: ='Misc data'!$C$9 -> Eight | D14: 0 | E14: 0 | F14: 0 | G14: 0 | H14: 0 | I14: 0 | J14: 0 | K14: 0 | L14: 0 | M14: 0 | N14: 0 | O14: 0 | P14: 1 | Q14: =SUM(D14:O14) -> 0 | R14: =(Q14/C2) -> 0%
A15: ='Misc data'!$A$10 -> 00000009 | B15: ='Misc data'!$B$10 -> Student | C15: ='Misc data'!$C$10 -> Nine | D15: 0 | E15: 0 | F15: 0 | G15: 0 | H15: 0 | I15: 0 | J15: 0 | K15: 0 | L15: 0 | M15: 0 | N15: 0 | O15: 0 | P15: 1 | Q15: =SUM(D15:O15) -> 0 | R15: =(Q15/C2) -> 0%
A16: ='Misc data'!$A$11 -> 00000010 | B16: ='Misc data'!$B$11 -> Student | C16: ='Misc data'!$C$11 -> Ten | D16: 0 | E16: 0 | F16: 0 | G16: 0 | H16: 0 | I16: 0 | J16: 0 | K16: 0 | L16: 0 | M16: 0 | N16: 0 | O16: 0 | P16: 1 | Q16: =SUM(D16:O16) -> 0 | R16: =(Q16/C2) -> 0%
A17: ='Misc data'!$A$12 -> 00000011 | B17: ='Misc data'!$B$12 -> Student | C17: ='Misc data'!$C$12 -> Eleven | D17: 0 | E17: 0 | F17: 0 | G17: 0 | H17: 0 | I17: 0 | J17: 0 | K17: 0 | L17: 0 | M17: 0 | N17: 0 | O17: 0 | P17: 1 | Q17: =SUM(D17:O17) -> 0 | R17: =(Q17/C2) -> 0%
A18: ='Misc data'!$A$13 -> 00000012 | B18: ='Misc data'!$B$13 -> Student | C18: ='Misc data'!$C$13 -> Twelve | D18: 0 | E18: 0 | F18: 0 | G18: 0 | H18: 0 | I18: 0 | J18: 0 | K18: 0 | L18: 0 | M18: 0 | N18: 0 | O18: 0 | P18: 1 | Q18: =SUM(D18:O18) -> 0 | R18: =(Q18/C2) -> 0%
A19: ='Misc data'!$A$14 -> 00000013 | B19: ='Misc data'!$B$14 -> Student | C19: ='Misc data'!$C$14 -> Thirteen | D19: 0 | E19: 0 | F19: 0 | G19: 0 | H19: 0 | I19: 0 | J19: 0 | K19: 0 | L19: 0 | M19: 0 | N19: 0 | O19: 0 | P19: 1 | Q19: =SUM(D19:O19) -> 0 | R19: =(Q19/C2) -> 0%
A20: ='Misc data'!$A$15 -> 00000014 | B20: ='Misc data'!$B$15 -> Student | C20: ='Misc data'!$C$15 -> Fourteen | D20: 0 | E20: 0 | F20: 0 | G20: 0 | H20: 0 | I20: 0 | J20: 0 | K20: 0 | L20: 0 | M20: 0 | N20: 0 | O20: 0 | P20: 1 | Q20: =SUM(D20:O20) -> 0 | R20: =(Q20/C2) -> 0%
A21: ='Misc data'!$A$16 -> 00000015 | B21: ='Misc data'!$B$16 -> Student | C21: ='Misc data'!$C$16 -> Fifteen | D21: 0 | E21: 0 | F21: 0 | G21: 0 | H21: 0 | I21: 0 | J21: 0 | K21: 0 | L21: 0 | M21: 0 | N21: 0 | O21: 0 | P21: 1 | Q21: =SUM(D21:O21) -> 0 | R21: =(Q21/C2) -> 0%
A22: ='Misc data'!$A$17 -> 00000016 | B22: ='Misc data'!$B$17 -> Student | C22: ='Misc data'!$C$17 -> Sixteen | D22: 0 | E22: 0 | F22: 0 | G22: 0 | H22: 0 | I22: 0 | J22: 0 | K22: 0 | L22: 0 | M22: 0 | N22: 0 | O22: 0 | P22: 1 | Q22: =SUM(D22:O22) -> 0 | R22: =(Q22/C2) -> 0%
A23: ='Misc data'!$A$18 -> 00000017 | B23: ='Misc data'!$B$18 -> Student | C23: ='Misc data'!$C$18 -> Seventeen | D23: 0 | E23: 0 | F23: 0 | G23: 0 | H23: 0 | I23: 0 | J23: 0 | K23: 0 | L23: 0 | M23: 0 | N23: 0 | O23: 0 | P23: 1 | Q23: =SUM(D23:O23) -> 0 | R23: =(Q23/C2) -> 0%
A24: ='Misc data'!$A$19 -> 00000018 | B24: ='Misc data'!$B$19 -> Student | C24: ='Misc data'!$C$19 -> Eighteen | D24: 0 | E24: 0 | F24: 0 | G24: 0 | H24: 0 | I24: 0 | J24: 0 | K24: 0 | L24: 0 | M24: 0 | N24: 0 | O24: 0 | P24: 1 | Q24: =SUM(D24:O24) -> 0 | R24: =(Q24/C2) -> 0%
A25: ='Misc data'!$A$20 -> 00000019 | B25: ='Misc data'!$B$20 -> Student | C25: ='Misc data'!$C$20 -> Nineteen | D25: 0 | E25: 0 | F25: 0 | G25: 0 | H25: 0 | I25: 0 | J25: 0 | K25: 0 | L25: 0 | M25: 0 | N25: 0 | O25: 0 | P25: 1 | Q25: =SUM(D25:O25) -> 0 | R25: =(Q25/C2) -> 0%
A26: ='Misc data'!$A$21 -> 00000020 | B26: ='Misc data'!$B$21 -> Student | C26: ='Misc data'!$C$21 -> Twenty | D26: 0 | E26: 0 | F26: 0 | G26: 0 | H26: 0 | I26: 0 | J26: 0 | K26: 0 | L26: 0 | M26: 0 | N26: 0 | O26: 0 | P26: 1 | Q26: =SUM(D26:O26) -> 0 | R26: =(Q26/C2) -> 0%
A27: ='Misc data'!$A$22 -> 00000021 | B27: ='Misc data'!$B$22 -> Student | C27: ='Misc data'!$C$22 -> Twenty one | D27: 0 | E27: 0 | F27: 0 | G27: 0 | H27: 0 | I27: 0 | J27: 0 | K27: 0 | L27: 0 | M27: 0 | N27: 0 | O27: 0 | P27: 1 | Q27: =SUM(D27:O27) -> 0 | R27: =(Q27/C2) -> 0%
A28: ='Misc data'!$A$23 -> 00000022 | B28: ='Misc data'!$B$23 -> Student | C28: ='Misc data'!$C$23 -> Twenty two | D28: 0 | E28: 0 | F28: 0 | G28: 0 | H28: 0 | I28: 0 | J28: 0 | K28: 0 | L28: 0 | M28: 0 | N28: 0 | O28: 0 | P28: 1 | Q28: =SUM(D28:O28) -> 0 | R28: =(Q28/C2) -> 0%
A29: ='Misc data'!$A$24 -> 00000023 | B29: ='Misc data'!$B$24 -> Student | C29: ='Misc data'!$C$24 -> Twenty three | D29: 0 | E29: 0 | F29: 0 | G29: 0 | H29: 0 | I29: 0 | J29: 0 | K29: 0 | L29: 0 | M29: 0 | N29: 0 | O29: 0 | P29: 1 | Q29: =SUM(D29:O29) -> 0 | R29: =(Q29/C2) -> 0%
A30: ='Misc data'!$A$25 -> 00000024 | B30: ='Misc data'!$B$25 -> Student | C30: ='Misc data'!$C$25 -> Twenty four | D30: 0 | E30: 0 | F30: 0 | G30: 0 | H30: 0 | I30: 0 | J30: 0 | K30: 0 | L30: 0 | M30: 0 | N30: 0 | O30: 0 | P30: 1 | Q30: =SUM(D30:O30) -> 0 | R30: =(Q30/C2) -> 0%
A31: ='Misc data'!$A$26 -> 00000025 | B31: ='Misc data'!$B$26 -> Student | C31: ='Misc data'!$C$26 -> Twenty five | D31: 0 | E31: 0 | F31: 0 | G31: 0 | H31: 0 | I31: 0 | J31: 0 | K31: 0 | L31: 0 | M31: 0 | N31: 0 | O31: 0 | P31: 1 | Q31: =SUM(D31:O31) -> 0 | R31: =(Q31/C2) -> 0%

Sheet Course 2 Class
A1: ='Misc data'!$H$4 -> Course 2 Engine Theory & Repair. Class | J1: 25
B2: Date assignment is due: | D2: TBD | E2: TBD | F2: TBD | G2: TBD | H2: TBD | I2: TBD | J2: TBD | K2: TBD
A3: Class Room Points: | C3: =SUM(D3:K3) -> 201 | D3: 10 | E3: 10 | F3: 20 | G3: 20 | H3: 16 | I3: 25 | K3: 100 | L3: Evaluation
A4: Red is late turn-in | C4: Blue is absent | D4: HW | E4: HW | F4: Test | G4: Test | H4: HW | I4: Test | J4: Extra | K4: Final | L4: Class | N4: Professionalism | Q4: Lab | S4: Total | T4: Letter
A5: I D | B5: First: | C5: Last: | D5: CH 7 | E5: CH 14 | F5: C & L | G5: CH 18 | H5: CH 22 | I5: CH 22 | J5: Credit | K5: TEST | L5: Points | M5: % | N5: Attendance | O5: Points | P5: % | Q5: Points | R5: % | S5: % | T5: Grade
A6: ='Misc data'!$A$2 -> 00000001 | B6: ='Misc data'!$B$2 -> Student | C6: ='Misc data'!$C$2 -> One | D6: 0 | E6: 0 | F6: 0 | G6: 0 | H6: 0 | I6: 0 | J6: 0 | K6: 0 | L6: =SUM(D6:K6) -> 0 | M6: =(L6/C3) -> 0% | N6: =Attendance!$E$3 -> 100% | O6: =Professionalism!$E$2 -> 72 | P6: =Professionalism!$F$2 -> 100% | Q6: ='Course 2 Lab'!$N$7 -> 0 | R6: ='Course 2 Lab'!$O$7 -> 0% | S6: =(0.5*M6)+(0.25*P6)+(0.25*R6) -> 25.0% | T6: =IF(S6>0.95,"A",IF(S6>0.93,"A-",IF(S6>0.9,"B+",IF(S6>0.88,"B",IF(S6>0.85,"B-",IF(S6>0.82,"C+",IF(S6>0.79,"C",IF(S6>0.76,"C-",IF(S6>0.74,"D+",IF(S6>0.72,"D",IF(S6>0.7,"D-",IF(S6<0.7,"F")))))))))))) -> F
A7: ='Misc data'!$A$3 -> 00000002 | B7: ='Misc data'!$B$3 -> Student | C7: ='Misc data'!$C$3 -> Two | D7: 0 | E7: 0 | F7: 0 | G7: 0 | H7: 0 | I7: 0 | J7: 0 | K7: 0 | L7: =SUM(C7:K7) -> 0 | M7: =(L7/C3) -> 0% | N7: =Attendance!$E$4 -> 93% | O7: =Professionalism!$E$3 -> 72 | P7: =Professionalism!$F$3 -> 99% | Q7: ='Course 2 Lab'!$N$8 -> 0 | R7: ='Course 2 Lab'!$O$8 -> 0% | S7: =(0.5*M7)+(0.25*P7)+(0.25*R7) -> 24.9% | T7: =IF(S7>0.95,"A",IF(S7>0.93,"A-",IF(S7>0.9,"B+",IF(S7>0.88,"B",IF(S7>0.85,"B-",IF(S7>0.82,"C+",IF(S7>0.79,"C",IF(S7>0.76,"C-",IF(S7>0.74,"D+",IF(S7>0.72,"D",IF(S7>0.7,"D-",IF(S7<0.7,"F")))))))))))) -> F
A8: ='Misc data'!$A$4 -> 00000003 | B8: ='Misc data'!$B$4 -> Student | C8: ='Misc data'!$C$4 -> Three | D8: 0 | E8: 0 | F8: 0 | G8: 0 | H8: 0 | I8: 0 | J8: 0 | K8: 0 | L8: =SUM(C8:K8) -> 0 | M8: =(L8/C3) -> 0% | N8: =Attendance!$E$5 -> 100% | O8: =Professionalism!$E$4 -> 72 | P8: =Professionalism!$F$4 -> 100% | Q8: ='Course 2 Lab'!$N$9 -> 0 | R8: ='Course 2 Lab'!$O$9 -> 0% | S8: =(0.5*M8)+(0.25*P8)+(0.25*R8) -> 25.0% | T8: =IF(S8>0.95,"A",IF(S8>0.93,"A-",IF(S8>0.9,"B+",IF(S8>0.88,"B",IF(S8>0.85,"B-",IF(S8>0.82,"C+",IF(S8>0.79,"C",IF(S8>0.76,"C-",IF(S8>0.74,"D+",IF(S8>0.72,"D",IF(S8>0.7,"D-",IF(S8<0.7,"F")))))))))))) -> F
A9: ='Misc data'!$A$5 -> 00000004 | B9: ='Misc data'!$B$5 -> Student | C9: ='Misc data'!$C$5 -> Four | D9: 0 | E9: 0 | F9: 0 | G9: 0 | H9: 0 | I9: 0 | J9: 0 | K9: 0 | L9: =SUM(C9:K9) -> 0 | M9: =(L9/C3) -> 0% | N9: =Attendance!$E$6 -> 100% | O9: =Professionalism!$E$5 -> 72 | P9: =Professionalism!$F$5 -> 100% | Q9: ='Course 2 Lab'!$N$10 -> 0 | R9: ='Course 2 Lab'!$O$10 -> 0% | S9: =(0.5*M9)+(0.25*P9)+(0.25*R9) -> 25.0% | T9: =IF(S9>0.95,"A",IF(S9>0.93,"A-",IF(S9>0.9,"B+",IF(S9>0.88,"B",IF(S9>0.85,"B-",IF(S9>0.82,"C+",IF(S9>0.79,"C",IF(S9>0.76,"C-",IF(S9>0.74,"D+",IF(S9>0.72,"D",IF(S9>0.7,"D-",IF(S9<0.7,"F")))))))))))) -> F
A10: ='Misc data'!$A$6 -> 00000005 | B10: ='Misc data'!$B$6 -> Student | C10: ='Misc data'!$C$6 -> Five | D10: 0 | E10: 0 | F10: 0 | G10: 0 | H10: 0 | I10: 0 | J10: 0 | K10: 0 | L10: =SUM(C10:K10) -> 0 | M10: =(L10/C3) -> 0% | N10: =Attendance!$E$7 -> 100% | O10: =Professionalism!$E$6 -> 72 | P10: =Professionalism!$F$6 -> 100% | Q10: ='Course 2 Lab'!$N$11 -> 0 | R10: ='Course 2 Lab'!$O$11 -> 0% | S10: =(0.5*M10)+(0.25*P10)+(0.25*R10) -> 25.0% | T10: =IF(S10>0.95,"A",IF(S10>0.93,"A-",IF(S10>0.9,"B+",IF(S10>0.88,"B",IF(S10>0.85,"B-",IF(S10>0.82,"C+",IF(S10>0.79,"C",IF(S10>0.76,"C-",IF(S10>0.74,"D+",IF(S10>0.72,"D",IF(S10>0.7,"D-",IF(S10<0.7,"F")))))))))))) -> F
A11: ='Misc data'!$A$7 -> 00000006 | B11: ='Misc data'!$B$7 -> Student | C11: ='Misc data'!$C$7 -> Six | D11: 0 | E11: 0 | F11: 0 | G11: 0 | H11: 0 | I11: 0 | J11: 0 | K11: 0 | L11: =SUM(C11:K11) -> 0 | M11: =(L11/C3) -> 0% | N11: =Attendance!$E$8 -> 100% | O11: =Professionalism!$E$7 -> 72 | P11: =Professionalism!$F$7 -> 100% | Q11: ='Course 2 Lab'!$N$12 -> 0 | R11: ='Course 2 Lab'!$O$12 -> 0% | S11: =(0.5*M11)+(0.25*P11)+(0.25*R11) -> 25.0% | T11: =IF(S11>0.95,"A",IF(S11>0.93,"A-",IF(S11>0.9,"B+",IF(S11>0.88,"B",IF(S11>0.85,"B-",IF(S11>0.82,"C+",IF(S11>0.79,"C",IF(S11>0.76,"C-",IF(S11>0.74,"D+",IF(S11>0.72,"D",IF(S11>0.7,"D-",IF(S11<0.7,"F")))))))))))) -> F
A12: ='Misc data'!$A$8 -> 00000007 | B12: ='Misc data'!$B$8 -> Student | C12: ='Misc data'!$C$8 -> Seven | D12: 0 | E12: 0 | F12: 0 | G12: 0 | H12: 0 | I12: 0 | J12: 0 | K12: 0 | L12: =SUM(C12:K12) -> 0 | M12: =(L12/C3) -> 0% | N12: =Attendance!$E$9 -> 100% | O12: =Professionalism!$E$8 -> 72 | P12: =Professionalism!$F$8 -> 100% | Q12: ='Course 2 Lab'!$N$13 -> 0 | R12: ='Course 2 Lab'!$O$13 -> 0% | S12: =(0.5*M12)+(0.25*P12)+(0.25*R12) -> 25.0% | T12: =IF(S12>0.95,"A",IF(S12>0.93,"A-",IF(S12>0.9,"B+",IF(S12>0.88,"B",IF(S12>0.85,"B-",IF(S12>0.82,"C+",IF(S12>0.79,"C",IF(S12>0.76,"C-",IF(S12>0.74,"D+",IF(S12>0.72,"D",IF(S12>0.7,"D-",IF(S12<0.7,"F")))))))))))) -> F
A13: ='Misc data'!$A$9 -> 00000008 | B13: ='Misc data'!$B$9 -> Student | C13: ='Misc data'!$C$9 -> Eight | D13: 0 | E13: 0 | F13: 0 | G13: 0 | H13: 0 | I13: 0 | J13: 0 | K13: 0 | L13: =SUM(C13:K13) -> 0 | M13: =(L13/C3) -> 0% | N13: =Attendance!$E$10 -> 100% | O13: =Professionalism!$E$9 -> 72 | P13: =Professionalism!$F$9 -> 100% | Q13: ='Course 2 Lab'!$N$14 -> 0 | R13: ='Course 2 Lab'!$O$14 -> 0% | S13: =(0.5*M13)+(0.25*P13)+(0.25*R13) -> 25.0% | T13: =IF(S13>0.95,"A",IF(S13>0.93,"A-",IF(S13>0.9,"B+",IF(S13>0.88,"B",IF(S13>0.85,"B-",IF(S13>0.82,"C+",IF(S13>0.79,"C",IF(S13>0.76,"C-",IF(S13>0.74,"D+",IF(S13>0.72,"D",IF(S13>0.7,"D-",IF(S13<0.7,"F")))))))))))) -> F
A14: ='Misc data'!$A$10 -> 00000009 | B14: ='Misc data'!$B$10 -> Student | C14: ='Misc data'!$C$10 -> Nine | D14: 0 | E14: 0 | F14: 0 | G14: 0 | H14: 0 | I14: 0 | J14: 0 | K14: 0 | L14: =SUM(C14:K14) -> 0 | M14: =(L14/C3) -> 0% | N14: =Attendance!$E$11 -> 100% | O14: =Professionalism!$E$10 -> 72 | P14: =Professionalism!$F$10 -> 100% | Q14: ='Course 2 Lab'!$N$15 -> 0 | R14: ='Course 2 Lab'!$O$15 -> 0% | S14: =(0.5*M14)+(0.25*P14)+(0.25*R14) -> 25.0% | T14: =IF(S14>0.95,"A",IF(S14>0.93,"A-",IF(S14>0.9,"B+",IF(S14>0.88,"B",IF(S14>0.85,"B-",IF(S14>0.82,"C+",IF(S14>0.79,"C",IF(S14>0.76,"C-",IF(S14>0.74,"D+",IF(S14>0.72,"D",IF(S14>0.7,"D-",IF(S14<0.7,"F")))))))))))) -> F
A15: ='Misc data'!$A$11 -> 00000010 | B15: ='Misc data'!$B$11 -> Student | C15: ='Misc data'!$C$11 -> Ten | D15: 0 | E15: 0 | F15: 0 | G15: 0 | H15: 0 | I15: 0 | J15: 0 | K15: 0 | L15: =SUM(C15:K15) -> 0 | M15: =(L15/C3) -> 0% | N15: =Attendance!$E$12 -> 100% | O15: =Professionalism!$E$11 -> 72 | P15: =Professionalism!$F$11 -> 100% | Q15: ='Course 2 Lab'!$N$16 -> 0 | R15: ='Course 2 Lab'!$O$16 -> 0% | S15: =(0.5*M15)+(0.25*P15)+(0.25*R15) -> 25.0% | T15: =IF(S15>0.95,"A",IF(S15>0.93,"A-",IF(S15>0.9,"B+",IF(S15>0.88,"B",IF(S15>0.85,"B-",IF(S15>0.82,"C+",IF(S15>0.79,"C",IF(S15>0.76,"C-",IF(S15>0.74,"D+",IF(S15>0.72,"D",IF(S15>0.7,"D-",IF(S15<0.7,"F")))))))))))) -> F
A16: ='Misc data'!$A$12 -> 00000011 | B16: ='Misc data'!$B$12 -> Student | C16: ='Misc data'!$C$12 -> Eleven | D16: 0 | E16: 0 | F16: 0 | G16: 0 | H16: 0 | I16: 0 | J16: 0 | K16: 0 | L16: =SUM(C16:K16) -> 0 | M16: =(L16/C3) -> 0% | N16: =Attendance!$E$13 -> 100% | O16: =Professionalism!$E$12 -> 72 | P16: =Professionalism!$F$12 -> 100% | Q16: ='Course 2 Lab'!$N$17 -> 0 | R16: ='Course 2 Lab'!$O$17 -> 0% | S16: =(0.5*M16)+(0.25*P16)+(0.25*R16) -> 25.0% | T16: =IF(S16>0.95,"A",IF(S16>0.93,"A-",IF(S16>0.9,"B+",IF(S16>0.88,"B",IF(S16>0.85,"B-",IF(S16>0.82,"C+",IF(S16>0.79,"C",IF(S16>0.76,"C-",IF(S16>0.74,"D+",IF(S16>0.72,"D",IF(S16>0.7,"D-",IF(S16<0.7,"F")))))))))))) -> F
A17: ='Misc data'!$A$13 -> 00000012 | B17: ='Misc data'!$B$13 -> Student | C17: ='Misc data'!$C$13 -> Twelve | D17: 0 | E17: 0 | F17: 0 | G17: 0 | H17: 0 | I17: 0 | J17: 0 | K17: 0 | L17: =SUM(C17:K17) -> 0 | M17: =(L17/C3) -> 0% | N17: =Attendance!$E$14 -> 93% | O17: =Professionalism!$E$13 -> 72 | P17: =Professionalism!$F$13 -> 99% | Q17: ='Course 2 Lab'!$N$18 -> 0 | R17: ='Course 2 Lab'!$O$18 -> 0% | S17: =(0.5*M17)+(0.25*P17)+(0.25*R17) -> 24.9% | T17: =IF(S17>0.95,"A",IF(S17>0.93,"A-",IF(S17>0.9,"B+",IF(S17>0.88,"B",IF(S17>0.85,"B-",IF(S17>0.82,"C+",IF(S17>0.79,"C",IF(S17>0.76,"C-",IF(S17>0.74,"D+",IF(S17>0.72,"D",IF(S17>0.7,"D-",IF(S17<0.7,"F")))))))))))) -> F
A18: ='Misc data'!$A$14 -> 00000013 | B18: ='Misc data'!$B$14 -> Student | C18: ='Misc data'!$C$14 -> Thirteen | D18: 0 | E18: 0 | F18: 0 | G18: 0 | H18: 0 | I18: 0 | J18: 0 | K18: 0 | L18: =SUM(C18:K18) -> 0 | M18: =(L18/C3) -> 0% | N18: =Attendance!$E$15 -> 100% | O18: =Professionalism!$E$14 -> 72 | P18: =Professionalism!$F$14 -> 100% | Q18: ='Course 2 Lab'!$N$19 -> 0 | R18: ='Course 2 Lab'!$O$19 -> 0% | S18: =(0.5*M18)+(0.25*P18)+(0.25*R18) -> 25.0% | T18: =IF(S18>0.95,"A",IF(S18>0.93,"A-",IF(S18>0.9,"B+",IF(S18>0.88,"B",IF(S18>0.85,"B-",IF(S18>0.82,"C+",IF(S18>0.79,"C",IF(S18>0.76,"C-",IF(S18>0.74,"D+",IF(S18>0.72,"D",IF(S18>0.7,"D-",IF(S18<0.7,"F")))))))))))) -> F
A19: ='Misc data'!$A$15 -> 00000014 | B19: ='Misc data'!$B$15 -> Student | C19: ='Misc data'!$C$15 -> Fourteen | D19: 0 | E19: 0 | F19: 0 | G19: 0 | H19: 0 | I19: 0 | J19: 0 | K19: 0 | L19: =SUM(C19:K19) -> 0 | M19: =(L19/C3) -> 0% | N19: =Attendance!$E$16 -> 100% | O19: =Professionalism!$E$15 -> 72 | P19: =Professionalism!$F$15 -> 100% | Q19: ='Course 2 Lab'!$N$20 -> 0 | R19: ='Course 2 Lab'!$O$20 -> 0% | S19: =(0.5*M19)+(0.25*P19)+(0.25*R19) -> 25.0% | T19: =IF(S19>0.95,"A",IF(S19>0.93,"A-",IF(S19>0.9,"B+",IF(S19>0.88,"B",IF(S19>0.85,"B-",IF(S19>0.82,"C+",IF(S19>0.79,"C",IF(S19>0.76,"C-",IF(S19>0.74,"D+",IF(S19>0.72,"D",IF(S19>0.7,"D-",IF(S19<0.7,"F")))))))))))) -> F
A20: ='Misc data'!$A$16 -> 00000015 | B20: ='Misc data'!$B$16 -> Student | C20: ='Misc data'!$C$16 -> Fifteen | D20: 0 | E20: 0 | F20: 0 | G20: 0 | H20: 0 | I20: 0 | J20: 0 | K20: 0 | L20: =SUM(C20:K20) -> 0 | M20: =(L20/C3) -> 0% | N20: =Attendance!$E$17 -> 100% | O20: =Professionalism!$E$16 -> 72 | P20: =Professionalism!$F$16 -> 100% | Q20: ='Course 2 Lab'!$N$21 -> 0 | R20: ='Course 2 Lab'!$O$21 -> 0% | S20: =(0.5*M20)+(0.25*P20)+(0.25*R20) -> 25.0% | T20: =IF(S20>0.95,"A",IF(S20>0.93,"A-",IF(S20>0.9,"B+",IF(S20>0.88,"B",IF(S20>0.85,"B-",IF(S20>0.82,"C+",IF(S20>0.79,"C",IF(S20>0.76,"C-",IF(S20>0.74,"D+",IF(S20>0.72,"D",IF(S20>0.7,"D-",IF(S20<0.7,"F")))))))))))) -> F
A21: ='Misc data'!$A$17 -> 00000016 | B21: ='Misc data'!$B$17 -> Student | C21: ='Misc data'!$C$17 -> Sixteen | D21: 0 | E21: 0 | F21: 0 | G21: 0 | H21: 0 | I21: 0 | J21: 0 | K21: 0 | L21: =SUM(C21:K21) -> 0 | M21: =(L21/C3) -> 0% | N21: =Attendance!$E$18 -> 100% | O21: =Professionalism!$E$17 -> 72 | P21: =Professionalism!$F$17 -> 100% | Q21: ='Course 2 Lab'!$N$22 -> 0 | R21: ='Course 2 Lab'!$O$22 -> 0% | S21: =(0.5*M21)+(0.25*P21)+(0.25*R21) -> 25.0% | T21: =IF(S21>0.95,"A",IF(S21>0.93,"A-",IF(S21>0.9,"B+",IF(S21>0.88,"B",IF(S21>0.85,"B-",IF(S21>0.82,"C+",IF(S21>0.79,"C",IF(S21>0.76,"C-",IF(S21>0.74,"D+",IF(S21>0.72,"D",IF(S21>0.7,"D-",IF(S21<0.7,"F")))))))))))) -> F
A22: ='Misc data'!$A$18 -> 00000017 | B22: ='Misc data'!$B$18 -> Student | C22: ='Misc data'!$C$18 -> Seventeen | D22: 0 | E22: 0 | F22: 0 | G22: 0 | H22: 0 | I22: 0 | J22: 0 | K22: 0 | L22: =SUM(C22:K22) -> 0 | M22: =(L22/C3) -> 0% | N22: =Attendance!$E$19 -> 100% | O22: =Professionalism!$E$18 -> 72 | P22: =Professionalism!$F$18 -> 100% | Q22: ='Course 2 Lab'!$N$23 -> 0 | R22: ='Course 2 Lab'!$O$23 -> 0% | S22: =(0.5*M22)+(0.25*P22)+(0.25*R22) -> 25.0% | T22: =IF(S22>0.95,"A",IF(S22>0.93,"A-",IF(S22>0.9,"B+",IF(S22>0.88,"B",IF(S22>0.85,"B-",IF(S22>0.82,"C+",IF(S22>0.79,"C",IF(S22>0.76,"C-",IF(S22>0.74,"D+",IF(S22>0.72,"D",IF(S22>0.7,"D-",IF(S22<0.7,"F")))))))))))) -> F
A23: ='Misc data'!$A$19 -> 00000018 | B23: ='Misc data'!$B$19 -> Student | C23: ='Misc data'!$C$19 -> Eighteen | D23: 0 | E23: 0 | F23: 0 | G23: 0 | H23: 0 | I23: 0 | J23: 0 | K23: 0 | L23: =SUM(C23:K23) -> 0 | M23: =(L23/C3) -> 0% | N23: =Attendance!$E$20 -> 100% | O23: =Professionalism!$E$19 -> 72 | P23: =Professionalism!$F$19 -> 100% | Q23: ='Course 2 Lab'!$N$24 -> 0 | R23: ='Course 2 Lab'!$O$24 -> 0% | S23: =(0.5*M23)+(0.25*P23)+(0.25*R23) -> 25.0% | T23: =IF(S23>0.95,"A",IF(S23>0.93,"A-",IF(S23>0.9,"B+",IF(S23>0.88,"B",IF(S23>0.85,"B-",IF(S23>0.82,"C+",IF(S23>0.79,"C",IF(S23>0.76,"C-",IF(S23>0.74,"D+",IF(S23>0.72,"D",IF(S23>0.7,"D-",IF(S23<0.7,"F")))))))))))) -> F
A24: ='Misc data'!$A$20 -> 00000019 | B24: ='Misc data'!$B$20 -> Student | C24: ='Misc data'!$C$20 -> Nineteen | D24: 0 | E24: 0 | F24: 0 | G24: 0 | H24: 0 | I24: 0 | J24: 0 | K24: 0 | L24: =SUM(C24:K24) -> 0 | M24: =(L24/C3) -> 0% | N24: =Attendance!$E$21 -> 100% | O24: =Professionalism!$E$20 -> 72 | P24: =Professionalism!$F$20 -> 100% | Q24: ='Course 2 Lab'!$N$25 -> 0 | R24: ='Course 2 Lab'!$O$25 -> 0% | S24: =(0.5*M24)+(0.25*P24)+(0.25*R24) -> 25.0% | T24: =IF(S24>0.95,"A",IF(S24>0.93,"A-",IF(S24>0.9,"B+",IF(S24>0.88,"B",IF(S24>0.85,"B-",IF(S24>0.82,"C+",IF(S24>0.79,"C",IF(S24>0.76,"C-",IF(S24>0.74,"D+",IF(S24>0.72,"D",IF(S24>0.7,"D-",IF(S24<0.7,"F")))))))))))) -> F
A25: ='Misc data'!$A$21 -> 00000020 | B25: ='Misc data'!$B$21 -> Student | C25: ='Misc data'!$C$21 -> Twenty | D25: 0 | E25: 0 | F25: 0 | G25: 0 | H25: 0 | I25: 0 | J25: 0 | K25: 0 | L25: =SUM(C25:K25) -> 0 | M25: =(L25/C3) -> 0% | N25: =Attendance!$E$22 -> 100% | O25: =Professionalism!$E$21 -> 72 | P25: =Professionalism!$F$21 -> 100% | Q25: ='Course 2 Lab'!$N$26 -> 0 | R25: ='Course 2 Lab'!$O$26 -> 0% | S25: =(0.5*M25)+(0.25*P25)+(0.25*R25) -> 25.0% | T25: =IF(S25>0.95,"A",IF(S25>0.93,"A-",IF(S25>0.9,"B+",IF(S25>0.88,"B",IF(S25>0.85,"B-",IF(S25>0.82,"C+",IF(S25>0.79,"C",IF(S25>0.76,"C-",IF(S25>0.74,"D+",IF(S25>0.72,"D",IF(S25>0.7,"D-",IF(S25<0.7,"F")))))))))))) -> F
A26: ='Misc data'!$A$22 -> 00000021 | B26: ='Misc data'!$B$22 -> Student | C26: ='Misc data'!$C$22 -> Twenty one | D26: 0 | E26: 0 | F26: 0 | G26: 0 | H26: 0 | I26: 0 | J26: 0 | K26: 0 | L26: =SUM(C26:K26) -> 0 | M26: =(L26/C3) -> 0% | N26: =Attendance!$E$23 -> 100% | O26: =Professionalism!$E$22 -> 72 | P26: =Professionalism!$F$22 -> 100% | Q26: ='Course 2 Lab'!$N$27 -> 0 | R26: ='Course 2 Lab'!$O$27 -> 0% | S26: =(0.5*M26)+(0.25*P26)+(0.25*R26) -> 25.0% | T26: =IF(S26>0.95,"A",IF(S26>0.93,"A-",IF(S26>0.9,"B+",IF(S26>0.88,"B",IF(S26>0.85,"B-",IF(S26>0.82,"C+",IF(S26>0.79,"C",IF(S26>0.76,"C-",IF(S26>0.74,"D+",IF(S26>0.72,"D",IF(S26>0.7,"D-",IF(S26<0.7,"F")))))))))))) -> F
A27: ='Misc data'!$A$23 -> 00000022 | B27: ='Misc data'!$B$23 -> Student | C27: ='Misc data'!$C$23 -> Twenty two | D27: 0 | E27: 0 | F27: 0 | G27: 0 | H27: 0 | I27: 0 | J27: 0 | K27: 0 | L27: =SUM(C27:K27) -> 0 | M27: =(L27/C3) -> 0% | N27: =Attendance!$E$24 -> 100% | O27: =Professionalism!$E$23 -> 72 | P27: =Professionalism!$F$23 -> 100% | Q27: ='Course 2 Lab'!$N$28 -> 0 | R27: ='Course 2 Lab'!$O$28 -> 0% | S27: =(0.5*M27)+(0.25*P27)+(0.25*R27) -> 25.0% | T27: =IF(S27>0.95,"A",IF(S27>0.93,"A-",IF(S27>0.9,"B+",IF(S27>0.88,"B",IF(S27>0.85,"B-",IF(S27>0.82,"C+",IF(S27>0.79,"C",IF(S27>0.76,"C-",IF(S27>0.74,"D+",IF(S27>0.72,"D",IF(S27>0.7,"D-",IF(S27<0.7,"F")))))))))))) -> F
A28: ='Misc data'!$A$24 -> 00000023 | B28: ='Misc data'!$B$24 -> Student | C28: ='Misc data'!$C$24 -> Twenty three | D28: 0 | E28: 0 | F28: 0 | G28: 0 | H28: 0 | I28: 0 | J28: 0 | K28: 0 | L28: =SUM(C28:K28) -> 0 | M28: =(L28/C3) -> 0% | N28: =Attendance!$E$25 -> 100% | O28: =Professionalism!$E$24 -> 72 | P28: =Professionalism!$F$24 -> 100% | Q28: ='Course 2 Lab'!$N$29 -> 0 | R28: ='Course 2 Lab'!$O$29 -> 0% | S28: =(0.5*M28)+(0.25*P28)+(0.25*R28) -> 25.0% | T28: =IF(S28>0.95,"A",IF(S28>0.93,"A-",IF(S28>0.9,"B+",IF(S28>0.88,"B",IF(S28>0.85,"B-",IF(S28>0.82,"C+",IF(S28>0.79,"C",IF(S28>0.76,"C-",IF(S28>0.74,"D+",IF(S28>0.72,"D",IF(S28>0.7,"D-",IF(S28<0.7,"F")))))))))))) -> F
A29: ='Misc data'!$A$25 -> 00000024 | B29: ='Misc data'!$B$25 -> Student | C29: ='Misc data'!$C$25 -> Twenty four | D29: 0 | E29: 0 | F29: 0 | G29: 0 | H29: 0 | I29: 0 | J29: 0 | K29: 0 | L29: =SUM(C29:K29) -> 0 | M29: =(L29/C3) -> 0% | N29: =Attendance!$E$24 -> 100% | O29: =Professionalism!$E$23 -> 72 | P29: =Professionalism!$F$23 -> 100% | Q29: ='Course 2 Lab'!$N$28 -> 0 | R29: ='Course 2 Lab'!$O$28 -> 0% | S29: =(0.5*M29)+(0.25*P29)+(0.25*R29) -> 25.0% | T29: =IF(S29>0.95,"A",IF(S29>0.93,"A-",IF(S29>0.9,"B+",IF(S29>0.88,"B",IF(S29>0.85,"B-",IF(S29>0.82,"C+",IF(S29>0.79,"C",IF(S29>0.76,"C-",IF(S29>0.74,"D+",IF(S29>0.72,"D",IF(S29>0.7,"D-",IF(S29<0.7,"F")))))))))))) -> F
A30: ='Misc data'!$A$26 -> 00000025 | B30: ='Misc data'!$B$26 -> Student | C30: ='Misc data'!$C$26 -> Twenty five | D30: 0 | E30: 0 | F30: 0 | G30: 0 | H30: 0 | I30: 0 | J30: 0 | K30: 0 | L30: =SUM(C30:K30) -> 0 | M30: =(L30/C3) -> 0% | N30: =Attendance!$E$25 -> 100% | O30: =Professionalism!$E$24 -> 72 | P30: =Professionalism!$F$24 -> 100% | Q30: ='Course 2 Lab'!$N$29 -> 0 | R30: ='Course 2 Lab'!$O$29 -> 0% | S30: =(0.5*M30)+(0.25*P30)+(0.25*R30) -> 25.0% | T30: =IF(S30>0.95,"A",IF(S30>0.93,"A-",IF(S30>0.9,"B+",IF(S30>0.88,"B",IF(S30>0.85,"B-",IF(S30>0.82,"C+",IF(S30>0.79,"C",IF(S30>0.76,"C-",IF(S30>0.74,"D+",IF(S30>0.72,"D",IF(S30>0.7,"D-",IF(S30<0.7,"F")))))))))))) -> F

Sheet Course 2 Lab
A1: ='Misc data'!$H$5 -> Course 2 Engine Theory & Repair. Lab
A2: Max Shop Points: | C2: =SUM(D6:L6) -> 1450 | D2: Engine | E2: Cylinder | F2: Red | G2: Mitsubishi | H2: Any | I2: DOHC | J2: Valve seal | K2: Misc.
A3: Max shop points available depend on how much customer work is done. | D3: Disassemble | E3: Head | F3: Dodge | G3: "3.0L" | H3: Engine | I3: Engine | J3: & | K3: Engine | L3: Cus | M3: Comp
D4: & Measure | E4: Repair | F4: Clip | G4: Clip | H4: T-chain | I4: Stand | J4: Lobe lift | K4: Points | L4: tomer | M4: etency
D5: 1 | E5: 1 | F5: 1 | G5: 1 | H5: 1 | I5: 1 | J5: 1 | L5: Work | M5: 0 or 1 | N5: Lab
A6: ID | B6: First: | C6: Last: | D6: 300 | E6: 200 | F6: 100 | G6: 100 | H6: 100 | I6: 100 | J6: 50 | K6: 200 | L6: 300 | M6: * | N6: Points | O6: %
A7: ='Misc data'!$A$2 -> 00000001 | B7: ='Misc data'!$B$2 -> Student | C7: ='Misc data'!$C$2 -> One | D7: 0 | E7: 0 | F7: 0 | G7: 0 | H7: 0 | I7: 0 | J7: 0 | K7: 0 | L7: 0 | M7: 1 | N7: =SUM(D7:L7)*M7 -> 0 | O7: =(N7/C2) -> 0%
A8: ='Misc data'!$A$3 -> 00000002 | B8: ='Misc data'!$B$3 -> Student | C8: ='Misc data'!$C$3 -> Two | D8: 0 | E8: 0 | F8: 0 | G8: 0 | H8: 0 | I8: 0 | J8: 0 | K8: 0 | L8: 0 | M8: 1 | N8: =SUM(D8:L8)*M7 -> 0 | O8: =(N8/C2) -> 0%
A9: ='Misc data'!$A$4 -> 00000003 | B9: ='Misc data'!$B$4 -> Student | C9: ='Misc data'!$C$4 -> Three | D9: 0 | E9: 0 | F9: 0 | G9: 0 | H9: 0 | I9: 0 | J9: 0 | K9: 0 | L9: 0 | M9: 1 | N9: =SUM(D9:L9)*M7 -> 0 | O9: =(N9/C2) -> 0%
A10: ='Misc data'!$A$5 -> 00000004 | B10: ='Misc data'!$B$5 -> Student | C10: ='Misc data'!$C$5 -> Four | D10: 0 | E10: 0 | F10: 0 | G10: 0 | H10: 0 | I10: 0 | J10: 0 | K10: 0 | L10: 0 | M10: 1 | N10: =SUM(D10:L10)*M8 -> 0 | O10: =(N10/C2) -> 0%
A11: ='Misc data'!$A$6 -> 00000005 | B11: ='Misc data'!$B$6 -> Student | C11: ='Misc data'!$C$6 -> Five | D11: 0 | E11: 0 | F11: 0 | G11: 0 | H11: 0 | I11: 0 | J11: 0 | K11: 0 | L11: 0 | M11: 1 | N11: =SUM(D11:L11)*M7 -> 0 | O11: =(N11/C2) -> 0%
A12: ='Misc data'!$A$7 -> 00000006 | B12: ='Misc data'!$B$7 -> Student | C12: ='Misc data'!$C$7 -> Six | D12: 0 | E12: 0 | F12: 0 | G12: 0 | H12: 0 | I12: 0 | J12: 0 | K12: 0 | L12: 0 | M12: 1 | N12: =SUM(D12:L12)*M7 -> 0 | O12: =(N12/C2) -> 0%
A13: ='Misc data'!$A$8 -> 00000007 | B13: ='Misc data'!$B$8 -> Student | C13: ='Misc data'!$C$8 -> Seven | D13: 0 | E13: 0 | F13: 0 | G13: 0 | H13: 0 | I13: 0 | J13: 0 | K13: 0 | L13: 0 | M13: 1 | N13: =SUM(D13:L13)*M7 -> 0 | O13: =(N13/C2) -> 0%
A14: ='Misc data'!$A$9 -> 00000008 | B14: ='Misc data'!$B$9 -> Student | C14: ='Misc data'!$C$9 -> Eight | D14: 0 | E14: 0 | F14: 0 | G14: 0 | H14: 0 | I14: 0 | J14: 0 | K14: 0 | L14: 0 | M14: 1 | N14: =SUM(D14:L14)*M7 -> 0 | O14: =(N14/C2) -> 0%
A15: ='Misc data'!$A$10 -> 00000009 | B15: ='Misc data'!$B$10 -> Student | C15: ='Misc data'!$C$10 -> Nine | D15: 0 | E15: 0 | F15: 0 | G15: 0 | H15: 0 | I15: 0 | J15: 0 | K15: 0 | L15: 0 | M15: 1 | N15: =SUM(D15:L15)*M7 -> 0 | O15: =(N15/C2) -> 0%
A16: ='Misc data'!$A$11 -> 00000010 | B16: ='Misc data'!$B$11 -> Student | C16: ='Misc data'!$C$11 -> Ten | D16: 0 | E16: 0 | F16: 0 | G16: 0 | H16: 0 | I16: 0 | J16: 0 | K16: 0 | L16: 0 | M16: 1 | N16: =SUM(D16:L16)*M7 -> 0 | O16: =(N16/C2) -> 0%
A17: ='Misc data'!$A$12 -> 00000011 | B17: ='Misc data'!$B$12 -> Student | C17: ='Misc data'!$C$12 -> Eleven | D17: 0 | E17: 0 | F17: 0 | G17: 0 | H17: 0 | I17: 0 | J17: 0 | K17: 0 | L17: 0 | M17: 1 | N17: =SUM(D17:L17)*M7 -> 0 | O17: =(N17/C2) -> 0%
A18: ='Misc data'!$A$13 -> 00000012 | B18: ='Misc data'!$B$13 -> Student | C18: ='Misc data'!$C$13 -> Twelve | D18: 0 | E18: 0 | F18: 0 | G18: 0 | H18: 0 | I18: 0 | J18: 0 | K18: 0 | L18: 0 | M18: 1 | N18: =SUM(D18:L18)*M7 -> 0 | O18: =(N18/C2) -> 0%
A19: ='Misc data'!$A$14 -> 00000013 | B19: ='Misc data'!$B$14 -> Student | C19: ='Misc data'!$C$14 -> Thirteen | D19: 0 | E19: 0 | F19: 0 | G19: 0 | H19: 0 | I19: 0 | J19: 0 | K19: 0 | L19: 0 | M19: 1 | N19: =SUM(D19:L19)*M7 -> 0 | O19: =(N19/C2) -> 0%
A20: ='Misc data'!$A$15 -> 00000014 | B20: ='Misc data'!$B$15 -> Student | C20: ='Misc data'!$C$15 -> Fourteen | D20: 0 | E20: 0 | F20: 0 | G20: 0 | H20: 0 | I20: 0 | J20: 0 | K20: 0 | L20: 0 | M20: 1 | N20: =SUM(D20:L20)*M7 -> 0 | O20: =(N20/C2) -> 0%
A21: ='Misc data'!$A$16 -> 00000015 | B21: ='Misc data'!$B$16 -> Student | C21: ='Misc data'!$C$16 -> Fifteen | D21: 0 | E21: 0 | F21: 0 | G21: 0 | H21: 0 | I21: 0 | J21: 0 | K21: 0 | L21: 0 | M21: 1 | N21: =SUM(D21:L21)*M7 -> 0 | O21: =(N21/C2) -> 0%
A22: ='Misc data'!$A$17 -> 00000016 | B22: ='Misc data'!$B$17 -> Student | C22: ='Misc data'!$C$17 -> Sixteen | D22: 0 | E22: 0 | F22: 0 | G22: 0 | H22: 0 | I22: 0 | J22: 0 | K22: 0 | L22: 0 | M22: 1 | N22: =SUM(D22:L22)*M7 -> 0 | O22: =(N22/C2) -> 0%
A23: ='Misc data'!$A$18 -> 00000017 | B23: ='Misc data'!$B$18 -> Student | C23: ='Misc data'!$C$18 -> Seventeen | D23: 0 | E23: 0 | F23: 0 | G23: 0 | H23: 0 | I23: 0 | J23: 0 | K23: 0 | L23: 0 | M23: 1 | N23: =SUM(D23:L23)*M7 -> 0 | O23: =(N23/C2) -> 0%
A24: ='Misc data'!$A$19 -> 00000018 | B24: ='Misc data'!$B$19 -> Student | C24: ='Misc data'!$C$19 -> Eighteen | D24: 0 | E24: 0 | F24: 0 | G24: 0 | H24: 0 | I24: 0 | J24: 0 | K24: 0 | L24: 0 | M24: 1 | N24: =SUM(D24:L24)*M7 -> 0 | O24: =(N24/C2) -> 0%
A25: ='Misc data'!$A$20 -> 00000019 | B25: ='Misc data'!$B$20 -> Student | C25: ='Misc data'!$C$20 -> Nineteen | D25: 0 | E25: 0 | F25: 0 | G25: 0 | H25: 0 | I25: 0 | J25: 0 | K25: 0 | L25: 0 | M25: 1 | N25: =SUM(D25:L25)*M20 -> 0 | O25: =(N25/C2) -> 0%
A26: ='Misc data'!$A$21 -> 00000020 | B26: ='Misc data'!$B$21 -> Student | C26: ='Misc data'!$C$21 -> Twenty | D26: 0 | E26: 0 | F26: 0 | G26: 0 | H26: 0 | I26: 0 | J26: 0 | K26: 0 | L26: 0 | M26: 1 | N26: =SUM(D26:L26)*M20 -> 0 | O26: =(N26/C2) -> 0%
A27: ='Misc data'!$A$22 -> 00000021 | B27: ='Misc data'!$B$22 -> Student | C27: ='Misc data'!$C$22 -> Twenty one | D27: 0 | E27: 0 | F27: 0 | G27: 0 | H27: 0 | I27: 0 | J27: 0 | K27: 0 | L27: 0 | M27: 1 | N27: =SUM(D27:L27)*M20 -> 0 | O27: =(N27/C2) -> 0%
A28: ='Misc data'!$A$23 -> 00000022 | B28: ='Misc data'!$B$23 -> Student | C28: ='Misc data'!$C$23 -> Twenty two | D28: 0 | E28: 0 | F28: 0 | G28: 0 | H28: 0 | I28: 0 | J28: 0 | K28: 0 | L28: 0 | M28: 1 | N28: =SUM(D28:L28)*M20 -> 0 | O28: =(N28/C2) -> 0%
A29: ='Misc data'!$A$24 -> 00000023 | B29: ='Misc data'!$B$24 -> Student | C29: ='Misc data'!$C$24 -> Twenty three | D29: 0 | E29: 0 | F29: 0 | G29: 0 | H29: 0 | I29: 0 | J29: 0 | K29: 0 | L29: 0 | M29: 1 | N29: =SUM(D29:L29)*M20 -> 0 | O29: =(N29/C2) -> 0%
A30: ='Misc data'!$A$25 -> 00000024 | B30: ='Misc data'!$B$25 -> Student | C30: ='Misc data'!$C$25 -> Twenty four | D30: 0 | E30: 0 | F30: 0 | G30: 0 | H30: 0 | I30: 0 | J30: 0 | K30: 0 | L30: 0 | M30: 1 | N30: =SUM(D30:L30)*M22 -> 0 | O30: =(N30/C2) -> 0%
A31: ='Misc data'!$A$26 -> 00000025 | B31: ='Misc data'!$B$26 -> Student | C31: ='Misc data'!$C$26 -> Twenty five | D31: 0 | E31: 0 | F31: 0 | G31: 0 | H31: 0 | I31: 0 | J31: 0 | K31: 0 | L31: 0 | M31: 1 | N31: =SUM(D31:L31)*M22 -> 0 | O31: =(N31/C2) -> 0%

Sheet Course 3 Class
A1: ='Misc data'!$H$6 -> Course 3 Steering & Suspension. Class. | M1: 25
B2: Date assignment is due: | D2: 1/18 | E2: 2/2 | F2: TBD | G2: TBD | H2: TBD | I2: TBD | J2: TBD | K2: TBD | L2: TBD | M2: TBD | N2: TBD
A3: Class Room Points: | C3: =SUM(D3:N3) -> 330 | D3: 20 | E3: 20 | F3: 24 | G3: 20 | H3: 25 | I3: 30 | J3: 20 | K3: 26 | L3: 45 | N3: 100 | O3: Evaluation
A4: Red is late turn-in | C4: Blue is absent | D4: HW | E4: HW | F4: HW | G4: QZ | H4: HW | I4: HW | J4: Test | K4: HW | L4: Class | M4: Extra | N4: Final | O4: Class | Q4: Professionalism | T4: Lab | V4: Total | W4: Letter
A5: I D | B5: First: | C5: Last: | D5: CH 1 | E5: CH 2 | F5: CH 3 | G5: 1 | H5: CH 6 | I5: CH 9 | J5: 1 – 9 | K5: CH 12 | L5: Project | M5: Credit | N5: TEST | O5: Points | P5: % | Q5: Attendance | R5: Points | S5: % | T5: Points | U5: % | V5: % | W5: Grade
A6: ='Misc data'!$A$2 -> 00000001 | B6: ='Misc data'!$B$2 -> Student | C6: ='Misc data'!$C$2 -> One | D6: 0 | E6: 0 | F6: 0 | G6: 0 | H6: 0 | I6: 0 | J6: 0 | K6: 0 | L6: 0 | M6: 0 | N6: 0 | O6: =SUM(D6:N6) -> 0 | P6: =(O6/C3) -> 0% | Q6: =Attendance!$E$3 -> 100% | R6: =Professionalism!$E$2 -> 72.0 | S6: =Professionalism!$F$2 -> 100% | T6: ='Course 3 Lab'!$Q$7 -> 0 | U6: ='Course 3 Lab'!$R$7 -> 0% | V6: =(0.5*P6)+(0.25*S6)+(0.25*U6) -> 25.0% | W6: =IF(V6>0.95,"A",IF(V6>0.93,"A-",IF(V6>0.9,"B+",IF(V6>0.88,"B",IF(V6>0.85,"B-",IF(V6>0.82,"C+",IF(V6>0.79,"C",IF(V6>0.76,"C-",IF(V6>0.74,"D+",IF(V6>0.72,"D",IF(V6>0.7,"D-",IF(V6<0.7,"F")))))))))))) -> F
A7: ='Misc data'!$A$3 -> 00000002 | B7: ='Misc data'!$B$3 -> Student | C7: ='Misc data'!$C$3 -> Two | D7: 0 | E7: 0 | F7: 0 | G7: 0 | H7: 0 | I7: 0 | J7: 0 | K7: 0 | L7: 0 | M7: 0 | N7: 0 | O7: =SUM(D7:N7) -> 0 | P7: =(O7/C3) -> 0% | Q7: =Attendance!$E$4 -> 93% | R7: =Professionalism!$E$3 -> 71.6 | S7: =Professionalism!$F$3 -> 99% | T7: ='Course 3 Lab'!$Q$8 -> 0 | U7: ='Course 3 Lab'!$R$8 -> 0% | V7: =(0.5*P7)+(0.25*S7)+(0.25*U7) -> 24.9% | W7: =IF(V7>0.95,"A",IF(V7>0.93,"A-",IF(V7>0.9,"B+",IF(V7>0.88,"B",IF(V7>0.85,"B-",IF(V7>0.82,"C+",IF(V7>0.79,"C",IF(V7>0.76,"C-",IF(V7>0.74,"D+",IF(V7>0.72,"D",IF(V7>0.7,"D-",IF(V7<0.7,"F")))))))))))) -> F
A8: ='Misc data'!$A$4 -> 00000003 | B8: ='Misc data'!$B$4 -> Student | C8: ='Misc data'!$C$4 -> Three | D8: 0 | E8: 0 | F8: 0 | G8: 0 | H8: 0 | I8: 0 | J8: 0 | K8: 0 | L8: 0 | M8: 0 | N8: 0 | O8: =SUM(D8:N8) -> 0 | P8: =(O8/C3) -> 0% | Q8: =Attendance!$E$5 -> 100% | R8: =Professionalism!$E$4 -> 72.0 | S8: =Professionalism!$F$4 -> 100% | T8: ='Course 3 Lab'!$Q$9 -> 0 | U8: ='Course 3 Lab'!$R$9 -> 0% | V8: =(0.5*P8)+(0.25*S8)+(0.25*U8) -> 25.0% | W8: =IF(V8>0.95,"A",IF(V8>0.93,"A-",IF(V8>0.9,"B+",IF(V8>0.88,"B",IF(V8>0.85,"B-",IF(V8>0.82,"C+",IF(V8>0.79,"C",IF(V8>0.76,"C-",IF(V8>0.74,"D+",IF(V8>0.72,"D",IF(V8>0.7,"D-",IF(V8<0.7,"F")))))))))))) -> F
A9: ='Misc data'!$A$5 -> 00000004 | B9: ='Misc data'!$B$5 -> Student | C9: ='Misc data'!$C$5 -> Four | D9: 0 | E9: 0 | F9: 0 | G9: 0 | H9: 0 | I9: 0 | J9: 0 | K9: 0 | L9: 0 | M9: 0 | N9: 0 | O9: =SUM(D9:N9) -> 0 | P9: =(O9/C3) -> 0% | Q9: =Attendance!$E$6 -> 100% | R9: =Professionalism!$E$5 -> 72.0 | S9: =Professionalism!$F$5 -> 100% | T9: ='Course 3 Lab'!$Q$10 -> 0 | U9: ='Course 3 Lab'!$R$10 -> 0% | V9: =(0.5*P9)+(0.25*S9)+(0.25*U9) -> 25.0% | W9: =IF(V9>0.95,"A",IF(V9>0.93,"A-",IF(V9>0.9,"B+",IF(V9>0.88,"B",IF(V9>0.85,"B-",IF(V9>0.82,"C+",IF(V9>0.79,"C",IF(V9>0.76,"C-",IF(V9>0.74,"D+",IF(V9>0.72,"D",IF(V9>0.7,"D-",IF(V9<0.7,"F")))))))))))) -> F
A10: ='Misc data'!$A$6 -> 00000005 | B10: ='Misc data'!$B$6 -> Student | C10: ='Misc data'!$C$6 -> Five | D10: 0 | E10: 0 | F10: 0 | G10: 0 | H10: 0 | I10: 0 | J10: 0 | K10: 0 | L10: 0 | M10: 0 | N10: 0 | O10: =SUM(D10:N10) -> 0 | P10: =(O10/C3) -> 0% | Q10: =Attendance!$E$7 -> 100% | R10: =Professionalism!$E$6 -> 72.0 | S10: =Professionalism!$F$6 -> 100% | T10: ='Course 3 Lab'!$Q$11 -> 0 | U10: ='Course 3 Lab'!$R$11 -> 0% | V10: =(0.5*P10)+(0.25*S10)+(0.25*U10) -> 25.0% | W10: =IF(V10>0.95,"A",IF(V10>0.93,"A-",IF(V10>0.9,"B+",IF(V10>0.88,"B",IF(V10>0.85,"B-",IF(V10>0.82,"C+",IF(V10>0.79,"C",IF(V10>0.76,"C-",IF(V10>0.74,"D+",IF(V10>0.72,"D",IF(V10>0.7,"D-",IF(V10<0.7,"F")))))))))))) -> F
A11: ='Misc data'!$A$7 -> 00000006 | B11: ='Misc data'!$B$7 -> Student | C11: ='Misc data'!$C$7 -> Six | D11: 0 | E11: 0 | F11: 0 | G11: 0 | H11: 0 | I11: 0 | J11: 0 | K11: 0 | L11: 0 | M11: 0 | N11: 0 | O11: =SUM(D11:N11) -> 0 | P11: =(O11/C3) -> 0% | Q11: =Attendance!$E$8 -> 100% | R11: =Professionalism!$E$7 -> 72.0 | S11: =Professionalism!$F$7 -> 100% | T11: ='Course 3 Lab'!$Q$12 -> 0 | U11: ='Course 3 Lab'!$R$12 -> 0% | V11: =(0.5*P11)+(0.25*S11)+(0.25*U11) -> 25.0% | W11: =IF(V11>0.95,"A",IF(V11>0.93,"A-",IF(V11>0.9,"B+",IF(V11>0.88,"B",IF(V11>0.85,"B-",IF(V11>0.82,"C+",IF(V11>0.79,"C",IF(V11>0.76,"C-",IF(V11>0.74,"D+",IF(V11>0.72,"D",IF(V11>0.7,"D-",IF(V11<0.7,"F")))))))))))) -> F
A12: ='Misc data'!$A$8 -> 00000007 | B12: ='Misc data'!$B$8 -> Student | C12: ='Misc data'!$C$8 -> Seven | D12: 0 | E12: 0 | F12: 0 | G12: 0 | H12: 0 | I12: 0 | J12: 0 | K12: 0 | L12: 0 | M12: 0 | N12: 0 | O12: =SUM(D12:N12) -> 0 | P12: =(O12/C3) -> 0% | Q12: =Attendance!$E$9 -> 100% | R12: =Professionalism!$E$8 -> 72.0 | S12: =Professionalism!$F$8 -> 100% | T12: ='Course 3 Lab'!$Q$13 -> 0 | U12: ='Course 3 Lab'!$R$13 -> 0% | V12: =(0.5*P12)+(0.25*S12)+(0.25*U12) -> 25.0% | W12: =IF(V12>0.95,"A",IF(V12>0.93,"A-",IF(V12>0.9,"B+",IF(V12>0.88,"B",IF(V12>0.85,"B-",IF(V12>0.82,"C+",IF(V12>0.79,"C",IF(V12>0.76,"C-",IF(V12>0.74,"D+",IF(V12>0.72,"D",IF(V12>0.7,"D-",IF(V12<0.7,"F")))))))))))) -> F
A13: ='Misc data'!$A$9 -> 00000008 | B13: ='Misc data'!$B$9 -> Student | C13: ='Misc data'!$C$9 -> Eight | D13: 0 | E13: 0 | F13: 0 | G13: 0 | H13: 0 | I13: 0 | J13: 0 | K13: 0 | L13: 0 | M13: 0 | N13: 0 | O13: =SUM(D13:N13) -> 0 | P13: =(O13/C3) -> 0% | Q13: =Attendance!$E$10 -> 100% | R13: =Professionalism!$E$9 -> 72.0 | S13: =Professionalism!$F$9 -> 100% | T13: ='Course 3 Lab'!$Q$14 -> 0 | U13: ='Course 3 Lab'!$R$14 -> 0% | V13: =(0.5*P13)+(0.25*S13)+(0.25*U13) -> 25.0% | W13: =IF(V13>0.95,"A",IF(V13>0.93,"A-",IF(V13>0.9,"B+",IF(V13>0.88,"B",IF(V13>0.85,"B-",IF(V13>0.82,"C+",IF(V13>0.79,"C",IF(V13>0.76,"C-",IF(V13>0.74,"D+",IF(V13>0.72,"D",IF(V13>0.7,"D-",IF(V13<0.7,"F")))))))))))) -> F
A14: ='Misc data'!$A$10 -> 00000009 | B14: ='Misc data'!$B$10 -> Student | C14: ='Misc data'!$C$10 -> Nine | D14: 0 | E14: 0 | F14: 0 | G14: 0 | H14: 0 | I14: 0 | J14: 0 | K14: 0 | L14: 0 | M14: 0 | N14: 0 | O14: =SUM(D14:N14) -> 0 | P14: =(O14/C3) -> 0% | Q14: =Attendance!$E$11 -> 100% | R14: =Professionalism!$E$10 -> 72.0 | S14: =Professionalism!$F$10 -> 100% | T14: ='Course 3 Lab'!$Q$15 -> 0 | U14: ='Course 3 Lab'!$R$15 -> 0% | V14: =(0.5*P14)+(0.25*S14)+(0.25*U14) -> 25.0% | W14: =IF(V14>0.95,"A",IF(V14>0.93,"A-",IF(V14>0.9,"B+",IF(V14>0.88,"B",IF(V14>0.85,"B-",IF(V14>0.82,"C+",IF(V14>0.79,"C",IF(V14>0.76,"C-",IF(V14>0.74,"D+",IF(V14>0.72,"D",IF(V14>0.7,"D-",IF(V14<0.7,"F")))))))))))) -> F
A15: ='Misc data'!$A$11 -> 00000010 | B15: ='Misc data'!$B$11 -> Student | C15: ='Misc data'!$C$11 -> Ten | D15: 0 | E15: 0 | F15: 0 | G15: 0 | H15: 0 | I15: 0 | J15: 0 | K15: 0 | L15: 0 | M15: 0 | N15: 0 | O15: =SUM(D15:N15) -> 0 | P15: =(O15/C3) -> 0% | Q15: =Attendance!$E$12 -> 100% | R15: =Professionalism!$E$11 -> 72.0 | S15: =Professionalism!$F$11 -> 100% | T15: ='Course 3 Lab'!$Q$16 -> 0 | U15: ='Course 3 Lab'!$R$16 -> 0% | V15: =(0.5*P15)+(0.25*S15)+(0.25*U15) -> 25.0% | W15: =IF(V15>0.95,"A",IF(V15>0.93,"A-",IF(V15>0.9,"B+",IF(V15>0.88,"B",IF(V15>0.85,"B-",IF(V15>0.82,"C+",IF(V15>0.79,"C",IF(V15>0.76,"C-",IF(V15>0.74,"D+",IF(V15>0.72,"D",IF(V15>0.7,"D-",IF(V15<0.7,"F")))))))))))) -> F
A16: ='Misc data'!$A$12 -> 00000011 | B16: ='Misc data'!$B$12 -> Student | C16: ='Misc data'!$C$12 -> Eleven | D16: 0 | E16: 0 | F16: 0 | G16: 0 | H16: 0 | I16: 0 | J16: 0 | K16: 0 | L16: 0 | M16: 0 | N16: 0 | O16: =SUM(D16:N16) -> 0 | P16: =(O16/C3) -> 0% | Q16: =Attendance!$E$13 -> 100% | R16: =Professionalism!$E$12 -> 72.0 | S16: =Professionalism!$F$12 -> 100% | T16: ='Course 3 Lab'!$Q$17 -> 0 | U16: ='Course 3 Lab'!$R$17 -> 0% | V16: =(0.5*P16)+(0.25*S16)+(0.25*U16) -> 25.0% | W16: =IF(V16>0.95,"A",IF(V16>0.93,"A-",IF(V16>0.9,"B+",IF(V16>0.88,"B",IF(V16>0.85,"B-",IF(V16>0.82,"C+",IF(V16>0.79,"C",IF(V16>0.76,"C-",IF(V16>0.74,"D+",IF(V16>0.72,"D",IF(V16>0.7,"D-",IF(V16<0.7,"F")))))))))))) -> F
A17: ='Misc data'!$A$13 -> 00000012 | B17: ='Misc data'!$B$13 -> Student | C17: ='Misc data'!$C$13 -> Twelve | D17: 0 | E17: 0 | F17: 0 | G17: 0 | H17: 0 | I17: 0 | J17: 0 | K17: 0 | L17: 0 | M17: 0 | N17: 0 | O17: =SUM(D17:N17) -> 0 | P17: =(O17/C3) -> 0% | Q17: =Attendance!$E$14 -> 93% | R17: =Professionalism!$E$13 -> 71.6 | S17: =Professionalism!$F$13 -> 99% | T17: ='Course 3 Lab'!$Q$18 -> 0 | U17: ='Course 3 Lab'!$R$18 -> 0% | V17: =(0.5*P17)+(0.25*S17)+(0.25*U17) -> 24.9% | W17: =IF(V17>0.95,"A",IF(V17>0.93,"A-",IF(V17>0.9,"B+",IF(V17>0.88,"B",IF(V17>0.85,"B-",IF(V17>0.82,"C+",IF(V17>0.79,"C",IF(V17>0.76,"C-",IF(V17>0.74,"D+",IF(V17>0.72,"D",IF(V17>0.7,"D-",IF(V17<0.7,"F")))))))))))) -> F
A18: ='Misc data'!$A$14 -> 00000013 | B18: ='Misc data'!$B$14 -> Student | C18: ='Misc data'!$C$14 -> Thirteen | D18: 0 | E18: 0 | F18: 0 | G18: 0 | H18: 0 | I18: 0 | J18: 0 | K18: 0 | L18: 0 | M18: 0 | N18: 0 | O18: =SUM(D18:N18) -> 0 | P18: =(O18/C3) -> 0% | Q18: =Attendance!$E$15 -> 100% | R18: =Professionalism!$E$14 -> 72.0 | S18: =Professionalism!$F$14 -> 100% | T18: ='Course 3 Lab'!$Q$19 -> 0 | U18: ='Course 3 Lab'!$R$19 -> 0% | V18: =(0.5*P18)+(0.25*S18)+(0.25*U18) -> 25.0% | W18: =IF(V18>0.95,"A",IF(V18>0.93,"A-",IF(V18>0.9,"B+",IF(V18>0.88,"B",IF(V18>0.85,"B-",IF(V18>0.82,"C+",IF(V18>0.79,"C",IF(V18>0.76,"C-",IF(V18>0.74,"D+",IF(V18>0.72,"D",IF(V18>0.7,"D-",IF(V18<0.7,"F")))))))))))) -> F
A19: ='Misc data'!$A$15 -> 00000014 | B19: ='Misc data'!$B$15 -> Student | C19: ='Misc data'!$C$15 -> Fourteen | D19: 0 | E19: 0 | F19: 0 | G19: 0 | H19: 0 | I19: 0 | J19: 0 | K19: 0 | L19: 0 | M19: 0 | N19: 0 | O19: =SUM(D19:N19) -> 0 | P19: =(O19/C3) -> 0% | Q19: =Attendance!$E$16 -> 100% | R19: =Professionalism!$E$15 -> 72.0 | S19: =Professionalism!$F$15 -> 100% | T19: ='Course 3 Lab'!$Q$20 -> 0 | U19: ='Course 3 Lab'!$R$20 -> 0% | V19: =(0.5*P19)+(0.25*S19)+(0.25*U19) -> 25.0% | W19: =IF(V19>0.95,"A",IF(V19>0.93,"A-",IF(V19>0.9,"B+",IF(V19>0.88,"B",IF(V19>0.85,"B-",IF(V19>0.82,"C+",IF(V19>0.79,"C",IF(V19>0.76,"C-",IF(V19>0.74,"D+",IF(V19>0.72,"D",IF(V19>0.7,"D-",IF(V19<0.7,"F")))))))))))) -> F
A20: ='Misc data'!$A$16 -> 00000015 | B20: ='Misc data'!$B$16 -> Student | C20: ='Misc data'!$C$16 -> Fifteen | D20: 0 | E20: 0 | F20: 0 | G20: 0 | H20: 0 | I20: 0 | J20: 0 | K20: 0 | L20: 0 | M20: 0 | N20: 0 | O20: =SUM(D20:N20) -> 0 | P20: =(O20/C3) -> 0% | Q20: =Attendance!$E$17 -> 100% | R20: =Professionalism!$E$16 -> 72.0 | S20: =Professionalism!$F$16 -> 100% | T20: ='Course 3 Lab'!$Q$21 -> 0 | U20: ='Course 3 Lab'!$R$21 -> 0% | V20: =(0.5*P20)+(0.25*S20)+(0.25*U20) -> 25.0% | W20: =IF(V20>0.95,"A",IF(V20>0.93,"A-",IF(V20>0.9,"B+",IF(V20>0.88,"B",IF(V20>0.85,"B-",IF(V20>0.82,"C+",IF(V20>0.79,"C",IF(V20>0.76,"C-",IF(V20>0.74,"D+",IF(V20>0.72,"D",IF(V20>0.7,"D-",IF(V20<0.7,"F")))))))))))) -> F
A21: ='Misc data'!$A$17 -> 00000016 | B21: ='Misc data'!$B$17 -> Student | C21: ='Misc data'!$C$17 -> Sixteen | D21: 0 | E21: 0 | F21: 0 | G21: 0 | H21: 0 | I21: 0 | J21: 0 | K21: 0 | L21: 0 | M21: 0 | N21: 0 | O21: =SUM(D21:N21) -> 0 | P21: =(O21/C3) -> 0% | Q21: =Attendance!$E$18 -> 100% | R21: =Professionalism!$E$17 -> 72.0 | S21: =Professionalism!$F$17 -> 100% | T21: ='Course 3 Lab'!$Q$22 -> 0 | U21: ='Course 3 Lab'!$R$22 -> 0% | V21: =(0.5*P21)+(0.25*S21)+(0.25*U21) -> 25.0% | W21: =IF(V21>0.95,"A",IF(V21>0.93,"A-",IF(V21>0.9,"B+",IF(V21>0.88,"B",IF(V21>0.85,"B-",IF(V21>0.82,"C+",IF(V21>0.79,"C",IF(V21>0.76,"C-",IF(V21>0.74,"D+",IF(V21>0.72,"D",IF(V21>0.7,"D-",IF(V21<0.7,"F")))))))))))) -> F
A22: ='Misc data'!$A$18 -> 00000017 | B22: ='Misc data'!$B$18 -> Student | C22: ='Misc data'!$C$18 -> Seventeen | D22: 0 | E22: 0 | F22: 0 | G22: 0 | H22: 0 | I22: 0 | J22: 0 | K22: 0 | L22: 0 | M22: 0 | N22: 0 | O22: =SUM(D22:N22) -> 0 | P22: =(O22/C3) -> 0% | Q22: =Attendance!$E$19 -> 100% | R22: =Professionalism!$E$18 -> 72.0 | S22: =Professionalism!$F$18 -> 100% | T22: ='Course 3 Lab'!$Q$23 -> 0 | U22: ='Course 3 Lab'!$R$23 -> 0% | V22: =(0.5*P22)+(0.25*S22)+(0.25*U22) -> 25.0% | W22: =IF(V22>0.95,"A",IF(V22>0.93,"A-",IF(V22>0.9,"B+",IF(V22>0.88,"B",IF(V22>0.85,"B-",IF(V22>0.82,"C+",IF(V22>0.79,"C",IF(V22>0.76,"C-",IF(V22>0.74,"D+",IF(V22>0.72,"D",IF(V22>0.7,"D-",IF(V22<0.7,"F")))))))))))) -> F
A23: ='Misc data'!$A$19 -> 00000018 | B23: ='Misc data'!$B$19 -> Student | C23: ='Misc data'!$C$19 -> Eighteen | D23: 0 | E23: 0 | F23: 0 | G23: 0 | H23: 0 | I23: 0 | J23: 0 | K23: 0 | L23: 0 | M23: 0 | N23: 0 | O23: =SUM(D23:N23) -> 0 | P23: =(O23/C3) -> 0% | Q23: =Attendance!$E$20 -> 100% | R23: =Professionalism!$E$19 -> 72.0 | S23: =Professionalism!$F$19 -> 100% | T23: ='Course 3 Lab'!$Q$24 -> 0 | U23: ='Course 3 Lab'!$R$24 -> 0% | V23: =(0.5*P23)+(0.25*S23)+(0.25*U23) -> 25.0% | W23: =IF(V23>0.95,"A",IF(V23>0.93,"A-",IF(V23>0.9,"B+",IF(V23>0.88,"B",IF(V23>0.85,"B-",IF(V23>0.82,"C+",IF(V23>0.79,"C",IF(V23>0.76,"C-",IF(V23>0.74,"D+",IF(V23>0.72,"D",IF(V23>0.7,"D-",IF(V23<0.7,"F")))))))))))) -> F
A24: ='Misc data'!$A$20 -> 00000019 | B24: ='Misc data'!$B$20 -> Student | C24: ='Misc data'!$C$20 -> Nineteen | D24: 0 | E24: 0 | F24: 0 | G24: 0 | H24: 0 | I24: 0 | J24: 0 | K24: 0 | L24: 0 | M24: 0 | N24: 0 | O24: =SUM(D24:N24) -> 0 | P24: =(O24/C3) -> 0% | Q24: =Attendance!$E$21 -> 100% | R24: =Professionalism!$E$20 -> 72.0 | S24: =Professionalism!$F$20 -> 100% | T24: ='Course 3 Lab'!$Q$25 -> 0 | U24: ='Course 3 Lab'!$R$25 -> 0% | V24: =(0.5*P24)+(0.25*S24)+(0.25*U24) -> 25.0% | W24: =IF(V24>0.95,"A",IF(V24>0.93,"A-",IF(V24>0.9,"B+",IF(V24>0.88,"B",IF(V24>0.85,"B-",IF(V24>0.82,"C+",IF(V24>0.79,"C",IF(V24>0.76,"C-",IF(V24>0.74,"D+",IF(V24>0.72,"D",IF(V24>0.7,"D-",IF(V24<0.7,"F")))))))))))) -> F
A25: ='Misc data'!$A$21 -> 00000020 | B25: ='Misc data'!$B$21 -> Student | C25: ='Misc data'!$C$21 -> Twenty | D25: 0 | E25: 0 | F25: 0 | G25: 0 | H25: 0 | I25: 0 | J25: 0 | K25: 0 | L25: 0 | M25: 0 | N25: 0 | O25: =SUM(D25:N25) -> 0 | P25: =(O25/C3) -> 0% | Q25: =Attendance!$E$22 -> 100% | R25: =Professionalism!$E$21 -> 72.0 | S25: =Professionalism!$F$21 -> 100% | T25: ='Course 3 Lab'!$Q$26 -> 0 | U25: ='Course 3 Lab'!$R$26 -> 0% | V25: =(0.5*P25)+(0.25*S25)+(0.25*U25) -> 25.0% | W25: =IF(V25>0.95,"A",IF(V25>0.93,"A-",IF(V25>0.9,"B+",IF(V25>0.88,"B",IF(V25>0.85,"B-",IF(V25>0.82,"C+",IF(V25>0.79,"C",IF(V25>0.76,"C-",IF(V25>0.74,"D+",IF(V25>0.72,"D",IF(V25>0.7,"D-",IF(V25<0.7,"F")))))))))))) -> F
A26: ='Misc data'!$A$22 -> 00000021 | B26: ='Misc data'!$B$22 -> Student | C26: ='Misc data'!$C$22 -> Twenty one | D26: 0 | E26: 0 | F26: 0 | G26: 0 | H26: 0 | I26: 0 | J26: 0 | K26: 0 | L26: 0 | M26: 0 | N26: 0 | O26: =SUM(D26:N26) -> 0 | P26: =(O26/C3) -> 0% | Q26: =Attendance!$E$23 -> 100% | R26: =Professionalism!$E$22 -> 72.0 | S26: =Professionalism!$F$22 -> 100% | T26: ='Course 3 Lab'!$Q$27 -> 0 | U26: ='Course 3 Lab'!$R$27 -> 0% | V26: =(0.5*P26)+(0.25*S26)+(0.25*U26) -> 25.0% | W26: =IF(V26>0.95,"A",IF(V26>0.93,"A-",IF(V26>0.9,"B+",IF(V26>0.88,"B",IF(V26>0.85,"B-",IF(V26>0.82,"C+",IF(V26>0.79,"C",IF(V26>0.76,"C-",IF(V26>0.74,"D+",IF(V26>0.72,"D",IF(V26>0.7,"D-",IF(V26<0.7,"F")))))))))))) -> F
A27: ='Misc data'!$A$23 -> 00000022 | B27: ='Misc data'!$B$23 -> Student | C27: ='Misc data'!$C$23 -> Twenty two | D27: 0 | E27: 0 | F27: 0 | G27: 0 | H27: 0 | I27: 0 | J27: 0 | K27: 0 | L27: 0 | M27: 0 | N27: 0 | O27: =SUM(D27:N27) -> 0 | P27: =(O27/C3) -> 0% | Q27: =Attendance!$E$24 -> 100% | R27: =Professionalism!$E$23 -> 72.0 | S27: =Professionalism!$F$23 -> 100% | T27: ='Course 3 Lab'!$Q$28 -> 0 | U27: ='Course 3 Lab'!$R$28 -> 0% | V27: =(0.5*P27)+(0.25*S27)+(0.25*U27) -> 25.0% | W27: =IF(V27>0.95,"A",IF(V27>0.93,"A-",IF(V27>0.9,"B+",IF(V27>0.88,"B",IF(V27>0.85,"B-",IF(V27>0.82,"C+",IF(V27>0.79,"C",IF(V27>0.76,"C-",IF(V27>0.74,"D+",IF(V27>0.72,"D",IF(V27>0.7,"D-",IF(V27<0.7,"F")))))))))))) -> F
A28: ='Misc data'!$A$24 -> 00000023 | B28: ='Misc data'!$B$24 -> Student | C28: ='Misc data'!$C$24 -> Twenty three | D28: 0 | E28: 0 | F28: 0 | G28: 0 | H28: 0 | I28: 0 | J28: 0 | K28: 0 | L28: 0 | M28: 0 | N28: 0 | O28: =SUM(D28:N28) -> 0 | P28: =(O28/C3) -> 0% | Q28: =Attendance!$E$25 -> 100% | R28: =Professionalism!$E$24 -> 72.0 | S28: =Professionalism!$F$24 -> 100% | T28: ='Course 3 Lab'!$Q$29 -> 0 | U28: ='Course 3 Lab'!$R$29 -> 0% | V28: =(0.5*P28)+(0.25*S28)+(0.25*U28) -> 25.0% | W28: =IF(V28>0.95,"A",IF(V28>0.93,"A-",IF(V28>0.9,"B+",IF(V28>0.88,"B",IF(V28>0.85,"B-",IF(V28>0.82,"C+",IF(V28>0.79,"C",IF(V28>0.76,"C-",IF(V28>0.74,"D+",IF(V28>0.72,"D",IF(V28>0.7,"D-",IF(V28<0.7,"F")))))))))))) -> F
A29: ='Misc data'!$A$25 -> 00000024 | B29: ='Misc data'!$B$25 -> Student | C29: ='Misc data'!$C$25 -> Twenty four | D29: 0 | E29: 0 | F29: 0 | G29: 0 | H29: 0 | I29: 0 | J29: 0 | K29: 0 | L29: 0 | M29: 0 | N29: 0 | O29: =SUM(D29:N29) -> 0 | P29: =(O29/C3) -> 0% | Q29: =Attendance!$E$24 -> 100% | R29: =Professionalism!$E$23 -> 72.0 | S29: =Professionalism!$F$23 -> 100% | T29: ='Course 3 Lab'!$Q$28 -> 0 | U29: ='Course 3 Lab'!$R$28 -> 0% | V29: =(0.5*P29)+(0.25*S29)+(0.25*U29) -> 25.0% | W29: =IF(V29>0.95,"A",IF(V29>0.93,"A-",IF(V29>0.9,"B+",IF(V29>0.88,"B",IF(V29>0.85,"B-",IF(V29>0.82,"C+",IF(V29>0.79,"C",IF(V29>0.76,"C-",IF(V29>0.74,"D+",IF(V29>0.72,"D",IF(V29>0.7,"D-",IF(V29<0.7,"F")))))))))))) -> F
A30: ='Misc data'!$A$26 -> 00000025 | B30: ='Misc data'!$B$26 -> Student | C30: ='Misc data'!$C$26 -> Twenty five | D30: 0 | E30: 0 | F30: 0 | G30: 0 | H30: 0 | I30: 0 | J30: 0 | K30: 0 | L30: 0 | M30: 0 | N30: 0 | O30: =SUM(D30:N30) -> 0 | P30: =(O30/C3) -> 0% | Q30: =Attendance!$E$25 -> 100% | R30: =Professionalism!$E$24 -> 72.0 | S30: =Professionalism!$F$24 -> 100% | T30: ='Course 3 Lab'!$Q$29 -> 0 | U30: ='Course 3 Lab'!$R$29 -> 0% | V30: =(0.5*P30)+(0.25*S30)+(0.25*U30) -> 25.0% | W30: =IF(V30>0.95,"A",IF(V30>0.93,"A-",IF(V30>0.9,"B+",IF(V30>0.88,"B",IF(V30>0.85,"B-",IF(V30>0.82,"C+",IF(V30>0.79,"C",IF(V30>0.76,"C-",IF(V30>0.74,"D+",IF(V30>0.72,"D",IF(V30>0.7,"D-",IF(V30<0.7,"F")))))))))))) -> F

Sheet Course 3 Lab
A1: ='Misc data'!$H$7 -> Course 3 Steering & Suspension. Lab
A2: Max shop points | C2: =SUM(D6:O6) -> 1350 | D2: Repair | E2: Identify | F2: Repair | G2: Identify | H2: Repair | I2: R&R | J2: R&R | K2: R&R | L2: P/S | M2: R&R | N2: NVH
A3: Max shop points available depend on how much customer work is done. | D3: SLA | E3: SLA | F3: Mac-P | G3: Mac-P | H3: Rear | I3: Rack & | J3: Recirc. | K3: P/S | L3: Pump | M3: Inner | N3: Runout & | O3: Cus | P3: Comp
D4: Susp | E4: Parts | F4: Susp | G4: Parts | H4: Susp | I4: Pinion | J4: Gear | K4: Pump | L4: Test | M4: Tie-Rod | N4: bal. Check | O4: tomer | P4: etency
D5: 1 | E5: 2 | F5: 3 | G5: 2 | H5: 1 | I5: 1 | J5: 1 | K5: 1 | L5: 1 | M5: 1 | N5: 1 | O5: Work | P5: 0 or 1 | Q5: Lab
A6: ID | B6: First: | C6: Last: | D6: 150 | E6: 50 | F6: 225 | G6: 50 | H6: 50 | I6: 150 | J6: 125 | K6: 50 | L6: 50 | M6: 50 | N6: 100 | O6: 300 | P6: * | Q6: Points | R6: %
A7: ='Misc data'!$A$2 -> 00000001 | B7: ='Misc data'!$B$2 -> Student | C7: ='Misc data'!$C$2 -> One | D7: 0 | E7: 0 | F7: 0 | G7: 0 | H7: 0 | I7: 0 | J7: 0 | K7: 0 | L7: 0 | M7: 0 | N7: 0 | O7: 0 | P7: 1 | Q7: =SUM(D7:O7)*P7 -> 0 | R7: =(Q7/C2) -> 0%
A8: ='Misc data'!$A$3 -> 00000002 | B8: ='Misc data'!$B$3 -> Student | C8: ='Misc data'!$C$3 -> Two | D8: 0 | E8: 0 | F8: 0 | G8: 0 | H8: 0 | I8: 0 | J8: 0 | K8: 0 | L8: 0 | M8: 0 | N8: 0 | O8: 0 | P8: 1 | Q8: =SUM(D8:O8)*P8 -> 0 | R8: =(Q8/C2) -> 0%
A9: ='Misc data'!$A$4 -> 00000003 | B9: ='Misc data'!$B$4 -> Student | C9: ='Misc data'!$C$4 -> Three | D9: 0 | E9: 0 | F9: 0 | G9: 0 | H9: 0 | I9: 0 | J9: 0 | K9: 0 | L9: 0 | M9: 0 | N9: 0 | O9: 0 | P9: 1 | Q9: =SUM(D9:O9)*P9 -> 0 | R9: =(Q9/C2) -> 0%
A10: ='Misc data'!$A$5 -> 00000004 | B10: ='Misc data'!$B$5 -> Student | C10: ='Misc data'!$C$5 -> Four | D10: 0 | E10: 0 | F10: 0 | G10: 0 | H10: 0 | I10: 0 | J10: 0 | K10: 0 | L10: 0 | M10: 0 | N10: 0 | O10: 0 | P10: 1 | Q10: =SUM(D10:O10)*P10 -> 0 | R10: =(Q10/C2) -> 0%
A11: ='Misc data'!$A$6 -> 00000005 | B11: ='Misc data'!$B$6 -> Student | C11: ='Misc data'!$C$6 -> Five | D11: 0 | E11: 0 | F11: 0 | G11: 0 | H11: 0 | I11: 0 | J11: 0 | K11: 0 | L11: 0 | M11: 0 | N11: 0 | O11: 0 | P11: 1 | Q11: =SUM(D11:O11)*P11 -> 0 | R11: =(Q11/C2) -> 0%
A12: ='Misc data'!$A$7 -> 00000006 | B12: ='Misc data'!$B$7 -> Student | C12: ='Misc data'!$C$7 -> Six | D12: 0 | E12: 0 | F12: 0 | G12: 0 | H12: 0 | I12: 0 | J12: 0 | K12: 0 | L12: 0 | M12: 0 | N12: 0 | O12: 0 | P12: 1 | Q12: =SUM(D12:O12)*P12 -> 0 | R12: =(Q12/C2) -> 0%
A13: ='Misc data'!$A$8 -> 00000007 | B13: ='Misc data'!$B$8 -> Student | C13: ='Misc data'!$C$8 -> Seven | D13: 0 | E13: 0 | F13: 0 | G13: 0 | H13: 0 | I13: 0 | J13: 0 | K13: 0 | L13: 0 | M13: 0 | N13: 0 | O13: 0 | P13: 1 | Q13: =SUM(D13:O13)*P13 -> 0 | R13: =(Q13/C2) -> 0%
A14: ='Misc data'!$A$9 -> 00000008 | B14: ='Misc data'!$B$9 -> Student | C14: ='Misc data'!$C$9 -> Eight | D14: 0 | E14: 0 | F14: 0 | G14: 0 | H14: 0 | I14: 0 | J14: 0 | K14: 0 | L14: 0 | M14: 0 | N14: 0 | O14: 0 | P14: 1 | Q14: =SUM(D14:O14)*P14 -> 0 | R14: =(Q14/C2) -> 0%
A15: ='Misc data'!$A$10 -> 00000009 | B15: ='Misc data'!$B$10 -> Student | C15: ='Misc data'!$C$10 -> Nine | D15: 0 | E15: 0 | F15: 0 | G15: 0 | H15: 0 | I15: 0 | J15: 0 | K15: 0 | L15: 0 | M15: 0 | N15: 0 | O15: 0 | P15: 1 | Q15: =SUM(D15:O15)*P15 -> 0 | R15: =(Q15/C2) -> 0%
A16: ='Misc data'!$A$11 -> 00000010 | B16: ='Misc data'!$B$11 -> Student | C16: ='Misc data'!$C$11 -> Ten | D16: 0 | E16: 0 | F16: 0 | G16: 0 | H16: 0 | I16: 0 | J16: 0 | K16: 0 | L16: 0 | M16: 0 | N16: 0 | O16: 0 | P16: 1 | Q16: =SUM(D16:O16)*P16 -> 0 | R16: =(Q16/C2) -> 0%
A17: ='Misc data'!$A$12 -> 00000011 | B17: ='Misc data'!$B$12 -> Student | C17: ='Misc data'!$C$12 -> Eleven | D17: 0 | E17: 0 | F17: 0 | G17: 0 | H17: 0 | I17: 0 | J17: 0 | K17: 0 | L17: 0 | M17: 0 | N17: 0 | O17: 0 | P17: 1 | Q17: =SUM(D17:O17)*P17 -> 0 | R17: =(Q17/C2) -> 0%
A18: ='Misc data'!$A$13 -> 00000012 | B18: ='Misc data'!$B$13 -> Student | C18: ='Misc data'!$C$13 -> Twelve | D18: 0 | E18: 0 | F18: 0 | G18: 0 | H18: 0 | I18: 0 | J18: 0 | K18: 0 | L18: 0 | M18: 0 | N18: 0 | O18: 0 | P18: 1 | Q18: =SUM(D18:O18)*P18 -> 0 | R18: =(Q18/C2) -> 0%
A19: ='Misc data'!$A$14 -> 00000013 | B19: ='Misc data'!$B$14 -> Student | C19: ='Misc data'!$C$14 -> Thirteen | D19: 0 | E19: 0 | F19: 0 | G19: 0 | H19: 0 | I19: 0 | J19: 0 | K19: 0 | L19: 0 | M19: 0 | N19: 0 | O19: 0 | P19: 1 | Q19: =SUM(D19:O19)*P19 -> 0 | R19: =(Q19/C2) -> 0%
A20: ='Misc data'!$A$15 -> 00000014 | B20: ='Misc data'!$B$15 -> Student | C20: ='Misc data'!$C$15 -> Fourteen | D20: 0 | E20: 0 | F20: 0 | G20: 0 | H20: 0 | I20: 0 | J20: 0 | K20: 0 | L20: 0 | M20: 0 | N20: 0 | O20: 0 | P20: 1 | Q20: =SUM(D20:O20)*P20 -> 0 | R20: =(Q20/C2) -> 0%
A21: ='Misc data'!$A$16 -> 00000015 | B21: ='Misc data'!$B$16 -> Student | C21: ='Misc data'!$C$16 -> Fifteen | D21: 0 | E21: 0 | F21: 0 | G21: 0 | H21: 0 | I21: 0 | J21: 0 | K21: 0 | L21: 0 | M21: 0 | N21: 0 | O21: 0 | P21: 1 | Q21: =SUM(D21:O21)*P21 -> 0 | R21: =(Q21/C2) -> 0%
A22: ='Misc data'!$A$17 -> 00000016 | B22: ='Misc data'!$B$17 -> Student | C22: ='Misc data'!$C$17 -> Sixteen | D22: 0 | E22: 0 | F22: 0 | G22: 0 | H22: 0 | I22: 0 | J22: 0 | K22: 0 | L22: 0 | M22: 0 | N22: 0 | O22: 0 | P22: 1 | Q22: =SUM(D22:O22)*P22 -> 0 | R22: =(Q22/C2) -> 0%
A23: ='Misc data'!$A$18 -> 00000017 | B23: ='Misc data'!$B$18 -> Student | C23: ='Misc data'!$C$18 -> Seventeen | D23: 0 | E23: 0 | F23: 0 | G23: 0 | H23: 0 | I23: 0 | J23: 0 | K23: 0 | L23: 0 | M23: 0 | N23: 0 | O23: 0 | P23: 1 | Q23: =SUM(D23:O23)*P23 -> 0 | R23: =(Q23/C2) -> 0%
A24: ='Misc data'!$A$19 -> 00000018 | B24: ='Misc data'!$B$19 -> Student | C24: ='Misc data'!$C$19 -> Eighteen | D24: 0 | E24: 0 | F24: 0 | G24: 0 | H24: 0 | I24: 0 | J24: 0 | K24: 0 | L24: 0 | M24: 0 | N24: 0 | O24: 0 | P24: 1 | Q24: =SUM(D24:O24)*P24 -> 0 | R24: =(Q24/C2) -> 0%
A25: ='Misc data'!$A$20 -> 00000019 | B25: ='Misc data'!$B$20 -> Student | C25: ='Misc data'!$C$20 -> Nineteen | D25: 0 | E25: 0 | F25: 0 | G25: 0 | H25: 0 | I25: 0 | J25: 0 | K25: 0 | L25: 0 | M25: 0 | N25: 0 | O25: 0 | P25: 1 | Q25: =SUM(D25:O25)*P25 -> 0 | R25: =(Q25/C2) -> 0%
A26: ='Misc data'!$A$21 -> 00000020 | B26: ='Misc data'!$B$21 -> Student | C26: ='Misc data'!$C$21 -> Twenty | D26: 0 | E26: 0 | F26: 0 | G26: 0 | H26: 0 | I26: 0 | J26: 0 | K26: 0 | L26: 0 | M26: 0 | N26: 0 | O26: 0 | P26: 1 | Q26: =SUM(D26:O26)*P26 -> 0 | R26: =(Q26/C2) -> 0%
A27: ='Misc data'!$A$22 -> 00000021 | B27: ='Misc data'!$B$22 -> Student | C27: ='Misc data'!$C$22 -> Twenty one | D27: 0 | E27: 0 | F27: 0 | G27: 0 | H27: 0 | I27: 0 | J27: 0 | K27: 0 | L27: 0 | M27: 0 | N27: 0 | O27: 0 | P27: 1 | Q27: =SUM(D27:O27)*P27 -> 0 | R27: =(Q27/C2) -> 0%
A28: ='Misc data'!$A$23 -> 00000022 | B28: ='Misc data'!$B$23 -> Student | C28: ='Misc data'!$C$23 -> Twenty two | D28: 0 | E28: 0 | F28: 0 | G28: 0 | H28: 0 | I28: 0 | J28: 0 | K28: 0 | L28: 0 | M28: 0 | N28: 0 | O28: 0 | P28: 1 | Q28: =SUM(D28:O28)*P28 -> 0 | R28: =(Q28/C2) -> 0%
A29: ='Misc data'!$A$24 -> 00000023 | B29: ='Misc data'!$B$24 -> Student | C29: ='Misc data'!$C$24 -> Twenty three | D29: 0 | E29: 0 | F29: 0 | G29: 0 | H29: 0 | I29: 0 | J29: 0 | K29: 0 | L29: 0 | M29: 0 | N29: 0 | O29: 0 | P29: 1 | Q29: =SUM(D29:O29)*P29 -> 0 | R29: =(Q29/C2) -> 0%
A30: ='Misc data'!$A$25 -> 00000024 | B30: ='Misc data'!$B$25 -> Student | C30: ='Misc data'!$C$25 -> Twenty four | D30: 0 | E30: 0 | F30: 0 | G30: 0 | H30: 0 | I30: 0 | J30: 0 | K30: 0 | L30: 0 | M30: 0 | N30: 0 | O30: 0 | P30: 1 | Q30: =SUM(D30:O30)*P30 -> 0 | R30: =(Q30/C2) -> 0%
A31: ='Misc data'!$A$26 -> 00000025 | B31: ='Misc data'!$B$26 -> Student | C31: ='Misc data'!$C$26 -> Twenty five | D31: 0 | E31: 0 | F31: 0 | G31: 0 | H31: 0 | I31: 0 | J31: 0 | K31: 0 | L31: 0 | M31: 0 | N31: 0 | O31: 0 | P31: 1 | Q31: =SUM(D31:O31)*P31 -> 0 | R31: =(Q31/C2) -> 0%

Sheet Course 4 Class
A1: ='Misc data'!$H$8 -> Course 4 Alignment. Class. | I1: 25
B2: Date assignment is due | D2: TBD | E2: TBD | F2: TBD | G2: TBD | H2: TBD | I2: TBD | J2: TBD
A3: Class Room Points: | C3: =SUM(D3:J3) -> 235 | D3: 25 | E3: 25 | F3: 20 | G3: 40 | H3: 50 | J3: 75 | K3: Evaluation
A4: Red is late turn-in | C4: Blue is absent | D4: CH 16 | E4: CH 16 | F4: Align | G4: In class | H4: In class | I4: Extra | J4: Final | K4: Class | M4: Professionalism | P4: Lab | R4: Total | S4: Letter
A5: I D | B5: First: | C5: Last: | D5: HW | E5: Test | F5: HW | G5: Project1 | H5: Project2 | I5: Credit | J5: Test | K5: Points | L5: % | M5: Attendance | N5: Points | O5: % | P5: Points | Q5: % | R5: % | S5: Grade
A6: ='Misc data'!$A$2 -> 00000001 | B6: ='Misc data'!$B$2 -> Student | C6: ='Misc data'!$C$2 -> One | D6: 0 | E6: 0 | F6: 0 | G6: 0 | H6: 0 | I6: 0 | J6: 0 | K6: =SUM(D6:J6) -> 0 | L6: =(K6/C3) -> 0% | M6: =Attendance!$E$3 -> 100% | N6: =Professionalism!$E$2 -> 72.0 | O6: =Professionalism!$F$2 -> 100% | P6: ='Course 4 Lab'!$H$7 -> 0 | Q6: ='Course 4 Lab'!$I$7 -> 0% | R6: =(0.5*L6)+(0.25*O6)+(0.25*Q6) -> 25.0% | S6: =IF(R6>0.95,"A",IF(R6>0.93,"A-",IF(R6>0.9,"B+",IF(R6>0.88,"B",IF(R6>0.85,"B-",IF(R6>0.82,"C+",IF(R6>0.79,"C",IF(R6>0.76,"C-",IF(R6>0.74,"D+",IF(R6>0.72,"D",IF(R6>0.7,"D-",IF(R6<0.7,"F")))))))))))) -> F
A7: ='Misc data'!$A$3 -> 00000002 | B7: ='Misc data'!$B$3 -> Student | C7: ='Misc data'!$C$3 -> Two | D7: 0 | E7: 0 | F7: 0 | G7: 0 | H7: 0 | I7: 0 | J7: 0 | K7: =SUM(D7:J7) -> 0 | L7: =(K7/C3) -> 0% | M7: =Attendance!$E$4 -> 93% | N7: =Professionalism!$E$3 -> 71.6 | O7: =Professionalism!$F$3 -> 99% | P7: ='Course 4 Lab'!$H$8 -> 0 | Q7: ='Course 4 Lab'!$I$8 -> 0% | R7: =(0.5*L7)+(0.25*O7)+(0.25*Q7) -> 24.9% | S7: =IF(R7>0.95,"A",IF(R7>0.93,"A-",IF(R7>0.9,"B+",IF(R7>0.88,"B",IF(R7>0.85,"B-",IF(R7>0.82,"C+",IF(R7>0.79,"C",IF(R7>0.76,"C-",IF(R7>0.74,"D+",IF(R7>0.72,"D",IF(R7>0.7,"D-",IF(R7<0.7,"F")))))))))))) -> F
A8: ='Misc data'!$A$4 -> 00000003 | B8: ='Misc data'!$B$4 -> Student | C8: ='Misc data'!$C$4 -> Three | D8: 0 | E8: 0 | F8: 0 | G8: 0 | H8: 0 | I8: 0 | J8: 0 | K8: =SUM(D8:J8) -> 0 | L8: =(K8/C3) -> 0% | M8: =Attendance!$E$5 -> 100% | N8: =Professionalism!$E$4 -> 72.0 | O8: =Professionalism!$F$4 -> 100% | P8: ='Course 4 Lab'!$H$9 -> 0 | Q8: ='Course 4 Lab'!$I$9 -> 0% | R8: =(0.5*L8)+(0.25*O8)+(0.25*Q8) -> 25.0% | S8: =IF(R8>0.95,"A",IF(R8>0.93,"A-",IF(R8>0.9,"B+",IF(R8>0.88,"B",IF(R8>0.85,"B-",IF(R8>0.82,"C+",IF(R8>0.79,"C",IF(R8>0.76,"C-",IF(R8>0.74,"D+",IF(R8>0.72,"D",IF(R8>0.7,"D-",IF(R8<0.7,"F")))))))))))) -> F
A9: ='Misc data'!$A$5 -> 00000004 | B9: ='Misc data'!$B$5 -> Student | C9: ='Misc data'!$C$5 -> Four | D9: 0 | E9: 0 | F9: 0 | G9: 0 | H9: 0 | I9: 0 | J9: 0 | K9: =SUM(D9:J9) -> 0 | L9: =(K9/C3) -> 0% | M9: =Attendance!$E$6 -> 100% | N9: =Professionalism!$E$5 -> 72.0 | O9: =Professionalism!$F$5 -> 100% | P9: ='Course 4 Lab'!$H$10 -> 0 | Q9: ='Course 4 Lab'!$I$10 -> 0% | R9: =(0.5*L9)+(0.25*O9)+(0.25*Q9) -> 25.0% | S9: =IF(R9>0.95,"A",IF(R9>0.93,"A-",IF(R9>0.9,"B+",IF(R9>0.88,"B",IF(R9>0.85,"B-",IF(R9>0.82,"C+",IF(R9>0.79,"C",IF(R9>0.76,"C-",IF(R9>0.74,"D+",IF(R9>0.72,"D",IF(R9>0.7,"D-",IF(R9<0.7,"F")))))))))))) -> F
A10: ='Misc data'!$A$6 -> 00000005 | B10: ='Misc data'!$B$6 -> Student | C10: ='Misc data'!$C$6 -> Five | D10: 0 | E10: 0 | F10: 0 | G10: 0 | H10: 0 | I10: 0 | J10: 0 | K10: =SUM(D10:J10) -> 0 | L10: =(K10/C3) -> 0% | M10: =Attendance!$E$7 -> 100% | N10: =Professionalism!$E$6 -> 72.0 | O10: =Professionalism!$F$6 -> 100% | P10: ='Course 4 Lab'!$H$11 -> 0 | Q10: ='Course 4 Lab'!$I$11 -> 0% | R10: =(0.5*L10)+(0.25*O10)+(0.25*Q10) -> 25.0% | S10: =IF(R10>0.95,"A",IF(R10>0.93,"A-",IF(R10>0.9,"B+",IF(R10>0.88,"B",IF(R10>0.85,"B-",IF(R10>0.82,"C+",IF(R10>0.79,"C",IF(R10>0.76,"C-",IF(R10>0.74,"D+",IF(R10>0.72,"D",IF(R10>0.7,"D-",IF(R10<0.7,"F")))))))))))) -> F
A11: ='Misc data'!$A$7 -> 00000006 | B11: ='Misc data'!$B$7 -> Student | C11: ='Misc data'!$C$7 -> Six | D11: 0 | E11: 0 | F11: 0 | G11: 0 | H11: 0 | I11: 0 | J11: 0 | K11: =SUM(D11:J11) -> 0 | L11: =(K11/C3) -> 0% | M11: =Attendance!$E$8 -> 100% | N11: =Professionalism!$E$7 -> 72.0 | O11: =Professionalism!$F$7 -> 100% | P11: ='Course 4 Lab'!$H$12 -> 0 | Q11: ='Course 4 Lab'!$I$12 -> 0% | R11: =(0.5*L11)+(0.25*O11)+(0.25*Q11) -> 25.0% | S11: =IF(R11>0.95,"A",IF(R11>0.93,"A-",IF(R11>0.9,"B+",IF(R11>0.88,"B",IF(R11>0.85,"B-",IF(R11>0.82,"C+",IF(R11>0.79,"C",IF(R11>0.76,"C-",IF(R11>0.74,"D+",IF(R11>0.72,"D",IF(R11>0.7,"D-",IF(R11<0.7,"F")))))))))))) -> F
A12: ='Misc data'!$A$8 -> 00000007 | B12: ='Misc data'!$B$8 -> Student | C12: ='Misc data'!$C$8 -> Seven | D12: 0 | E12: 0 | F12: 0 | G12: 0 | H12: 0 | I12: 0 | J12: 0 | K12: =SUM(D12:J12) -> 0 | L12: =(K12/C3) -> 0% | M12: =Attendance!$E$9 -> 100% | N12: =Professionalism!$E$8 -> 72.0 | O12: =Professionalism!$F$8 -> 100% | P12: ='Course 4 Lab'!$H$13 -> 0 | Q12: ='Course 4 Lab'!$I$13 -> 0% | R12: =(0.5*L12)+(0.25*O12)+(0.25*Q12) -> 25.0% | S12: =IF(R12>0.95,"A",IF(R12>0.93,"A-",IF(R12>0.9,"B+",IF(R12>0.88,"B",IF(R12>0.85,"B-",IF(R12>0.82,"C+",IF(R12>0.79,"C",IF(R12>0.76,"C-",IF(R12>0.74,"D+",IF(R12>0.72,"D",IF(R12>0.7,"D-",IF(R12<0.7,"F")))))))))))) -> F
A13: ='Misc data'!$A$9 -> 00000008 | B13: ='Misc data'!$B$9 -> Student | C13: ='Misc data'!$C$9 -> Eight | D13: 0 | E13: 0 | F13: 0 | G13: 0 | H13: 0 | I13: 0 | J13: 0 | K13: =SUM(D13:J13) -> 0 | L13: =(K13/C3) -> 0% | M13: =Attendance!$E$10 -> 100% | N13: =Professionalism!$E$9 -> 72.0 | O13: =Professionalism!$F$9 -> 100% | P13: ='Course 4 Lab'!$H$14 -> 0 | Q13: ='Course 4 Lab'!$I$14 -> 0% | R13: =(0.5*L13)+(0.25*O13)+(0.25*Q13) -> 25.0% | S13: =IF(R13>0.95,"A",IF(R13>0.93,"A-",IF(R13>0.9,"B+",IF(R13>0.88,"B",IF(R13>0.85,"B-",IF(R13>0.82,"C+",IF(R13>0.79,"C",IF(R13>0.76,"C-",IF(R13>0.74,"D+",IF(R13>0.72,"D",IF(R13>0.7,"D-",IF(R13<0.7,"F")))))))))))) -> F
A14: ='Misc data'!$A$10 -> 00000009 | B14: ='Misc data'!$B$10 -> Student | C14: ='Misc data'!$C$10 -> Nine | D14: 0 | E14: 0 | F14: 0 | G14: 0 | H14: 0 | I14: 0 | J14: 0 | K14: =SUM(D14:J14) -> 0 | L14: =(K14/C3) -> 0% | M14: =Attendance!$E$11 -> 100% | N14: =Professionalism!$E$10 -> 72.0 | O14: =Professionalism!$F$10 -> 100% | P14: ='Course 4 Lab'!$H$15 -> 0 | Q14: ='Course 4 Lab'!$I$15 -> 0% | R14: =(0.5*L14)+(0.25*O14)+(0.25*Q14) -> 25.0% | S14: =IF(R14>0.95,"A",IF(R14>0.93,"A-",IF(R14>0.9,"B+",IF(R14>0.88,"B",IF(R14>0.85,"B-",IF(R14>0.82,"C+",IF(R14>0.79,"C",IF(R14>0.76,"C-",IF(R14>0.74,"D+",IF(R14>0.72,"D",IF(R14>0.7,"D-",IF(R14<0.7,"F")))))))))))) -> F
A15: ='Misc data'!$A$11 -> 00000010 | B15: ='Misc data'!$B$11 -> Student | C15: ='Misc data'!$C$11 -> Ten | D15: 0 | E15: 0 | F15: 0 | G15: 0 | H15: 0 | I15: 0 | J15: 0 | K15: =SUM(D15:J15) -> 0 | L15: =(K15/C3) -> 0% | M15: =Attendance!$E$12 -> 100% | N15: =Professionalism!$E$11 -> 72.0 | O15: =Professionalism!$F$11 -> 100% | P15: ='Course 4 Lab'!$H$16 -> 0 | Q15: ='Course 4 Lab'!$I$16 -> 0% | R15: =(0.5*L15)+(0.25*O15)+(0.25*Q15) -> 25.0% | S15: =IF(R15>0.95,"A",IF(R15>0.93,"A-",IF(R15>0.9,"B+",IF(R15>0.88,"B",IF(R15>0.85,"B-",IF(R15>0.82,"C+",IF(R15>0.79,"C",IF(R15>0.76,"C-",IF(R15>0.74,"D+",IF(R15>0.72,"D",IF(R15>0.7,"D-",IF(R15<0.7,"F")))))))))))) -> F
A16: ='Misc data'!$A$12 -> 00000011 | B16: ='Misc data'!$B$12 -> Student | C16: ='Misc data'!$C$12 -> Eleven | D16: 0 | E16: 0 | F16: 0 | G16: 0 | H16: 0 | I16: 0 | J16: 0 | K16: =SUM(D16:J16) -> 0 | L16: =(K16/C3) -> 0% | M16: =Attendance!$E$13 -> 100% | N16: =Professionalism!$E$12 -> 72.0 | O16: =Professionalism!$F$12 -> 100% | P16: ='Course 4 Lab'!$H$17 -> 0 | Q16: ='Course 4 Lab'!$I$17 -> 0% | R16: =(0.5*L16)+(0.25*O16)+(0.25*Q16) -> 25.0% | S16: =IF(R16>0.95,"A",IF(R16>0.93,"A-",IF(R16>0.9,"B+",IF(R16>0.88,"B",IF(R16>0.85,"B-",IF(R16>0.82,"C+",IF(R16>0.79,"C",IF(R16>0.76,"C-",IF(R16>0.74,"D+",IF(R16>0.72,"D",IF(R16>0.7,"D-",IF(R16<0.7,"F")))))))))))) -> F
A17: ='Misc data'!$A$13 -> 00000012 | B17: ='Misc data'!$B$13 -> Student | C17: ='Misc data'!$C$13 -> Twelve | D17: 0 | E17: 0 | F17: 0 | G17: 0 | H17: 0 | I17: 0 | J17: 0 | K17: =SUM(D17:J17) -> 0 | L17: =(K17/C3) -> 0% | M17: =Attendance!$E$14 -> 93% | N17: =Professionalism!$E$13 -> 71.6 | O17: =Professionalism!$F$13 -> 99% | P17: ='Course 4 Lab'!$H$18 -> 0 | Q17: ='Course 4 Lab'!$I$18 -> 0% | R17: =(0.5*L17)+(0.25*O17)+(0.25*Q17) -> 24.9% | S17: =IF(R17>0.95,"A",IF(R17>0.93,"A-",IF(R17>0.9,"B+",IF(R17>0.88,"B",IF(R17>0.85,"B-",IF(R17>0.82,"C+",IF(R17>0.79,"C",IF(R17>0.76,"C-",IF(R17>0.74,"D+",IF(R17>0.72,"D",IF(R17>0.7,"D-",IF(R17<0.7,"F")))))))))))) -> F
A18: ='Misc data'!$A$14 -> 00000013 | B18: ='Misc data'!$B$14 -> Student | C18: ='Misc data'!$C$14 -> Thirteen | D18: 0 | E18: 0 | F18: 0 | G18: 0 | H18: 0 | I18: 0 | J18: 0 | K18: =SUM(D18:J18) -> 0 | L18: =(K18/C3) -> 0% | M18: =Attendance!$E$15 -> 100% | N18: =Professionalism!$E$14 -> 72.0 | O18: =Professionalism!$F$14 -> 100% | P18: ='Course 4 Lab'!$H$19 -> 0 | Q18: ='Course 4 Lab'!$I$19 -> 0% | R18: =(0.5*L18)+(0.25*O18)+(0.25*Q18) -> 25.0% | S18: =IF(R18>0.95,"A",IF(R18>0.93,"A-",IF(R18>0.9,"B+",IF(R18>0.88,"B",IF(R18>0.85,"B-",IF(R18>0.82,"C+",IF(R18>0.79,"C",IF(R18>0.76,"C-",IF(R18>0.74,"D+",IF(R18>0.72,"D",IF(R18>0.7,"D-",IF(R18<0.7,"F")))))))))))) -> F
A19: ='Misc data'!$A$15 -> 00000014 | B19: ='Misc data'!$B$15 -> Student | C19: ='Misc data'!$C$15 -> Fourteen | D19: 0 | E19: 0 | F19: 0 | G19: 0 | H19: 0 | I19: 0 | J19: 0 | K19: =SUM(D19:J19) -> 0 | L19: =(K19/C3) -> 0% | M19: =Attendance!$E$16 -> 100% | N19: =Professionalism!$E$15 -> 72.0 | O19: =Professionalism!$F$15 -> 100% | P19: ='Course 4 Lab'!$H$20 -> 0 | Q19: ='Course 4 Lab'!$I$20 -> 0% | R19: =(0.5*L19)+(0.25*O19)+(0.25*Q19) -> 25.0% | S19: =IF(R19>0.95,"A",IF(R19>0.93,"A-",IF(R19>0.9,"B+",IF(R19>0.88,"B",IF(R19>0.85,"B-",IF(R19>0.82,"C+",IF(R19>0.79,"C",IF(R19>0.76,"C-",IF(R19>0.74,"D+",IF(R19>0.72,"D",IF(R19>0.7,"D-",IF(R19<0.7,"F")))))))))))) -> F
A20: ='Misc data'!$A$16 -> 00000015 | B20: ='Misc data'!$B$16 -> Student | C20: ='Misc data'!$C$16 -> Fifteen | D20: 0 | E20: 0 | F20: 0 | G20: 0 | H20: 0 | I20: 0 | J20: 0 | K20: =SUM(D20:J20) -> 0 | L20: =(K20/C3) -> 0% | M20: =Attendance!$E$17 -> 100% | N20: =Professionalism!$E$16 -> 72.0 | O20: =Professionalism!$F$16 -> 100% | P20: ='Course 4 Lab'!$H$21 -> 0 | Q20: ='Course 4 Lab'!$I$21 -> 0% | R20: =(0.5*L20)+(0.25*O20)+(0.25*Q20) -> 25.0% | S20: =IF(R20>0.95,"A",IF(R20>0.93,"A-",IF(R20>0.9,"B+",IF(R20>0.88,"B",IF(R20>0.85,"B-",IF(R20>0.82,"C+",IF(R20>0.79,"C",IF(R20>0.76,"C-",IF(R20>0.74,"D+",IF(R20>0.72,"D",IF(R20>0.7,"D-",IF(R20<0.7,"F")))))))))))) -> F
A21: ='Misc data'!$A$17 -> 00000016 | B21: ='Misc data'!$B$17 -> Student | C21: ='Misc data'!$C$17 -> Sixteen | D21: 0 | E21: 0 | F21: 0 | G21: 0 | H21: 0 | I21: 0 | J21: 0 | K21: =SUM(D21:J21) -> 0 | L21: =(K21/C3) -> 0% | M21: =Attendance!$E$18 -> 100% | N21: =Professionalism!$E$17 -> 72.0 | O21: =Professionalism!$F$17 -> 100% | P21: ='Course 4 Lab'!$H$22 -> 0 | Q21: ='Course 4 Lab'!$I$22 -> 0% | R21: =(0.5*L21)+(0.25*O21)+(0.25*Q21) -> 25.0% | S21: =IF(R21>0.95,"A",IF(R21>0.93,"A-",IF(R21>0.9,"B+",IF(R21>0.88,"B",IF(R21>0.85,"B-",IF(R21>0.82,"C+",IF(R21>0.79,"C",IF(R21>0.76,"C-",IF(R21>0.74,"D+",IF(R21>0.72,"D",IF(R21>0.7,"D-",IF(R21<0.7,"F")))))))))))) -> F
A22: ='Misc data'!$A$18 -> 00000017 | B22: ='Misc data'!$B$18 -> Student | C22: ='Misc data'!$C$18 -> Seventeen | D22: 0 | E22: 0 | F22: 0 | G22: 0 | H22: 0 | I22: 0 | J22: 0 | K22: =SUM(D22:J22) -> 0 | L22: =(K22/C3) -> 0% | M22: =Attendance!$E$19 -> 100% | N22: =Professionalism!$E$18 -> 72.0 | O22: =Professionalism!$F$18 -> 100% | P22: ='Course 4 Lab'!$H$23 -> 0 | Q22: ='Course 4 Lab'!$I$23 -> 0% | R22: =(0.5*L22)+(0.25*O22)+(0.25*Q22) -> 25.0% | S22: =IF(R22>0.95,"A",IF(R22>0.93,"A-",IF(R22>0.9,"B+",IF(R22>0.88,"B",IF(R22>0.85,"B-",IF(R22>0.82,"C+",IF(R22>0.79,"C",IF(R22>0.76,"C-",IF(R22>0.74,"D+",IF(R22>0.72,"D",IF(R22>0.7,"D-",IF(R22<0.7,"F")))))))))))) -> F
A23: ='Misc data'!$A$19 -> 00000018 | B23: ='Misc data'!$B$19 -> Student | C23: ='Misc data'!$C$19 -> Eighteen | D23: 0 | E23: 0 | F23: 0 | G23: 0 | H23: 0 | I23: 0 | J23: 0 | K23: =SUM(D23:J23) -> 0 | L23: =(K23/C3) -> 0% | M23: =Attendance!$E$20 -> 100% | N23: =Professionalism!$E$19 -> 72.0 | O23: =Professionalism!$F$19 -> 100% | P23: ='Course 4 Lab'!$H$24 -> 0 | Q23: ='Course 4 Lab'!$I$24 -> 0% | R23: =(0.5*L23)+(0.25*O23)+(0.25*Q23) -> 25.0% | S23: =IF(R23>0.95,"A",IF(R23>0.93,"A-",IF(R23>0.9,"B+",IF(R23>0.88,"B",IF(R23>0.85,"B-",IF(R23>0.82,"C+",IF(R23>0.79,"C",IF(R23>0.76,"C-",IF(R23>0.74,"D+",IF(R23>0.72,"D",IF(R23>0.7,"D-",IF(R23<0.7,"F")))))))))))) -> F
A24: ='Misc data'!$A$20 -> 00000019 | B24: ='Misc data'!$B$20 -> Student | C24: ='Misc data'!$C$20 -> Nineteen | D24: 0 | E24: 0 | F24: 0 | G24: 0 | H24: 0 | I24: 0 | J24: 0 | K24: =SUM(D24:J24) -> 0 | L24: =(K24/C3) -> 0% | M24: =Attendance!$E$21 -> 100% | N24: =Professionalism!$E$20 -> 72.0 | O24: =Professionalism!$F$20 -> 100% | P24: ='Course 4 Lab'!$H$25 -> 0 | Q24: ='Course 4 Lab'!$I$25 -> 0% | R24: =(0.5*L24)+(0.25*O24)+(0.25*Q24) -> 25.0% | S24: =IF(R24>0.95,"A",IF(R24>0.93,"A-",IF(R24>0.9,"B+",IF(R24>0.88,"B",IF(R24>0.85,"B-",IF(R24>0.82,"C+",IF(R24>0.79,"C",IF(R24>0.76,"C-",IF(R24>0.74,"D+",IF(R24>0.72,"D",IF(R24>0.7,"D-",IF(R24<0.7,"F")))))))))))) -> F
A25: ='Misc data'!$A$21 -> 00000020 | B25: ='Misc data'!$B$21 -> Student | C25: ='Misc data'!$C$21 -> Twenty | D25: 0 | E25: 0 | F25: 0 | G25: 0 | H25: 0 | I25: 0 | J25: 0 | K25: =SUM(D25:J25) -> 0 | L25: =(K25/C3) -> 0% | M25: =Attendance!$E$22 -> 100% | N25: =Professionalism!$E$21 -> 72.0 | O25: =Professionalism!$F$21 -> 100% | P25: ='Course 4 Lab'!$H$26 -> 0 | Q25: ='Course 4 Lab'!$I$26 -> 0% | R25: =(0.5*L25)+(0.25*O25)+(0.25*Q25) -> 25.0% | S25: =IF(R25>0.95,"A",IF(R25>0.93,"A-",IF(R25>0.9,"B+",IF(R25>0.88,"B",IF(R25>0.85,"B-",IF(R25>0.82,"C+",IF(R25>0.79,"C",IF(R25>0.76,"C-",IF(R25>0.74,"D+",IF(R25>0.72,"D",IF(R25>0.7,"D-",IF(R25<0.7,"F")))))))))))) -> F
A26: ='Misc data'!$A$22 -> 00000021 | B26: ='Misc data'!$B$22 -> Student | C26: ='Misc data'!$C$22 -> Twenty one | D26: 0 | E26: 0 | F26: 0 | G26: 0 | H26: 0 | I26: 0 | J26: 0 | K26: =SUM(D26:J26) -> 0 | L26: =(K26/C3) -> 0% | M26: =Attendance!$E$23 -> 100% | N26: =Professionalism!$E$22 -> 72.0 | O26: =Professionalism!$F$22 -> 100% | P26: ='Course 4 Lab'!$H$27 -> 0 | Q26: ='Course 4 Lab'!$I$27 -> 0% | R26: =(0.5*L26)+(0.25*O26)+(0.25*Q26) -> 25.0% | S26: =IF(R26>0.95,"A",IF(R26>0.93,"A-",IF(R26>0.9,"B+",IF(R26>0.88,"B",IF(R26>0.85,"B-",IF(R26>0.82,"C+",IF(R26>0.79,"C",IF(R26>0.76,"C-",IF(R26>0.74,"D+",IF(R26>0.72,"D",IF(R26>0.7,"D-",IF(R26<0.7,"F")))))))))))) -> F
A27: ='Misc data'!$A$23 -> 00000022 | B27: ='Misc data'!$B$23 -> Student | C27: ='Misc data'!$C$23 -> Twenty two | D27: 0 | E27: 0 | F27: 0 | G27: 0 | H27: 0 | I27: 0 | J27: 0 | K27: =SUM(D27:J27) -> 0 | L27: =(K27/C3) -> 0% | M27: =Attendance!$E$24 -> 100% | N27: =Professionalism!$E$23 -> 72.0 | O27: =Professionalism!$F$23 -> 100% | P27: ='Course 4 Lab'!$H$28 -> 0 | Q27: ='Course 4 Lab'!$I$28 -> 0% | R27: =(0.5*L27)+(0.25*O27)+(0.25*Q27) -> 25.0% | S27: =IF(R27>0.95,"A",IF(R27>0.93,"A-",IF(R27>0.9,"B+",IF(R27>0.88,"B",IF(R27>0.85,"B-",IF(R27>0.82,"C+",IF(R27>0.79,"C",IF(R27>0.76,"C-",IF(R27>0.74,"D+",IF(R27>0.72,"D",IF(R27>0.7,"D-",IF(R27<0.7,"F")))))))))))) -> F
A28: ='Misc data'!$A$24 -> 00000023 | B28: ='Misc data'!$B$24 -> Student | C28: ='Misc data'!$C$24 -> Twenty three | D28: 0 | E28: 0 | F28: 0 | G28: 0 | H28: 0 | I28: 0 | J28: 0 | K28: =SUM(D28:J28) -> 0 | L28: =(K28/C3) -> 0% | M28: =Attendance!$E$25 -> 100% | N28: =Professionalism!$E$24 -> 72.0 | O28: =Professionalism!$F$24 -> 100% | P28: ='Course 4 Lab'!$H$29 -> 0 | Q28: ='Course 4 Lab'!$I$29 -> 0% | R28: =(0.5*L28)+(0.25*O28)+(0.25*Q28) -> 25.0% | S28: =IF(R28>0.95,"A",IF(R28>0.93,"A-",IF(R28>0.9,"B+",IF(R28>0.88,"B",IF(R28>0.85,"B-",IF(R28>0.82,"C+",IF(R28>0.79,"C",IF(R28>0.76,"C-",IF(R28>0.74,"D+",IF(R28>0.72,"D",IF(R28>0.7,"D-",IF(R28<0.7,"F")))))))))))) -> F
A29: ='Misc data'!$A$25 -> 00000024 | B29: ='Misc data'!$B$25 -> Student | C29: ='Misc data'!$C$25 -> Twenty four | D29: 0 | E29: 0 | F29: 0 | G29: 0 | H29: 0 | I29: 0 | J29: 0 | K29: =SUM(D29:J29) -> 0 | L29: =(K29/C3) -> 0% | M29: =Attendance!$E$24 -> 100% | N29: =Professionalism!$E$23 -> 72.0 | O29: =Professionalism!$F$23 -> 100% | P29: ='Course 4 Lab'!$H$28 -> 0 | Q29: ='Course 4 Lab'!$I$28 -> 0% | R29: =(0.5*L29)+(0.25*O29)+(0.25*Q29) -> 25.0% | S29: =IF(R29>0.95,"A",IF(R29>0.93,"A-",IF(R29>0.9,"B+",IF(R29>0.88,"B",IF(R29>0.85,"B-",IF(R29>0.82,"C+",IF(R29>0.79,"C",IF(R29>0.76,"C-",IF(R29>0.74,"D+",IF(R29>0.72,"D",IF(R29>0.7,"D-",IF(R29<0.7,"F")))))))))))) -> F
A30: ='Misc data'!$A$26 -> 00000025 | B30: ='Misc data'!$B$26 -> Student | C30: ='Misc data'!$C$26 -> Twenty five | D30: 0 | E30: 0 | F30: 0 | G30: 0 | H30: 0 | I30: 0 | J30: 0 | K30: =SUM(D30:J30) -> 0 | L30: =(K30/C3) -> 0% | M30: =Attendance!$E$25 -> 100% | N30: =Professionalism!$E$24 -> 72.0 | O30: =Professionalism!$F$24 -> 100% | P30: ='Course 4 Lab'!$H$29 -> 0 | Q30: ='Course 4 Lab'!$I$29 -> 0% | R30: =(0.5*L30)+(0.25*O30)+(0.25*Q30) -> 25.0% | S30: =IF(R30>0.95,"A",IF(R30>0.93,"A-",IF(R30>0.9,"B+",IF(R30>0.88,"B",IF(R30>0.85,"B-",IF(R30>0.82,"C+",IF(R30>0.79,"C",IF(R30>0.76,"C-",IF(R30>0.74,"D+",IF(R30>0.72,"D",IF(R30>0.7,"D-",IF(R30<0.7,"F")))))))))))) -> F

Sheet Course 4 Lab
A1: ='Misc data'!$H$9 -> Course 4 Alignment. Lab
A2: Max Shop Points: | C2: =SUM(D6:F6) -> 1300 | D2: Alignment | E2: Complete | F2: Cus
A3: Max shop points available depend on how much customer work is done. | D3: Pre-check | E3: Wheel | F3: tomer | G3: Comp
D4: 100 P | E4: Alignment | F4: Work | G4: etency
D5: 1 | E5: 1 | G5: 0 or 1 | H5: Lab
A6: ID | B6: First: | C6: Last: | D6: 100 | E6: 900 | F6: 300 | G6: * | H6: Points | I6: %
A7: ='Misc data'!$A$2 -> 00000001 | B7: ='Misc data'!$B$2 -> Student | C7: ='Misc data'!$C$2 -> One | D7: 0 | E7: 0 | F7: 0 | G7: 1 | H7: =SUM(D7:F7)*G7 -> 0 | I7: =(H7/C2) -> 0%
A8: ='Misc data'!$A$3 -> 00000002 | B8: ='Misc data'!$B$3 -> Student | C8: ='Misc data'!$C$3 -> Two | D8: 0 | E8: 0 | F8: 0 | G8: 1 | H8: =SUM(D8:F8) -> 0 | I8: =(H8/C2) -> 0%
A9: ='Misc data'!$A$4 -> 00000003 | B9: ='Misc data'!$B$4 -> Student | C9: ='Misc data'!$C$4 -> Three | D9: 0 | E9: 0 | F9: 0 | G9: 1 | H9: =SUM(D9:F9) -> 0 | I9: =(H9/C2) -> 0%
A10: ='Misc data'!$A$5 -> 00000004 | B10: ='Misc data'!$B$5 -> Student | C10: ='Misc data'!$C$5 -> Four | D10: 0 | E10: 0 | F10: 0 | G10: 1 | H10: =SUM(D10:F10) -> 0 | I10: =(H10/C2) -> 0%
A11: ='Misc data'!$A$6 -> 00000005 | B11: ='Misc data'!$B$6 -> Student | C11: ='Misc data'!$C$6 -> Five | D11: 0 | E11: 0 | F11: 0 | G11: 1 | H11: =SUM(D11:F11) -> 0 | I11: =(H11/C2) -> 0%
A12: ='Misc data'!$A$7 -> 00000006 | B12: ='Misc data'!$B$7 -> Student | C12: ='Misc data'!$C$7 -> Six | D12: 0 | E12: 0 | F12: 0 | G12: 1 | H12: =SUM(D12:F12) -> 0 | I12: =(H12/C2) -> 0%
A13: ='Misc data'!$A$8 -> 00000007 | B13: ='Misc data'!$B$8 -> Student | C13: ='Misc data'!$C$8 -> Seven | D13: 0 | E13: 0 | F13: 0 | G13: 1 | H13: =SUM(D13:F13) -> 0 | I13: =(H13/C2) -> 0%
A14: ='Misc data'!$A$9 -> 00000008 | B14: ='Misc data'!$B$9 -> Student | C14: ='Misc data'!$C$9 -> Eight | D14: 0 | E14: 0 | F14: 0 | G14: 1 | H14: =SUM(D14:F14) -> 0 | I14: =(H14/C2) -> 0%
A15: ='Misc data'!$A$10 -> 00000009 | B15: ='Misc data'!$B$10 -> Student | C15: ='Misc data'!$C$10 -> Nine | D15: 0 | E15: 0 | F15: 0 | G15: 1 | H15: =SUM(D15:F15) -> 0 | I15: =(H15/C2) -> 0%
A16: ='Misc data'!$A$11 -> 00000010 | B16: ='Misc data'!$B$11 -> Student | C16: ='Misc data'!$C$11 -> Ten | D16: 0 | E16: 0 | F16: 0 | G16: 1 | H16: =SUM(D16:F16) -> 0 | I16: =(H16/C2) -> 0%
A17: ='Misc data'!$A$12 -> 00000011 | B17: ='Misc data'!$B$12 -> Student | C17: ='Misc data'!$C$12 -> Eleven | D17: 0 | E17: 0 | F17: 0 | G17: 1 | H17: =SUM(D17:F17) -> 0 | I17: =(H17/C2) -> 0%
A18: ='Misc data'!$A$13 -> 00000012 | B18: ='Misc data'!$B$13 -> Student | C18: ='Misc data'!$C$13 -> Twelve | D18: 0 | E18: 0 | F18: 0 | G18: 1 | H18: =SUM(D18:F18) -> 0 | I18: =(H18/C2) -> 0%
A19: ='Misc data'!$A$14 -> 00000013 | B19: ='Misc data'!$B$14 -> Student | C19: ='Misc data'!$C$14 -> Thirteen | D19: 0 | E19: 0 | F19: 0 | G19: 1 | H19: =SUM(D19:F19) -> 0 | I19: =(H19/C2) -> 0%
A20: ='Misc data'!$A$15 -> 00000014 | B20: ='Misc data'!$B$15 -> Student | C20: ='Misc data'!$C$15 -> Fourteen | D20: 0 | E20: 0 | F20: 0 | G20: 1 | H20: =SUM(D20:F20) -> 0 | I20: =(H20/C2) -> 0%
A21: ='Misc data'!$A$16 -> 00000015 | B21: ='Misc data'!$B$16 -> Student | C21: ='Misc data'!$C$16 -> Fifteen | D21: 0 | E21: 0 | F21: 0 | G21: 1 | H21: =SUM(D21:F21) -> 0 | I21: =(H21/C2) -> 0%
A22: ='Misc data'!$A$17 -> 00000016 | B22: ='Misc data'!$B$17 -> Student | C22: ='Misc data'!$C$17 -> Sixteen | D22: 0 | E22: 0 | F22: 0 | G22: 1 | H22: =SUM(D22:F22) -> 0 | I22: =(H22/C2) -> 0%
A23: ='Misc data'!$A$18 -> 00000017 | B23: ='Misc data'!$B$18 -> Student | C23: ='Misc data'!$C$18 -> Seventeen | D23: 0 | E23: 0 | F23: 0 | G23: 1 | H23: =SUM(D23:F23) -> 0 | I23: =(H23/C2) -> 0%
A24: ='Misc data'!$A$19 -> 00000018 | B24: ='Misc data'!$B$19 -> Student | C24: ='Misc data'!$C$19 -> Eighteen | D24: 0 | E24: 0 | F24: 0 | G24: 1 | H24: =SUM(D24:F24) -> 0 | I24: =(H24/C2) -> 0%
A25: ='Misc data'!$A$20 -> 00000019 | B25: ='Misc data'!$B$20 -> Student | C25: ='Misc data'!$C$20 -> Nineteen | D25: 0 | E25: 0 | F25: 0 | G25: 1 | H25: =SUM(D25:F25) -> 0 | I25: =(H25/C2) -> 0%
A26: ='Misc data'!$A$21 -> 00000020 | B26: ='Misc data'!$B$21 -> Student | C26: ='Misc data'!$C$21 -> Twenty | D26: 0 | E26: 0 | F26: 0 | G26: 1 | H26: =SUM(D26:F26) -> 0 | I26: =(H26/C2) -> 0%
A27: ='Misc data'!$A$22 -> 00000021 | B27: ='Misc data'!$B$22 -> Student | C27: ='Misc data'!$C$22 -> Twenty one | D27: 0 | E27: 0 | F27: 0 | G27: 1 | H27: =SUM(D27:F27) -> 0 | I27: =(H27/C2) -> 0%
A28: ='Misc data'!$A$23 -> 00000022 | B28: ='Misc data'!$B$23 -> Student | C28: ='Misc data'!$C$23 -> Twenty two | D28: 0 | E28: 0 | F28: 0 | G28: 1 | H28: =SUM(D28:F28) -> 0 | I28: =(H28/C2) -> 0%
A29: ='Misc data'!$A$24 -> 00000023 | B29: ='Misc data'!$B$24 -> Student | C29: ='Misc data'!$C$24 -> Twenty three | D29: 0 | E29: 0 | F29: 0 | G29: 1 | H29: =SUM(D29:F29) -> 0 | I29: =(H29/C2) -> 0%
A30: ='Misc data'!$A$25 -> 00000024 | B30: ='Misc data'!$B$25 -> Student | C30: ='Misc data'!$C$25 -> Twenty four | D30: 0 | E30: 0 | F30: 0 | G30: 1 | H30: =SUM(D30:F30) -> 0 | I30: =(H30/C2) -> 0%
A31: ='Misc data'!$A$26 -> 00000025 | B31: ='Misc data'!$B$26 -> Student | C31: ='Misc data'!$C$26 -> Twenty five | D31: 0 | E31: 0 | F31: 0 | G31: 1 | H31: =SUM(D31:F31) -> 0 | I31: =(H31/C2) -> 0%

Sheet Course 5 Class
A1: ='Misc data'!$H$10 -> Course 5 Brake Systems. Class. | L1: 35
A2: Date assignment is due: | D2: TBD | E2: TBD | F2: TBD | G2: TBD | H2: TBD | I2: TBD | J2: TBD | K2: TBD | L2: TBD | M2: TBD
A3: Class Room Points: | C3: =SUM(D3:M3) -> 440 | D3: 30 | E3: 25 | F3: 100 | G3: 30 | H3: 50 | I3: 30 | J3: 25 | K3: 50 | M3: 100 | N3: Evaluation
A4: Red is late turn-in | C4: Blue is absent | D4: HW | E4: HW | F4: Test | G4: HW | H4: Test | I4: HW | J4: Test | K4: Class | L4: Extra | M4: Final | N4: Class | P4: Professionalism | S4: Lab | U4: Total | V4: Letter
A5: I D | B5: First: | C5: Last: | D5: CH 4 | E5: CH 5 | F5: #1 | G5: CH 7 | H5: Conv | I5: CH 20 | J5: 21/22 | K5: Project | L5: Credit | M5: Test | N5: Points | O5: % | P5: Attendance | Q5: Points | R5: % | S5: Points | T5: % | U5: % | V5: Grade
A6: ='Misc data'!$A$2 -> 00000001 | B6: ='Misc data'!$B$2 -> Student | C6: ='Misc data'!$C$2 -> One | D6: 0 | E6: 0 | F6: 0 | G6: 0 | H6: 0 | I6: 0 | J6: 0 | K6: 0 | L6: 0 | M6: 0 | N6: =SUM(D6:M6) -> 0 | O6: =(N6/C3) -> 0% | P6: =Attendance!$E$3 -> 100% | Q6: =Professionalism!$E$2 -> 72.0 | R6: =Professionalism!$F$2 -> 100% | S6: ='Course 5 Lab'!$T$7 -> 0 | T6: ='Course 5 Lab'!$U$7 -> 0% | U6: =(0.5*O6)+(0.25*R6)+(0.25*T6) -> 25.0% | V6: =IF(U6>0.95,"A",IF(U6>0.93,"A-",IF(U6>0.9,"B+",IF(U6>0.88,"B",IF(U6>0.85,"B-",IF(U6>0.82,"C+",IF(U6>0.79,"C",IF(U6>0.76,"C-",IF(U6>0.74,"D+",IF(U6>0.72,"D",IF(U6>0.7,"D-",IF(U6<0.7,"F")))))))))))) -> F
A7: ='Misc data'!$A$3 -> 00000002 | B7: ='Misc data'!$B$3 -> Student | C7: ='Misc data'!$C$3 -> Two | D7: 0 | E7: 0 | F7: 0 | G7: 0 | H7: 0 | I7: 0 | J7: 0 | K7: 0 | L7: 0 | M7: 0 | N7: =SUM(D7:M7) -> 0 | O7: =(N7/C3) -> 0% | P7: =Attendance!$E$4 -> 93% | Q7: =Professionalism!$E$3 -> 71.6 | R7: =Professionalism!$F$3 -> 99% | S7: ='Course 5 Lab'!$T$8 -> 0 | T7: ='Course 5 Lab'!$U$8 -> 0% | U7: =(0.5*O7)+(0.25*R7)+(0.25*T7) -> 24.9% | V7: =IF(U7>0.95,"A",IF(U7>0.93,"A-",IF(U7>0.9,"B+",IF(U7>0.88,"B",IF(U7>0.85,"B-",IF(U7>0.82,"C+",IF(U7>0.79,"C",IF(U7>0.76,"C-",IF(U7>0.74,"D+",IF(U7>0.72,"D",IF(U7>0.7,"D-",IF(U7<0.7,"F")))))))))))) -> F
A8: ='Misc data'!$A$4 -> 00000003 | B8: ='Misc data'!$B$4 -> Student | C8: ='Misc data'!$C$4 -> Three | D8: 0 | E8: 0 | F8: 0 | G8: 0 | H8: 0 | I8: 0 | J8: 0 | K8: 0 | L8: 0 | M8: 0 | N8: =SUM(D8:M8) -> 0 | O8: =(N8/C3) -> 0% | P8: =Attendance!$E$5 -> 100% | Q8: =Professionalism!$E$4 -> 72.0 | R8: =Professionalism!$F$4 -> 100% | S8: ='Course 5 Lab'!$T$9 -> 0 | T8: ='Course 5 Lab'!$U$9 -> 0% | U8: =(0.5*O8)+(0.25*R8)+(0.25*T8) -> 25.0% | V8: =IF(U8>0.95,"A",IF(U8>0.93,"A-",IF(U8>0.9,"B+",IF(U8>0.88,"B",IF(U8>0.85,"B-",IF(U8>0.82,"C+",IF(U8>0.79,"C",IF(U8>0.76,"C-",IF(U8>0.74,"D+",IF(U8>0.72,"D",IF(U8>0.7,"D-",IF(U8<0.7,"F")))))))))))) -> F
A9: ='Misc data'!$A$5 -> 00000004 | B9: ='Misc data'!$B$5 -> Student | C9: ='Misc data'!$C$5 -> Four | D9: 0 | E9: 0 | F9: 0 | G9: 0 | H9: 0 | I9: 0 | J9: 0 | K9: 0 | L9: 0 | M9: 0 | N9: 0 | O9: =(N9/C3) -> 0% | P9: =Attendance!$E$6 -> 100% | Q9: =Professionalism!$E$5 -> 72.0 | R9: =Professionalism!$F$5 -> 100% | S9: ='Course 5 Lab'!$T$10 -> 0 | T9: ='Course 5 Lab'!$U$10 -> 0% | U9: =(0.5*O9)+(0.25*R9)+(0.25*T9) -> 25.0% | V9: =IF(U9>0.95,"A",IF(U9>0.93,"A-",IF(U9>0.9,"B+",IF(U9>0.88,"B",IF(U9>0.85,"B-",IF(U9>0.82,"C+",IF(U9>0.79,"C",IF(U9>0.76,"C-",IF(U9>0.74,"D+",IF(U9>0.72,"D",IF(U9>0.7,"D-",IF(U9<0.7,"F")))))))))))) -> F
A10: ='Misc data'!$A$6 -> 00000005 | B10: ='Misc data'!$B$6 -> Student | C10: ='Misc data'!$C$6 -> Five | D10: 0 | E10: 0 | F10: 0 | G10: 0 | H10: 0 | I10: 0 | J10: 0 | K10: 0 | L10: 0 | M10: 0 | N10: =SUM(D10:M10) -> 0 | O10: =(N10/C3) -> 0% | P10: =Attendance!$E$7 -> 100% | Q10: =Professionalism!$E$6 -> 72.0 | R10: =Professionalism!$F$6 -> 100% | S10: ='Course 5 Lab'!$T$11 -> 0 | T10: ='Course 5 Lab'!$U$11 -> 0% | U10: =(0.5*O10)+(0.25*R10)+(0.25*T10) -> 25.0% | V10: =IF(U10>0.95,"A",IF(U10>0.93,"A-",IF(U10>0.9,"B+",IF(U10>0.88,"B",IF(U10>0.85,"B-",IF(U10>0.82,"C+",IF(U10>0.79,"C",IF(U10>0.76,"C-",IF(U10>0.74,"D+",IF(U10>0.72,"D",IF(U10>0.7,"D-",IF(U10<0.7,"F")))))))))))) -> F
A11: ='Misc data'!$A$7 -> 00000006 | B11: ='Misc data'!$B$7 -> Student | C11: ='Misc data'!$C$7 -> Six | D11: 0 | E11: 0 | F11: 0 | G11: 0 | H11: 0 | I11: 0 | J11: 0 | K11: 0 | L11: 0 | M11: 0 | N11: =SUM(D11:M11) -> 0 | O11: =(N11/C3) -> 0% | P11: =Attendance!$E$8 -> 100% | Q11: =Professionalism!$E$7 -> 72.0 | R11: =Professionalism!$F$7 -> 100% | S11: ='Course 5 Lab'!$T$12 -> 0 | T11: ='Course 5 Lab'!$U$12 -> 0% | U11: =(0.5*O11)+(0.25*R11)+(0.25*T11) -> 25.0% | V11: =IF(U11>0.95,"A",IF(U11>0.93,"A-",IF(U11>0.9,"B+",IF(U11>0.88,"B",IF(U11>0.85,"B-",IF(U11>0.82,"C+",IF(U11>0.79,"C",IF(U11>0.76,"C-",IF(U11>0.74,"D+",IF(U11>0.72,"D",IF(U11>0.7,"D-",IF(U11<0.7,"F")))))))))))) -> F
A12: ='Misc data'!$A$8 -> 00000007 | B12: ='Misc data'!$B$8 -> Student | C12: ='Misc data'!$C$8 -> Seven | D12: 0 | E12: 0 | F12: 0 | G12: 0 | H12: 0 | I12: 0 | J12: 0 | K12: 0 | L12: 0 | M12: 0 | N12: =SUM(D12:M12) -> 0 | O12: =(N12/C3) -> 0% | P12: =Attendance!$E$9 -> 100% | Q12: =Professionalism!$E$8 -> 72.0 | R12: =Professionalism!$F$8 -> 100% | S12: ='Course 5 Lab'!$T$13 -> 0 | T12: ='Course 5 Lab'!$U$13 -> 0% | U12: =(0.5*O12)+(0.25*R12)+(0.25*T12) -> 25.0% | V12: =IF(U12>0.95,"A",IF(U12>0.93,"A-",IF(U12>0.9,"B+",IF(U12>0.88,"B",IF(U12>0.85,"B-",IF(U12>0.82,"C+",IF(U12>0.79,"C",IF(U12>0.76,"C-",IF(U12>0.74,"D+",IF(U12>0.72,"D",IF(U12>0.7,"D-",IF(U12<0.7,"F")))))))))))) -> F
A13: ='Misc data'!$A$9 -> 00000008 | B13: ='Misc data'!$B$9 -> Student | C13: ='Misc data'!$C$9 -> Eight | D13: 0 | E13: 0 | F13: 0 | G13: 0 | H13: 0 | I13: 0 | J13: 0 | K13: 0 | L13: 0 | M13: 0 | N13: =SUM(D13:M13) -> 0 | O13: =(N13/C3) -> 0% | P13: =Attendance!$E$10 -> 100% | Q13: =Professionalism!$E$9 -> 72.0 | R13: =Professionalism!$F$9 -> 100% | S13: ='Course 5 Lab'!$T$14 -> 0 | T13: ='Course 5 Lab'!$U$14 -> 0% | U13: =(0.5*O13)+(0.25*R13)+(0.25*T13) -> 25.0% | V13: =IF(U13>0.95,"A",IF(U13>0.93,"A-",IF(U13>0.9,"B+",IF(U13>0.88,"B",IF(U13>0.85,"B-",IF(U13>0.82,"C+",IF(U13>0.79,"C",IF(U13>0.76,"C-",IF(U13>0.74,"D+",IF(U13>0.72,"D",IF(U13>0.7,"D-",IF(U13<0.7,"F")))))))))))) -> F
A14: ='Misc data'!$A$10 -> 00000009 | B14: ='Misc data'!$B$10 -> Student | C14: ='Misc data'!$C$10 -> Nine | D14: 0 | E14: 0 | F14: 0 | G14: 0 | H14: 0 | I14: 0 | J14: 0 | K14: 0 | L14: 0 | M14: 0 | N14: =SUM(D14:M14) -> 0 | O14: =(N14/C3) -> 0% | P14: =Attendance!$E$11 -> 100% | Q14: =Professionalism!$E$10 -> 72.0 | R14: =Professionalism!$F$10 -> 100% | S14: ='Course 5 Lab'!$T$15 -> 0 | T14: ='Course 5 Lab'!$U$15 -> 0% | U14: =(0.5*O14)+(0.25*R14)+(0.25*T14) -> 25.0% | V14: =IF(U14>0.95,"A",IF(U14>0.93,"A-",IF(U14>0.9,"B+",IF(U14>0.88,"B",IF(U14>0.85,"B-",IF(U14>0.82,"C+",IF(U14>0.79,"C",IF(U14>0.76,"C-",IF(U14>0.74,"D+",IF(U14>0.72,"D",IF(U14>0.7,"D-",IF(U14<0.7,"F")))))))))))) -> F
A15: ='Misc data'!$A$11 -> 00000010 | B15: ='Misc data'!$B$11 -> Student | C15: ='Misc data'!$C$11 -> Ten | D15: 0 | E15: 0 | F15: 0 | G15: 0 | H15: 0 | I15: 0 | J15: 0 | K15: 0 | L15: 0 | M15: 0 | N15: =SUM(D15:M15) -> 0 | O15: =(N15/C3) -> 0% | P15: =Attendance!$E$12 -> 100% | Q15: =Professionalism!$E$11 -> 72.0 | R15: =Professionalism!$F$11 -> 100% | S15: ='Course 5 Lab'!$T$16 -> 0 | T15: ='Course 5 Lab'!$U$16 -> 0% | U15: =(0.5*O15)+(0.25*R15)+(0.25*T15) -> 25.0% | V15: =IF(U15>0.95,"A",IF(U15>0.93,"A-",IF(U15>0.9,"B+",IF(U15>0.88,"B",IF(U15>0.85,"B-",IF(U15>0.82,"C+",IF(U15>0.79,"C",IF(U15>0.76,"C-",IF(U15>0.74,"D+",IF(U15>0.72,"D",IF(U15>0.7,"D-",IF(U15<0.7,"F")))))))))))) -> F
A16: ='Misc data'!$A$12 -> 00000011 | B16: ='Misc data'!$B$12 -> Student | C16: ='Misc data'!$C$12 -> Eleven | D16: 0 | E16: 0 | F16: 0 | G16: 0 | H16: 0 | I16: 0 | J16: 0 | K16: 0 | L16: 0 | M16: 0 | N16: =SUM(D16:M16) -> 0 | O16: =(N16/C3) -> 0% | P16: =Attendance!$E$13 -> 100% | Q16: =Professionalism!$E$12 -> 72.0 | R16: =Professionalism!$F$12 -> 100% | S16: ='Course 5 Lab'!$T$17 -> 0 | T16: ='Course 5 Lab'!$U$17 -> 0% | U16: =(0.5*O16)+(0.25*R16)+(0.25*T16) -> 25.0% | V16: =IF(U16>0.95,"A",IF(U16>0.93,"A-",IF(U16>0.9,"B+",IF(U16>0.88,"B",IF(U16>0.85,"B-",IF(U16>0.82,"C+",IF(U16>0.79,"C",IF(U16>0.76,"C-",IF(U16>0.74,"D+",IF(U16>0.72,"D",IF(U16>0.7,"D-",IF(U16<0.7,"F")))))))))))) -> F
A17: ='Misc data'!$A$13 -> 00000012 | B17: ='Misc data'!$B$13 -> Student | C17: ='Misc data'!$C$13 -> Twelve | D17: 0 | E17: 0 | F17: 0 | G17: 0 | H17: 0 | I17: 0 | J17: 0 | K17: 0 | L17: 0 | M17: 0 | N17: =SUM(D17:M17) -> 0 | O17: =(N17/C3) -> 0% | P17: =Attendance!$E$14 -> 93% | Q17: =Professionalism!$E$13 -> 71.6 | R17: =Professionalism!$F$13 -> 99% | S17: ='Course 5 Lab'!$T$18 -> 0 | T17: ='Course 5 Lab'!$U$18 -> 0% | U17: =(0.5*O17)+(0.25*R17)+(0.25*T17) -> 24.9% | V17: =IF(U17>0.95,"A",IF(U17>0.93,"A-",IF(U17>0.9,"B+",IF(U17>0.88,"B",IF(U17>0.85,"B-",IF(U17>0.82,"C+",IF(U17>0.79,"C",IF(U17>0.76,"C-",IF(U17>0.74,"D+",IF(U17>0.72,"D",IF(U17>0.7,"D-",IF(U17<0.7,"F")))))))))))) -> F
A18: ='Misc data'!$A$14 -> 00000013 | B18: ='Misc data'!$B$14 -> Student | C18: ='Misc data'!$C$14 -> Thirteen | D18: 0 | E18: 0 | F18: 0 | G18: 0 | H18: 0 | I18: 0 | J18: 0 | K18: 0 | L18: 0 | M18: 0 | N18: =SUM(D18:M18) -> 0 | O18: =(N18/C3) -> 0% | P18: =Attendance!$E$15 -> 100% | Q18: =Professionalism!$E$14 -> 72.0 | R18: =Professionalism!$F$14 -> 100% | S18: ='Course 5 Lab'!$T$19 -> 0 | T18: ='Course 5 Lab'!$U$19 -> 0% | U18: =(0.5*O18)+(0.25*R18)+(0.25*T18) -> 25.0% | V18: =IF(U18>0.95,"A",IF(U18>0.93,"A-",IF(U18>0.9,"B+",IF(U18>0.88,"B",IF(U18>0.85,"B-",IF(U18>0.82,"C+",IF(U18>0.79,"C",IF(U18>0.76,"C-",IF(U18>0.74,"D+",IF(U18>0.72,"D",IF(U18>0.7,"D-",IF(U18<0.7,"F")))))))))))) -> F
A19: ='Misc data'!$A$15 -> 00000014 | B19: ='Misc data'!$B$15 -> Student | C19: ='Misc data'!$C$15 -> Fourteen | D19: 0 | E19: 0 | F19: 0 | G19: 0 | H19: 0 | I19: 0 | J19: 0 | K19: 0 | L19: 0 | M19: 0 | N19: =SUM(D19:M19) -> 0 | O19: =(N19/C3) -> 0% | P19: =Attendance!$E$16 -> 100% | Q19: =Professionalism!$E$15 -> 72.0 | R19: =Professionalism!$F$15 -> 100% | S19: ='Course 5 Lab'!$T$20 -> 0 | T19: ='Course 5 Lab'!$U$20 -> 0% | U19: =(0.5*O19)+(0.25*R19)+(0.25*T19) -> 25.0% | V19: =IF(U19>0.95,"A",IF(U19>0.93,"A-",IF(U19>0.9,"B+",IF(U19>0.88,"B",IF(U19>0.85,"B-",IF(U19>0.82,"C+",IF(U19>0.79,"C",IF(U19>0.76,"C-",IF(U19>0.74,"D+",IF(U19>0.72,"D",IF(U19>0.7,"D-",IF(U19<0.7,"F")))))))))))) -> F
A20: ='Misc data'!$A$16 -> 00000015 | B20: ='Misc data'!$B$16 -> Student | C20: ='Misc data'!$C$16 -> Fifteen | D20: 0 | E20: 0 | F20: 0 | G20: 0 | H20: 0 | I20: 0 | J20: 0 | K20: 0 | L20: 0 | M20: 0 | N20: =SUM(D20:M20) -> 0 | O20: =(N20/C3) -> 0% | P20: =Attendance!$E$17 -> 100% | Q20: =Professionalism!$E$16 -> 72.0 | R20: =Professionalism!$F$16 -> 100% | S20: ='Course 5 Lab'!$T$21 -> 0 | T20: ='Course 5 Lab'!$U$21 -> 0% | U20: =(0.5*O20)+(0.25*R20)+(0.25*T20) -> 25.0% | V20: =IF(U20>0.95,"A",IF(U20>0.93,"A-",IF(U20>0.9,"B+",IF(U20>0.88,"B",IF(U20>0.85,"B-",IF(U20>0.82,"C+",IF(U20>0.79,"C",IF(U20>0.76,"C-",IF(U20>0.74,"D+",IF(U20>0.72,"D",IF(U20>0.7,"D-",IF(U20<0.7,"F")))))))))))) -> F
A21: ='Misc data'!$A$17 -> 00000016 | B21: ='Misc data'!$B$17 -> Student | C21: ='Misc data'!$C$17 -> Sixteen | D21: 0 | E21: 0 | F21: 0 | G21: 0 | H21: 0 | I21: 0 | J21: 0 | K21: 0 | L21: 0 | M21: 0 | N21: =SUM(D21:M21) -> 0 | O21: =(N21/C3) -> 0% | P21: =Attendance!$E$18 -> 100% | Q21: =Professionalism!$E$17 -> 72.0 | R21: =Professionalism!$F$17 -> 100% | S21: ='Course 5 Lab'!$T$22 -> 0 | T21: ='Course 5 Lab'!$U$22 -> 0% | U21: =(0.5*O21)+(0.25*R21)+(0.25*T21) -> 25.0% | V21: =IF(U21>0.95,"A",IF(U21>0.93,"A-",IF(U21>0.9,"B+",IF(U21>0.88,"B",IF(U21>0.85,"B-",IF(U21>0.82,"C+",IF(U21>0.79,"C",IF(U21>0.76,"C-",IF(U21>0.74,"D+",IF(U21>0.72,"D",IF(U21>0.7,"D-",IF(U21<0.7,"F")))))))))))) -> F
A22: ='Misc data'!$A$18 -> 00000017 | B22: ='Misc data'!$B$18 -> Student | C22: ='Misc data'!$C$18 -> Seventeen | D22: 0 | E22: 0 | F22: 0 | G22: 0 | H22: 0 | I22: 0 | J22: 0 | K22: 0 | L22: 0 | M22: 0 | N22: =SUM(D22:M22) -> 0 | O22: =(N22/C3) -> 0% | P22: =Attendance!$E$19 -> 100% | Q22: =Professionalism!$E$18 -> 72.0 | R22: =Professionalism!$F$18 -> 100% | S22: ='Course 5 Lab'!$T$23 -> 0 | T22: ='Course 5 Lab'!$U$23 -> 0% | U22: =(0.5*O22)+(0.25*R22)+(0.25*T22) -> 25.0% | V22: =IF(U22>0.95,"A",IF(U22>0.93,"A-",IF(U22>0.9,"B+",IF(U22>0.88,"B",IF(U22>0.85,"B-",IF(U22>0.82,"C+",IF(U22>0.79,"C",IF(U22>0.76,"C-",IF(U22>0.74,"D+",IF(U22>0.72,"D",IF(U22>0.7,"D-",IF(U22<0.7,"F")))))))))))) -> F
A23: ='Misc data'!$A$19 -> 00000018 | B23: ='Misc data'!$B$19 -> Student | C23: ='Misc data'!$C$19 -> Eighteen | D23: 0 | E23: 0 | F23: 0 | G23: 0 | H23: 0 | I23: 0 | J23: 0 | K23: 0 | L23: 0 | M23: 0 | N23: =SUM(D23:M23) -> 0 | O23: =(N23/C3) -> 0% | P23: =Attendance!$E$20 -> 100% | Q23: =Professionalism!$E$19 -> 72.0 | R23: =Professionalism!$F$19 -> 100% | S23: ='Course 5 Lab'!$T$24 -> 0 | T23: ='Course 5 Lab'!$U$24 -> 0% | U23: =(0.5*O23)+(0.25*R23)+(0.25*T23) -> 25.0% | V23: =IF(U23>0.95,"A",IF(U23>0.93,"A-",IF(U23>0.9,"B+",IF(U23>0.88,"B",IF(U23>0.85,"B-",IF(U23>0.82,"C+",IF(U23>0.79,"C",IF(U23>0.76,"C-",IF(U23>0.74,"D+",IF(U23>0.72,"D",IF(U23>0.7,"D-",IF(U23<0.7,"F")))))))))))) -> F
A24: ='Misc data'!$A$20 -> 00000019 | B24: ='Misc data'!$B$20 -> Student | C24: ='Misc data'!$C$20 -> Nineteen | D24: 0 | E24: 0 | F24: 0 | G24: 0 | H24: 0 | I24: 0 | J24: 0 | K24: 0 | L24: 0 | M24: 0 | N24: =SUM(D24:M24) -> 0 | O24: =(N24/C3) -> 0% | P24: =Attendance!$E$21 -> 100% | Q24: =Professionalism!$E$20 -> 72.0 | R24: =Professionalism!$F$20 -> 100% | S24: ='Course 5 Lab'!$T$25 -> 0 | T24: ='Course 5 Lab'!$U$25 -> 0% | U24: =(0.5*O24)+(0.25*R24)+(0.25*T24) -> 25.0% | V24: =IF(U24>0.95,"A",IF(U24>0.93,"A-",IF(U24>0.9,"B+",IF(U24>0.88,"B",IF(U24>0.85,"B-",IF(U24>0.82,"C+",IF(U24>0.79,"C",IF(U24>0.76,"C-",IF(U24>0.74,"D+",IF(U24>0.72,"D",IF(U24>0.7,"D-",IF(U24<0.7,"F")))))))))))) -> F
A25: ='Misc data'!$A$21 -> 00000020 | B25: ='Misc data'!$B$21 -> Student | C25: ='Misc data'!$C$21 -> Twenty | D25: 0 | E25: 0 | F25: 0 | G25: 0 | H25: 0 | I25: 0 | J25: 0 | K25: 0 | L25: 0 | M25: 0 | N25: =SUM(D25:M25) -> 0 | O25: =(N25/C3) -> 0% | P25: =Attendance!$E$22 -> 100% | Q25: =Professionalism!$E$21 -> 72.0 | R25: =Professionalism!$F$21 -> 100% | S25: ='Course 5 Lab'!$T$26 -> 0 | T25: ='Course 5 Lab'!$U$26 -> 0% | U25: =(0.5*O25)+(0.25*R25)+(0.25*T25) -> 25.0% | V25: =IF(U25>0.95,"A",IF(U25>0.93,"A-",IF(U25>0.9,"B+",IF(U25>0.88,"B",IF(U25>0.85,"B-",IF(U25>0.82,"C+",IF(U25>0.79,"C",IF(U25>0.76,"C-",IF(U25>0.74,"D+",IF(U25>0.72,"D",IF(U25>0.7,"D-",IF(U25<0.7,"F")))))))))))) -> F
A26: ='Misc data'!$A$22 -> 00000021 | B26: ='Misc data'!$B$22 -> Student | C26: ='Misc data'!$C$22 -> Twenty one | D26: 0 | E26: 0 | F26: 0 | G26: 0 | H26: 0 | I26: 0 | J26: 0 | K26: 0 | L26: 0 | M26: 0 | N26: =SUM(D26:M26) -> 0 | O26: =(N26/C3) -> 0% | P26: =Attendance!$E$23 -> 100% | Q26: =Professionalism!$E$22 -> 72.0 | R26: =Professionalism!$F$22 -> 100% | S26: ='Course 5 Lab'!$T$27 -> 0 | T26: ='Course 5 Lab'!$U$27 -> 0% | U26: =(0.5*O26)+(0.25*R26)+(0.25*T26) -> 25.0% | V26: =IF(U26>0.95,"A",IF(U26>0.93,"A-",IF(U26>0.9,"B+",IF(U26>0.88,"B",IF(U26>0.85,"B-",IF(U26>0.82,"C+",IF(U26>0.79,"C",IF(U26>0.76,"C-",IF(U26>0.74,"D+",IF(U26>0.72,"D",IF(U26>0.7,"D-",IF(U26<0.7,"F")))))))))))) -> F
A27: ='Misc data'!$A$23 -> 00000022 | B27: ='Misc data'!$B$23 -> Student | C27: ='Misc data'!$C$23 -> Twenty two | D27: 0 | E27: 0 | F27: 0 | G27: 0 | H27: 0 | I27: 0 | J27: 0 | K27: 0 | L27: 0 | M27: 0 | N27: =SUM(D27:M27) -> 0 | O27: =(N27/C3) -> 0% | P27: =Attendance!$E$24 -> 100% | Q27: =Professionalism!$E$23 -> 72.0 | R27: =Professionalism!$F$23 -> 100% | S27: ='Course 5 Lab'!$T$28 -> 0 | T27: ='Course 5 Lab'!$U$28 -> 0% | U27: =(0.5*O27)+(0.25*R27)+(0.25*T27) -> 25.0% | V27: =IF(U27>0.95,"A",IF(U27>0.93,"A-",IF(U27>0.9,"B+",IF(U27>0.88,"B",IF(U27>0.85,"B-",IF(U27>0.82,"C+",IF(U27>0.79,"C",IF(U27>0.76,"C-",IF(U27>0.74,"D+",IF(U27>0.72,"D",IF(U27>0.7,"D-",IF(U27<0.7,"F")))))))))))) -> F
A28: ='Misc data'!$A$24 -> 00000023 | B28: ='Misc data'!$B$24 -> Student | C28: ='Misc data'!$C$24 -> Twenty three | D28: 0 | E28: 0 | F28: 0 | G28: 0 | H28: 0 | I28: 0 | J28: 0 | K28: 0 | L28: 0 | M28: 0 | N28: =SUM(D28:M28) -> 0 | O28: =(N28/C3) -> 0% | P28: =Attendance!$E$25 -> 100% | Q28: =Professionalism!$E$24 -> 72.0 | R28: =Professionalism!$F$24 -> 100% | S28: ='Course 5 Lab'!$T$29 -> 0 | T28: ='Course 5 Lab'!$U$29 -> 0% | U28: =(0.5*O28)+(0.25*R28)+(0.25*T28) -> 25.0% | V28: =IF(U28>0.95,"A",IF(U28>0.93,"A-",IF(U28>0.9,"B+",IF(U28>0.88,"B",IF(U28>0.85,"B-",IF(U28>0.82,"C+",IF(U28>0.79,"C",IF(U28>0.76,"C-",IF(U28>0.74,"D+",IF(U28>0.72,"D",IF(U28>0.7,"D-",IF(U28<0.7,"F")))))))))))) -> F
A29: ='Misc data'!$A$25 -> 00000024 | B29: ='Misc data'!$B$25 -> Student | C29: ='Misc data'!$C$25 -> Twenty four | D29: 0 | E29: 0 | F29: 0 | G29: 0 | H29: 0 | I29: 0 | J29: 0 | K29: 0 | L29: 0 | M29: 0 | N29: =SUM(D29:M29) -> 0 | O29: =(N29/C3) -> 0% | P29: =Attendance!$E$24 -> 100% | Q29: =Professionalism!$E$23 -> 72.0 | R29: =Professionalism!$F$23 -> 100% | S29: ='Course 5 Lab'!$T$28 -> 0 | T29: ='Course 5 Lab'!$U$28 -> 0% | U29: =(0.5*O29)+(0.25*R29)+(0.25*T29) -> 25.0% | V29: =IF(U29>0.95,"A",IF(U29>0.93,"A-",IF(U29>0.9,"B+",IF(U29>0.88,"B",IF(U29>0.85,"B-",IF(U29>0.82,"C+",IF(U29>0.79,"C",IF(U29>0.76,"C-",IF(U29>0.74,"D+",IF(U29>0.72,"D",IF(U29>0.7,"D-",IF(U29<0.7,"F")))))))))))) -> F
A30: ='Misc data'!$A$26 -> 00000025 | B30: ='Misc data'!$B$26 -> Student | C30: ='Misc data'!$C$26 -> Twenty five | D30: 0 | E30: 0 | F30: 0 | G30: 0 | H30: 0 | I30: 0 | J30: 0 | K30: 0 | L30: 0 | M30: 0 | N30: =SUM(D30:M30) -> 0 | O30: =(N30/C3) -> 0% | P30: =Attendance!$E$25 -> 100% | Q30: =Professionalism!$E$24 -> 72.0 | R30: =Professionalism!$F$24 -> 100% | S30: ='Course 5 Lab'!$T$29 -> 0 | T30: ='Course 5 Lab'!$U$29 -> 0% | U30: =(0.5*O30)+(0.25*R30)+(0.25*T30) -> 25.0% | V30: =IF(U30>0.95,"A",IF(U30>0.93,"A-",IF(U30>0.9,"B+",IF(U30>0.88,"B",IF(U30>0.85,"B-",IF(U30>0.82,"C+",IF(U30>0.79,"C",IF(U30>0.76,"C-",IF(U30>0.74,"D+",IF(U30>0.72,"D",IF(U30>0.7,"D-",IF(U30<0.7,"F")))))))))))) -> F

Sheet Course 5 Lab
A1: ='Misc data'!$H$11 -> Course 5 Brake Systems. Lab
A2: Max Shop Points: | C2: =SUM(D6:Q6) -> 970 | D2: Drum | E2: Drum | F2: Disc | G2: On Car | H2: Off Car | I2: Wheel | J2: Hydr. | K2: Vacuum | L2: Warning | M2: Brake | N2: Brake | O2: Dodge | P2: Ford | Q2: GM | R2: Cus | S2: Brake
A3: Max shop points available depend on how much customer work is done. | D3: Brake | E3: Brake | F3: Brake | G3: Disc | H3: Disc | I3: Bearing | J3: Line | K3: Booster | L3: Light | M3: System | N3: Valves | O3: Anti | P3: Anti | Q3: Anti | R3: tomer | S3: Comp
D4: Job | E4: Mach. | F4: Job | G4: Mach. | H4: Mach. | I4: Service | J4: Repair | K4: Service | L4: Service | M4: Bleed | N4: Check | O4: Lock | P4: Lock | Q4: Lock | R4: Work | S4: etency
D5: 2 | E5: 2 | F5: 2 | G5: 2 | H5: 2 | I5: 1 | J5: 1 | K5: 2 | L5: 2 | M5: 4 | N5: 1 | O5: 1 | P5: 1 | Q5: 1 | S5: Required | T5: Lab
A6: ID | B6: First: | C6: Last: | D6: 150 | E6: 40 | F6: 150 | G6: 80 | H6: 40 | I6: 50 | J6: 30 | K6: 30 | L6: 40 | M6: 80 | N6: 40 | O6: 80 | P6: 80 | Q6: 80 | R6: 300 | S6: * | T6: Points | U6: %
A7: ='Misc data'!$A$2 -> 00000001 | B7: ='Misc data'!$B$2 -> Student | C7: ='Misc data'!$C$2 -> One | D7: 0 | E7: 0 | F7: 0 | G7: 0 | H7: 0 | I7: 0 | J7: 0 | K7: 0 | L7: 0 | M7: 0 | N7: 0 | O7: 0 | P7: 0 | Q7: 0 | R7: 0 | S7: 1 | T7: =SUM(D7:R7)*S7 -> 0 | U7: =T7/C2 -> 0%
A8: ='Misc data'!$A$3 -> 00000002 | B8: ='Misc data'!$B$3 -> Student | C8: ='Misc data'!$C$3 -> Two | D8: 0 | E8: 0 | F8: 0 | G8: 0 | H8: 0 | I8: 0 | J8: 0 | K8: 0 | L8: 0 | M8: 0 | N8: 0 | O8: 0 | P8: 0 | Q8: 0 | R8: 0 | S8: 1 | T8: =SUM(D8:R8)*S8 -> 0 | U8: =T8/C2 -> 0%
A9: ='Misc data'!$A$4 -> 00000003 | B9: ='Misc data'!$B$4 -> Student | C9: ='Misc data'!$C$4 -> Three | D9: 0 | E9: 0 | F9: 0 | G9: 0 | H9: 0 | I9: 0 | J9: 0 | K9: 0 | L9: 0 | M9: 0 | N9: 0 | O9: 0 | P9: 0 | Q9: 0 | R9: 0 | S9: 1 | T9: =SUM(D9:R9)*S9 -> 0 | U9: =T9/C2 -> 0%
A10: ='Misc data'!$A$5 -> 00000004 | B10: ='Misc data'!$B$5 -> Student | C10: ='Misc data'!$C$5 -> Four | D10: 0 | E10: 0 | F10: 0 | G10: 0 | H10: 0 | I10: 0 | J10: 0 | K10: 0 | L10: 0 | M10: 0 | N10: 0 | O10: 0 | P10: 0 | Q10: 0 | R10: 0 | S10: 1 | T10: =SUM(D10:R10)*S10 -> 0 | U10: =T10/C2 -> 0%
A11: ='Misc data'!$A$6 -> 00000005 | B11: ='Misc data'!$B$6 -> Student | C11: ='Misc data'!$C$6 -> Five | D11: 0 | E11: 0 | F11: 0 | G11: 0 | H11: 0 | I11: 0 | J11: 0 | K11: 0 | L11: 0 | M11: 0 | N11: 0 | O11: 0 | P11: 0 | Q11: 0 | R11: 0 | S11: 1 | T11: =SUM(D11:R11)*S11 -> 0 | U11: =T11/C2 -> 0%
A12: ='Misc data'!$A$7 -> 00000006 | B12: ='Misc data'!$B$7 -> Student | C12: ='Misc data'!$C$7 -> Six | D12: 0 | E12: 0 | F12: 0 | G12: 0 | H12: 0 | I12: 0 | J12: 0 | K12: 0 | L12: 0 | M12: 0 | N12: 0 | O12: 0 | P12: 0 | Q12: 0 | R12: 0 | S12: 1 | T12: =SUM(D12:R12)*S12 -> 0 | U12: =T12/C2 -> 0%
A13: ='Misc data'!$A$8 -> 00000007 | B13: ='Misc data'!$B$8 -> Student | C13: ='Misc data'!$C$8 -> Seven | D13: 0 | E13: 0 | F13: 0 | G13: 0 | H13: 0 | I13: 0 | J13: 0 | K13: 0 | L13: 0 | M13: 0 | N13: 0 | O13: 0 | P13: 0 | Q13: 0 | R13: 0 | S13: 1 | T13: =SUM(D13:R13)*S13 -> 0 | U13: =T13/C2 -> 0%
A14: ='Misc data'!$A$9 -> 00000008 | B14: ='Misc data'!$B$9 -> Student | C14: ='Misc data'!$C$9 -> Eight | D14: 0 | E14: 0 | F14: 0 | G14: 0 | H14: 0 | I14: 0 | J14: 0 | K14: 0 | L14: 0 | M14: 0 | N14: 0 | O14: 0 | P14: 0 | Q14: 0 | R14: 0 | S14: 1 | T14: =SUM(D14:R14)*S14 -> 0 | U14: =T14/C2 -> 0%
A15: ='Misc data'!$A$10 -> 00000009 | B15: ='Misc data'!$B$10 -> Student | C15: ='Misc data'!$C$10 -> Nine | D15: 0 | E15: 0 | F15: 0 | G15: 0 | H15: 0 | I15: 0 | J15: 0 | K15: 0 | L15: 0 | M15: 0 | N15: 0 | O15: 0 | P15: 0 | Q15: 0 | R15: 0 | S15: 1 | T15: =SUM(D15:R15)*S15 -> 0 | U15: =T15/C2 -> 0%
A16: ='Misc data'!$A$11 -> 00000010 | B16: ='Misc data'!$B$11 -> Student | C16: ='Misc data'!$C$11 -> Ten | D16: 0 | E16: 0 | F16: 0 | G16: 0 | H16: 0 | I16: 0 | J16: 0 | K16: 0 | L16: 0 | M16: 0 | N16: 0 | O16: 0 | P16: 0 | Q16: 0 | R16: 0 | S16: 1 | T16: =SUM(D16:R16)*S16 -> 0 | U16: =T16/C2 -> 0%
A17: ='Misc data'!$A$12 -> 00000011 | B17: ='Misc data'!$B$12 -> Student | C17: ='Misc data'!$C$12 -> Eleven | D17: 0 | E17: 0 | F17: 0 | G17: 0 | H17: 0 | I17: 0 | J17: 0 | K17: 0 | L17: 0 | M17: 0 | N17: 0 | O17: 0 | P17: 0 | Q17: 0 | R17: 0 | S17: 1 | T17: =SUM(D17:R17)*S17 -> 0 | U17: =T17/C2 -> 0%
A18: ='Misc data'!$A$13 -> 00000012 | B18: ='Misc data'!$B$13 -> Student | C18: ='Misc data'!$C$13 -> Twelve | D18: 0 | E18: 0 | F18: 0 | G18: 0 | H18: 0 | I18: 0 | J18: 0 | K18: 0 | L18: 0 | M18: 0 | N18: 0 | O18: 0 | P18: 0 | Q18: 0 | R18: 0 | S18: 1 | T18: =SUM(D18:R18)*S18 -> 0 | U18: =T18/C2 -> 0%
A19: ='Misc data'!$A$14 -> 00000013 | B19: ='Misc data'!$B$14 -> Student | C19: ='Misc data'!$C$14 -> Thirteen | D19: 0 | E19: 0 | F19: 0 | G19: 0 | H19: 0 | I19: 0 | J19: 0 | K19: 0 | L19: 0 | M19: 0 | N19: 0 | O19: 0 | P19: 0 | Q19: 0 | R19: 0 | S19: 1 | T19: =SUM(D19:R19)*S19 -> 0 | U19: =T19/C2 -> 0%
A20: ='Misc data'!$A$15 -> 00000014 | B20: ='Misc data'!$B$15 -> Student | C20: ='Misc data'!$C$15 -> Fourteen | D20: 0 | E20: 0 | F20: 0 | G20: 0 | H20: 0 | I20: 0 | J20: 0 | K20: 0 | L20: 0 | M20: 0 | N20: 0 | O20: 0 | P20: 0 | Q20: 0 | R20: 0 | S20: 1 | T20: =SUM(D20:R20)*S20 -> 0 | U20: =T20/C2 -> 0%
A21: ='Misc data'!$A$16 -> 00000015 | B21: ='Misc data'!$B$16 -> Student | C21: ='Misc data'!$C$16 -> Fifteen | D21: 0 | E21: 0 | F21: 0 | G21: 0 | H21: 0 | I21: 0 | J21: 0 | K21: 0 | L21: 0 | M21: 0 | N21: 0 | O21: 0 | P21: 0 | Q21: 0 | R21: 0 | S21: 1 | T21: =SUM(D21:R21)*S21 -> 0 | U21: =T21/C2 -> 0%
A22: ='Misc data'!$A$17 -> 00000016 | B22: ='Misc data'!$B$17 -> Student | C22: ='Misc data'!$C$17 -> Sixteen | D22: 0 | E22: 0 | F22: 0 | G22: 0 | H22: 0 | I22: 0 | J22: 0 | K22: 0 | L22: 0 | M22: 0 | N22: 0 | O22: 0 | P22: 0 | Q22: 0 | R22: 0 | S22: 1 | T22: =SUM(D22:R22)*S22 -> 0 | U22: =T22/C2 -> 0%
A23: ='Misc data'!$A$18 -> 00000017 | B23: ='Misc data'!$B$18 -> Student | C23: ='Misc data'!$C$18 -> Seventeen | D23: 0 | E23: 0 | F23: 0 | G23: 0 | H23: 0 | I23: 0 | J23: 0 | K23: 0 | L23: 0 | M23: 0 | N23: 0 | O23: 0 | P23: 0 | Q23: 0 | R23: 0 | S23: 1 | T23: =SUM(D23:R23)*S23 -> 0 | U23: =T23/C2 -> 0%
A24: ='Misc data'!$A$19 -> 00000018 | B24: ='Misc data'!$B$19 -> Student | C24: ='Misc data'!$C$19 -> Eighteen | D24: 0 | E24: 0 | F24: 0 | G24: 0 | H24: 0 | I24: 0 | J24: 0 | K24: 0 | L24: 0 | M24: 0 | N24: 0 | O24: 0 | P24: 0 | Q24: 0 | R24: 0 | S24: 1 | T24: =SUM(D24:R24)*S24 -> 0 | U24: =T24/C2 -> 0%
A25: ='Misc data'!$A$20 -> 00000019 | B25: ='Misc data'!$B$20 -> Student | C25: ='Misc data'!$C$20 -> Nineteen | D25: 0 | E25: 0 | F25: 0 | G25: 0 | H25: 0 | I25: 0 | J25: 0 | K25: 0 | L25: 0 | M25: 0 | N25: 0 | O25: 0 | P25: 0 | Q25: 0 | R25: 0 | S25: 1 | T25: =SUM(D25:R25)*S25 -> 0 | U25: =T25/C2 -> 0%
A26: ='Misc data'!$A$21 -> 00000020 | B26: ='Misc data'!$B$21 -> Student | C26: ='Misc data'!$C$21 -> Twenty | D26: 0 | E26: 0 | F26: 0 | G26: 0 | H26: 0 | I26: 0 | J26: 0 | K26: 0 | L26: 0 | M26: 0 | N26: 0 | O26: 0 | P26: 0 | Q26: 0 | R26: 0 | S26: 1 | T26: =SUM(D26:R26)*S26 -> 0 | U26: =T26/C2 -> 0%
A27: ='Misc data'!$A$22 -> 00000021 | B27: ='Misc data'!$B$22 -> Student | C27: ='Misc data'!$C$22 -> Twenty one | D27: 0 | E27: 0 | F27: 0 | G27: 0 | H27: 0 | I27: 0 | J27: 0 | K27: 0 | L27: 0 | M27: 0 | N27: 0 | O27: 0 | P27: 0 | Q27: 0 | R27: 0 | S27: 1 | T27: =SUM(D27:R27)*S27 -> 0 | U27: =T27/C2 -> 0%
A28: ='Misc data'!$A$23 -> 00000022 | B28: ='Misc data'!$B$23 -> Student | C28: ='Misc data'!$C$23 -> Twenty two | D28: 0 | E28: 0 | F28: 0 | G28: 0 | H28: 0 | I28: 0 | J28: 0 | K28: 0 | L28: 0 | M28: 0 | N28: 0 | O28: 0 | P28: 0 | Q28: 0 | R28: 0 | S28: 1 | T28: =SUM(D28:R28)*S28 -> 0 | U28: =T28/C2 -> 0%
A29: ='Misc data'!$A$24 -> 00000023 | B29: ='Misc data'!$B$24 -> Student | C29: ='Misc data'!$C$24 -> Twenty three | D29: 0 | E29: 0 | F29: 0 | G29: 0 | H29: 0 | I29: 0 | J29: 0 | K29: 0 | L29: 0 | M29: 0 | N29: 0 | O29: 0 | P29: 0 | Q29: 0 | R29: 0 | S29: 1 | T29: =SUM(D29:R29)*S29 -> 0 | U29: =T29/C2 -> 0%
A30: ='Misc data'!$A$25 -> 00000024 | B30: ='Misc data'!$B$25 -> Student | C30: ='Misc data'!$C$25 -> Twenty four | D30: 0 | E30: 0 | F30: 0 | G30: 0 | H30: 0 | I30: 0 | J30: 0 | K30: 0 | L30: 0 | M30: 0 | N30: 0 | O30: 0 | P30: 0 | Q30: 0 | R30: 0 | S30: 1 | T30: =SUM(D30:R30)*S30 -> 0 | U30: =T30/C2 -> 0%
A31: ='Misc data'!$A$26 -> 00000025 | B31: ='Misc data'!$B$26 -> Student | C31: ='Misc data'!$C$26 -> Twenty five | D31: 0 | E31: 0 | F31: 0 | G31: 0 | H31: 0 | I31: 0 | J31: 0 | K31: 0 | L31: 0 | M31: 0 | N31: 0 | O31: 0 | P31: 0 | Q31: 0 | R31: 0 | S31: 1 | T31: =SUM(D31:R31)*S31 -> 0 | U31: =T31/C2 -> 0%

Sheet Student 1
A1: ='Course 1 Class'!$A$1 -> Course 1 Engine Diagnosis. Class | H1: ='Course 1 Class'!$H$1 -> 25
A2: ='Course 1 Class'!$A$2 -> Date assignment is due | C2: ='Course 1 Class'!$C$2 ->  | D2: ='Course 1 Class'!$D$2 -> TBD | E2: ='Course 1 Class'!$E$2 -> TBD | F2: ='Course 1 Class'!$F$2 -> TBD | G2: ='Course 1 Class'!$G$2 -> TBD | H2: ='Course 1 Class'!$H$2 -> TBD | I2: ='Course 1 Class'!$I$2 -> TBD
A3: ='Course 1 Class'!$A$3 -> Class Room Points: | C3: ='Course 1 Class'!$C$3 -> 160 | D3: ='Course 1 Class'!$D$3 -> 20 | E3: ='Course 1 Class'!$E$3 -> 20 | F3: ='Course 1 Class'!$F$3 -> 20 | G3: ='Course 1 Class'!$G$3 -> 25 | H3: ='Course 1 Class'!$H$3 ->  | I3: ='Course 1 Class'!$I$3 -> 75 | J3: ='Course 1 Class'!$J$3 -> Evaluation
A4: ='Course 1 Class'!$A$4 -> Red is late turn-in | C4: ='Course 1 Class'!$C$4 -> Blue is absent | D4: ='Course 1 Class'!$D$4 -> CH 13 | E4: ='Course 1 Class'!$E$4 -> Lube | F4: ='Course 1 Class'!$F$4 -> Lube | G4: ='Course 1 Class'!$G$4 -> Condition | H4: ='Course 1 Class'!$H$4 -> Extra | I4: ='Course 1 Class'!$I$4 -> Final | J4: ='Course 1 Class'!$J$4 -> Classroom | L4: ='Course 1 Class'!$L$4 -> Professionalism | O4: ='Course 1 Class'!$O$4 -> Lab | Q4: ='Course 1 Class'!$Q$4 -> Total | R4: ='Course 1 Class'!$R$4 -> Letter
A5: ='Course 1 Class'!$A$5 -> I D | B5: ='Course 1 Class'!$B$5 -> First: | C5: ='Course 1 Class'!$C$5 -> Last: | D5: ='Course 1 Class'!$D$5 -> Test | E5: ='Course 1 Class'!$E$5 -> HW | F5: ='Course 1 Class'!$F$5 -> Test | G5: ='Course 1 Class'!$G$5 -> Class | H5: ='Course 1 Class'!$H$5 -> Credit | I5: ='Course 1 Class'!$I$5 -> Test | J5: ='Course 1 Class'!$J$5 -> Points | K5: ='Course 1 Class'!$K$5 -> % | L5: ='Course 1 Class'!$L$5 -> Attendance | M5: ='Course 1 Class'!$M$5 -> Points | N5: ='Course 1 Class'!$N$5 -> % | O5: ='Course 1 Class'!$O$5 -> Points | P5: ='Course 1 Class'!$P$5 -> % | Q5: ='Course 1 Class'!$Q$5 -> % | R5: ='Course 1 Class'!$R$5 -> Grade
A6: ='Course 1 Class'!$A$6 -> 00000001 | B6: ='Course 1 Class'!$B$6 -> Student | C6: ='Course 1 Class'!$C$6 -> One | D6: ='Course 1 Class'!$D$6 -> 0 | E6: ='Course 1 Class'!$E$6 -> 0 | F6: ='Course 1 Class'!$F$6 -> 0 | G6: ='Course 1 Class'!$G$6 -> 0 | H6: ='Course 1 Class'!$H$6 -> 0 | I6: ='Course 1 Class'!$I$6 -> 0 | J6: ='Course 1 Class'!$J$6 -> 0 | K6: ='Course 1 Class'!$K$6 -> 0% | L6: ='Course 1 Class'!$L$6 -> 100% | M6: ='Course 1 Class'!$M$6 -> 72 | N6: ='Course 1 Class'!$N$6 -> 100% | O6: ='Course 1 Class'!$O$6 -> 0 | P6: ='Course 1 Class'!$P$6 -> 0% | Q6: ='Course 1 Class'!$Q$6 -> 25% | R6: ='Course 1 Class'!$R$6 -> F
A7: ='Course 1 Lab'!$A$1 -> Course 1 Engine Diagnosis. Lab
A8: ='Course 1 Lab'!$A$2 -> Max Shop Points: | C8: ='Course 1 Lab'!$C$2 -> 1325 | D8: ='Course 1 Lab'!$D$2 -> Dry | E8: ='Course 1 Lab'!$E$2 -> Wet | F8: ='Course 1 Lab'!$F$2 -> Running | G8: ='Course 1 Lab'!$G$2 -> Cylinder | H8: ='Course 1 Lab'!$H$2 -> Oil | I8: ='Course 1 Lab'!$I$2 -> Cooling | J8: ='Course 1 Lab'!$J$2 -> Vacuum | K8: ='Course 1 Lab'!$K$2 -> PCV | L8: ='Course 1 Lab'!$L$2 -> Thermostat | M8: ='Course 1 Lab'!$M$2 -> Fluid | N8: ='Course 1 Lab'!$N$2 -> Diag | O8: ='Course 1 Lab'!$O$2 -> 
A9: ='Course 1 Lab'!$A$3 -> Max shop points available depend on how much customer work is done. | D9: ='Course 1 Lab'!$D$3 -> Compr | E9: ='Course 1 Lab'!$E$3 -> Compr | F9: ='Course 1 Lab'!$F$3 -> Compr | G9: ='Course 1 Lab'!$G$3 -> Leakage | H9: ='Course 1 Lab'!$H$3 -> Pressure | I9: ='Course 1 Lab'!$I$3 -> System | J9: ='Course 1 Lab'!$J$3 -> Gauge | K9: ='Course 1 Lab'!$K$3 -> System | L9: ='Course 1 Lab'!$L$3 -> and fan | M9: ='Course 1 Lab'!$M$3 -> Leak | N9: ='Course 1 Lab'!$N$3 -> gauges | O9: ='Course 1 Lab'!$O$3 -> Cus | P9: ='Course 1 Lab'!$P$3 -> Comp
D10: ='Course 1 Lab'!$D$4 -> Test | E10: ='Course 1 Lab'!$E$4 -> Test | F10: ='Course 1 Lab'!$F$4 -> Test | G10: ='Course 1 Lab'!$G$4 -> Test | H10: ='Course 1 Lab'!$H$4 -> Test | I10: ='Course 1 Lab'!$I$4 -> Test | J10: ='Course 1 Lab'!$J$4 -> Test | K10: ='Course 1 Lab'!$K$4 -> Check | L10: ='Course 1 Lab'!$L$4 -> Operation | M10: ='Course 1 Lab'!$M$4 -> Check | N10: ='Course 1 Lab'!$N$4 -> any vehicle | O10: ='Course 1 Lab'!$O$4 -> tomer | P10: ='Course 1 Lab'!$P$4 -> etency | Q10: ='Course 1 Lab'!$Q$4 ->  | R10: ='Course 1 Lab'!$R$4 -> 
D11: ='Course 1 Lab'!$D$5 -> 2 | E11: ='Course 1 Lab'!$E$5 -> 2 | F11: ='Course 1 Lab'!$F$5 -> 2 | G11: ='Course 1 Lab'!$G$5 -> 2 | H11: ='Course 1 Lab'!$H$5 -> 2 | I11: ='Course 1 Lab'!$I$5 -> 2 | J11: ='Course 1 Lab'!$J$5 -> 2 | K11: ='Course 1 Lab'!$K$5 -> 2 | L11: ='Course 1 Lab'!$L$5 -> 2 | M11: ='Course 1 Lab'!$M$5 -> 1 | N11: ='Course 1 Lab'!$N$5 -> 1 | O11: ='Course 1 Lab'!$O$5 -> Work | P11: ='Course 1 Lab'!$P$5 -> 0 or 1 | Q11: ='Course 1 Lab'!$Q$5 -> Lab
A12: ='Course 1 Lab'!$A$6 -> ID | B12: ='Course 1 Lab'!$B$6 -> First: | C12: ='Course 1 Lab'!$C$6 -> Last: | D12: ='Course 1 Lab'!$D$6 -> 100 | E12: ='Course 1 Lab'!$E$6 -> 100 | F12: ='Course 1 Lab'!$F$6 -> 100 | G12: ='Course 1 Lab'!$G$6 -> 100 | H12: ='Course 1 Lab'!$H$6 -> 100 | I12: ='Course 1 Lab'!$I$6 -> 150 | J12: ='Course 1 Lab'!$J$6 -> 100 | K12: ='Course 1 Lab'!$K$6 -> 50 | L12: ='Course 1 Lab'!$L$6 -> 100 | M12: ='Course 1 Lab'!$M$6 -> 25 | N12: ='Course 1 Lab'!$N$6 -> 100 | O12: ='Course 1 Lab'!$O$6 -> 300 | P12: ='Course 1 Lab'!$P$6 -> * | Q12: ='Course 1 Lab'!$Q$6 -> Points | R12: ='Course 1 Lab'!$R$6 -> %
A13: ='Course 1 Lab'!$A$7 -> 00000001 | B13: ='Course 1 Lab'!$B$7 -> Student | C13: ='Course 1 Lab'!$C$7 -> One | D13: ='Course 1 Lab'!$D$7 -> 0 | E13: ='Course 1 Lab'!$E$7 -> 0 | F13: ='Course 1 Lab'!$F$7 -> 0 | G13: ='Course 1 Lab'!$G$7 -> 0 | H13: ='Course 1 Lab'!$H$7 -> 0 | I13: ='Course 1 Lab'!$I$7 -> 0 | J13: ='Course 1 Lab'!$J$7 -> 0 | K13: ='Course 1 Lab'!$K$7 -> 0 | L13: ='Course 1 Lab'!$L$7 -> 0 | M13: ='Course 1 Lab'!$M$7 -> 0 | N13: ='Course 1 Lab'!$N$7 -> 0 | O13: ='Course 1 Lab'!$O$7 -> 0 | P13: ='Course 1 Lab'!$P$7 -> 1 | Q13: ='Course 1 Lab'!$Q$7 -> 0 | R13: ='Course 1 Lab'!$R$7 -> 0%
A14: ='Course 2 Class'!$A$1 -> Course 2 Engine Theory & Repair. Class | J14: ='Course 2 Class'!$J$1 -> 25
A15: ='Course 2 Class'!$A$2 ->  | B15: ='Course 2 Class'!$B$2 -> Date assignment is due: | D15: ='Course 2 Class'!$D$2 -> TBD | E15: ='Course 2 Class'!$E$2 -> TBD | F15: ='Course 2 Class'!$F$2 -> TBD | G15: ='Course 2 Class'!$G$2 -> TBD | H15: ='Course 2 Class'!$H$2 -> TBD | I15: ='Course 2 Class'!$I$2 -> TBD | J15: ='Course 2 Class'!$J$2 -> TBD | K15: ='Course 2 Class'!$K$2 -> TBD
A16: ='Course 2 Class'!$A$3 -> Class Room Points: | C16: ='Course 2 Class'!$C$3 -> 201 | D16: ='Course 2 Class'!$D$3 -> 10 | E16: ='Course 2 Class'!$E$3 -> 10 | F16: ='Course 2 Class'!$F$3 -> 20 | G16: ='Course 2 Class'!$G$3 -> 20 | H16: ='Course 2 Class'!$H$3 -> 16 | I16: ='Course 2 Class'!$I$3 -> 25 | J16: ='Course 2 Class'!$J$3 ->  | K16: ='Course 2 Class'!$K$3 -> 100 | L16: ='Course 2 Class'!$L$3 -> Evaluation
A17: ='Course 2 Class'!$A$4 -> Red is late turn-in | C17: ='Course 2 Class'!$C$4 -> Blue is absent | D17: ='Course 2 Class'!$D$4 -> HW | E17: ='Course 2 Class'!$E$4 -> HW | F17: ='Course 2 Class'!$F$4 -> Test | G17: ='Course 2 Class'!$G$4 -> Test | H17: ='Course 2 Class'!$H$4 -> HW | I17: ='Course 2 Class'!$I$4 -> Test | J17: ='Course 2 Class'!$J$4 -> Extra | K17: ='Course 2 Class'!$K$4 -> Final | L17: ='Course 2 Class'!$L$4 -> Class | N17: ='Course 2 Class'!$N$4 -> Professionalism | Q17: ='Course 2 Class'!$Q$4 -> Lab | S17: ='Course 2 Class'!$S$4 -> Total | T17: ='Course 2 Class'!$T$4 -> Letter
A18: ='Course 2 Class'!$A$5 -> I D | B18: ='Course 2 Class'!$B$5 -> First: | C18: ='Course 2 Class'!$C$5 -> Last: | D18: ='Course 2 Class'!$D$5 -> CH 7 | E18: ='Course 2 Class'!$E$5 -> CH 14 | F18: ='Course 2 Class'!$F$5 -> C & L | G18: ='Course 2 Class'!$G$5 -> CH 18 | H18: ='Course 2 Class'!$H$5 -> CH 22 | I18: ='Course 2 Class'!$I$5 -> CH 22 | J18: ='Course 2 Class'!$J$5 -> Credit | K18: ='Course 2 Class'!$K$5 -> TEST | L18: ='Course 2 Class'!$L$5 -> Points | M18: ='Course 2 Class'!$M$5 -> % | N18: ='Course 2 Class'!$N$5 -> Attendance | O18: ='Course 2 Class'!$O$5 -> Points | P18: ='Course 2 Class'!$P$5 -> % | Q18: ='Course 2 Class'!$Q$5 -> Points | R18: ='Course 2 Class'!$R$5 -> % | S18: ='Course 2 Class'!$S$5 -> % | T18: ='Course 2 Class'!$T$5 -> Grade
A19: ='Course 2 Class'!$A$6 -> 00000001 | B19: ='Course 2 Class'!$B$6 -> Student | C19: ='Course 2 Class'!$C$6 -> One | D19: ='Course 2 Class'!$D$6 -> 0 | E19: ='Course 2 Class'!$E$6 -> 0 | F19: ='Course 2 Class'!$F$6 -> 0 | G19: ='Course 2 Class'!$G$6 -> 0 | H19: ='Course 2 Class'!$H$6 -> 0 | I19: ='Course 2 Class'!$I$6 -> 0 | J19: ='Course 2 Class'!$J$6 -> 0 | K19: ='Course 2 Class'!$K$6 -> 0 | L19: ='Course 2 Class'!$L$6 -> 0 | M19: ='Course 2 Class'!$M$6 -> 0% | N19: ='Course 2 Class'!$N$6 -> 100% | O19: ='Course 2 Class'!$O$6 -> 72 | P19: ='Course 2 Class'!$P$6 -> 100% | Q19: ='Course 2 Class'!$Q$6 -> 0 | R19: ='Course 2 Class'!$R$6 -> 0% | S19: ='Course 2 Class'!$S$6 -> 25% | T19: ='Course 2 Class'!$T$6 -> F
A20: ='Course 2 Lab'!$A$1 -> Course 2 Engine Theory & Repair. Lab
A21: ='Course 2 Lab'!$A$2 -> Max Shop Points: | C21: ='Course 2 Lab'!$C$2 -> 1450 | D21: ='Course 2 Lab'!$D$2 -> Engine | E21: ='Course 2 Lab'!$E$2 -> Cylinder | F21: ='Course 2 Lab'!$F$2 -> Red | G21: ='Course 2 Lab'!$G$2 -> Mitsubishi | H21: ='Course 2 Lab'!$H$2 -> Any | I21: ='Course 2 Lab'!$I$2 -> DOHC | J21: ='Course 2 Lab'!$J$2 -> Valve seal | K21: ='Course 2 Lab'!$K$2 -> Misc. | L21: ='Course 2 Lab'!$L$2 -> 
A22: ='Course 2 Lab'!$A$3 -> Max shop points available depend on how much customer work is done. | D22: ='Course 2 Lab'!$D$3 -> Disassemble | E22: ='Course 2 Lab'!$E$3 -> Head | F22: ='Course 2 Lab'!$F$3 -> Dodge | G22: ='Course 2 Lab'!$G$3 -> "3.0L" | H22: ='Course 2 Lab'!$H$3 -> Engine | I22: ='Course 2 Lab'!$I$3 -> Engine | J22: ='Course 2 Lab'!$J$3 -> & | K22: ='Course 2 Lab'!$K$3 -> Engine | L22: ='Course 2 Lab'!$L$3 -> Cus | M22: ='Course 2 Lab'!$M$3 -> Comp
D23: ='Course 2 Lab'!$D$4 -> & Measure | E23: ='Course 2 Lab'!$E$4 -> Repair | F23: ='Course 2 Lab'!$F$4 -> Clip | G23: ='Course 2 Lab'!$G$4 -> Clip | H23: ='Course 2 Lab'!$H$4 -> T-chain | I23: ='Course 2 Lab'!$I$4 -> Stand | J23: ='Course 2 Lab'!$J$4 -> Lobe lift | K23: ='Course 2 Lab'!$K$4 -> Points | L23: ='Course 2 Lab'!$L$4 -> tomer | M23: ='Course 2 Lab'!$M$4 -> etency | N23: ='Course 2 Lab'!$N$4 ->  | O23: ='Course 2 Lab'!$O$4 -> 
D24: ='Course 2 Lab'!$D$5 -> 1 | E24: ='Course 2 Lab'!$E$5 -> 1 | F24: ='Course 2 Lab'!$F$5 -> 1 | G24: ='Course 2 Lab'!$G$5 -> 1 | H24: ='Course 2 Lab'!$H$5 -> 1 | I24: ='Course 2 Lab'!$I$5 -> 1 | J24: ='Course 2 Lab'!$J$5 -> 1 | L24: ='Course 2 Lab'!$L$5 -> Work | M24: ='Course 2 Lab'!$M$5 -> 0 or 1 | N24: ='Course 2 Lab'!$N$5 -> Lab
A25: ='Course 2 Lab'!$A$6 -> ID | B25: ='Course 2 Lab'!$B$6 -> First: | C25: ='Course 2 Lab'!$C$6 -> Last: | D25: ='Course 2 Lab'!$D$6 -> 300 | E25: ='Course 2 Lab'!$E$6 -> 200 | F25: ='Course 2 Lab'!$F$6 -> 100 | G25: ='Course 2 Lab'!$G$6 -> 100 | H25: ='Course 2 Lab'!$H$6 -> 100 | I25: ='Course 2 Lab'!$I$6 -> 100 | J25: ='Course 2 Lab'!$J$6 -> 50 | K25: ='Course 2 Lab'!$K$6 -> 200 | L25: ='Course 2 Lab'!$L$6 -> 300 | M25: ='Course 2 Lab'!$M$6 -> * | N25: ='Course 2 Lab'!$N$6 -> Points | O25: ='Course 2 Lab'!$O$6 -> %
A26: ='Course 2 Lab'!$A$7 -> 00000001 | B26: ='Course 2 Lab'!$B$7 -> Student | C26: ='Course 2 Lab'!$C$7 -> One | D26: ='Course 2 Lab'!$D$7 -> 0 | E26: ='Course 2 Lab'!$E$7 -> 0 | F26: ='Course 2 Lab'!$F$7 -> 0 | G26: ='Course 2 Lab'!$G$7 -> 0 | H26: ='Course 2 Lab'!$H$7 -> 0 | I26: ='Course 2 Lab'!$I$7 -> 0 | J26: ='Course 2 Lab'!$J$7 -> 0 | K26: ='Course 2 Lab'!$K$7 -> 0 | L26: ='Course 2 Lab'!$L$7 -> 0 | M26: ='Course 2 Lab'!$M$7 -> 1 | N26: ='Course 2 Lab'!$N$7 -> 0 | O26: ='Course 2 Lab'!$O$7 -> 0%
A27: ='Course 3 Class'!$A$1 -> Course 3 Steering & Suspension. Class. | M27: ='Course 3 Class'!$M$1 -> 25
A28: ='Course 3 Class'!$A$2 ->  | B28: ='Course 3 Class'!$B$2 -> Date assignment is due: | D28: ='Course 3 Class'!$D$2 -> 1/18 | E28: ='Course 3 Class'!$E$2 -> 2/2 | F28: ='Course 3 Class'!$F$2 -> TBD | G28: ='Course 3 Class'!$G$2 -> TBD | H28: ='Course 3 Class'!$H$2 -> TBD | I28: ='Course 3 Class'!$I$2 -> TBD | J28: ='Course 3 Class'!$J$2 -> TBD | K28: ='Course 3 Class'!$K$2 -> TBD | L28: ='Course 3 Class'!$L$2 -> TBD | M28: ='Course 3 Class'!$M$2 -> TBD | N28: ='Course 3 Class'!$N$2 -> TBD
A29: ='Course 3 Class'!$A$3 -> Class Room Points: | C29: ='Course 3 Class'!$C$3 -> 330 | D29: ='Course 3 Class'!$D$3 -> 20 | E29: ='Course 3 Class'!$E$3 -> 20 | F29: ='Course 3 Class'!$F$3 -> 24 | G29: ='Course 3 Class'!$G$3 -> 20 | H29: ='Course 3 Class'!$H$3 -> 25 | I29: ='Course 3 Class'!$I$3 -> 30 | J29: ='Course 3 Class'!$J$3 -> 20 | K29: ='Course 3 Class'!$K$3 -> 26 | L29: ='Course 3 Class'!$L$3 -> 45 | M29: ='Course 3 Class'!$M$3 ->  | N29: ='Course 3 Class'!$N$3 -> 100 | O29: ='Course 3 Class'!$O$3 -> Evaluation
A30: ='Course 3 Class'!$A$4 -> Red is late turn-in | C30: ='Course 3 Class'!$C$4 -> Blue is absent | D30: ='Course 3 Class'!$D$4 -> HW | E30: ='Course 3 Class'!$E$4 -> HW | F30: ='Course 3 Class'!$F$4 -> HW | G30: ='Course 3 Class'!$G$4 -> QZ | H30: ='Course 3 Class'!$H$4 -> HW | I30: ='Course 3 Class'!$I$4 -> HW | J30: ='Course 3 Class'!$J$4 -> Test | K30: ='Course 3 Class'!$K$4 -> HW | L30: ='Course 3 Class'!$L$4 -> Class | M30: ='Course 3 Class'!$M$4 -> Extra | N30: ='Course 3 Class'!$N$4 -> Final | O30: ='Course 3 Class'!$O$4 -> Class | Q30: ='Course 3 Class'!$Q$4 -> Professionalism | T30: ='Course 3 Class'!$T$4 -> Lab | V30: ='Course 3 Class'!$V$4 -> Total | W30: ='Course 3 Class'!$W$4 -> Letter
A31: ='Course 3 Class'!$A$5 -> I D | B31: ='Course 3 Class'!$B$5 -> First: | C31: ='Course 3 Class'!$C$5 -> Last: | D31: ='Course 3 Class'!$D$5 -> CH 1 | E31: ='Course 3 Class'!$E$5 -> CH 2 | F31: ='Course 3 Class'!$F$5 -> CH 3 | G31: ='Course 3 Class'!$G$5 -> 1 | H31: ='Course 3 Class'!$H$5 -> CH 6 | I31: ='Course 3 Class'!$I$5 -> CH 9 | J31: ='Course 3 Class'!$J$5 -> 1 – 9 | K31: ='Course 3 Class'!$K$5 -> CH 12 | L31: ='Course 3 Class'!$L$5 -> Project | M31: ='Course 3 Class'!$M$5 -> Credit | N31: ='Course 3 Class'!$N$5 -> TEST | O31: ='Course 3 Class'!$O$5 -> Points | P31: ='Course 3 Class'!$P$5 -> % | Q31: ='Course 3 Class'!$Q$5 -> Attendance | R31: ='Course 3 Class'!$R$5 -> Points | S31: ='Course 3 Class'!$S$5 -> % | T31: ='Course 3 Class'!$T$5 -> Points | U31: ='Course 3 Class'!$U$5 -> % | V31: ='Course 3 Class'!$V$5 -> % | W31: ='Course 3 Class'!$W$5 -> Grade
A32: ='Course 3 Class'!$A$6 -> 00000001 | B32: ='Course 3 Class'!$B$6 -> Student | C32: ='Course 3 Class'!$C$6 -> One | D32: ='Course 3 Class'!$D$6 -> 0 | E32: ='Course 3 Class'!$E$6 -> 0 | F32: ='Course 3 Class'!$F$6 -> 0 | G32: ='Course 3 Class'!$G$6 -> 0 | H32: ='Course 3 Class'!$H$6 -> 0 | I32: ='Course 3 Class'!$I$6 -> 0 | J32: ='Course 3 Class'!$J$6 -> 0 | K32: ='Course 3 Class'!$K$6 -> 0 | L32: ='Course 3 Class'!$L$6 -> 0 | M32: ='Course 3 Class'!$M$6 -> 0 | N32: ='Course 3 Class'!$N$6 -> 0 | O32: ='Course 3 Class'!$O$6 -> 0 | P32: ='Course 3 Class'!$P$6 -> 0% | Q32: ='Course 3 Class'!$Q$6 -> 100% | R32: ='Course 3 Class'!$R$6 -> 72 | S32: ='Course 3 Class'!$S$6 -> 100% | T32: ='Course 3 Class'!$T$6 -> 0 | U32: ='Course 3 Class'!$U$6 -> 0% | V32: ='Course 3 Class'!$V$6 -> 25% | W32: ='Course 3 Class'!$W$6 -> F
A33: ='Course 3 Lab'!$A$1 -> Course 3 Steering & Suspension. Lab
A34: ='Course 3 Lab'!$A$2 -> Max shop points | C34: ='Course 3 Lab'!$C$2 -> 1350 | D34: ='Course 3 Lab'!$D$2 -> Repair | E34: ='Course 3 Lab'!$E$2 -> Identify | F34: ='Course 3 Lab'!$F$2 -> Repair | G34: ='Course 3 Lab'!$G$2 -> Identify | H34: ='Course 3 Lab'!$H$2 -> Repair | I34: ='Course 3 Lab'!$I$2 -> R&R | J34: ='Course 3 Lab'!$J$2 -> R&R | K34: ='Course 3 Lab'!$K$2 -> R&R | L34: ='Course 3 Lab'!$L$2 -> P/S | M34: ='Course 3 Lab'!$M$2 -> R&R | N34: ='Course 3 Lab'!$N$2 -> NVH | O34: ='Course 3 Lab'!$O$2 -> 
A35: ='Course 3 Lab'!$A$3 -> Max shop points available depend on how much customer work is done. | D35: ='Course 3 Lab'!$D$3 -> SLA | E35: ='Course 3 Lab'!$E$3 -> SLA | F35: ='Course 3 Lab'!$F$3 -> Mac-P | G35: ='Course 3 Lab'!$G$3 -> Mac-P | H35: ='Course 3 Lab'!$H$3 -> Rear | I35: ='Course 3 Lab'!$I$3 -> Rack & | J35: ='Course 3 Lab'!$J$3 -> Recirc. | K35: ='Course 3 Lab'!$K$3 -> P/S | L35: ='Course 3 Lab'!$L$3 -> Pump | M35: ='Course 3 Lab'!$M$3 -> Inner | N35: ='Course 3 Lab'!$N$3 -> Runout & | O35: ='Course 3 Lab'!$O$3 -> Cus | P35: ='Course 3 Lab'!$P$3 -> Comp
D36: ='Course 3 Lab'!$D$4 -> Susp | E36: ='Course 3 Lab'!$E$4 -> Parts | F36: ='Course 3 Lab'!$F$4 -> Susp | G36: ='Course 3 Lab'!$G$4 -> Parts | H36: ='Course 3 Lab'!$H$4 -> Susp | I36: ='Course 3 Lab'!$I$4 -> Pinion | J36: ='Course 3 Lab'!$J$4 -> Gear | K36: ='Course 3 Lab'!$K$4 -> Pump | L36: ='Course 3 Lab'!$L$4 -> Test | M36: ='Course 3 Lab'!$M$4 -> Tie-Rod | N36: ='Course 3 Lab'!$N$4 -> bal. Check | O36: ='Course 3 Lab'!$O$4 -> tomer | P36: ='Course 3 Lab'!$P$4 -> etency | Q36: ='Course 3 Lab'!$Q$4 ->  | R36: ='Course 3 Lab'!$R$4 ->  | U36: ='Misc data'!$E$2 -> Final Grade
D37: ='Course 3 Lab'!$D$5 -> 1 | E37: ='Course 3 Lab'!$E$5 -> 2 | F37: ='Course 3 Lab'!$F$5 -> 3 | G37: ='Course 3 Lab'!$G$5 -> 2 | H37: ='Course 3 Lab'!$H$5 -> 1 | I37: ='Course 3 Lab'!$I$5 -> 1 | J37: ='Course 3 Lab'!$J$5 -> 1 | K37: ='Course 3 Lab'!$K$5 -> 1 | L37: ='Course 3 Lab'!$L$5 -> 1 | M37: ='Course 3 Lab'!$M$5 -> 1 | N37: ='Course 3 Lab'!$N$5 -> 1 | O37: ='Course 3 Lab'!$O$5 -> Work | P37: ='Course 3 Lab'!$P$5 -> 0 or 1 | Q37: ='Course 3 Lab'!$Q$5 -> Lab | U37: ='Misc data'!$E$3 -> 0% | V37: ='Misc data'!$F$3 -> F
A38: ='Course 3 Lab'!$A$6 -> ID | B38: ='Course 3 Lab'!$B$6 -> First: | C38: ='Course 3 Lab'!$C$6 -> Last: | D38: ='Course 3 Lab'!$D$6 -> 150 | E38: ='Course 3 Lab'!$E$6 -> 50 | F38: ='Course 3 Lab'!$F$6 -> 225 | G38: ='Course 3 Lab'!$G$6 -> 50 | H38: ='Course 3 Lab'!$H$6 -> 50 | I38: ='Course 3 Lab'!$I$6 -> 150 | J38: ='Course 3 Lab'!$J$6 -> 125 | K38: ='Course 3 Lab'!$K$6 -> 50 | L38: ='Course 3 Lab'!$L$6 -> 50 | M38: ='Course 3 Lab'!$M$6 -> 50 | N38: ='Course 3 Lab'!$N$6 -> 100 | O38: ='Course 3 Lab'!$O$6 -> 300 | P38: ='Course 3 Lab'!$P$6 -> * | Q38: ='Course 3 Lab'!$Q$6 -> Points | R38: ='Course 3 Lab'!$R$6 -> % | U38: ='Misc data'!$E$4 -> 70% | V38: ='Misc data'!$F$4 -> D-
A39: ='Course 3 Lab'!$A$7 -> 00000001 | B39: ='Course 3 Lab'!$B$7 -> Student | C39: ='Course 3 Lab'!$C$7 -> One | D39: ='Course 3 Lab'!$D$7 -> 0 | E39: ='Course 3 Lab'!$E$7 -> 0 | F39: ='Course 3 Lab'!$F$7 -> 0 | G39: ='Course 3 Lab'!$G$7 -> 0 | H39: ='Course 3 Lab'!$H$7 -> 0 | I39: ='Course 3 Lab'!$I$7 -> 0 | J39: ='Course 3 Lab'!$J$7 -> 0 | K39: ='Course 3 Lab'!$K$7 -> 0 | L39: ='Course 3 Lab'!$L$7 -> 0 | M39: ='Course 3 Lab'!$M$7 -> 0 | N39: ='Course 3 Lab'!$N$7 -> 0 | O39: ='Course 3 Lab'!$O$7 -> 0 | P39: ='Course 3 Lab'!$P$7 -> 1 | Q39: ='Course 3 Lab'!$Q$7 -> 0 | R39: ='Course 3 Lab'!$R$7 -> 0% | U39: ='Misc data'!$E$5 -> 72% | V39: ='Misc data'!$F$5 -> D
A40: ='Course 4 Class'!$A$1 -> Course 4 Alignment. Class. | I40: ='Course 4 Class'!$I$1 -> 25 | U40: ='Misc data'!$E$6 -> 74% | V40: ='Misc data'!$F$6 -> D+
A41: ='Course 4 Class'!$A$2 ->  | B41: ='Course 4 Class'!$B$2 -> Date assignment is due | D41: ='Course 4 Class'!$D$2 -> TBD | E41: ='Course 4 Class'!$E$2 -> TBD | F41: ='Course 4 Class'!$F$2 -> TBD | G41: ='Course 4 Class'!$G$2 -> TBD | H41: ='Course 4 Class'!$H$2 -> TBD | I41: ='Course 4 Class'!$I$2 -> TBD | J41: ='Course 4 Class'!$J$2 -> TBD | U41: ='Misc data'!$E$7 -> 76% | V41: ='Misc data'!$F$7 -> C-
A42: ='Course 4 Class'!$A$3 -> Class Room Points: | C42: ='Course 4 Class'!$C$3 -> 235 | D42: ='Course 4 Class'!$D$3 -> 25 | E42: ='Course 4 Class'!$E$3 -> 25 | F42: ='Course 4 Class'!$F$3 -> 20 | G42: ='Course 4 Class'!$G$3 -> 40 | H42: ='Course 4 Class'!$H$3 -> 50 | I42: ='Course 4 Class'!$I$3 ->  | J42: ='Course 4 Class'!$J$3 -> 75 | K42: ='Course 4 Class'!$K$3 -> Evaluation | U42: ='Misc data'!$E$8 -> 79% | V42: ='Misc data'!$F$8 -> C
A43: ='Course 4 Class'!$A$4 -> Red is late turn-in | C43: ='Course 4 Class'!$C$4 -> Blue is absent | D43: ='Course 4 Class'!$D$4 -> CH 16 | E43: ='Course 4 Class'!$E$4 -> CH 16 | F43: ='Course 4 Class'!$F$4 -> Align | G43: ='Course 4 Class'!$G$4 -> In class | H43: ='Course 4 Class'!$H$4 -> In class | I43: ='Course 4 Class'!$I$4 -> Extra | J43: ='Course 4 Class'!$J$4 -> Final | K43: ='Course 4 Class'!$K$4 -> Class | M43: ='Course 4 Class'!$M$4 -> Professionalism | P43: ='Course 4 Class'!$P$4 -> Lab | R43: ='Course 4 Class'!$R$4 -> Total | S43: ='Course 4 Class'!$S$4 -> Letter | U43: ='Misc data'!$E$9 -> 82% | V43: ='Misc data'!$F$9 -> C+
A44: ='Course 4 Class'!$A$5 -> I D | B44: ='Course 4 Class'!$B$5 -> First: | C44: ='Course 4 Class'!$C$5 -> Last: | D44: ='Course 4 Class'!$D$5 -> HW | E44: ='Course 4 Class'!$E$5 -> Test | F44: ='Course 4 Class'!$F$5 -> HW | G44: ='Course 4 Class'!$G$5 -> Project1 | H44: ='Course 4 Class'!$H$5 -> Project2 | I44: ='Course 4 Class'!$I$5 -> Credit | J44: ='Course 4 Class'!$J$5 -> Test | K44: ='Course 4 Class'!$K$5 -> Points | L44: ='Course 4 Class'!$L$5 -> % | M44: ='Course 4 Class'!$M$5 -> Attendance | N44: ='Course 4 Class'!$N$5 -> Points | O44: ='Course 4 Class'!$O$5 -> % | P44: ='Course 4 Class'!$P$5 -> Points | Q44: ='Course 4 Class'!$Q$5 -> % | R44: ='Course 4 Class'!$R$5 -> % | S44: ='Course 4 Class'!$S$5 -> Grade | U44: ='Misc data'!$E$10 -> 85% | V44: ='Misc data'!$F$10 -> B-
A45: ='Course 4 Class'!$A$6 -> 00000001 | B45: ='Course 4 Class'!$B$6 -> Student | C45: ='Course 4 Class'!$C$6 -> One | D45: ='Course 4 Class'!$D$6 -> 0 | E45: ='Course 4 Class'!$E$6 -> 0 | F45: ='Course 4 Class'!$F$6 -> 0 | G45: ='Course 4 Class'!$G$6 -> 0 | H45: ='Course 4 Class'!$H$6 -> 0 | I45: ='Course 4 Class'!$I$6 -> 0 | J45: ='Course 4 Class'!$J$6 -> 0 | K45: ='Course 4 Class'!$K$6 -> 0 | L45: ='Course 4 Class'!$L$6 -> 0% | M45: ='Course 4 Class'!$M$6 -> 100% | N45: ='Course 4 Class'!$N$6 -> 72 | O45: ='Course 4 Class'!$O$6 -> 100% | P45: ='Course 4 Class'!$P$6 -> 0 | Q45: ='Course 4 Class'!$Q$6 -> 0% | R45: ='Course 4 Class'!$R$6 -> 25% | S45: ='Course 4 Class'!$S$6 -> F | U45: ='Misc data'!$E$11 -> 88% | V45: ='Misc data'!$F$11 -> B
A46: ='Course 4 Lab'!$A$1 -> Course 4 Alignment. Lab | U46: ='Misc data'!$E$12 -> 90% | V46: ='Misc data'!$F$12 -> B+
A47: ='Course 4 Lab'!$A$2 -> Max Shop Points: | C47: ='Course 4 Lab'!$C$2 -> 1300 | D47: ='Course 4 Lab'!$D$2 -> Alignment | E47: ='Course 4 Lab'!$E$2 -> Complete | F47: ='Course 4 Lab'!$F$2 -> Cus | G47: ='Course 4 Lab'!$G$2 ->  | U47: ='Misc data'!$E$13 -> 93% | V47: ='Misc data'!$F$13 -> A-
A48: ='Course 4 Lab'!$A$3 -> Max shop points available depend on how much customer work is done. | D48: ='Course 4 Lab'!$D$3 -> Pre-check | E48: ='Course 4 Lab'!$E$3 -> Wheel | F48: ='Course 4 Lab'!$F$3 -> tomer | G48: ='Course 4 Lab'!$G$3 -> Comp | U48: ='Misc data'!$E$14 -> 95% | V48: ='Misc data'!$F$14 -> A
D49: ='Course 4 Lab'!$D$4 -> 100 P | E49: ='Course 4 Lab'!$E$4 -> Alignment | F49: ='Course 4 Lab'!$F$4 -> Work | G49: ='Course 4 Lab'!$G$4 -> etency | H49: ='Course 4 Lab'!$H$4 ->  | I49: ='Course 4 Lab'!$I$4 ->  | U49: ='Misc data'!$E$15 -> 100% | V49: ='Misc data'!$F$15 -> A
D50: ='Course 4 Lab'!$D$5 -> 1 | E50: ='Course 4 Lab'!$E$5 -> 1 | F50: ='Course 4 Lab'!$F$5 ->  | G50: ='Course 4 Lab'!$G$5 -> 0 or 1 | H50: ='Course 4 Lab'!$H$5 -> Lab
A51: ='Course 4 Lab'!$A$6 -> ID | B51: ='Course 4 Lab'!$B$6 -> First: | C51: ='Course 4 Lab'!$C$6 -> Last: | D51: ='Course 4 Lab'!$D$6 -> 100 | E51: ='Course 4 Lab'!$E$6 -> 900 | F51: ='Course 4 Lab'!$F$6 -> 300 | G51: ='Course 4 Lab'!$G$6 -> * | H51: ='Course 4 Lab'!$H$6 -> Points | I51: ='Course 4 Lab'!$I$6 -> %
A52: ='Course 4 Lab'!$A$7 -> 00000001 | B52: ='Course 4 Lab'!$B$7 -> Student | C52: ='Course 4 Lab'!$C$7 -> One | D52: ='Course 4 Lab'!$D$7 -> 0 | E52: ='Course 4 Lab'!$E$7 -> 0 | F52: ='Course 4 Lab'!$F$7 -> 0 | G52: ='Course 4 Lab'!$G$7 -> 1 | H52: ='Course 4 Lab'!$H$7 -> 0 | I52: ='Course 4 Lab'!$I$7 -> 0%
A53: ='Course 5 Class'!$A$1 -> Course 5 Brake Systems. Class. | L53: ='Course 5 Class'!$L$1 -> 35
A54: ='Course 5 Class'!$A$2 -> Date assignment is due: | C54: ='Course 5 Class'!$C$2 ->  | D54: ='Course 5 Class'!$D$2 -> TBD | E54: ='Course 5 Class'!$E$2 -> TBD | F54: ='Course 5 Class'!$F$2 -> TBD | G54: ='Course 5 Class'!$G$2 -> TBD | H54: ='Course 5 Class'!$H$2 -> TBD | I54: ='Course 5 Class'!$I$2 -> TBD | J54: ='Course 5 Class'!$J$2 -> TBD | K54: ='Course 5 Class'!$K$2 -> TBD | L54: ='Course 5 Class'!$L$2 -> TBD | M54: ='Course 5 Class'!$M$2 -> TBD
A55: ='Course 5 Class'!$A$3 -> Class Room Points: | C55: ='Course 5 Class'!$C$3 -> 440 | D55: ='Course 5 Class'!$D$3 -> 30 | E55: ='Course 5 Class'!$E$3 -> 25 | F55: ='Course 5 Class'!$F$3 -> 100 | G55: ='Course 5 Class'!$G$3 -> 30 | H55: ='Course 5 Class'!$H$3 -> 50 | I55: ='Course 5 Class'!$I$3 -> 30 | J55: ='Course 5 Class'!$J$3 -> 25 | K55: ='Course 5 Class'!$K$3 -> 50 | L55: ='Course 5 Class'!$L$3 ->  | M55: ='Course 5 Class'!$M$3 -> 100 | N55: ='Course 5 Class'!$N$3 -> Evaluation
A56: ='Course 5 Class'!$A$4 -> Red is late turn-in | C56: ='Course 5 Class'!$C$4 -> Blue is absent | D56: ='Course 5 Class'!$D$4 -> HW | E56: ='Course 5 Class'!$E$4 -> HW | F56: ='Course 5 Class'!$F$4 -> Test | G56: ='Course 5 Class'!$G$4 -> HW | H56: ='Course 5 Class'!$H$4 -> Test | I56: ='Course 5 Class'!$I$4 -> HW | J56: ='Course 5 Class'!$J$4 -> Test | K56: ='Course 5 Class'!$K$4 -> Class | L56: ='Course 5 Class'!$L$4 -> Extra | M56: ='Course 5 Class'!$M$4 -> Final | N56: ='Course 5 Class'!$N$4 -> Class | P56: ='Course 5 Class'!$P$4 -> Professionalism | S56: ='Course 5 Class'!$S$4 -> Lab | U56: ='Course 5 Class'!$U$4 -> Total | V56: ='Course 5 Class'!$V$4 -> Letter
A57: ='Course 5 Class'!$A$5 -> I D | B57: ='Course 5 Class'!$B$5 -> First: | C57: ='Course 5 Class'!$C$5 -> Last: | D57: ='Course 5 Class'!$D$5 -> CH 4 | E57: ='Course 5 Class'!$E$5 -> CH 5 | F57: ='Course 5 Class'!$F$5 -> #1 | G57: ='Course 5 Class'!$G$5 -> CH 7 | H57: ='Course 5 Class'!$H$5 -> Conv | I57: ='Course 5 Class'!$I$5 -> CH 20 | J57: ='Course 5 Class'!$J$5 -> 21/22 | K57: ='Course 5 Class'!$K$5 -> Project | L57: ='Course 5 Class'!$L$5 -> Credit | M57: ='Course 5 Class'!$M$5 -> Test | N57: ='Course 5 Class'!$N$5 -> Points | O57: ='Course 5 Class'!$O$5 -> % | P57: ='Course 5 Class'!$P$5 -> Attendance | Q57: ='Course 5 Class'!$Q$5 -> Points | R57: ='Course 5 Class'!$R$5 -> % | S57: ='Course 5 Class'!$S$5 -> Points | T57: ='Course 5 Class'!$T$5 -> % | U57: ='Course 5 Class'!$U$5 -> % | V57: ='Course 5 Class'!$V$5 -> Grade
A58: ='Course 5 Class'!$A$6 -> 00000001 | B58: ='Course 5 Class'!$B$6 -> Student | C58: ='Course 5 Class'!$C$6 -> One | D58: ='Course 5 Class'!$D$6 -> 0 | E58: ='Course 5 Class'!$E$6 -> 0 | F58: ='Course 5 Class'!$F$6 -> 0 | G58: ='Course 5 Class'!$G$6 -> 0 | H58: ='Course 5 Class'!$H$6 -> 0 | I58: ='Course 5 Class'!$I$6 -> 0 | J58: ='Course 5 Class'!$J$6 -> 0 | K58: ='Course 5 Class'!$K$6 -> 0 | L58: ='Course 5 Class'!$L$6 -> 0 | M58: ='Course 5 Class'!$M$6 -> 0 | N58: ='Course 5 Class'!$N$6 -> 0 | O58: ='Course 5 Class'!$O$6 -> 0% | P58: ='Course 5 Class'!$P$6 -> 100% | Q58: ='Course 5 Class'!$Q$6 -> 72 | R58: ='Course 5 Class'!$R$6 -> 100% | S58: ='Course 5 Class'!$S$6 -> 0 | T58: ='Course 5 Class'!$T$6 -> 0% | U58: ='Course 5 Class'!$U$6 -> 25% | V58: ='Course 5 Class'!$V$6 -> F
A59: ='Course 5 Lab'!$A$1 -> Course 5 Brake Systems. Lab
A60: ='Course 5 Lab'!$A$2 -> Max Shop Points: | C60: ='Course 5 Lab'!$C$2 -> 970 | D60: ='Course 5 Lab'!$D$2 -> Drum | E60: ='Course 5 Lab'!$E$2 -> Drum | F60: ='Course 5 Lab'!$F$2 -> Disc | G60: ='Course 5 Lab'!$G$2 -> On Car | H60: ='Course 5 Lab'!$H$2 -> Off Car | I60: ='Course 5 Lab'!$I$2 -> Wheel | J60: ='Course 5 Lab'!$J$2 -> Hydr. | K60: ='Course 5 Lab'!$K$2 -> Vacuum | L60: ='Course 5 Lab'!$L$2 -> Warning | M60: ='Course 5 Lab'!$M$2 -> Brake | N60: ='Course 5 Lab'!$N$2 -> Brake | O60: ='Course 5 Lab'!$O$2 -> Dodge | P60: ='Course 5 Lab'!$P$2 -> Ford | Q60: ='Course 5 Lab'!$Q$2 -> GM | R60: ='Course 5 Lab'!$R$2 -> Cus | S60: ='Course 5 Lab'!$S$2 -> Brake
A61: ='Course 5 Lab'!$A$3 -> Max shop points available depend on how much customer work is done. | D61: ='Course 5 Lab'!$D$3 -> Brake | E61: ='Course 5 Lab'!$E$3 -> Brake | F61: ='Course 5 Lab'!$F$3 -> Brake | G61: ='Course 5 Lab'!$G$3 -> Disc | H61: ='Course 5 Lab'!$H$3 -> Disc | I61: ='Course 5 Lab'!$I$3 -> Bearing | J61: ='Course 5 Lab'!$J$3 -> Line | K61: ='Course 5 Lab'!$K$3 -> Booster | L61: ='Course 5 Lab'!$L$3 -> Light | M61: ='Course 5 Lab'!$M$3 -> System | N61: ='Course 5 Lab'!$N$3 -> Valves | O61: ='Course 5 Lab'!$O$3 -> Anti | P61: ='Course 5 Lab'!$P$3 -> Anti | Q61: ='Course 5 Lab'!$Q$3 -> Anti | R61: ='Course 5 Lab'!$R$3 -> tomer | S61: ='Course 5 Lab'!$S$3 -> Comp
D62: ='Course 5 Lab'!$D$4 -> Job | E62: ='Course 5 Lab'!$E$4 -> Mach. | F62: ='Course 5 Lab'!$F$4 -> Job | G62: ='Course 5 Lab'!$G$4 -> Mach. | H62: ='Course 5 Lab'!$H$4 -> Mach. | I62: ='Course 5 Lab'!$I$4 -> Service | J62: ='Course 5 Lab'!$J$4 -> Repair | K62: ='Course 5 Lab'!$K$4 -> Service | L62: ='Course 5 Lab'!$L$4 -> Service | M62: ='Course 5 Lab'!$M$4 -> Bleed | N62: ='Course 5 Lab'!$N$4 -> Check | O62: ='Course 5 Lab'!$O$4 -> Lock | P62: ='Course 5 Lab'!$P$4 -> Lock | Q62: ='Course 5 Lab'!$Q$4 -> Lock | R62: ='Course 5 Lab'!$R$4 -> Work | S62: ='Course 5 Lab'!$S$4 -> etency
D63: ='Course 5 Lab'!$D$5 -> 2 | E63: ='Course 5 Lab'!$E$5 -> 2 | F63: ='Course 5 Lab'!$F$5 -> 2 | G63: ='Course 5 Lab'!$G$5 -> 2 | H63: ='Course 5 Lab'!$H$5 -> 2 | I63: ='Course 5 Lab'!$I$5 -> 1 | J63: ='Course 5 Lab'!$J$5 -> 1 | K63: ='Course 5 Lab'!$K$5 -> 2 | L63: ='Course 5 Lab'!$L$5 -> 2 | M63: ='Course 5 Lab'!$M$5 -> 4 | N63: ='Course 5 Lab'!$N$5 -> 1 | O63: ='Course 5 Lab'!$O$5 -> 1 | P63: ='Course 5 Lab'!$P$5 -> 1 | Q63: ='Course 5 Lab'!$Q$5 -> 1 | R63: ='Course 5 Lab'!$R$5 ->  | S63: ='Course 5 Lab'!$S$5 -> Required | T63: ='Course 5 Lab'!$T$5 -> Lab
A64: ='Course 5 Lab'!$A$6 -> ID | B64: ='Course 5 Lab'!$B$6 -> First: | C64: ='Course 5 Lab'!$C$6 -> Last: | D64: ='Course 5 Lab'!$D$6 -> 150 | E64: ='Course 5 Lab'!$E$6 -> 40 | F64: ='Course 5 Lab'!$F$6 -> 150 | G64: ='Course 5 Lab'!$G$6 -> 80 | H64: ='Course 5 Lab'!$H$6 -> 40 | I64: ='Course 5 Lab'!$I$6 -> 50 | J64: ='Course 5 Lab'!$J$6 -> 30 | K64: ='Course 5 Lab'!$K$6 -> 30 | L64: ='Course 5 Lab'!$L$6 -> 40 | M64: ='Course 5 Lab'!$M$6 -> 80 | N64: ='Course 5 Lab'!$N$6 -> 40 | O64: ='Course 5 Lab'!$O$6 -> 80 | P64: ='Course 5 Lab'!$P$6 -> 80 | Q64: ='Course 5 Lab'!$Q$6 -> 80 | R64: ='Course 5 Lab'!$R$6 -> 300 | S64: ='Course 5 Lab'!$S$6 -> * | T64: ='Course 5 Lab'!$T$6 -> Points | U64: ='Course 5 Lab'!$U$6 -> %
A65: ='Course 5 Lab'!$A$7 -> 00000001 | B65: ='Course 5 Lab'!$B$7 -> Student | C65: ='Course 5 Lab'!$C$7 -> One | D65: ='Course 5 Lab'!$D$7 -> 0 | E65: ='Course 5 Lab'!$E$7 -> 0 | F65: ='Course 5 Lab'!$F$7 -> 0 | G65: ='Course 5 Lab'!$G$7 -> 0 | H65: ='Course 5 Lab'!$H$7 -> 0 | I65: ='Course 5 Lab'!$I$7 -> 0 | J65: ='Course 5 Lab'!$J$7 -> 0 | K65: ='Course 5 Lab'!$K$7 -> 0 | L65: ='Course 5 Lab'!$L$7 -> 0 | M65: ='Course 5 Lab'!$M$7 -> 0 | N65: ='Course 5 Lab'!$N$7 -> 0 | O65: ='Course 5 Lab'!$O$7 -> 0 | P65: ='Course 5 Lab'!$P$7 -> 0 | Q65: ='Course 5 Lab'!$Q$7 -> 0 | R65: ='Course 5 Lab'!$R$7 -> 0 | S65: ='Course 5 Lab'!$S$7 -> 1 | T65: ='Course 5 Lab'!$T$7 -> 0 | U65: ='Course 5 Lab'!$U$7 -> 0%

Sheet Student 2
A1: ='Student 1'!$A$1 -> Course 1 Engine Diagnosis. Class | H1: ='Student 1'!$H$1 -> 25
A2: ='Student 1'!$A$2 -> Date assignment is due | C2: ='Student 1'!$C$2 ->  | D2: ='Student 1'!$D$2 -> TBD | E2: ='Student 1'!$E$2 -> TBD | F2: ='Student 1'!$F$2 -> TBD | G2: ='Student 1'!$G$2 -> TBD | H2: ='Student 1'!$H$2 -> TBD | I2: ='Student 1'!$I$2 -> TBD
A3: ='Student 1'!$A$3 -> Class Room Points: | C3: ='Student 1'!$C$3 -> 160 | D3: ='Student 1'!$D$3 -> 20 | E3: ='Student 1'!$E$3 -> 20 | F3: ='Student 1'!$F$3 -> 20 | G3: ='Student 1'!$G$3 -> 25 | H3: ='Student 1'!$H$3 ->  | I3: ='Student 1'!$I$3 -> 75 | J3: ='Student 1'!$J$3 -> Evaluation
A4: ='Student 1'!$A$4 -> Red is late turn-in | C4: ='Student 1'!$C$4 -> Blue is absent | D4: ='Student 1'!$D$4 -> CH 13 | E4: ='Student 1'!$E$4 -> Lube | F4: ='Student 1'!$F$4 -> Lube | G4: ='Student 1'!$G$4 -> Condition | H4: ='Student 1'!$H$4 -> Extra | I4: ='Student 1'!$I$4 -> Final | J4: ='Student 1'!$J$4 -> Classroom | L4: ='Student 1'!$L$4 -> Professionalism | O4: ='Student 1'!$O$4 -> Lab | Q4: ='Student 1'!$Q$4 -> Total | R4: ='Student 1'!$R$4 -> Letter
A5: ='Student 1'!$A$5 -> I D | B5: ='Student 1'!$B$5 -> First: | C5: ='Student 1'!$C$5 -> Last: | D5: ='Student 1'!$D$5 -> Test | E5: ='Student 1'!$E$5 -> HW | F5: ='Student 1'!$F$5 -> Test | G5: ='Student 1'!$G$5 -> Class | H5: ='Student 1'!$H$5 -> Credit | I5: ='Student 1'!$I$5 -> Test | J5: ='Student 1'!$J$5 -> Points | K5: ='Student 1'!$K$5 -> % | L5: ='Student 1'!$L$5 -> Attendance | M5: ='Student 1'!$M$5 -> Points | N5: ='Student 1'!$N$5 -> % | O5: ='Student 1'!$O$5 -> Points | P5: ='Student 1'!$P$5 -> % | Q5: ='Student 1'!$Q$5 -> % | R5: ='Student 1'!$R$5 -> Grade
A6: ='Course 1 Class'!$A$7 -> 00000002 | B6: ='Course 1 Class'!$B$7 -> Student | C6: ='Course 1 Class'!$C$7 -> Two | D6: ='Course 1 Class'!$D$7 -> 0 | E6: ='Course 1 Class'!$E$7 -> 0 | F6: ='Course 1 Class'!$F$7 -> 0 | G6: ='Course 1 Class'!$G$7 -> 0 | H6: ='Course 1 Class'!$H$7 -> 0 | I6: ='Course 1 Class'!$I$7 -> 0 | J6: ='Course 1 Class'!$J$7 -> 0 | K6: ='Course 1 Class'!$K$7 -> 0% | L6: ='Course 1 Class'!$L$7 -> 93% | M6: ='Course 1 Class'!$M$7 -> 71.57142857 | N6: ='Course 1 Class'!$N$7 -> 99% | O6: ='Course 1 Class'!$O$7 -> 0 | P6: ='Course 1 Class'!$P$7 -> 0% | Q6: ='Course 1 Class'!$Q$7 -> 25% | R6: ='Course 1 Class'!$R$7 -> F
A7: ='Student 1'!$A$7 -> Course 1 Engine Diagnosis. Lab
A8: ='Student 1'!$A$8 -> Max Shop Points: | C8: ='Student 1'!$C$8 -> 1325 | D8: ='Student 1'!$D$8 -> Dry | E8: ='Student 1'!$E$8 -> Wet | F8: ='Student 1'!$F$8 -> Running | G8: ='Student 1'!$G$8 -> Cylinder | H8: ='Student 1'!$H$8 -> Oil | I8: ='Student 1'!$I$8 -> Cooling | J8: ='Student 1'!$J$8 -> Vacuum | K8: ='Student 1'!$K$8 -> PCV | L8: ='Student 1'!$L$8 -> Thermostat | M8: ='Student 1'!$M$8 -> Fluid | N8: ='Student 1'!$N$8 -> Diag | O8: ='Student 1'!$O$8 -> 
A9: ='Student 1'!$A$9 -> Max shop points available depend on how much customer work is done. | D9: ='Student 1'!$D$9 -> Compr | E9: ='Student 1'!$E$9 -> Compr | F9: ='Student 1'!$F$9 -> Compr | G9: ='Student 1'!$G$9 -> Leakage | H9: ='Student 1'!$H$9 -> Pressure | I9: ='Student 1'!$I$9 -> System | J9: ='Student 1'!$J$9 -> Gauge | K9: ='Student 1'!$K$9 -> System | L9: ='Student 1'!$L$9 -> and fan | M9: ='Student 1'!$M$9 -> Leak | N9: ='Student 1'!$N$9 -> gauges | O9: ='Student 1'!$O$9 -> Cus | P9: ='Student 1'!$P$9 -> Comp
D10: ='Student 1'!$D$10 -> Test | E10: ='Student 1'!$E$10 -> Test | F10: ='Student 1'!$F$10 -> Test | G10: ='Student 1'!$G$10 -> Test | H10: ='Student 1'!$H$10 -> Test | I10: ='Student 1'!$I$10 -> Test | J10: ='Student 1'!$J$10 -> Test | K10: ='Student 1'!$K$10 -> Check | L10: ='Student 1'!$L$10 -> Operation | M10: ='Student 1'!$M$10 -> Check | N10: ='Student 1'!$N$10 -> any vehicle | O10: ='Student 1'!$O$10 -> tomer | P10: ='Student 1'!$P$10 -> etency | Q10: ='Student 1'!$Q$10 ->  | R10: ='Student 1'!$R$10 -> 
D11: ='Student 1'!$D$11 -> 2 | E11: ='Student 1'!$E$11 -> 2 | F11: ='Student 1'!$F$11 -> 2 | G11: ='Student 1'!$G$11 -> 2 | H11: ='Student 1'!$H$11 -> 2 | I11: ='Student 1'!$I$11 -> 2 | J11: ='Student 1'!$J$11 -> 2 | K11: ='Student 1'!$K$11 -> 2 | L11: ='Student 1'!$L$11 -> 2 | M11: ='Student 1'!$M$11 -> 1 | N11: ='Student 1'!$N$11 -> 1 | O11: ='Student 1'!$O$11 -> Work | P11: ='Student 1'!$P$11 -> 0 or 1 | Q11: ='Student 1'!$Q$11 -> Lab
A12: ='Student 1'!$A$12 -> ID | B12: ='Student 1'!$B$12 -> First: | C12: ='Student 1'!$C$12 -> Last: | D12: ='Student 1'!$D$12 -> 100 | E12: ='Student 1'!$E$12 -> 100 | F12: ='Student 1'!$F$12 -> 100 | G12: ='Student 1'!$G$12 -> 100 | H12: ='Student 1'!$H$12 -> 100 | I12: ='Student 1'!$I$12 -> 150 | J12: ='Student 1'!$J$12 -> 100 | K12: ='Student 1'!$K$12 -> 50 | L12: ='Student 1'!$L$12 -> 100 | M12: ='Student 1'!$M$12 -> 25 | N12: ='Student 1'!$N$12 -> 100 | O12: ='Student 1'!$O$12 -> 300 | P12: ='Student 1'!$P$12 -> * | Q12: ='Student 1'!$Q$12 -> Points | R12: ='Student 1'!$R$12 -> %
A13: ='Course 1 Lab'!$A$8 -> 00000002 | B13: ='Course 1 Lab'!$B$8 -> Student | C13: ='Course 1 Lab'!$C$8 -> Two | D13: ='Course 1 Lab'!$D$8 -> 0 | E13: ='Course 1 Lab'!$E$8 -> 0 | F13: ='Course 1 Lab'!$F$8 -> 0 | G13: ='Course 1 Lab'!$G$8 -> 0 | H13: ='Course 1 Lab'!$H$8 -> 0 | I13: ='Course 1 Lab'!$I$8 -> 0 | J13: ='Course 1 Lab'!$J$8 -> 0 | K13: ='Course 1 Lab'!$K$8 -> 0 | L13: ='Course 1 Lab'!$L$8 -> 0 | M13: ='Course 1 Lab'!$M$8 -> 0 | N13: ='Course 1 Lab'!$N$8 -> 0 | O13: ='Course 1 Lab'!$O$8 -> 0 | P13: ='Course 1 Lab'!$P$8 -> 1 | Q13: ='Course 1 Lab'!$Q$8 -> 0 | R13: ='Course 1 Lab'!$R$8 -> 0%
A14: ='Student 1'!$A$14 -> Course 2 Engine Theory & Repair. Class | J14: ='Student 1'!$J$14 -> 25
A15: ='Student 1'!$A$15 ->  | B15: ='Student 1'!$B$15 -> Date assignment is due: | D15: ='Student 1'!$D$15 -> TBD | E15: ='Student 1'!$E$15 -> TBD | F15: ='Student 1'!$F$15 -> TBD | G15: ='Student 1'!$G$15 -> TBD | H15: ='Student 1'!$H$15 -> TBD | I15: ='Student 1'!$I$15 -> TBD | J15: ='Student 1'!$J$15 -> TBD | K15: ='Student 1'!$K$15 -> TBD
A16: ='Student 1'!$A$16 -> Class Room Points: | C16: ='Student 1'!$C$16 -> 201 | D16: ='Student 1'!$D$16 -> 10 | E16: ='Student 1'!$E$16 -> 10 | F16: ='Student 1'!$F$16 -> 20 | G16: ='Student 1'!$G$16 -> 20 | H16: ='Student 1'!$H$16 -> 16 | I16: ='Student 1'!$I$16 -> 25 | J16: ='Student 1'!$J$16 ->  | K16: ='Student 1'!$K$16 -> 100 | L16: ='Student 1'!$L$16 -> Evaluation
A17: ='Student 1'!$A$17 -> Red is late turn-in | C17: ='Student 1'!$C$17 -> Blue is absent | D17: ='Student 1'!$D$17 -> HW | E17: ='Student 1'!$E$17 -> HW | F17: ='Student 1'!$F$17 -> Test | G17: ='Student 1'!$G$17 -> Test | H17: ='Student 1'!$H$17 -> HW | I17: ='Student 1'!$I$17 -> Test | J17: ='Student 1'!$J$17 -> Extra | K17: ='Student 1'!$K$17 -> Final | L17: ='Student 1'!$L$17 -> Class | N17: ='Student 1'!$N$17 -> Professionalism | Q17: ='Student 1'!$Q$17 -> Lab | S17: ='Student 1'!$S$17 -> Total | T17: ='Student 1'!$T$17 -> Letter
A18: ='Student 1'!$A$18 -> I D | B18: ='Student 1'!$B$18 -> First: | C18: ='Student 1'!$C$18 -> Last: | D18: ='Student 1'!$D$18 -> CH 7 | E18: ='Student 1'!$E$18 -> CH 14 | F18: ='Student 1'!$F$18 -> C & L | G18: ='Student 1'!$G$18 -> CH 18 | H18: ='Student 1'!$H$18 -> CH 22 | I18: ='Student 1'!$I$18 -> CH 22 | J18: ='Student 1'!$J$18 -> Credit | K18: ='Student 1'!$K$18 -> TEST | L18: ='Student 1'!$L$18 -> Points | M18: ='Student 1'!$M$18 -> % | N18: ='Student 1'!$N$18 -> Attendance | O18: ='Student 1'!$O$18 -> Points | P18: ='Student 1'!$P$18 -> % | Q18: ='Student 1'!$Q$18 -> Points | R18: ='Student 1'!$R$18 -> % | S18: ='Student 1'!$S$18 -> % | T18: ='Student 1'!$T$18 -> Grade
A19: ='Course 2 Class'!$A$7 -> 00000002 | B19: ='Course 2 Class'!$B$7 -> Student | C19: ='Course 2 Class'!$C$7 -> Two | D19: ='Course 2 Class'!$D$7 -> 0 | E19: ='Course 2 Class'!$E$7 -> 0 | F19: ='Course 2 Class'!$F$7 -> 0 | G19: ='Course 2 Class'!$G$7 -> 0 | H19: ='Course 2 Class'!$H$7 -> 0 | I19: ='Course 2 Class'!$I$7 -> 0 | J19: ='Course 2 Class'!$J$7 -> 0 | K19: ='Course 2 Class'!$K$7 -> 0 | L19: ='Course 2 Class'!$L$7 -> 0 | M19: ='Course 2 Class'!$M$7 -> 0% | N19: ='Course 2 Class'!$N$7 -> 93% | O19: ='Course 2 Class'!$O$7 -> 71.57142857 | P19: ='Course 2 Class'!$P$7 -> 99% | Q19: ='Course 2 Class'!$Q$7 -> 0 | R19: ='Course 2 Class'!$R$7 -> 0% | S19: ='Course 2 Class'!$S$7 -> 25% | T19: ='Course 2 Class'!$T$7 -> F
A20: ='Student 1'!$A$20 -> Course 2 Engine Theory & Repair. Lab
A21: ='Student 1'!$A$21 -> Max Shop Points: | C21: ='Student 1'!$C$21 -> 1450 | D21: ='Student 1'!$D$21 -> Engine | E21: ='Student 1'!$E$21 -> Cylinder | F21: ='Student 1'!$F$21 -> Red | G21: ='Student 1'!$G$21 -> Mitsubishi | H21: ='Student 1'!$H$21 -> Any | I21: ='Student 1'!$I$21 -> DOHC | J21: ='Student 1'!$J$21 -> Valve seal | K21: ='Student 1'!$K$21 -> Misc. | L21: ='Student 1'!$L$21 -> 
A22: ='Student 1'!$A$22 -> Max shop points available depend on how much customer work is done. | D22: ='Student 1'!$D$22 -> Disassemble | E22: ='Student 1'!$E$22 -> Head | F22: ='Student 1'!$F$22 -> Dodge | G22: ='Student 1'!$G$22 -> "3.0L" | H22: ='Student 1'!$H$22 -> Engine | I22: ='Student 1'!$I$22 -> Engine | J22: ='Student 1'!$J$22 -> & | K22: ='Student 1'!$K$22 -> Engine | L22: ='Student 1'!$L$22 -> Cus | M22: ='Student 1'!$M$22 -> Comp
D23: ='Student 1'!$D$23 -> & Measure | E23: ='Student 1'!$E$23 -> Repair | F23: ='Student 1'!$F$23 -> Clip | G23: ='Student 1'!$G$23 -> Clip | H23: ='Student 1'!$H$23 -> T-chain | I23: ='Student 1'!$I$23 -> Stand | J23: ='Student 1'!$J$23 -> Lobe lift | K23: ='Student 1'!$K$23 -> Points | L23: ='Student 1'!$L$23 -> tomer | M23: ='Student 1'!$M$23 -> etency | N23: ='Student 1'!$N$23 ->  | O23: ='Student 1'!$O$23 -> 
D24: ='Student 1'!$D$24 -> 1 | E24: ='Student 1'!$E$24 -> 1 | F24: ='Student 1'!$F$24 -> 1 | G24: ='Student 1'!$G$24 -> 1 | H24: ='Student 1'!$H$24 -> 1 | I24: ='Student 1'!$I$24 -> 1 | J24: ='Student 1'!$J$24 -> 1 | L24: ='Student 1'!$L$24 -> Work | M24: ='Student 1'!$M$24 -> 0 or 1 | N24: ='Student 1'!$N$24 -> Lab
A25: ='Student 1'!$A$25 -> ID | B25: ='Student 1'!$B$25 -> First: | C25: ='Student 1'!$C$25 -> Last: | D25: ='Student 1'!$D$25 -> 300 | E25: ='Student 1'!$E$25 -> 200 | F25: ='Student 1'!$F$25 -> 100 | G25: ='Student 1'!$G$25 -> 100 | H25: ='Student 1'!$H$25 -> 100 | I25: ='Student 1'!$I$25 -> 100 | J25: ='Student 1'!$J$25 -> 50 | K25: ='Student 1'!$K$25 -> 200 | L25: ='Student 1'!$L$25 -> 300 | M25: ='Student 1'!$M$25 -> * | N25: ='Student 1'!$N$25 -> Points | O25: ='Student 1'!$O$25 -> %
A26: ='Course 2 Lab'!$A$8 -> 00000002 | B26: ='Course 2 Lab'!$B$8 -> Student | C26: ='Course 2 Lab'!$C$8 -> Two | D26: ='Course 2 Lab'!$D$8 -> 0 | E26: ='Course 2 Lab'!$E$8 -> 0 | F26: ='Course 2 Lab'!$F$8 -> 0 | G26: ='Course 2 Lab'!$G$8 -> 0 | H26: ='Course 2 Lab'!$H$8 -> 0 | I26: ='Course 2 Lab'!$I$8 -> 0 | J26: ='Course 2 Lab'!$J$8 -> 0 | K26: ='Course 2 Lab'!$K$8 -> 0 | L26: ='Course 2 Lab'!$L$8 -> 0 | M26: ='Course 2 Lab'!$M$8 -> 1 | N26: ='Course 2 Lab'!$N$8 -> 0 | O26: ='Course 2 Lab'!$O$8 -> 0%
A27: ='Student 1'!$A$27 -> Course 3 Steering & Suspension. Class. | M27: ='Student 1'!$M$27 -> 25
A28: ='Student 1'!$A$28 ->  | B28: ='Student 1'!$B$28 -> Date assignment is due: | D28: ='Student 1'!$D$28 -> 1/18 | E28: ='Student 1'!$E$28 -> 2/2 | F28: ='Student 1'!$F$28 -> TBD | G28: ='Student 1'!$G$28 -> TBD | H28: ='Student 1'!$H$28 -> TBD | I28: ='Student 1'!$I$28 -> TBD | J28: ='Student 1'!$J$28 -> TBD | K28: ='Student 1'!$K$28 -> TBD | L28: ='Student 1'!$L$28 -> TBD | M28: ='Student 1'!$M$28 -> TBD | N28: ='Student 1'!$N$28 -> TBD
A29: ='Student 1'!$A$29 -> Class Room Points: | C29: ='Student 1'!$C$29 -> 330 | D29: ='Student 1'!$D$29 -> 20 | E29: ='Student 1'!$E$29 -> 20 | F29: ='Student 1'!$F$29 -> 24 | G29: ='Student 1'!$G$29 -> 20 | H29: ='Student 1'!$H$29 -> 25 | I29: ='Student 1'!$I$29 -> 30 | J29: ='Student 1'!$J$29 -> 20 | K29: ='Student 1'!$K$29 -> 26 | L29: ='Student 1'!$L$29 -> 45 | M29: ='Student 1'!$M$29 ->  | N29: ='Student 1'!$N$29 -> 100 | O29: ='Student 1'!$O$29 -> Evaluation
A30: ='Student 1'!$A$30 -> Red is late turn-in | C30: ='Student 1'!$C$30 -> Blue is absent | D30: ='Student 1'!$D$30 -> HW | E30: ='Student 1'!$E$30 -> HW | F30: ='Student 1'!$F$30 -> HW | G30: ='Student 1'!$G$30 -> QZ | H30: ='Student 1'!$H$30 -> HW | I30: ='Student 1'!$I$30 -> HW | J30: ='Student 1'!$J$30 -> Test | K30: ='Student 1'!$K$30 -> HW | L30: ='Student 1'!$L$30 -> Class | M30: ='Student 1'!$M$30 -> Extra | N30: ='Student 1'!$N$30 -> Final | O30: ='Student 1'!$O$30 -> Class | Q30: ='Student 1'!$Q$30 -> Professionalism | T30: ='Student 1'!$T$30 -> Lab | V30: ='Student 1'!$V$30 -> Total | W30: ='Student 1'!$W$30 -> Letter
A31: ='Student 1'!$A$31 -> I D | B31: ='Student 1'!$B$31 -> First: | C31: ='Student 1'!$C$31 -> Last: | D31: ='Student 1'!$D$31 -> CH 1 | E31: ='Student 1'!$E$31 -> CH 2 | F31: ='Student 1'!$F$31 -> CH 3 | G31: ='Student 1'!$G$31 -> 1 | H31: ='Student 1'!$H$31 -> CH 6 | I31: ='Student 1'!$I$31 -> CH 9 | J31: ='Student 1'!$J$31 -> 1 – 9 | K31: ='Student 1'!$K$31 -> CH 12 | L31: ='Student 1'!$L$31 -> Project | M31: ='Student 1'!$M$31 -> Credit | N31: ='Student 1'!$N$31 -> TEST | O31: ='Student 1'!$O$31 -> Points | P31: ='Student 1'!$P$31 -> % | Q31: ='Student 1'!$Q$31 -> Attendance | R31: ='Student 1'!$R$31 -> Points | S31: ='Student 1'!$S$31 -> % | T31: ='Student 1'!$T$31 -> Points | U31: ='Student 1'!$U$31 -> % | V31: ='Student 1'!$V$31 -> % | W31: ='Student 1'!$W$31 -> Grade
A32: ='Course 3 Class'!$A$7 -> 00000002 | B32: ='Course 3 Class'!$B$7 -> Student | C32: ='Course 3 Class'!$C$7 -> Two | D32: ='Course 3 Class'!$D$7 -> 0 | E32: ='Course 3 Class'!$E$7 -> 0 | F32: ='Course 3 Class'!$F$7 -> 0 | G32: ='Course 3 Class'!$G$7 -> 0 | H32: ='Course 3 Class'!$H$7 -> 0 | I32: ='Course 3 Class'!$I$7 -> 0 | J32: ='Course 3 Class'!$J$7 -> 0 | K32: ='Course 3 Class'!$K$7 -> 0 | L32: ='Course 3 Class'!$L$7 -> 0 | M32: ='Course 3 Class'!$M$7 -> 0 | N32: ='Course 3 Class'!$N$7 -> 0 | O32: ='Course 3 Class'!$O$7 -> 0 | P32: ='Course 3 Class'!$P$7 -> 0% | Q32: ='Course 3 Class'!$Q$7 -> 93% | R32: ='Course 3 Class'!$R$7 -> 71.57142857 | S32: ='Course 3 Class'!$S$7 -> 99% | T32: ='Course 3 Class'!$T$7 -> 0 | U32: ='Course 3 Class'!$U$7 -> 0% | V32: ='Course 3 Class'!$V$7 -> 25% | W32: ='Course 3 Class'!$W$7 -> F
A33: ='Student 1'!$A$33 -> Course 3 Steering & Suspension. Lab
A34: ='Student 1'!$A$34 -> Max shop points | C34: ='Student 1'!$C$34 -> 1350 | D34: ='Student 1'!$D$34 -> Repair | E34: ='Student 1'!$E$34 -> Identify | F34: ='Student 1'!$F$34 -> Repair | G34: ='Student 1'!$G$34 -> Identify | H34: ='Student 1'!$H$34 -> Repair | I34: ='Student 1'!$I$34 -> R&R | J34: ='Student 1'!$J$34 -> R&R | K34: ='Student 1'!$K$34 -> R&R | L34: ='Student 1'!$L$34 -> P/S | M34: ='Student 1'!$M$34 -> R&R | N34: ='Student 1'!$N$34 -> NVH | O34: ='Student 1'!$O$34 -> 
A35: ='Student 1'!$A$35 -> Max shop points available depend on how much customer work is done. | D35: ='Student 1'!$D$35 -> SLA | E35: ='Student 1'!$E$35 -> SLA | F35: ='Student 1'!$F$35 -> Mac-P | G35: ='Student 1'!$G$35 -> Mac-P | H35: ='Student 1'!$H$35 -> Rear | I35: ='Student 1'!$I$35 -> Rack & | J35: ='Student 1'!$J$35 -> Recirc. | K35: ='Student 1'!$K$35 -> P/S | L35: ='Student 1'!$L$35 -> Pump | M35: ='Student 1'!$M$35 -> Inner | N35: ='Student 1'!$N$35 -> Runout & | O35: ='Student 1'!$O$35 -> Cus | P35: ='Student 1'!$P$35 -> Comp
D36: ='Student 1'!$D$36 -> Susp | E36: ='Student 1'!$E$36 -> Parts | F36: ='Student 1'!$F$36 -> Susp | G36: ='Student 1'!$G$36 -> Parts | H36: ='Student 1'!$H$36 -> Susp | I36: ='Student 1'!$I$36 -> Pinion | J36: ='Student 1'!$J$36 -> Gear | K36: ='Student 1'!$K$36 -> Pump | L36: ='Student 1'!$L$36 -> Test | M36: ='Student 1'!$M$36 -> Tie-Rod | N36: ='Student 1'!$N$36 -> bal. Check | O36: ='Student 1'!$O$36 -> tomer | P36: ='Student 1'!$P$36 -> etency | Q36: ='Student 1'!$Q$36 ->  | R36: ='Student 1'!$R$36 ->  | U36: ='Student 1'!$U$36 -> Final Grade
D37: ='Student 1'!$D$37 -> 1 | E37: ='Student 1'!$E$37 -> 2 | F37: ='Student 1'!$F$37 -> 3 | G37: ='Student 1'!$G$37 -> 2 | H37: ='Student 1'!$H$37 -> 1 | I37: ='Student 1'!$I$37 -> 1 | J37: ='Student 1'!$J$37 -> 1 | K37: ='Student 1'!$K$37 -> 1 | L37: ='Student 1'!$L$37 -> 1 | M37: ='Student 1'!$M$37 -> 1 | N37: ='Student 1'!$N$37 -> 1 | O37: ='Student 1'!$O$37 -> Work | P37: ='Student 1'!$P$37 -> 0 or 1 | Q37: ='Student 1'!$Q$37 -> Lab | U37: ='Student 1'!$U$37 -> 0% | V37: ='Student 1'!$V$37 -> F
A38: ='Student 1'!$A$38 -> ID | B38: ='Student 1'!$B$38 -> First: | C38: ='Student 1'!$C$38 -> Last: | D38: ='Student 1'!$D$38 -> 150 | E38: ='Student 1'!$E$38 -> 50 | F38: ='Student 1'!$F$38 -> 225 | G38: ='Student 1'!$G$38 -> 50 | H38: ='Student 1'!$H$38 -> 50 | I38: ='Student 1'!$I$38 -> 150 | J38: ='Student 1'!$J$38 -> 125 | K38: ='Student 1'!$K$38 -> 50 | L38: ='Student 1'!$L$38 -> 50 | M38: ='Student 1'!$M$38 -> 50 | N38: ='Student 1'!$N$38 -> 100 | O38: ='Student 1'!$O$38 -> 300 | P38: ='Student 1'!$P$38 -> * | Q38: ='Student 1'!$Q$38 -> Points | R38: ='Student 1'!$R$38 -> % | U38: ='Student 1'!$U$38 -> 70% | V38: ='Student 1'!$V$38 -> D-
A39: ='Course 3 Lab'!$A$8 -> 00000002 | B39: ='Course 3 Lab'!$B$8 -> Student | C39: ='Course 3 Lab'!$C$8 -> Two | D39: ='Course 3 Lab'!$D$8 -> 0 | E39: ='Course 3 Lab'!$E$8 -> 0 | F39: ='Course 3 Lab'!$F$8 -> 0 | G39: ='Course 3 Lab'!$G$8 -> 0 | H39: ='Course 3 Lab'!$H$8 -> 0 | I39: ='Course 3 Lab'!$I$8 -> 0 | J39: ='Course 3 Lab'!$J$8 -> 0 | K39: ='Course 3 Lab'!$K$8 -> 0 | L39: ='Course 3 Lab'!$L$8 -> 0 | M39: ='Course 3 Lab'!$M$8 -> 0 | N39: ='Course 3 Lab'!$N$8 -> 0 | O39: ='Course 3 Lab'!$O$8 -> 0 | P39: ='Course 3 Lab'!$P$8 -> 1 | Q39: ='Course 3 Lab'!$Q$8 -> 0 | R39: ='Course 3 Lab'!$R$8 -> 0% | U39: ='Student 1'!$U$39 -> 72% | V39: ='Student 1'!$V$39 -> D
A40: ='Student 1'!$A$40 -> Course 4 Alignment. Class. | I40: ='Student 1'!$I$40 -> 25 | U40: ='Student 1'!$U$40 -> 74% | V40: ='Student 1'!$V$40 -> D+
A41: ='Student 1'!$A$41 ->  | B41: ='Student 1'!$B$41 -> Date assignment is due | D41: ='Student 1'!$D$41 -> TBD | E41: ='Student 1'!$E$41 -> TBD | F41: ='Student 1'!$F$41 -> TBD | G41: ='Student 1'!$G$41 -> TBD | H41: ='Student 1'!$H$41 -> TBD | I41: ='Student 1'!$I$41 -> TBD | J41: ='Student 1'!$J$41 -> TBD | U41: ='Student 1'!$U$41 -> 76% | V41: ='Student 1'!$V$41 -> C-
A42: ='Student 1'!$A$42 -> Class Room Points: | C42: ='Student 1'!$C$42 -> 235 | D42: ='Student 1'!$D$42 -> 25 | E42: ='Student 1'!$E$42 -> 25 | F42: ='Student 1'!$F$42 -> 20 | G42: ='Student 1'!$G$42 -> 40 | H42: ='Student 1'!$H$42 -> 50 | I42: ='Student 1'!$I$42 ->  | J42: ='Student 1'!$J$42 -> 75 | K42: ='Student 1'!$K$42 -> Evaluation | U42: ='Student 1'!$U$42 -> 79% | V42: ='Student 1'!$V$42 -> C
A43: ='Student 1'!$A$43 -> Red is late turn-in | C43: ='Student 1'!$C$43 -> Blue is absent | D43: ='Student 1'!$D$43 -> CH 16 | E43: ='Student 1'!$E$43 -> CH 16 | F43: ='Student 1'!$F$43 -> Align | G43: ='Student 1'!$G$43 -> In class | H43: ='Student 1'!$H$43 -> In class | I43: ='Student 1'!$I$43 -> Extra | J43: ='Student 1'!$J$43 -> Final | K43: ='Student 1'!$K$43 -> Class | M43: ='Student 1'!$M$43 -> Professionalism | P43: ='Student 1'!$P$43 -> Lab | R43: ='Student 1'!$R$43 -> Total | S43: ='Student 1'!$S$43 -> Letter | U43: ='Student 1'!$U$43 -> 82% | V43: ='Student 1'!$V$43 -> C+
A44: ='Student 1'!$A$44 -> I D | B44: ='Student 1'!$B$44 -> First: | C44: ='Student 1'!$C$44 -> Last: | D44: ='Student 1'!$D$44 -> HW | E44: ='Student 1'!$E$44 -> Test | F44: ='Student 1'!$F$44 -> HW | G44: ='Student 1'!$G$44 -> Project1 | H44: ='Student 1'!$H$44 -> Project2 | I44: ='Student 1'!$I$44 -> Credit | J44: ='Student 1'!$J$44 -> Test | K44: ='Student 1'!$K$44 -> Points | L44: ='Student 1'!$L$44 -> % | M44: ='Student 1'!$M$44 -> Attendance | N44: ='Student 1'!$N$44 -> Points | O44: ='Student 1'!$O$44 -> % | P44: ='Student 1'!$P$44 -> Points | Q44: ='Student 1'!$Q$44 -> % | R44: ='Student 1'!$R$44 -> % | S44: ='Student 1'!$S$44 -> Grade | U44: ='Student 1'!$U$44 -> 85% | V44: ='Student 1'!$V$44 -> B-
A45: ='Course 4 Class'!$A$7 -> 00000002 | B45: ='Course 4 Class'!$B$7 -> Student | C45: ='Course 4 Class'!$C$7 -> Two | D45: ='Course 4 Class'!$D$7 -> 0 | E45: ='Course 4 Class'!$E$7 -> 0 | F45: ='Course 4 Class'!$F$7 -> 0 | G45: ='Course 4 Class'!$G$7 -> 0 | H45: ='Course 4 Class'!$H$7 -> 0 | I45: ='Course 4 Class'!$I$7 -> 0 | J45: ='Course 4 Class'!$J$7 -> 0 | K45: ='Course 4 Class'!$K$7 -> 0 | L45: ='Course 4 Class'!$L$7 -> 0% | M45: ='Course 4 Class'!$M$7 -> 93% | N45: ='Course 4 Class'!$N$7 -> 71.57142857 | O45: ='Course 4 Class'!$O$7 -> 99% | P45: ='Course 4 Class'!$P$7 -> 0 | Q45: ='Course 4 Class'!$Q$7 -> 0% | R45: ='Course 4 Class'!$R$7 -> 25% | S45: ='Course 4 Class'!$S$7 -> F | U45: ='Student 1'!$U$45 -> 88% | V45: ='Student 1'!$V$45 -> B
A46: ='Student 1'!$A$46 -> Course 4 Alignment. Lab | U46: ='Student 1'!$U$46 -> 90% | V46: ='Student 1'!$V$46 -> B+
A47: ='Student 1'!$A$47 -> Max Shop Points: | C47: ='Student 1'!$C$47 -> 1300 | D47: ='Student 1'!$D$47 -> Alignment | E47: ='Student 1'!$E$47 -> Complete | F47: ='Student 1'!$F$47 -> Cus | G47: ='Student 1'!$G$47 ->  | U47: ='Student 1'!$U$47 -> 93% | V47: ='Student 1'!$V$47 -> A-
A48: ='Student 1'!$A$48 -> Max shop points available depend on how much customer work is done. | D48: ='Student 1'!$D$48 -> Pre-check | E48: ='Student 1'!$E$48 -> Wheel | F48: ='Student 1'!$F$48 -> tomer | G48: ='Student 1'!$G$48 -> Comp | U48: ='Student 1'!$U$48 -> 95% | V48: ='Student 1'!$V$48 -> A
D49: ='Student 1'!$D$49 -> 100 P | E49: ='Student 1'!$E$49 -> Alignment | F49: ='Student 1'!$F$49 -> Work | G49: ='Student 1'!$G$49 -> etency | H49: ='Student 1'!$H$49 ->  | I49: ='Student 1'!$I$49 ->  | U49: ='Student 1'!$U$49 -> 100% | V49: ='Student 1'!$V$49 -> A
D50: ='Student 1'!$D$50 -> 1 | E50: ='Student 1'!$E$50 -> 1 | F50: ='Student 1'!$F$50 ->  | G50: ='Student 1'!$G$50 -> 0 or 1 | H50: ='Student 1'!$H$50 -> Lab
A51: ='Student 1'!$A$51 -> ID | B51: ='Student 1'!$B$51 -> First: | C51: ='Student 1'!$C$51 -> Last: | D51: ='Student 1'!$D$51 -> 100 | E51: ='Student 1'!$E$51 -> 900 | F51: ='Student 1'!$F$51 -> 300 | G51: ='Student 1'!$G$51 -> * | H51: ='Student 1'!$H$51 -> Points | I51: ='Student 1'!$I$51 -> %
A52: ='Course 4 Lab'!$A$8 -> 00000002 | B52: ='Course 4 Lab'!$B$8 -> Student | C52: ='Course 4 Lab'!$C$8 -> Two | D52: ='Course 4 Lab'!$D$8 -> 0 | E52: ='Course 4 Lab'!$E$8 -> 0 | F52: ='Course 4 Lab'!$F$8 -> 0 | G52: ='Course 4 Lab'!$G$8 -> 1 | H52: ='Course 4 Lab'!$H$8 -> 0 | I52: ='Course 4 Lab'!$I$8 -> 0%
A53: ='Student 1'!$A$53 -> Course 5 Brake Systems. Class. | L53: ='Student 1'!$L$53 -> 35
A54: ='Student 1'!$A$54 -> Date assignment is due: | C54: ='Student 1'!$C$54 ->  | D54: ='Student 1'!$D$54 -> TBD | E54: ='Student 1'!$E$54 -> TBD | F54: ='Student 1'!$F$54 -> TBD | G54: ='Student 1'!$G$54 -> TBD | H54: ='Student 1'!$H$54 -> TBD | I54: ='Student 1'!$I$54 -> TBD | J54: ='Student 1'!$J$54 -> TBD | K54: ='Student 1'!$K$54 -> TBD | L54: ='Student 1'!$L$54 -> TBD | M54: ='Student 1'!$M$54 -> TBD
A55: ='Student 1'!$A$55 -> Class Room Points: | C55: ='Student 1'!$C$55 -> 440 | D55: ='Student 1'!$D$55 -> 30 | E55: ='Student 1'!$E$55 -> 25 | F55: ='Student 1'!$F$55 -> 100 | G55: ='Student 1'!$G$55 -> 30 | H55: ='Student 1'!$H$55 -> 50 | I55: ='Student 1'!$I$55 -> 30 | J55: ='Student 1'!$J$55 -> 25 | K55: ='Student 1'!$K$55 -> 50 | L55: ='Student 1'!$L$55 ->  | M55: ='Student 1'!$M$55 -> 100 | N55: ='Student 1'!$N$55 -> Evaluation
A56: ='Student 1'!$A$56 -> Red is late turn-in | C56: ='Student 1'!$C$56 -> Blue is absent | D56: ='Student 1'!$D$56 -> HW | E56: ='Student 1'!$E$56 -> HW | F56: ='Student 1'!$F$56 -> Test | G56: ='Student 1'!$G$56 -> HW | H56: ='Student 1'!$H$56 -> Test | I56: ='Student 1'!$I$56 -> HW | J56: ='Student 1'!$J$56 -> Test | K56: ='Student 1'!$K$56 -> Class | L56: ='Student 1'!$L$56 -> Extra | M56: ='Student 1'!$M$56 -> Final | N56: ='Student 1'!$N$56 -> Class | P56: ='Student 1'!$P$56 -> Professionalism | S56: ='Student 1'!$S$56 -> Lab | U56: ='Student 1'!$U$56 -> Total | V56: ='Student 1'!$V$56 -> Letter
A57: ='Student 1'!$A$57 -> I D | B57: ='Student 1'!$B$57 -> First: | C57: ='Student 1'!$C$57 -> Last: | D57: ='Student 1'!$D$57 -> CH 4 | E57: ='Student 1'!$E$57 -> CH 5 | F57: ='Student 1'!$F$57 -> #1 | G57: ='Student 1'!$G$57 -> CH 7 | H57: ='Student 1'!$H$57 -> Conv | I57: ='Student 1'!$I$57 -> CH 20 | J57: ='Student 1'!$J$57 -> 21/22 | K57: ='Student 1'!$K$57 -> Project | L57: ='Student 1'!$L$57 -> Credit | M57: ='Student 1'!$M$57 -> Test | N57: ='Student 1'!$N$57 -> Points | O57: ='Student 1'!$O$57 -> % | P57: ='Student 1'!$P$57 -> Attendance | Q57: ='Student 1'!$Q$57 -> Points | R57: ='Student 1'!$R$57 -> % | S57: ='Student 1'!$S$57 -> Points | T57: ='Student 1'!$T$57 -> % | U57: ='Student 1'!$U$57 -> % | V57: ='Student 1'!$V$57 -> Grade
A58: ='Course 5 Class'!$A$7 -> 00000002 | B58: ='Course 5 Class'!$B$7 -> Student | C58: ='Course 5 Class'!$C$7 -> Two | D58: ='Course 5 Class'!$D$7 -> 0 | E58: ='Course 5 Class'!$E$7 -> 0 | F58: ='Course 5 Class'!$F$7 -> 0 | G58: ='Course 5 Class'!$G$7 -> 0 | H58: ='Course 5 Class'!$H$7 -> 0 | I58: ='Course 5 Class'!$I$7 -> 0 | J58: ='Course 5 Class'!$J$7 -> 0 | K58: ='Course 5 Class'!$K$7 -> 0 | L58: ='Course 5 Class'!$L$7 -> 0 | M58: ='Course 5 Class'!$M$7 -> 0 | N58: ='Course 5 Class'!$N$7 -> 0 | O58: ='Course 5 Class'!$O$7 -> 0% | P58: ='Course 5 Class'!$P$7 -> 93% | Q58: ='Course 5 Class'!$Q$7 -> 71.57142857 | R58: ='Course 5 Class'!$R$7 -> 99% | S58: ='Course 5 Class'!$S$7 -> 0 | T58: ='Course 5 Class'!$T$7 -> 0% | U58: ='Course 5 Class'!$U$7 -> 25% | V58: ='Course 5 Class'!$V$7 -> F
A59: ='Student 1'!$A$59 -> Course 5 Brake Systems. Lab
A60: ='Student 1'!$A$60 -> Max Shop Points: | C60: ='Student 1'!$C$60 -> 970 | D60: ='Student 1'!$D$60 -> Drum | E60: ='Student 1'!$E$60 -> Drum | F60: ='Student 1'!$F$60 -> Disc | G60: ='Student 1'!$G$60 -> On Car | H60: ='Student 1'!$H$60 -> Off Car | I60: ='Student 1'!$I$60 -> Wheel | J60: ='Student 1'!$J$60 -> Hydr. | K60: ='Student 1'!$K$60 -> Vacuum | L60: ='Student 1'!$L$60 -> Warning | M60: ='Student 1'!$M$60 -> Brake | N60: ='Student 1'!$N$60 -> Brake | O60: ='Student 1'!$O$60 -> Dodge | P60: ='Student 1'!$P$60 -> Ford | Q60: ='Student 1'!$Q$60 -> GM | R60: ='Student 1'!$R$60 -> Cus | S60: ='Student 1'!$S$60 -> Brake
A61: ='Student 1'!$A$61 -> Max shop points available depend on how much customer work is done. | D61: ='Student 1'!$D$61 -> Brake | E61: ='Student 1'!$E$61 -> Brake | F61: ='Student 1'!$F$61 -> Brake | G61: ='Student 1'!$G$61 -> Disc | H61: ='Student 1'!$H$61 -> Disc | I61: ='Student 1'!$I$61 -> Bearing | J61: ='Student 1'!$J$61 -> Line | K61: ='Student 1'!$K$61 -> Booster | L61: ='Student 1'!$L$61 -> Light | M61: ='Student 1'!$M$61 -> System | N61: ='Student 1'!$N$61 -> Valves | O61: ='Student 1'!$O$61 -> Anti | P61: ='Student 1'!$P$61 -> Anti | Q61: ='Student 1'!$Q$61 -> Anti | R61: ='Student 1'!$R$61 -> tomer | S61: ='Student 1'!$S$61 -> Comp
D62: ='Student 1'!$D$62 -> Job | E62: ='Student 1'!$E$62 -> Mach. | F62: ='Student 1'!$F$62 -> Job | G62: ='Student 1'!$G$62 -> Mach. | H62: ='Student 1'!$H$62 -> Mach. | I62: ='Student 1'!$I$62 -> Service | J62: ='Student 1'!$J$62 -> Repair | K62: ='Student 1'!$K$62 -> Service | L62: ='Student 1'!$L$62 -> Service | M62: ='Student 1'!$M$62 -> Bleed | N62: ='Student 1'!$N$62 -> Check | O62: ='Student 1'!$O$62 -> Lock | P62: ='Student 1'!$P$62 -> Lock | Q62: ='Student 1'!$Q$62 -> Lock | R62: ='Student 1'!$R$62 -> Work | S62: ='Student 1'!$S$62 -> etency
D63: ='Student 1'!$D$63 -> 2 | E63: ='Student 1'!$E$63 -> 2 | F63: ='Student 1'!$F$63 -> 2 | G63: ='Student 1'!$G$63 -> 2 | H63: ='Student 1'!$H$63 -> 2 | I63: ='Student 1'!$I$63 -> 1 | J63: ='Student 1'!$J$63 -> 1 | K63: ='Student 1'!$K$63 -> 2 | L63: ='Student 1'!$L$63 -> 2 | M63: ='Student 1'!$M$63 -> 4 | N63: ='Student 1'!$N$63 -> 1 | O63: ='Student 1'!$O$63 -> 1 | P63: ='Student 1'!$P$63 -> 1 | Q63: ='Student 1'!$Q$63 -> 1 | R63: ='Student 1'!$R$63 ->  | S63: ='Student 1'!$S$63 -> Required | T63: ='Student 1'!$T$63 -> Lab
A64: ='Student 1'!$A$64 -> ID | B64: ='Student 1'!$B$64 -> First: | C64: ='Student 1'!$C$64 -> Last: | D64: ='Student 1'!$D$64 -> 150 | E64: ='Student 1'!$E$64 -> 40 | F64: ='Student 1'!$F$64 -> 150 | G64: ='Student 1'!$G$64 -> 80 | H64: ='Student 1'!$H$64 -> 40 | I64: ='Student 1'!$I$64 -> 50 | J64: ='Student 1'!$J$64 -> 30 | K64: ='Student 1'!$K$64 -> 30 | L64: ='Student 1'!$L$64 -> 40 | M64: ='Student 1'!$M$64 -> 80 | N64: ='Student 1'!$N$64 -> 40 | O64: ='Student 1'!$O$64 -> 80 | P64: ='Student 1'!$P$64 -> 80 | Q64: ='Student 1'!$Q$64 -> 80 | R64: ='Student 1'!$R$64 -> 300 | S64: ='Student 1'!$S$64 -> * | T64: ='Student 1'!$T$64 -> Points | U64: ='Student 1'!$U$64 -> %
A65: ='Course 5 Lab'!$A$8 -> 00000002 | B65: ='Course 5 Lab'!$B$8 -> Student | C65: ='Course 5 Lab'!$C$8 -> Two | D65: ='Course 5 Lab'!$D$8 -> 0 | E65: ='Course 5 Lab'!$E$8 -> 0 | F65: ='Course 5 Lab'!$F$8 -> 0 | G65: ='Course 5 Lab'!$G$8 -> 0 | H65: ='Course 5 Lab'!$H$8 -> 0 | I65: ='Course 5 Lab'!$I$8 -> 0 | J65: ='Course 5 Lab'!$J$8 -> 0 | K65: ='Course 5 Lab'!$K$8 -> 0 | L65: ='Course 5 Lab'!$L$8 -> 0 | M65: ='Course 5 Lab'!$M$8 -> 0 | N65: ='Course 5 Lab'!$N$8 -> 0 | O65: ='Course 5 Lab'!$O$8 -> 0 | P65: ='Course 5 Lab'!$P$8 -> 0 | Q65: ='Course 5 Lab'!$Q$8 -> 0 | R65: ='Course 5 Lab'!$R$8 -> 0 | S65: ='Course 5 Lab'!$S$8 -> 1 | T65: ='Course 5 Lab'!$T$8 -> 0 | U65: ='Course 5 Lab'!$U$8 -> 0%

Sheet Student 3
A1: ='Student 1'!$A$1 -> Course 1 Engine Diagnosis. Class | H1: ='Student 1'!$H$1 -> 25
A2: ='Student 1'!$A$2 -> Date assignment is due | C2: ='Student 1'!$C$2 ->  | D2: ='Student 1'!$D$2 -> TBD | E2: ='Student 1'!$E$2 -> TBD | F2: ='Student 1'!$F$2 -> TBD | G2: ='Student 1'!$G$2 -> TBD | H2: ='Student 1'!$H$2 -> TBD | I2: ='Student 1'!$I$2 -> TBD
A3: ='Student 1'!$A$3 -> Class Room Points: | C3: ='Student 1'!$C$3 -> 160 | D3: ='Student 1'!$D$3 -> 20 | E3: ='Student 1'!$E$3 -> 20 | F3: ='Student 1'!$F$3 -> 20 | G3: ='Student 1'!$G$3 -> 25 | H3: ='Student 1'!$H$3 ->  | I3: ='Student 1'!$I$3 -> 75 | J3: ='Student 1'!$J$3 -> Evaluation
A4: ='Student 1'!$A$4 -> Red is late turn-in | C4: ='Student 1'!$C$4 -> Blue is absent | D4: ='Student 1'!$D$4 -> CH 13 | E4: ='Student 1'!$E$4 -> Lube | F4: ='Student 1'!$F$4 -> Lube | G4: ='Student 1'!$G$4 -> Condition | H4: ='Student 1'!$H$4 -> Extra | I4: ='Student 1'!$I$4 -> Final | J4: ='Student 1'!$J$4 -> Classroom | L4: ='Student 1'!$L$4 -> Professionalism | O4: ='Student 1'!$O$4 -> Lab | Q4: ='Student 1'!$Q$4 -> Total | R4: ='Student 1'!$R$4 -> Letter
A5: ='Student 1'!$A$5 -> I D | B5: ='Student 1'!$B$5 -> First: | C5: ='Student 1'!$C$5 -> Last: | D5: ='Student 1'!$D$5 -> Test | E5: ='Student 1'!$E$5 -> HW | F5: ='Student 1'!$F$5 -> Test | G5: ='Student 1'!$G$5 -> Class | H5: ='Student 1'!$H$5 -> Credit | I5: ='Student 1'!$I$5 -> Test | J5: ='Student 1'!$J$5 -> Points | K5: ='Student 1'!$K$5 -> % | L5: ='Student 1'!$L$5 -> Attendance | M5: ='Student 1'!$M$5 -> Points | N5: ='Student 1'!$N$5 -> % | O5: ='Student 1'!$O$5 -> Points | P5: ='Student 1'!$P$5 -> % | Q5: ='Student 1'!$Q$5 -> % | R5: ='Student 1'!$R$5 -> Grade
A6: ='Course 1 Class'!$A$8 -> 00000003 | B6: ='Course 1 Class'!$B$8 -> Student | C6: ='Course 1 Class'!$C$8 -> Three | D6: ='Course 1 Class'!$D$8 -> 0 | E6: ='Course 1 Class'!$E$8 -> 0 | F6: ='Course 1 Class'!$F$8 -> 0 | G6: ='Course 1 Class'!$G$8 -> 0 | H6: ='Course 1 Class'!$H$8 -> 0 | I6: ='Course 1 Class'!$I$8 -> 0 | J6: ='Course 1 Class'!$J$8 -> 0 | K6: ='Course 1 Class'!$K$8 -> 0% | L6: ='Course 1 Class'!$L$8 -> 100% | M6: ='Course 1 Class'!$M$8 -> 72 | N6: ='Course 1 Class'!$N$8 -> 100% | O6: ='Course 1 Class'!$O$8 -> 0 | P6: ='Course 1 Class'!$P$8 -> 0% | Q6: ='Course 1 Class'!$Q$8 -> 25% | R6: ='Course 1 Class'!$R$8 -> F
A7: ='Student 1'!$A$7 -> Course 1 Engine Diagnosis. Lab
A8: ='Student 1'!$A$8 -> Max Shop Points: | C8: ='Student 1'!$C$8 -> 1325 | D8: ='Student 1'!$D$8 -> Dry | E8: ='Student 1'!$E$8 -> Wet | F8: ='Student 1'!$F$8 -> Running | G8: ='Student 1'!$G$8 -> Cylinder | H8: ='Student 1'!$H$8 -> Oil | I8: ='Student 1'!$I$8 -> Cooling | J8: ='Student 1'!$J$8 -> Vacuum | K8: ='Student 1'!$K$8 -> PCV | L8: ='Student 1'!$L$8 -> Thermostat | M8: ='Student 1'!$M$8 -> Fluid | N8: ='Student 1'!$N$8 -> Diag | O8: ='Student 1'!$O$8 -> 
A9: ='Student 1'!$A$9 -> Max shop points available depend on how much customer work is done. | D9: ='Student 1'!$D$9 -> Compr | E9: ='Student 1'!$E$9 -> Compr | F9: ='Student 1'!$F$9 -> Compr | G9: ='Student 1'!$G$9 -> Leakage | H9: ='Student 1'!$H$9 -> Pressure | I9: ='Student 1'!$I$9 -> System | J9: ='Student 1'!$J$9 -> Gauge | K9: ='Student 1'!$K$9 -> System | L9: ='Student 1'!$L$9 -> and fan | M9: ='Student 1'!$M$9 -> Leak | N9: ='Student 1'!$N$9 -> gauges | O9: ='Student 1'!$O$9 -> Cus | P9: ='Student 1'!$P$9 -> Comp
D10: ='Student 1'!$D$10 -> Test | E10: ='Student 1'!$E$10 -> Test | F10: ='Student 1'!$F$10 -> Test | G10: ='Student 1'!$G$10 -> Test | H10: ='Student 1'!$H$10 -> Test | I10: ='Student 1'!$I$10 -> Test | J10: ='Student 1'!$J$10 -> Test | K10: ='Student 1'!$K$10 -> Check | L10: ='Student 1'!$L$10 -> Operation | M10: ='Student 1'!$M$10 -> Check | N10: ='Student 1'!$N$10 -> any vehicle | O10: ='Student 1'!$O$10 -> tomer | P10: ='Student 1'!$P$10 -> etency | Q10: ='Student 1'!$Q$10 ->  | R10: ='Student 1'!$R$10 -> 
D11: ='Student 1'!$D$11 -> 2 | E11: ='Student 1'!$E$11 -> 2 | F11: ='Student 1'!$F$11 -> 2 | G11: ='Student 1'!$G$11 -> 2 | H11: ='Student 1'!$H$11 -> 2 | I11: ='Student 1'!$I$11 -> 2 | J11: ='Student 1'!$J$11 -> 2 | K11: ='Student 1'!$K$11 -> 2 | L11: ='Student 1'!$L$11 -> 2 | M11: ='Student 1'!$M$11 -> 1 | N11: ='Student 1'!$N$11 -> 1 | O11: ='Student 1'!$O$11 -> Work | P11: ='Student 1'!$P$11 -> 0 or 1 | Q11: ='Student 1'!$Q$11 -> Lab
A12: ='Student 1'!$A$12 -> ID | B12: ='Student 1'!$B$12 -> First: | C12: ='Student 1'!$C$12 -> Last: | D12: ='Student 1'!$D$12 -> 100 | E12: ='Student 1'!$E$12 -> 100 | F12: ='Student 1'!$F$12 -> 100 | G12: ='Student 1'!$G$12 -> 100 | H12: ='Student 1'!$H$12 -> 100 | I12: ='Student 1'!$I$12 -> 150 | J12: ='Student 1'!$J$12 -> 100 | K12: ='Student 1'!$K$12 -> 50 | L12: ='Student 1'!$L$12 -> 100 | M12: ='Student 1'!$M$12 -> 25 | N12: ='Student 1'!$N$12 -> 100 | O12: ='Student 1'!$O$12 -> 300 | P12: ='Student 1'!$P$12 -> * | Q12: ='Student 1'!$Q$12 -> Points | R12: ='Student 1'!$R$12 -> %
A13: ='Course 1 Lab'!$A$9 -> 00000003 | B13: ='Course 1 Lab'!$B$9 -> Student | C13: ='Course 1 Lab'!$C$9 -> Three | D13: ='Course 1 Lab'!$D$9 -> 0 | E13: ='Course 1 Lab'!$E$9 -> 0 | F13: ='Course 1 Lab'!$F$9 -> 0 | G13: ='Course 1 Lab'!$G$9 -> 0 | H13: ='Course 1 Lab'!$H$9 -> 0 | I13: ='Course 1 Lab'!$I$9 -> 0 | J13: ='Course 1 Lab'!$J$9 -> 0 | K13: ='Course 1 Lab'!$K$9 -> 0 | L13: ='Course 1 Lab'!$L$9 -> 0 | M13: ='Course 1 Lab'!$M$9 -> 0 | N13: ='Course 1 Lab'!$N$9 -> 0 | O13: ='Course 1 Lab'!$O$9 -> 0 | P13: ='Course 1 Lab'!$P$9 -> 1 | Q13: ='Course 1 Lab'!$Q$9 -> 0 | R13: ='Course 1 Lab'!$R$9 -> 0%
A14: ='Student 1'!$A$14 -> Course 2 Engine Theory & Repair. Class | J14: ='Student 1'!$J$14 -> 25
A15: ='Student 1'!$A$15 ->  | B15: ='Student 1'!$B$15 -> Date assignment is due: | D15: ='Student 1'!$D$15 -> TBD | E15: ='Student 1'!$E$15 -> TBD | F15: ='Student 1'!$F$15 -> TBD | G15: ='Student 1'!$G$15 -> TBD | H15: ='Student 1'!$H$15 -> TBD | I15: ='Student 1'!$I$15 -> TBD | J15: ='Student 1'!$J$15 -> TBD | K15: ='Student 1'!$K$15 -> TBD
A16: ='Student 1'!$A$16 -> Class Room Points: | C16: ='Student 1'!$C$16 -> 201 | D16: ='Student 1'!$D$16 -> 10 | E16: ='Student 1'!$E$16 -> 10 | F16: ='Student 1'!$F$16 -> 20 | G16: ='Student 1'!$G$16 -> 20 | H16: ='Student 1'!$H$16 -> 16 | I16: ='Student 1'!$I$16 -> 25 | J16: ='Student 1'!$J$16 ->  | K16: ='Student 1'!$K$16 -> 100 | L16: ='Student 1'!$L$16 -> Evaluation
A17: ='Student 1'!$A$17 -> Red is late turn-in | C17: ='Student 1'!$C$17 -> Blue is absent | D17: ='Student 1'!$D$17 -> HW | E17: ='Student 1'!$E$17 -> HW | F17: ='Student 1'!$F$17 -> Test | G17: ='Student 1'!$G$17 -> Test | H17: ='Student 1'!$H$17 -> HW | I17: ='Student 1'!$I$17 -> Test | J17: ='Student 1'!$J$17 -> Extra | K17: ='Student 1'!$K$17 -> Final | L17: ='Student 1'!$L$17 -> Class | N17: ='Student 1'!$N$17 -> Professionalism | Q17: ='Student 1'!$Q$17 -> Lab | S17: ='Student 1'!$S$17 -> Total | T17: ='Student 1'!$T$17 -> Letter
A18: ='Student 1'!$A$18 -> I D | B18: ='Student 1'!$B$18 -> First: | C18: ='Student 1'!$C$18 -> Last: | D18: ='Student 1'!$D$18 -> CH 7 | E18: ='Student 1'!$E$18 -> CH 14 | F18: ='Student 1'!$F$18 -> C & L | G18: ='Student 1'!$G$18 -> CH 18 | H18: ='Student 1'!$H$18 -> CH 22 | I18: ='Student 1'!$I$18 -> CH 22 | J18: ='Student 1'!$J$18 -> Credit | K18: ='Student 1'!$K$18 -> TEST | L18: ='Student 1'!$L$18 -> Points | M18: ='Student 1'!$M$18 -> % | N18: ='Student 1'!$N$18 -> Attendance | O18: ='Student 1'!$O$18 -> Points | P18: ='Student 1'!$P$18 -> % | Q18: ='Student 1'!$Q$18 -> Points | R18: ='Student 1'!$R$18 -> % | S18: ='Student 1'!$S$18 -> % | T18: ='Student 1'!$T$18 -> Grade
A19: ='Course 2 Class'!$A$8 -> 00000003 | B19: ='Course 2 Class'!$B$8 -> Student | C19: ='Course 2 Class'!$C$8 -> Three | D19: ='Course 2 Class'!$D$8 -> 0 | E19: ='Course 2 Class'!$E$8 -> 0 | F19: ='Course 2 Class'!$F$8 -> 0 | G19: ='Course 2 Class'!$G$8 -> 0 | H19: ='Course 2 Class'!$H$8 -> 0 | I19: ='Course 2 Class'!$I$8 -> 0 | J19: ='Course 2 Class'!$J$8 -> 0 | K19: ='Course 2 Class'!$K$8 -> 0 | L19: ='Course 2 Class'!$L$8 -> 0 | M19: ='Course 2 Class'!$M$8 -> 0% | N19: ='Course 2 Class'!$N$8 -> 100% | O19: ='Course 2 Class'!$O$8 -> 72 | P19: ='Course 2 Class'!$P$8 -> 100% | Q19: ='Course 2 Class'!$Q$8 -> 0 | R19: ='Course 2 Class'!$R$8 -> 0% | S19: ='Course 2 Class'!$S$8 -> 25% | T19: ='Course 2 Class'!$T$8 -> F
A20: ='Student 1'!$A$20 -> Course 2 Engine Theory & Repair. Lab
A21: ='Student 1'!$A$21 -> Max Shop Points: | C21: ='Student 1'!$C$21 -> 1450 | D21: ='Student 1'!$D$21 -> Engine | E21: ='Student 1'!$E$21 -> Cylinder | F21: ='Student 1'!$F$21 -> Red | G21: ='Student 1'!$G$21 -> Mitsubishi | H21: ='Student 1'!$H$21 -> Any | I21: ='Student 1'!$I$21 -> DOHC | J21: ='Student 1'!$J$21 -> Valve seal | K21: ='Student 1'!$K$21 -> Misc. | L21: ='Student 1'!$L$21 -> 
A22: ='Student 1'!$A$22 -> Max shop points available depend on how much customer work is done. | D22: ='Student 1'!$D$22 -> Disassemble | E22: ='Student 1'!$E$22 -> Head | F22: ='Student 1'!$F$22 -> Dodge | G22: ='Student 1'!$G$22 -> "3.0L" | H22: ='Student 1'!$H$22 -> Engine | I22: ='Student 1'!$I$22 -> Engine | J22: ='Student 1'!$J$22 -> & | K22: ='Student 1'!$K$22 -> Engine | L22: ='Student 1'!$L$22 -> Cus | M22: ='Student 1'!$M$22 -> Comp
D23: ='Student 1'!$D$23 -> & Measure | E23: ='Student 1'!$E$23 -> Repair | F23: ='Student 1'!$F$23 -> Clip | G23: ='Student 1'!$G$23 -> Clip | H23: ='Student 1'!$H$23 -> T-chain | I23: ='Student 1'!$I$23 -> Stand | J23: ='Student 1'!$J$23 -> Lobe lift | K23: ='Student 1'!$K$23 -> Points | L23: ='Student 1'!$L$23 -> tomer | M23: ='Student 1'!$M$23 -> etency | N23: ='Student 1'!$N$23 ->  | O23: ='Student 1'!$O$23 -> 
D24: ='Student 1'!$D$24 -> 1 | E24: ='Student 1'!$E$24 -> 1 | F24: ='Student 1'!$F$24 -> 1 | G24: ='Student 1'!$G$24 -> 1 | H24: ='Student 1'!$H$24 -> 1 | I24: ='Student 1'!$I$24 -> 1 | J24: ='Student 1'!$J$24 -> 1 | L24: ='Student 1'!$L$24 -> Work | M24: ='Student 1'!$M$24 -> 0 or 1 | N24: ='Student 1'!$N$24 -> Lab
A25: ='Student 1'!$A$25 -> ID | B25: ='Student 1'!$B$25 -> First: | C25: ='Student 1'!$C$25 -> Last: | D25: ='Student 1'!$D$25 -> 300 | E25: ='Student 1'!$E$25 -> 200 | F25: ='Student 1'!$F$25 -> 100 | G25: ='Student 1'!$G$25 -> 100 | H25: ='Student 1'!$H$25 -> 100 | I25: ='Student 1'!$I$25 -> 100 | J25: ='Student 1'!$J$25 -> 50 | K25: ='Student 1'!$K$25 -> 200 | L25: ='Student 1'!$L$25 -> 300 | M25: ='Student 1'!$M$25 -> * | N25: ='Student 1'!$N$25 -> Points | O25: ='Student 1'!$O$25 -> %
A26: ='Course 2 Lab'!$A$9 -> 00000003 | B26: ='Course 2 Lab'!$B$9 -> Student | C26: ='Course 2 Lab'!$C$9 -> Three | D26: ='Course 2 Lab'!$D$9 -> 0 | E26: ='Course 2 Lab'!$E$9 -> 0 | F26: ='Course 2 Lab'!$F$9 -> 0 | G26: ='Course 2 Lab'!$G$9 -> 0 | H26: ='Course 2 Lab'!$H$9 -> 0 | I26: ='Course 2 Lab'!$I$9 -> 0 | J26: ='Course 2 Lab'!$J$9 -> 0 | K26: ='Course 2 Lab'!$K$9 -> 0 | L26: ='Course 2 Lab'!$L$9 -> 0 | M26: ='Course 2 Lab'!$M$9 -> 1 | N26: ='Course 2 Lab'!$N$9 -> 0 | O26: ='Course 2 Lab'!$O$9 -> 0%
A27: ='Student 1'!$A$27 -> Course 3 Steering & Suspension. Class. | M27: ='Student 1'!$M$27 -> 25
A28: ='Student 1'!$A$28 ->  | B28: ='Student 1'!$B$28 -> Date assignment is due: | D28: ='Student 1'!$D$28 -> 1/18 | E28: ='Student 1'!$E$28 -> 2/2 | F28: ='Student 1'!$F$28 -> TBD | G28: ='Student 1'!$G$28 -> TBD | H28: ='Student 1'!$H$28 -> TBD | I28: ='Student 1'!$I$28 -> TBD | J28: ='Student 1'!$J$28 -> TBD | K28: ='Student 1'!$K$28 -> TBD | L28: ='Student 1'!$L$28 -> TBD | M28: ='Student 1'!$M$28 -> TBD | N28: ='Student 1'!$N$28 -> TBD
A29: ='Student 1'!$A$29 -> Class Room Points: | C29: ='Student 1'!$C$29 -> 330 | D29: ='Student 1'!$D$29 -> 20 | E29: ='Student 1'!$E$29 -> 20 | F29: ='Student 1'!$F$29 -> 24 | G29: ='Student 1'!$G$29 -> 20 | H29: ='Student 1'!$H$29 -> 25 | I29: ='Student 1'!$I$29 -> 30 | J29: ='Student 1'!$J$29 -> 20 | K29: ='Student 1'!$K$29 -> 26 | L29: ='Student 1'!$L$29 -> 45 | M29: ='Student 1'!$M$29 ->  | N29: ='Student 1'!$N$29 -> 100 | O29: ='Student 1'!$O$29 -> Evaluation
A30: ='Student 1'!$A$30 -> Red is late turn-in | C30: ='Student 1'!$C$30 -> Blue is absent | D30: ='Student 1'!$D$30 -> HW | E30: ='Student 1'!$E$30 -> HW | F30: ='Student 1'!$F$30 -> HW | G30: ='Student 1'!$G$30 -> QZ | H30: ='Student 1'!$H$30 -> HW | I30: ='Student 1'!$I$30 -> HW | J30: ='Student 1'!$J$30 -> Test | K30: ='Student 1'!$K$30 -> HW | L30: ='Student 1'!$L$30 -> Class | M30: ='Student 1'!$M$30 -> Extra | N30: ='Student 1'!$N$30 -> Final | O30: ='Student 1'!$O$30 -> Class | Q30: ='Student 1'!$Q$30 -> Professionalism | T30: ='Student 1'!$T$30 -> Lab | V30: ='Student 1'!$V$30 -> Total | W30: ='Student 1'!$W$30 -> Letter
A31: ='Student 1'!$A$31 -> I D | B31: ='Student 1'!$B$31 -> First: | C31: ='Student 1'!$C$31 -> Last: | D31: ='Student 1'!$D$31 -> CH 1 | E31: ='Student 1'!$E$31 -> CH 2 | F31: ='Student 1'!$F$31 -> CH 3 | G31: ='Student 1'!$G$31 -> 1 | H31: ='Student 1'!$H$31 -> CH 6 | I31: ='Student 1'!$I$31 -> CH 9 | J31: ='Student 1'!$J$31 -> 1 – 9 | K31: ='Student 1'!$K$31 -> CH 12 | L31: ='Student 1'!$L$31 -> Project | M31: ='Student 1'!$M$31 -> Credit | N31: ='Student 1'!$N$31 -> TEST | O31: ='Student 1'!$O$31 -> Points | P31: ='Student 1'!$P$31 -> % | Q31: ='Student 1'!$Q$31 -> Attendance | R31: ='Student 1'!$R$31 -> Points | S31: ='Student 1'!$S$31 -> % | T31: ='Student 1'!$T$31 -> Points | U31: ='Student 1'!$U$31 -> % | V31: ='Student 1'!$V$31 -> % | W31: ='Student 1'!$W$31 -> Grade
A32: ='Course 3 Class'!$A$8 -> 00000003 | B32: ='Course 3 Class'!$B$8 -> Student | C32: ='Course 3 Class'!$C$8 -> Three | D32: ='Course 3 Class'!$D$8 -> 0 | E32: ='Course 3 Class'!$E$8 -> 0 | F32: ='Course 3 Class'!$F$8 -> 0 | G32: ='Course 3 Class'!$G$8 -> 0 | H32: ='Course 3 Class'!$H$8 -> 0 | I32: ='Course 3 Class'!$I$8 -> 0 | J32: ='Course 3 Class'!$J$8 -> 0 | K32: ='Course 3 Class'!$K$8 -> 0 | L32: ='Course 3 Class'!$L$8 -> 0 | M32: ='Course 3 Class'!$M$8 -> 0 | N32: ='Course 3 Class'!$N$8 -> 0 | O32: ='Course 3 Class'!$O$8 -> 0 | P32: ='Course 3 Class'!$P$8 -> 0% | Q32: ='Course 3 Class'!$Q$8 -> 100% | R32: ='Course 3 Class'!$R$8 -> 72 | S32: ='Course 3 Class'!$S$8 -> 100% | T32: ='Course 3 Class'!$T$8 -> 0 | U32: ='Course 3 Class'!$U$8 -> 0% | V32: ='Course 3 Class'!$V$8 -> 25% | W32: ='Course 3 Class'!$W$8 -> F
A33: ='Student 1'!$A$33 -> Course 3 Steering & Suspension. Lab
A34: ='Student 1'!$A$34 -> Max shop points | C34: ='Student 1'!$C$34 -> 1350 | D34: ='Student 1'!$D$34 -> Repair | E34: ='Student 1'!$E$34 -> Identify | F34: ='Student 1'!$F$34 -> Repair | G34: ='Student 1'!$G$34 -> Identify | H34: ='Student 1'!$H$34 -> Repair | I34: ='Student 1'!$I$34 -> R&R | J34: ='Student 1'!$J$34 -> R&R | K34: ='Student 1'!$K$34 -> R&R | L34: ='Student 1'!$L$34 -> P/S | M34: ='Student 1'!$M$34 -> R&R | N34: ='Student 1'!$N$34 -> NVH | O34: ='Student 1'!$O$34 -> 
A35: ='Student 1'!$A$35 -> Max shop points available depend on how much customer work is done. | D35: ='Student 1'!$D$35 -> SLA | E35: ='Student 1'!$E$35 -> SLA | F35: ='Student 1'!$F$35 -> Mac-P | G35: ='Student 1'!$G$35 -> Mac-P | H35: ='Student 1'!$H$35 -> Rear | I35: ='Student 1'!$I$35 -> Rack & | J35: ='Student 1'!$J$35 -> Recirc. | K35: ='Student 1'!$K$35 -> P/S | L35: ='Student 1'!$L$35 -> Pump | M35: ='Student 1'!$M$35 -> Inner | N35: ='Student 1'!$N$35 -> Runout & | O35: ='Student 1'!$O$35 -> Cus | P35: ='Student 1'!$P$35 -> Comp
D36: ='Student 1'!$D$36 -> Susp | E36: ='Student 1'!$E$36 -> Parts | F36: ='Student 1'!$F$36 -> Susp | G36: ='Student 1'!$G$36 -> Parts | H36: ='Student 1'!$H$36 -> Susp | I36: ='Student 1'!$I$36 -> Pinion | J36: ='Student 1'!$J$36 -> Gear | K36: ='Student 1'!$K$36 -> Pump | L36: ='Student 1'!$L$36 -> Test | M36: ='Student 1'!$M$36 -> Tie-Rod | N36: ='Student 1'!$N$36 -> bal. Check | O36: ='Student 1'!$O$36 -> tomer | P36: ='Student 1'!$P$36 -> etency | Q36: ='Student 1'!$Q$36 ->  | R36: ='Student 1'!$R$36 ->  | U36: ='Student 1'!$U$36 -> Final Grade
D37: ='Student 1'!$D$37 -> 1 | E37: ='Student 1'!$E$37 -> 2 | F37: ='Student 1'!$F$37 -> 3 | G37: ='Student 1'!$G$37 -> 2 | H37: ='Student 1'!$H$37 -> 1 | I37: ='Student 1'!$I$37 -> 1 | J37: ='Student 1'!$J$37 -> 1 | K37: ='Student 1'!$K$37 -> 1 | L37: ='Student 1'!$L$37 -> 1 | M37: ='Student 1'!$M$37 -> 1 | N37: ='Student 1'!$N$37 -> 1 | O37: ='Student 1'!$O$37 -> Work | P37: ='Student 1'!$P$37 -> 0 or 1 | Q37: ='Student 1'!$Q$37 -> Lab | U37: ='Student 1'!$U$37 -> 0% | V37: ='Student 1'!$V$37 -> F
A38: ='Student 1'!$A$38 -> ID | B38: ='Student 1'!$B$38 -> First: | C38: ='Student 1'!$C$38 -> Last: | D38: ='Student 1'!$D$38 -> 150 | E38: ='Student 1'!$E$38 -> 50 | F38: ='Student 1'!$F$38 -> 225 | G38: ='Student 1'!$G$38 -> 50 | H38: ='Student 1'!$H$38 -> 50 | I38: ='Student 1'!$I$38 -> 150 | J38: ='Student 1'!$J$38 -> 125 | K38: ='Student 1'!$K$38 -> 50 | L38: ='Student 1'!$L$38 -> 50 | M38: ='Student 1'!$M$38 -> 50 | N38: ='Student 1'!$N$38 -> 100 | O38: ='Student 1'!$O$38 -> 300 | P38: ='Student 1'!$P$38 -> * | Q38: ='Student 1'!$Q$38 -> Points | R38: ='Student 1'!$R$38 -> % | U38: ='Student 1'!$U$38 -> 70% | V38: ='Student 1'!$V$38 -> D-
A39: ='Course 3 Lab'!$A$9 -> 00000003 | B39: ='Course 3 Lab'!$B$9 -> Student | C39: ='Course 3 Lab'!$C$9 -> Three | D39: ='Course 3 Lab'!$D$9 -> 0 | E39: ='Course 3 Lab'!$E$9 -> 0 | F39: ='Course 3 Lab'!$F$9 -> 0 | G39: ='Course 3 Lab'!$G$9 -> 0 | H39: ='Course 3 Lab'!$H$9 -> 0 | I39: ='Course 3 Lab'!$I$9 -> 0 | J39: ='Course 3 Lab'!$J$9 -> 0 | K39: ='Course 3 Lab'!$K$9 -> 0 | L39: ='Course 3 Lab'!$L$9 -> 0 | M39: ='Course 3 Lab'!$M$9 -> 0 | N39: ='Course 3 Lab'!$N$9 -> 0 | O39: ='Course 3 Lab'!$O$9 -> 0 | P39: ='Course 3 Lab'!$P$9 -> 1 | Q39: ='Course 3 Lab'!$Q$9 -> 0 | R39: ='Course 3 Lab'!$R$9 -> 0% | U39: ='Student 1'!$U$39 -> 72% | V39: ='Student 1'!$V$39 -> D
A40: ='Student 1'!$A$40 -> Course 4 Alignment. Class. | I40: ='Student 1'!$I$40 -> 25 | U40: ='Student 1'!$U$40 -> 74% | V40: ='Student 1'!$V$40 -> D+
A41: ='Student 1'!$A$41 ->  | B41: ='Student 1'!$B$41 -> Date assignment is due | D41: ='Student 1'!$D$41 -> TBD | E41: ='Student 1'!$E$41 -> TBD | F41: ='Student 1'!$F$41 -> TBD | G41: ='Student 1'!$G$41 -> TBD | H41: ='Student 1'!$H$41 -> TBD | I41: ='Student 1'!$I$41 -> TBD | J41: ='Student 1'!$J$41 -> TBD | U41: ='Student 1'!$U$41 -> 76% | V41: ='Student 1'!$V$41 -> C-
A42: ='Student 1'!$A$42 -> Class Room Points: | C42: ='Student 1'!$C$42 -> 235 | D42: ='Student 1'!$D$42 -> 25 | E42: ='Student 1'!$E$42 -> 25 | F42: ='Student 1'!$F$42 -> 20 | G42: ='Student 1'!$G$42 -> 40 | H42: ='Student 1'!$H$42 -> 50 | I42: ='Student 1'!$I$42 ->  | J42: ='Student 1'!$J$42 -> 75 | K42: ='Student 1'!$K$42 -> Evaluation | U42: ='Student 1'!$U$42 -> 79% | V42: ='Student 1'!$V$42 -> C
A43: ='Student 1'!$A$43 -> Red is late turn-in | C43: ='Student 1'!$C$43 -> Blue is absent | D43: ='Student 1'!$D$43 -> CH 16 | E43: ='Student 1'!$E$43 -> CH 16 | F43: ='Student 1'!$F$43 -> Align | G43: ='Student 1'!$G$43 -> In class | H43: ='Student 1'!$H$43 -> In class | I43: ='Student 1'!$I$43 -> Extra | J43: ='Student 1'!$J$43 -> Final | K43: ='Student 1'!$K$43 -> Class | M43: ='Student 1'!$M$43 -> Professionalism | P43: ='Student 1'!$P$43 -> Lab | R43: ='Student 1'!$R$43 -> Total | S43: ='Student 1'!$S$43 -> Letter | U43: ='Student 1'!$U$43 -> 82% | V43: ='Student 1'!$V$43 -> C+
A44: ='Student 1'!$A$44 -> I D | B44: ='Student 1'!$B$44 -> First: | C44: ='Student 1'!$C$44 -> Last: | D44: ='Student 1'!$D$44 -> HW | E44: ='Student 1'!$E$44 -> Test | F44: ='Student 1'!$F$44 -> HW | G44: ='Student 1'!$G$44 -> Project1 | H44: ='Student 1'!$H$44 -> Project2 | I44: ='Student 1'!$I$44 -> Credit | J44: ='Student 1'!$J$44 -> Test | K44: ='Student 1'!$K$44 -> Points | L44: ='Student 1'!$L$44 -> % | M44: ='Student 1'!$M$44 -> Attendance | N44: ='Student 1'!$N$44 -> Points | O44: ='Student 1'!$O$44 -> % | P44: ='Student 1'!$P$44 -> Points | Q44: ='Student 1'!$Q$44 -> % | R44: ='Student 1'!$R$44 -> % | S44: ='Student 1'!$S$44 -> Grade | U44: ='Student 1'!$U$44 -> 85% | V44: ='Student 1'!$V$44 -> B-
A45: ='Course 4 Class'!$A$8 -> 00000003 | B45: ='Course 4 Class'!$B$8 -> Student | C45: ='Course 4 Class'!$C$8 -> Three | D45: ='Course 4 Class'!$D$8 -> 0 | E45: ='Course 4 Class'!$E$8 -> 0 | F45: ='Course 4 Class'!$F$8 -> 0 | G45: ='Course 4 Class'!$G$8 -> 0 | H45: ='Course 4 Class'!$H$8 -> 0 | I45: ='Course 4 Class'!$I$8 -> 0 | J45: ='Course 4 Class'!$J$8 -> 0 | K45: ='Course 4 Class'!$K$8 -> 0 | L45: ='Course 4 Class'!$L$8 -> 0% | M45: ='Course 4 Class'!$M$8 -> 100% | N45: ='Course 4 Class'!$N$8 -> 72 | O45: ='Course 4 Class'!$O$8 -> 100% | P45: ='Course 4 Class'!$P$8 -> 0 | Q45: ='Course 4 Class'!$Q$8 -> 0% | R45: ='Course 4 Class'!$R$8 -> 25% | S45: ='Course 4 Class'!$S$8 -> F | U45: ='Student 1'!$U$45 -> 88% | V45: ='Student 1'!$V$45 -> B
A46: ='Student 1'!$A$46 -> Course 4 Alignment. Lab | U46: ='Student 1'!$U$46 -> 90% | V46: ='Student 1'!$V$46 -> B+
A47: ='Student 1'!$A$47 -> Max Shop Points: | C47: ='Student 1'!$C$47 -> 1300 | D47: ='Student 1'!$D$47 -> Alignment | E47: ='Student 1'!$E$47 -> Complete | F47: ='Student 1'!$F$47 -> Cus | G47: ='Student 1'!$G$47 ->  | U47: ='Student 1'!$U$47 -> 93% | V47: ='Student 1'!$V$47 -> A-
A48: ='Student 1'!$A$48 -> Max shop points available depend on how much customer work is done. | D48: ='Student 1'!$D$48 -> Pre-check | E48: ='Student 1'!$E$48 -> Wheel | F48: ='Student 1'!$F$48 -> tomer | G48: ='Student 1'!$G$48 -> Comp | U48: ='Student 1'!$U$48 -> 95% | V48: ='Student 1'!$V$48 -> A
D49: ='Student 1'!$D$49 -> 100 P | E49: ='Student 1'!$E$49 -> Alignment | F49: ='Student 1'!$F$49 -> Work | G49: ='Student 1'!$G$49 -> etency | H49: ='Student 1'!$H$49 ->  | I49: ='Student 1'!$I$49 ->  | U49: ='Student 1'!$U$49 -> 100% | V49: ='Student 1'!$V$49 -> A
D50: ='Student 1'!$D$50 -> 1 | E50: ='Student 1'!$E$50 -> 1 | F50: ='Student 1'!$F$50 ->  | G50: ='Student 1'!$G$50 -> 0 or 1 | H50: ='Student 1'!$H$50 -> Lab
A51: ='Student 1'!$A$51 -> ID | B51: ='Student 1'!$B$51 -> First: | C51: ='Student 1'!$C$51 -> Last: | D51: ='Student 1'!$D$51 -> 100 | E51: ='Student 1'!$E$51 -> 900 | F51: ='Student 1'!$F$51 -> 300 | G51: ='Student 1'!$G$51 -> * | H51: ='Student 1'!$H$51 -> Points | I51: ='Student 1'!$I$51 -> %
A52: ='Course 4 Lab'!$A$9 -> 00000003 | B52: ='Course 4 Lab'!$B$9 -> Student | C52: ='Course 4 Lab'!$C$9 -> Three | D52: ='Course 4 Lab'!$D$9 -> 0 | E52: ='Course 4 Lab'!$E$9 -> 0 | F52: ='Course 4 Lab'!$F$9 -> 0 | G52: ='Course 4 Lab'!$G$9 -> 1 | H52: ='Course 4 Lab'!$H$9 -> 0 | I52: ='Course 4 Lab'!$I$9 -> 0%
A53: ='Student 1'!$A$53 -> Course 5 Brake Systems. Class. | L53: ='Student 1'!$L$53 -> 35
A54: ='Student 1'!$A$54 -> Date assignment is due: | C54: ='Student 1'!$C$54 ->  | D54: ='Student 1'!$D$54 -> TBD | E54: ='Student 1'!$E$54 -> TBD | F54: ='Student 1'!$F$54 -> TBD | G54: ='Student 1'!$G$54 -> TBD | H54: ='Student 1'!$H$54 -> TBD | I54: ='Student 1'!$I$54 -> TBD | J54: ='Student 1'!$J$54 -> TBD | K54: ='Student 1'!$K$54 -> TBD | L54: ='Student 1'!$L$54 -> TBD | M54: ='Student 1'!$M$54 -> TBD
A55: ='Student 1'!$A$55 -> Class Room Points: | C55: ='Student 1'!$C$55 -> 440 | D55: ='Student 1'!$D$55 -> 30 | E55: ='Student 1'!$E$55 -> 25 | F55: ='Student 1'!$F$55 -> 100 | G55: ='Student 1'!$G$55 -> 30 | H55: ='Student 1'!$H$55 -> 50 | I55: ='Student 1'!$I$55 -> 30 | J55: ='Student 1'!$J$55 -> 25 | K55: ='Student 1'!$K$55 -> 50 | L55: ='Student 1'!$L$55 ->  | M55: ='Student 1'!$M$55 -> 100 | N55: ='Student 1'!$N$55 -> Evaluation
A56: ='Student 1'!$A$56 -> Red is late turn-in | C56: ='Student 1'!$C$56 -> Blue is absent | D56: ='Student 1'!$D$56 -> HW | E56: ='Student 1'!$E$56 -> HW | F56: ='Student 1'!$F$56 -> Test | G56: ='Student 1'!$G$56 -> HW | H56: ='Student 1'!$H$56 -> Test | I56: ='Student 1'!$I$56 -> HW | J56: ='Student 1'!$J$56 -> Test | K56: ='Student 1'!$K$56 -> Class | L56: ='Student 1'!$L$56 -> Extra | M56: ='Student 1'!$M$56 -> Final | N56: ='Student 1'!$N$56 -> Class | P56: ='Student 1'!$P$56 -> Professionalism | S56: ='Student 1'!$S$56 -> Lab | U56: ='Student 1'!$U$56 -> Total | V56: ='Student 1'!$V$56 -> Letter
A57: ='Student 1'!$A$57 -> I D | B57: ='Student 1'!$B$57 -> First: | C57: ='Student 1'!$C$57 -> Last: | D57: ='Student 1'!$D$57 -> CH 4 | E57: ='Student 1'!$E$57 -> CH 5 | F57: ='Student 1'!$F$57 -> #1 | G57: ='Student 1'!$G$57 -> CH 7 | H57: ='Student 1'!$H$57 -> Conv | I57: ='Student 1'!$I$57 -> CH 20 | J57: ='Student 1'!$J$57 -> 21/22 | K57: ='Student 1'!$K$57 -> Project | L57: ='Student 1'!$L$57 -> Credit | M57: ='Student 1'!$M$57 -> Test | N57: ='Student 1'!$N$57 -> Points | O57: ='Student 1'!$O$57 -> % | P57: ='Student 1'!$P$57 -> Attendance | Q57: ='Student 1'!$Q$57 -> Points | R57: ='Student 1'!$R$57 -> % | S57: ='Student 1'!$S$57 -> Points | T57: ='Student 1'!$T$57 -> % | U57: ='Student 1'!$U$57 -> % | V57: ='Student 1'!$V$57 -> Grade
A58: ='Course 5 Class'!$A$8 -> 00000003 | B58: ='Course 5 Class'!$B$8 -> Student | C58: ='Course 5 Class'!$C$8 -> Three | D58: ='Course 5 Class'!$D$8 -> 0 | E58: ='Course 5 Class'!$E$8 -> 0 | F58: ='Course 5 Class'!$F$8 -> 0 | G58: ='Course 5 Class'!$G$8 -> 0 | H58: ='Course 5 Class'!$H$8 -> 0 | I58: ='Course 5 Class'!$I$8 -> 0 | J58: ='Course 5 Class'!$J$8 -> 0 | K58: ='Course 5 Class'!$K$8 -> 0 | L58: ='Course 5 Class'!$L$8 -> 0 | M58: ='Course 5 Class'!$M$8 -> 0 | N58: ='Course 5 Class'!$N$8 -> 0 | O58: ='Course 5 Class'!$O$8 -> 0% | P58: ='Course 5 Class'!$P$8 -> 100% | Q58: ='Course 5 Class'!$Q$8 -> 72 | R58: ='Course 5 Class'!$R$8 -> 100% | S58: ='Course 5 Class'!$S$8 -> 0 | T58: ='Course 5 Class'!$T$8 -> 0% | U58: ='Course 5 Class'!$U$8 -> 25% | V58: ='Course 5 Class'!$V$8 -> F
A59: ='Student 1'!$A$59 -> Course 5 Brake Systems. Lab
A60: ='Student 1'!$A$60 -> Max Shop Points: | C60: ='Student 1'!$C$60 -> 970 | D60: ='Student 1'!$D$60 -> Drum | E60: ='Student 1'!$E$60 -> Drum | F60: ='Student 1'!$F$60 -> Disc | G60: ='Student 1'!$G$60 -> On Car | H60: ='Student 1'!$H$60 -> Off Car | I60: ='Student 1'!$I$60 -> Wheel | J60: ='Student 1'!$J$60 -> Hydr. | K60: ='Student 1'!$K$60 -> Vacuum | L60: ='Student 1'!$L$60 -> Warning | M60: ='Student 1'!$M$60 -> Brake | N60: ='Student 1'!$N$60 -> Brake | O60: ='Student 1'!$O$60 -> Dodge | P60: ='Student 1'!$P$60 -> Ford | Q60: ='Student 1'!$Q$60 -> GM | R60: ='Student 1'!$R$60 -> Cus | S60: ='Student 1'!$S$60 -> Brake
A61: ='Student 1'!$A$61 -> Max shop points available depend on how much customer work is done. | D61: ='Student 1'!$D$61 -> Brake | E61: ='Student 1'!$E$61 -> Brake | F61: ='Student 1'!$F$61 -> Brake | G61: ='Student 1'!$G$61 -> Disc | H61: ='Student 1'!$H$61 -> Disc | I61: ='Student 1'!$I$61 -> Bearing | J61: ='Student 1'!$J$61 -> Line | K61: ='Student 1'!$K$61 -> Booster | L61: ='Student 1'!$L$61 -> Light | M61: ='Student 1'!$M$61 -> System | N61: ='Student 1'!$N$61 -> Valves | O61: ='Student 1'!$O$61 -> Anti | P61: ='Student 1'!$P$61 -> Anti | Q61: ='Student 1'!$Q$61 -> Anti | R61: ='Student 1'!$R$61 -> tomer | S61: ='Student 1'!$S$61 -> Comp
D62: ='Student 1'!$D$62 -> Job | E62: ='Student 1'!$E$62 -> Mach. | F62: ='Student 1'!$F$62 -> Job | G62: ='Student 1'!$G$62 -> Mach. | H62: ='Student 1'!$H$62 -> Mach. | I62: ='Student 1'!$I$62 -> Service | J62: ='Student 1'!$J$62 -> Repair | K62: ='Student 1'!$K$62 -> Service | L62: ='Student 1'!$L$62 -> Service | M62: ='Student 1'!$M$62 -> Bleed | N62: ='Student 1'!$N$62 -> Check | O62: ='Student 1'!$O$62 -> Lock | P62: ='Student 1'!$P$62 -> Lock | Q62: ='Student 1'!$Q$62 -> Lock | R62: ='Student 1'!$R$62 -> Work | S62: ='Student 1'!$S$62 -> etency
D63: ='Student 1'!$D$63 -> 2 | E63: ='Student 1'!$E$63 -> 2 | F63: ='Student 1'!$F$63 -> 2 | G63: ='Student 1'!$G$63 -> 2 | H63: ='Student 1'!$H$63 -> 2 | I63: ='Student 1'!$I$63 -> 1 | J63: ='Student 1'!$J$63 -> 1 | K63: ='Student 1'!$K$63 -> 2 | L63: ='Student 1'!$L$63 -> 2 | M63: ='Student 1'!$M$63 -> 4 | N63: ='Student 1'!$N$63 -> 1 | O63: ='Student 1'!$O$63 -> 1 | P63: ='Student 1'!$P$63 -> 1 | Q63: ='Student 1'!$Q$63 -> 1 | R63: ='Student 1'!$R$63 ->  | S63: ='Student 1'!$S$63 -> Required | T63: ='Student 1'!$T$63 -> Lab
A64: ='Student 1'!$A$64 -> ID | B64: ='Student 1'!$B$64 -> First: | C64: ='Student 1'!$C$64 -> Last: | D64: ='Student 1'!$D$64 -> 150 | E64: ='Student 1'!$E$64 -> 40 | F64: ='Student 1'!$F$64 -> 150 | G64: ='Student 1'!$G$64 -> 80 | H64: ='Student 1'!$H$64 -> 40 | I64: ='Student 1'!$I$64 -> 50 | J64: ='Student 1'!$J$64 -> 30 | K64: ='Student 1'!$K$64 -> 30 | L64: ='Student 1'!$L$64 -> 40 | M64: ='Student 1'!$M$64 -> 80 | N64: ='Student 1'!$N$64 -> 40 | O64: ='Student 1'!$O$64 -> 80 | P64: ='Student 1'!$P$64 -> 80 | Q64: ='Student 1'!$Q$64 -> 80 | R64: ='Student 1'!$R$64 -> 300 | S64: ='Student 1'!$S$64 -> * | T64: ='Student 1'!$T$64 -> Points | U64: ='Student 1'!$U$64 -> %
A65: ='Course 5 Lab'!$A$9 -> 00000003 | B65: ='Course 5 Lab'!$B$9 -> Student | C65: ='Course 5 Lab'!$C$9 -> Three | D65: ='Course 5 Lab'!$D$9 -> 0 | E65: ='Course 5 Lab'!$E$9 -> 0 | F65: ='Course 5 Lab'!$F$9 -> 0 | G65: ='Course 5 Lab'!$G$9 -> 0 | H65: ='Course 5 Lab'!$H$9 -> 0 | I65: ='Course 5 Lab'!$I$9 -> 0 | J65: ='Course 5 Lab'!$J$9 -> 0 | K65: ='Course 5 Lab'!$K$9 -> 0 | L65: ='Course 5 Lab'!$L$9 -> 0 | M65: ='Course 5 Lab'!$M$9 -> 0 | N65: ='Course 5 Lab'!$N$9 -> 0 | O65: ='Course 5 Lab'!$O$9 -> 0 | P65: ='Course 5 Lab'!$P$9 -> 0 | Q65: ='Course 5 Lab'!$Q$9 -> 0 | R65: ='Course 5 Lab'!$R$9 -> 0 | S65: ='Course 5 Lab'!$S$9 -> 1 | T65: ='Course 5 Lab'!$T$9 -> 0 | U65: ='Course 5 Lab'!$U$9 -> 0%

Sheet Student 4
A1: ='Student 1'!$A$1 -> Course 1 Engine Diagnosis. Class | H1: ='Student 1'!$H$1 -> 25
A2: ='Student 1'!$A$2 -> Date assignment is due | C2: ='Student 1'!$C$2 ->  | D2: ='Student 1'!$D$2 -> TBD | E2: ='Student 1'!$E$2 -> TBD | F2: ='Student 1'!$F$2 -> TBD | G2: ='Student 1'!$G$2 -> TBD | H2: ='Student 1'!$H$2 -> TBD | I2: ='Student 1'!$I$2 -> TBD
A3: ='Student 1'!$A$3 -> Class Room Points: | C3: ='Student 1'!$C$3 -> 160 | D3: ='Student 1'!$D$3 -> 20 | E3: ='Student 1'!$E$3 -> 20 | F3: ='Student 1'!$F$3 -> 20 | G3: ='Student 1'!$G$3 -> 25 | H3: ='Student 1'!$H$3 ->  | I3: ='Student 1'!$I$3 -> 75 | J3: ='Student 1'!$J$3 -> Evaluation
A4: ='Student 1'!$A$4 -> Red is late turn-in | C4: ='Student 1'!$C$4 -> Blue is absent | D4: ='Student 1'!$D$4 -> CH 13 | E4: ='Student 1'!$E$4 -> Lube | F4: ='Student 1'!$F$4 -> Lube | G4: ='Student 1'!$G$4 -> Condition | H4: ='Student 1'!$H$4 -> Extra | I4: ='Student 1'!$I$4 -> Final | J4: ='Student 1'!$J$4 -> Classroom | L4: ='Student 1'!$L$4 -> Professionalism | O4: ='Student 1'!$O$4 -> Lab | Q4: ='Student 1'!$Q$4 -> Total | R4: ='Student 1'!$R$4 -> Letter
A5: ='Student 1'!$A$5 -> I D | B5: ='Student 1'!$B$5 -> First: | C5: ='Student 1'!$C$5 -> Last: | D5: ='Student 1'!$D$5 -> Test | E5: ='Student 1'!$E$5 -> HW | F5: ='Student 1'!$F$5 -> Test | G5: ='Student 1'!$G$5 -> Class | H5: ='Student 1'!$H$5 -> Credit | I5: ='Student 1'!$I$5 -> Test | J5: ='Student 1'!$J$5 -> Points | K5: ='Student 1'!$K$5 -> % | L5: ='Student 1'!$L$5 -> Attendance | M5: ='Student 1'!$M$5 -> Points | N5: ='Student 1'!$N$5 -> % | O5: ='Student 1'!$O$5 -> Points | P5: ='Student 1'!$P$5 -> % | Q5: ='Student 1'!$Q$5 -> % | R5: ='Student 1'!$R$5 -> Grade
A6: ='Course 1 Class'!$A$9 -> 00000004 | B6: ='Course 1 Class'!$B$9 -> Student | C6: ='Course 1 Class'!$C$9 -> Four | D6: ='Course 1 Class'!$D$9 -> 0 | E6: ='Course 1 Class'!$E$9 -> 0 | F6: ='Course 1 Class'!$F$9 -> 0 | G6: ='Course 1 Class'!$G$9 -> 0 | H6: ='Course 1 Class'!$H$9 -> 0 | I6: ='Course 1 Class'!$I$9 -> 0 | J6: ='Course 1 Class'!$J$9 -> 0 | K6: ='Course 1 Class'!$K$9 -> 0% | L6: ='Course 1 Class'!$L$9 -> 100% | M6: ='Course 1 Class'!$M$9 -> 72 | N6: ='Course 1 Class'!$N$9 -> 100% | O6: ='Course 1 Class'!$O$9 -> 0 | P6: ='Course 1 Class'!$P$9 -> 0% | Q6: ='Course 1 Class'!$Q$9 -> 25% | R6: ='Course 1 Class'!$R$9 -> F
A7: ='Student 1'!$A$7 -> Course 1 Engine Diagnosis. Lab
A8: ='Student 1'!$A$8 -> Max Shop Points: | C8: ='Student 1'!$C$8 -> 1325 | D8: ='Student 1'!$D$8 -> Dry | E8: ='Student 1'!$E$8 -> Wet | F8: ='Student 1'!$F$8 -> Running | G8: ='Student 1'!$G$8 -> Cylinder | H8: ='Student 1'!$H$8 -> Oil | I8: ='Student 1'!$I$8 -> Cooling | J8: ='Student 1'!$J$8 -> Vacuum | K8: ='Student 1'!$K$8 -> PCV | L8: ='Student 1'!$L$8 -> Thermostat | M8: ='Student 1'!$M$8 -> Fluid | N8: ='Student 1'!$N$8 -> Diag | O8: ='Student 1'!$O$8 -> 
A9: ='Student 1'!$A$9 -> Max shop points available depend on how much customer work is done. | D9: ='Student 1'!$D$9 -> Compr | E9: ='Student 1'!$E$9 -> Compr | F9: ='Student 1'!$F$9 -> Compr | G9: ='Student 1'!$G$9 -> Leakage | H9: ='Student 1'!$H$9 -> Pressure | I9: ='Student 1'!$I$9 -> System | J9: ='Student 1'!$J$9 -> Gauge | K9: ='Student 1'!$K$9 -> System | L9: ='Student 1'!$L$9 -> and fan | M9: ='Student 1'!$M$9 -> Leak | N9: ='Student 1'!$N$9 -> gauges | O9: ='Student 1'!$O$9 -> Cus | P9: ='Student 1'!$P$9 -> Comp
D10: ='Student 1'!$D$10 -> Test | E10: ='Student 1'!$E$10 -> Test | F10: ='Student 1'!$F$10 -> Test | G10: ='Student 1'!$G$10 -> Test | H10: ='Student 1'!$H$10 -> Test | I10: ='Student 1'!$I$10 -> Test | J10: ='Student 1'!$J$10 -> Test | K10: ='Student 1'!$K$10 -> Check | L10: ='Student 1'!$L$10 -> Operation | M10: ='Student 1'!$M$10 -> Check | N10: ='Student 1'!$N$10 -> any vehicle | O10: ='Student 1'!$O$10 -> tomer | P10: ='Student 1'!$P$10 -> etency | Q10: ='Student 1'!$Q$10 ->  | R10: ='Student 1'!$R$10 -> 
D11: ='Student 1'!$D$11 -> 2 | E11: ='Student 1'!$E$11 -> 2 | F11: ='Student 1'!$F$11 -> 2 | G11: ='Student 1'!$G$11 -> 2 | H11: ='Student 1'!$H$11 -> 2 | I11: ='Student 1'!$I$11 -> 2 | J11: ='Student 1'!$J$11 -> 2 | K11: ='Student 1'!$K$11 -> 2 | L11: ='Student 1'!$L$11 -> 2 | M11: ='Student 1'!$M$11 -> 1 | N11: ='Student 1'!$N$11 -> 1 | O11: ='Student 1'!$O$11 -> Work | P11: ='Student 1'!$P$11 -> 0 or 1 | Q11: ='Student 1'!$Q$11 -> Lab
A12: ='Student 1'!$A$12 -> ID | B12: ='Student 1'!$B$12 -> First: | C12: ='Student 1'!$C$12 -> Last: | D12: ='Student 1'!$D$12 -> 100 | E12: ='Student 1'!$E$12 -> 100 | F12: ='Student 1'!$F$12 -> 100 | G12: ='Student 1'!$G$12 -> 100 | H12: ='Student 1'!$H$12 -> 100 | I12: ='Student 1'!$I$12 -> 150 | J12: ='Student 1'!$J$12 -> 100 | K12: ='Student 1'!$K$12 -> 50 | L12: ='Student 1'!$L$12 -> 100 | M12: ='Student 1'!$M$12 -> 25 | N12: ='Student 1'!$N$12 -> 100 | O12: ='Student 1'!$O$12 -> 300 | P12: ='Student 1'!$P$12 -> * | Q12: ='Student 1'!$Q$12 -> Points | R12: ='Student 1'!$R$12 -> %
A13: ='Course 1 Lab'!$A$10 -> 00000004 | B13: ='Course 1 Lab'!$B$10 -> Student | C13: ='Course 1 Lab'!$C$10 -> Four | D13: ='Course 1 Lab'!$D$10 -> 0 | E13: ='Course 1 Lab'!$E$10 -> 0 | F13: ='Course 1 Lab'!$F$10 -> 0 | G13: ='Course 1 Lab'!$G$10 -> 0 | H13: ='Course 1 Lab'!$H$10 -> 0 | I13: ='Course 1 Lab'!$I$10 -> 0 | J13: ='Course 1 Lab'!$J$10 -> 0 | K13: ='Course 1 Lab'!$K$10 -> 0 | L13: ='Course 1 Lab'!$L$10 -> 0 | M13: ='Course 1 Lab'!$M$10 -> 0 | N13: ='Course 1 Lab'!$N$10 -> 0 | O13: ='Course 1 Lab'!$O$10 -> 0 | P13: ='Course 1 Lab'!$P$10 -> 1 | Q13: ='Course 1 Lab'!$Q$10 -> 0 | R13: ='Course 1 Lab'!$R$10 -> 0%
A14: ='Student 1'!$A$14 -> Course 2 Engine Theory & Repair. Class | J14: ='Student 1'!$J$14 -> 25
A15: ='Student 1'!$A$15 ->  | B15: ='Student 1'!$B$15 -> Date assignment is due: | D15: ='Student 1'!$D$15 -> TBD | E15: ='Student 1'!$E$15 -> TBD | F15: ='Student 1'!$F$15 -> TBD | G15: ='Student 1'!$G$15 -> TBD | H15: ='Student 1'!$H$15 -> TBD | I15: ='Student 1'!$I$15 -> TBD | J15: ='Student 1'!$J$15 -> TBD | K15: ='Student 1'!$K$15 -> TBD
A16: ='Student 1'!$A$16 -> Class Room Points: | C16: ='Student 1'!$C$16 -> 201 | D16: ='Student 1'!$D$16 -> 10 | E16: ='Student 1'!$E$16 -> 10 | F16: ='Student 1'!$F$16 -> 20 | G16: ='Student 1'!$G$16 -> 20 | H16: ='Student 1'!$H$16 -> 16 | I16: ='Student 1'!$I$16 -> 25 | J16: ='Student 1'!$J$16 ->  | K16: ='Student 1'!$K$16 -> 100 | L16: ='Student 1'!$L$16 -> Evaluation
A17: ='Student 1'!$A$17 -> Red is late turn-in | C17: ='Student 1'!$C$17 -> Blue is absent | D17: ='Student 1'!$D$17 -> HW | E17: ='Student 1'!$E$17 -> HW | F17: ='Student 1'!$F$17 -> Test | G17: ='Student 1'!$G$17 -> Test | H17: ='Student 1'!$H$17 -> HW | I17: ='Student 1'!$I$17 -> Test | J17: ='Student 1'!$J$17 -> Extra | K17: ='Student 1'!$K$17 -> Final | L17: ='Student 1'!$L$17 -> Class | N17: ='Student 1'!$N$17 -> Professionalism | Q17: ='Student 1'!$Q$17 -> Lab | S17: ='Student 1'!$S$17 -> Total | T17: ='Student 1'!$T$17 -> Letter
A18: ='Student 1'!$A$18 -> I D | B18: ='Student 1'!$B$18 -> First: | C18: ='Student 1'!$C$18 -> Last: | D18: ='Student 1'!$D$18 -> CH 7 | E18: ='Student 1'!$E$18 -> CH 14 | F18: ='Student 1'!$F$18 -> C & L | G18: ='Student 1'!$G$18 -> CH 18 | H18: ='Student 1'!$H$18 -> CH 22 | I18: ='Student 1'!$I$18 -> CH 22 | J18: ='Student 1'!$J$18 -> Credit | K18: ='Student 1'!$K$18 -> TEST | L18: ='Student 1'!$L$18 -> Points | M18: ='Student 1'!$M$18 -> % | N18: ='Student 1'!$N$18 -> Attendance | O18: ='Student 1'!$O$18 -> Points | P18: ='Student 1'!$P$18 -> % | Q18: ='Student 1'!$Q$18 -> Points | R18: ='Student 1'!$R$18 -> % | S18: ='Student 1'!$S$18 -> % | T18: ='Student 1'!$T$18 -> Grade
A19: ='Course 2 Class'!$A$9 -> 00000004 | B19: ='Course 2 Class'!$B$9 -> Student | C19: ='Course 2 Class'!$C$9 -> Four | D19: ='Course 2 Class'!$D$9 -> 0 | E19: ='Course 2 Class'!$E$9 -> 0 | F19: ='Course 2 Class'!$F$9 -> 0 | G19: ='Course 2 Class'!$G$9 -> 0 | H19: ='Course 2 Class'!$H$9 -> 0 | I19: ='Course 2 Class'!$I$9 -> 0 | J19: ='Course 2 Class'!$J$9 -> 0 | K19: ='Course 2 Class'!$K$9 -> 0 | L19: ='Course 2 Class'!$L$9 -> 0 | M19: ='Course 2 Class'!$M$9 -> 0% | N19: ='Course 2 Class'!$N$9 -> 100% | O19: ='Course 2 Class'!$O$9 -> 72 | P19: ='Course 2 Class'!$P$9 -> 100% | Q19: ='Course 2 Class'!$Q$9 -> 0 | R19: ='Course 2 Class'!$R$9 -> 0% | S19: ='Course 2 Class'!$S$9 -> 25% | T19: ='Course 2 Class'!$T$9 -> F
A20: ='Student 1'!$A$20 -> Course 2 Engine Theory & Repair. Lab
A21: ='Student 1'!$A$21 -> Max Shop Points: | C21: ='Student 1'!$C$21 -> 1450 | D21: ='Student 1'!$D$21 -> Engine | E21: ='Student 1'!$E$21 -> Cylinder | F21: ='Student 1'!$F$21 -> Red | G21: ='Student 1'!$G$21 -> Mitsubishi | H21: ='Student 1'!$H$21 -> Any | I21: ='Student 1'!$I$21 -> DOHC | J21: ='Student 1'!$J$21 -> Valve seal | K21: ='Student 1'!$K$21 -> Misc. | L21: ='Student 1'!$L$21 -> 
A22: ='Student 1'!$A$22 -> Max shop points available depend on how much customer work is done. | D22: ='Student 1'!$D$22 -> Disassemble | E22: ='Student 1'!$E$22 -> Head | F22: ='Student 1'!$F$22 -> Dodge | G22: ='Student 1'!$G$22 -> "3.0L" | H22: ='Student 1'!$H$22 -> Engine | I22: ='Student 1'!$I$22 -> Engine | J22: ='Student 1'!$J$22 -> & | K22: ='Student 1'!$K$22 -> Engine | L22: ='Student 1'!$L$22 -> Cus | M22: ='Student 1'!$M$22 -> Comp
D23: ='Student 1'!$D$23 -> & Measure | E23: ='Student 1'!$E$23 -> Repair | F23: ='Student 1'!$F$23 -> Clip | G23: ='Student 1'!$G$23 -> Clip | H23: ='Student 1'!$H$23 -> T-chain | I23: ='Student 1'!$I$23 -> Stand | J23: ='Student 1'!$J$23 -> Lobe lift | K23: ='Student 1'!$K$23 -> Points | L23: ='Student 1'!$L$23 -> tomer | M23: ='Student 1'!$M$23 -> etency | N23: ='Student 1'!$N$23 ->  | O23: ='Student 1'!$O$23 -> 
D24: ='Student 1'!$D$24 -> 1 | E24: ='Student 1'!$E$24 -> 1 | F24: ='Student 1'!$F$24 -> 1 | G24: ='Student 1'!$G$24 -> 1 | H24: ='Student 1'!$H$24 -> 1 | I24: ='Student 1'!$I$24 -> 1 | J24: ='Student 1'!$J$24 -> 1 | L24: ='Student 1'!$L$24 -> Work | M24: ='Student 1'!$M$24 -> 0 or 1 | N24: ='Student 1'!$N$24 -> Lab
A25: ='Student 1'!$A$25 -> ID | B25: ='Student 1'!$B$25 -> First: | C25: ='Student 1'!$C$25 -> Last: | D25: ='Student 1'!$D$25 -> 300 | E25: ='Student 1'!$E$25 -> 200 | F25: ='Student 1'!$F$25 -> 100 | G25: ='Student 1'!$G$25 -> 100 | H25: ='Student 1'!$H$25 -> 100 | I25: ='Student 1'!$I$25 -> 100 | J25: ='Student 1'!$J$25 -> 50 | K25: ='Student 1'!$K$25 -> 200 | L25: ='Student 1'!$L$25 -> 300 | M25: ='Student 1'!$M$25 -> * | N25: ='Student 1'!$N$25 -> Points | O25: ='Student 1'!$O$25 -> %
A26: ='Course 2 Lab'!$A$10 -> 00000004 | B26: ='Course 2 Lab'!$B$10 -> Student | C26: ='Course 2 Lab'!$C$10 -> Four | D26: ='Course 2 Lab'!$D$10 -> 0 | E26: ='Course 2 Lab'!$E$10 -> 0 | F26: ='Course 2 Lab'!$F$10 -> 0 | G26: ='Course 2 Lab'!$G$10 -> 0 | H26: ='Course 2 Lab'!$H$10 -> 0 | I26: ='Course 2 Lab'!$I$10 -> 0 | J26: ='Course 2 Lab'!$J$10 -> 0 | K26: ='Course 2 Lab'!$K$10 -> 0 | L26: ='Course 2 Lab'!$L$10 -> 0 | M26: ='Course 2 Lab'!$M$10 -> 1 | N26: ='Course 2 Lab'!$N$10 -> 0 | O26: ='Course 2 Lab'!$O$10 -> 0%
A27: ='Student 1'!$A$27 -> Course 3 Steering & Suspension. Class. | M27: ='Student 1'!$M$27 -> 25
A28: ='Student 1'!$A$28 ->  | B28: ='Student 1'!$B$28 -> Date assignment is due: | D28: ='Student 1'!$D$28 -> 1/18 | E28: ='Student 1'!$E$28 -> 2/2 | F28: ='Student 1'!$F$28 -> TBD | G28: ='Student 1'!$G$28 -> TBD | H28: ='Student 1'!$H$28 -> TBD | I28: ='Student 1'!$I$28 -> TBD | J28: ='Student 1'!$J$28 -> TBD | K28: ='Student 1'!$K$28 -> TBD | L28: ='Student 1'!$L$28 -> TBD | M28: ='Student 1'!$M$28 -> TBD | N28: ='Student 1'!$N$28 -> TBD
A29: ='Student 1'!$A$29 -> Class Room Points: | C29: ='Student 1'!$C$29 -> 330 | D29: ='Student 1'!$D$29 -> 20 | E29: ='Student 1'!$E$29 -> 20 | F29: ='Student 1'!$F$29 -> 24 | G29: ='Student 1'!$G$29 -> 20 | H29: ='Student 1'!$H$29 -> 25 | I29: ='Student 1'!$I$29 -> 30 | J29: ='Student 1'!$J$29 -> 20 | K29: ='Student 1'!$K$29 -> 26 | L29: ='Student 1'!$L$29 -> 45 | M29: ='Student 1'!$M$29 ->  | N29: ='Student 1'!$N$29 -> 100 | O29: ='Student 1'!$O$29 -> Evaluation
A30: ='Student 1'!$A$30 -> Red is late turn-in | C30: ='Student 1'!$C$30 -> Blue is absent | D30: ='Student 1'!$D$30 -> HW | E30: ='Student 1'!$E$30 -> HW | F30: ='Student 1'!$F$30 -> HW | G30: ='Student 1'!$G$30 -> QZ | H30: ='Student 1'!$H$30 -> HW | I30: ='Student 1'!$I$30 -> HW | J30: ='Student 1'!$J$30 -> Test | K30: ='Student 1'!$K$30 -> HW | L30: ='Student 1'!$L$30 -> Class | M30: ='Student 1'!$M$30 -> Extra | N30: ='Student 1'!$N$30 -> Final | O30: ='Student 1'!$O$30 -> Class | Q30: ='Student 1'!$Q$30 -> Professionalism | T30: ='Student 1'!$T$30 -> Lab | V30: ='Student 1'!$V$30 -> Total | W30: ='Student 1'!$W$30 -> Letter
A31: ='Student 1'!$A$31 -> I D | B31: ='Student 1'!$B$31 -> First: | C31: ='Student 1'!$C$31 -> Last: | D31: ='Student 1'!$D$31 -> CH 1 | E31: ='Student 1'!$E$31 -> CH 2 | F31: ='Student 1'!$F$31 -> CH 3 | G31: ='Student 1'!$G$31 -> 1 | H31: ='Student 1'!$H$31 -> CH 6 | I31: ='Student 1'!$I$31 -> CH 9 | J31: ='Student 1'!$J$31 -> 1 – 9 | K31: ='Student 1'!$K$31 -> CH 12 | L31: ='Student 1'!$L$31 -> Project | M31: ='Student 1'!$M$31 -> Credit | N31: ='Student 1'!$N$31 -> TEST | O31: ='Student 1'!$O$31 -> Points | P31: ='Student 1'!$P$31 -> % | Q31: ='Student 1'!$Q$31 -> Attendance | R31: ='Student 1'!$R$31 -> Points | S31: ='Student 1'!$S$31 -> % | T31: ='Student 1'!$T$31 -> Points | U31: ='Student 1'!$U$31 -> % | V31: ='Student 1'!$V$31 -> % | W31: ='Student 1'!$W$31 -> Grade
A32: ='Course 3 Class'!$A$9 -> 00000004 | B32: ='Course 3 Class'!$B$9 -> Student | C32: ='Course 3 Class'!$C$9 -> Four | D32: ='Course 3 Class'!$D$9 -> 0 | E32: ='Course 3 Class'!$E$9 -> 0 | F32: ='Course 3 Class'!$F$9 -> 0 | G32: ='Course 3 Class'!$G$9 -> 0 | H32: ='Course 3 Class'!$H$9 -> 0 | I32: ='Course 3 Class'!$I$9 -> 0 | J32: ='Course 3 Class'!$J$9 -> 0 | K32: ='Course 3 Class'!$K$9 -> 0 | L32: ='Course 3 Class'!$L$9 -> 0 | M32: ='Course 3 Class'!$M$9 -> 0 | N32: ='Course 3 Class'!$N$9 -> 0 | O32: ='Course 3 Class'!$O$9 -> 0 | P32: ='Course 3 Class'!$P$9 -> 0% | Q32: ='Course 3 Class'!$Q$9 -> 100% | R32: ='Course 3 Class'!$R$9 -> 72 | S32: ='Course 3 Class'!$S$9 -> 100% | T32: ='Course 3 Class'!$T$9 -> 0 | U32: ='Course 3 Class'!$U$9 -> 0% | V32: ='Course 3 Class'!$V$9 -> 25% | W32: ='Course 3 Class'!$W$9 -> F
A33: ='Student 1'!$A$33 -> Course 3 Steering & Suspension. Lab
A34: ='Student 1'!$A$34 -> Max shop points | C34: ='Student 1'!$C$34 -> 1350 | D34: ='Student 1'!$D$34 -> Repair | E34: ='Student 1'!$E$34 -> Identify | F34: ='Student 1'!$F$34 -> Repair | G34: ='Student 1'!$G$34 -> Identify | H34: ='Student 1'!$H$34 -> Repair | I34: ='Student 1'!$I$34 -> R&R | J34: ='Student 1'!$J$34 -> R&R | K34: ='Student 1'!$K$34 -> R&R | L34: ='Student 1'!$L$34 -> P/S | M34: ='Student 1'!$M$34 -> R&R | N34: ='Student 1'!$N$34 -> NVH | O34: ='Student 1'!$O$34 -> 
A35: ='Student 1'!$A$35 -> Max shop points available depend on how much customer work is done. | D35: ='Student 1'!$D$35 -> SLA | E35: ='Student 1'!$E$35 -> SLA | F35: ='Student 1'!$F$35 -> Mac-P | G35: ='Student 1'!$G$35 -> Mac-P | H35: ='Student 1'!$H$35 -> Rear | I35: ='Student 1'!$I$35 -> Rack & | J35: ='Student 1'!$J$35 -> Recirc. | K35: ='Student 1'!$K$35 -> P/S | L35: ='Student 1'!$L$35 -> Pump | M35: ='Student 1'!$M$35 -> Inner | N35: ='Student 1'!$N$35 -> Runout & | O35: ='Student 1'!$O$35 -> Cus | P35: ='Student 1'!$P$35 -> Comp
D36: ='Student 1'!$D$36 -> Susp | E36: ='Student 1'!$E$36 -> Parts | F36: ='Student 1'!$F$36 -> Susp | G36: ='Student 1'!$G$36 -> Parts | H36: ='Student 1'!$H$36 -> Susp | I36: ='Student 1'!$I$36 -> Pinion | J36: ='Student 1'!$J$36 -> Gear | K36: ='Student 1'!$K$36 -> Pump | L36: ='Student 1'!$L$36 -> Test | M36: ='Student 1'!$M$36 -> Tie-Rod | N36: ='Student 1'!$N$36 -> bal. Check | O36: ='Student 1'!$O$36 -> tomer | P36: ='Student 1'!$P$36 -> etency | Q36: ='Student 1'!$Q$36 ->  | R36: ='Student 1'!$R$36 ->  | U36: ='Student 1'!$U$36 -> Final Grade
D37: ='Student 1'!$D$37 -> 1 | E37: ='Student 1'!$E$37 -> 2 | F37: ='Student 1'!$F$37 -> 3 | G37: ='Student 1'!$G$37 -> 2 | H37: ='Student 1'!$H$37 -> 1 | I37: ='Student 1'!$I$37 -> 1 | J37: ='Student 1'!$J$37 -> 1 | K37: ='Student 1'!$K$37 -> 1 | L37: ='Student 1'!$L$37 -> 1 | M37: ='Student 1'!$M$37 -> 1 | N37: ='Student 1'!$N$37 -> 1 | O37: ='Student 1'!$O$37 -> Work | P37: ='Student 1'!$P$37 -> 0 or 1 | Q37: ='Student 1'!$Q$37 -> Lab | U37: ='Student 1'!$U$37 -> 0% | V37: ='Student 1'!$V$37 -> F
A38: ='Student 1'!$A$38 -> ID | B38: ='Student 1'!$B$38 -> First: | C38: ='Student 1'!$C$38 -> Last: | D38: ='Student 1'!$D$38 -> 150 | E38: ='Student 1'!$E$38 -> 50 | F38: ='Student 1'!$F$38 -> 225 | G38: ='Student 1'!$G$38 -> 50 | H38: ='Student 1'!$H$38 -> 50 | I38: ='Student 1'!$I$38 -> 150 | J38: ='Student 1'!$J$38 -> 125 | K38: ='Student 1'!$K$38 -> 50 | L38: ='Student 1'!$L$38 -> 50 | M38: ='Student 1'!$M$38 -> 50 | N38: ='Student 1'!$N$38 -> 100 | O38: ='Student 1'!$O$38 -> 300 | P38: ='Student 1'!$P$38 -> * | Q38: ='Student 1'!$Q$38 -> Points | R38: ='Student 1'!$R$38 -> % | U38: ='Student 1'!$U$38 -> 70% | V38: ='Student 1'!$V$38 -> D-
A39: ='Course 3 Lab'!$A$10 -> 00000004 | B39: ='Course 3 Lab'!$B$10 -> Student | C39: ='Course 3 Lab'!$C$10 -> Four | D39: ='Course 3 Lab'!$D$10 -> 0 | E39: ='Course 3 Lab'!$E$10 -> 0 | F39: ='Course 3 Lab'!$F$10 -> 0 | G39: ='Course 3 Lab'!$G$10 -> 0 | H39: ='Course 3 Lab'!$H$10 -> 0 | I39: ='Course 3 Lab'!$I$10 -> 0 | J39: ='Course 3 Lab'!$J$10 -> 0 | K39: ='Course 3 Lab'!$K$10 -> 0 | L39: ='Course 3 Lab'!$L$10 -> 0 | M39: ='Course 3 Lab'!$M$10 -> 0 | N39: ='Course 3 Lab'!$N$10 -> 0 | O39: ='Course 3 Lab'!$O$10 -> 0 | P39: ='Course 3 Lab'!$P$10 -> 1 | Q39: ='Course 3 Lab'!$Q$10 -> 0 | R39: ='Course 3 Lab'!$R$10 -> 0% | U39: ='Student 1'!$U$39 -> 72% | V39: ='Student 1'!$V$39 -> D
A40: ='Student 1'!$A$40 -> Course 4 Alignment. Class. | I40: ='Student 1'!$I$40 -> 25 | U40: ='Student 1'!$U$40 -> 74% | V40: ='Student 1'!$V$40 -> D+
A41: ='Student 1'!$A$41 ->  | B41: ='Student 1'!$B$41 -> Date assignment is due | D41: ='Student 1'!$D$41 -> TBD | E41: ='Student 1'!$E$41 -> TBD | F41: ='Student 1'!$F$41 -> TBD | G41: ='Student 1'!$G$41 -> TBD | H41: ='Student 1'!$H$41 -> TBD | I41: ='Student 1'!$I$41 -> TBD | J41: ='Student 1'!$J$41 -> TBD | U41: ='Student 1'!$U$41 -> 76% | V41: ='Student 1'!$V$41 -> C-
A42: ='Student 1'!$A$42 -> Class Room Points: | C42: ='Student 1'!$C$42 -> 235 | D42: ='Student 1'!$D$42 -> 25 | E42: ='Student 1'!$E$42 -> 25 | F42: ='Student 1'!$F$42 -> 20 | G42: ='Student 1'!$G$42 -> 40 | H42: ='Student 1'!$H$42 -> 50 | I42: ='Student 1'!$I$42 ->  | J42: ='Student 1'!$J$42 -> 75 | K42: ='Student 1'!$K$42 -> Evaluation | U42: ='Student 1'!$U$42 -> 79% | V42: ='Student 1'!$V$42 -> C
A43: ='Student 1'!$A$43 -> Red is late turn-in | C43: ='Student 1'!$C$43 -> Blue is absent | D43: ='Student 1'!$D$43 -> CH 16 | E43: ='Student 1'!$E$43 -> CH 16 | F43: ='Student 1'!$F$43 -> Align | G43: ='Student 1'!$G$43 -> In class | H43: ='Student 1'!$H$43 -> In class | I43: ='Student 1'!$I$43 -> Extra | J43: ='Student 1'!$J$43 -> Final | K43: ='Student 1'!$K$43 -> Class | M43: ='Student 1'!$M$43 -> Professionalism | P43: ='Student 1'!$P$43 -> Lab | R43: ='Student 1'!$R$43 -> Total | S43: ='Student 1'!$S$43 -> Letter | U43: ='Student 1'!$U$43 -> 82% | V43: ='Student 1'!$V$43 -> C+
A44: ='Student 1'!$A$44 -> I D | B44: ='Student 1'!$B$44 -> First: | C44: ='Student 1'!$C$44 -> Last: | D44: ='Student 1'!$D$44 -> HW | E44: ='Student 1'!$E$44 -> Test | F44: ='Student 1'!$F$44 -> HW | G44: ='Student 1'!$G$44 -> Project1 | H44: ='Student 1'!$H$44 -> Project2 | I44: ='Student 1'!$I$44 -> Credit | J44: ='Student 1'!$J$44 -> Test | K44: ='Student 1'!$K$44 -> Points | L44: ='Student 1'!$L$44 -> % | M44: ='Student 1'!$M$44 -> Attendance | N44: ='Student 1'!$N$44 -> Points | O44: ='Student 1'!$O$44 -> % | P44: ='Student 1'!$P$44 -> Points | Q44: ='Student 1'!$Q$44 -> % | R44: ='Student 1'!$R$44 -> % | S44: ='Student 1'!$S$44 -> Grade | U44: ='Student 1'!$U$44 -> 85% | V44: ='Student 1'!$V$44 -> B-
A45: ='Course 4 Class'!$A$9 -> 00000004 | B45: ='Course 4 Class'!$B$9 -> Student | C45: ='Course 4 Class'!$C$9 -> Four | D45: ='Course 4 Class'!$D$9 -> 0 | E45: ='Course 4 Class'!$E$9 -> 0 | F45: ='Course 4 Class'!$F$9 -> 0 | G45: ='Course 4 Class'!$G$9 -> 0 | H45: ='Course 4 Class'!$H$9 -> 0 | I45: ='Course 4 Class'!$I$9 -> 0 | J45: ='Course 4 Class'!$J$9 -> 0 | K45: ='Course 4 Class'!$K$9 -> 0 | L45: ='Course 4 Class'!$L$9 -> 0% | M45: ='Course 4 Class'!$M$9 -> 100% | N45: ='Course 4 Class'!$N$9 -> 72 | O45: ='Course 4 Class'!$O$9 -> 100% | P45: ='Course 4 Class'!$P$9 -> 0 | Q45: ='Course 4 Class'!$Q$9 -> 0% | R45: ='Course 4 Class'!$R$9 -> 25% | S45: ='Course 4 Class'!$S$9 -> F | U45: ='Student 1'!$U$45 -> 88% | V45: ='Student 1'!$V$45 -> B
A46: ='Student 1'!$A$46 -> Course 4 Alignment. Lab | U46: ='Student 1'!$U$46 -> 90% | V46: ='Student 1'!$V$46 -> B+
A47: ='Student 1'!$A$47 -> Max Shop Points: | C47: ='Student 1'!$C$47 -> 1300 | D47: ='Student 1'!$D$47 -> Alignment | E47: ='Student 1'!$E$47 -> Complete | F47: ='Student 1'!$F$47 -> Cus | G47: ='Student 1'!$G$47 ->  | U47: ='Student 1'!$U$47 -> 93% | V47: ='Student 1'!$V$47 -> A-
A48: ='Student 1'!$A$48 -> Max shop points available depend on how much customer work is done. | D48: ='Student 1'!$D$48 -> Pre-check | E48: ='Student 1'!$E$48 -> Wheel | F48: ='Student 1'!$F$48 -> tomer | G48: ='Student 1'!$G$48 -> Comp | U48: ='Student 1'!$U$48 -> 95% | V48: ='Student 1'!$V$48 -> A
D49: ='Student 1'!$D$49 -> 100 P | E49: ='Student 1'!$E$49 -> Alignment | F49: ='Student 1'!$F$49 -> Work | G49: ='Student 1'!$G$49 -> etency | H49: ='Student 1'!$H$49 ->  | I49: ='Student 1'!$I$49 ->  | U49: ='Student 1'!$U$49 -> 100% | V49: ='Student 1'!$V$49 -> A
D50: ='Student 1'!$D$50 -> 1 | E50: ='Student 1'!$E$50 -> 1 | F50: ='Student 1'!$F$50 ->  | G50: ='Student 1'!$G$50 -> 0 or 1 | H50: ='Student 1'!$H$50 -> Lab
A51: ='Student 1'!$A$51 -> ID | B51: ='Student 1'!$B$51 -> First: | C51: ='Student 1'!$C$51 -> Last: | D51: ='Student 1'!$D$51 -> 100 | E51: ='Student 1'!$E$51 -> 900 | F51: ='Student 1'!$F$51 -> 300 | G51: ='Student 1'!$G$51 -> * | H51: ='Student 1'!$H$51 -> Points | I51: ='Student 1'!$I$51 -> %
A52: ='Course 4 Lab'!$A$10 -> 00000004 | B52: ='Course 4 Lab'!$B$10 -> Student | C52: ='Course 4 Lab'!$C$10 -> Four | D52: ='Course 4 Lab'!$D$10 -> 0 | E52: ='Course 4 Lab'!$E$10 -> 0 | F52: ='Course 4 Lab'!$F$10 -> 0 | G52: ='Course 4 Lab'!$G$10 -> 1 | H52: ='Course 4 Lab'!$H$10 -> 0 | I52: ='Course 4 Lab'!$I$10 -> 0%
A53: ='Student 1'!$A$53 -> Course 5 Brake Systems. Class. | L53: ='Student 1'!$L$53 -> 35
A54: ='Student 1'!$A$54 -> Date assignment is due: | C54: ='Student 1'!$C$54 ->  | D54: ='Student 1'!$D$54 -> TBD | E54: ='Student 1'!$E$54 -> TBD | F54: ='Student 1'!$F$54 -> TBD | G54: ='Student 1'!$G$54 -> TBD | H54: ='Student 1'!$H$54 -> TBD | I54: ='Student 1'!$I$54 -> TBD | J54: ='Student 1'!$J$54 -> TBD | K54: ='Student 1'!$K$54 -> TBD | L54: ='Student 1'!$L$54 -> TBD | M54: ='Student 1'!$M$54 -> TBD
A55: ='Student 1'!$A$55 -> Class Room Points: | C55: ='Student 1'!$C$55 -> 440 | D55: ='Student 1'!$D$55 -> 30 | E55: ='Student 1'!$E$55 -> 25 | F55: ='Student 1'!$F$55 -> 100 | G55: ='Student 1'!$G$55 -> 30 | H55: ='Student 1'!$H$55 -> 50 | I55: ='Student 1'!$I$55 -> 30 | J55: ='Student 1'!$J$55 -> 25 | K55: ='Student 1'!$K$55 -> 50 | L55: ='Student 1'!$L$55 ->  | M55: ='Student 1'!$M$55 -> 100 | N55: ='Student 1'!$N$55 -> Evaluation
A56: ='Student 1'!$A$56 -> Red is late turn-in | C56: ='Student 1'!$C$56 -> Blue is absent | D56: ='Student 1'!$D$56 -> HW | E56: ='Student 1'!$E$56 -> HW | F56: ='Student 1'!$F$56 -> Test | G56: ='Student 1'!$G$56 -> HW | H56: ='Student 1'!$H$56 -> Test | I56: ='Student 1'!$I$56 -> HW | J56: ='Student 1'!$J$56 -> Test | K56: ='Student 1'!$K$56 -> Class | L56: ='Student 1'!$L$56 -> Extra | M56: ='Student 1'!$M$56 -> Final | N56: ='Student 1'!$N$56 -> Class | P56: ='Student 1'!$P$56 -> Professionalism | S56: ='Student 1'!$S$56 -> Lab | U56: ='Student 1'!$U$56 -> Total | V56: ='Student 1'!$V$56 -> Letter
A57: ='Student 1'!$A$57 -> I D | B57: ='Student 1'!$B$57 -> First: | C57: ='Student 1'!$C$57 -> Last: | D57: ='Student 1'!$D$57 -> CH 4 | E57: ='Student 1'!$E$57 -> CH 5 | F57: ='Student 1'!$F$57 -> #1 | G57: ='Student 1'!$G$57 -> CH 7 | H57: ='Student 1'!$H$57 -> Conv | I57: ='Student 1'!$I$57 -> CH 20 | J57: ='Student 1'!$J$57 -> 21/22 | K57: ='Student 1'!$K$57 -> Project | L57: ='Student 1'!$L$57 -> Credit | M57: ='Student 1'!$M$57 -> Test | N57: ='Student 1'!$N$57 -> Points | O57: ='Student 1'!$O$57 -> % | P57: ='Student 1'!$P$57 -> Attendance | Q57: ='Student 1'!$Q$57 -> Points | R57: ='Student 1'!$R$57 -> % | S57: ='Student 1'!$S$57 -> Points | T57: ='Student 1'!$T$57 -> % | U57: ='Student 1'!$U$57 -> % | V57: ='Student 1'!$V$57 -> Grade
A58: ='Course 5 Class'!$A$9 -> 00000004 | B58: ='Course 5 Class'!$B$9 -> Student | C58: ='Course 5 Class'!$C$9 -> Four | D58: ='Course 5 Class'!$D$9 -> 0 | E58: ='Course 5 Class'!$E$9 -> 0 | F58: ='Course 5 Class'!$F$9 -> 0 | G58: ='Course 5 Class'!$G$9 -> 0 | H58: ='Course 5 Class'!$H$9 -> 0 | I58: ='Course 5 Class'!$I$9 -> 0 | J58: ='Course 5 Class'!$J$9 -> 0 | K58: ='Course 5 Class'!$K$9 -> 0 | L58: ='Course 5 Class'!$L$9 -> 0 | M58: ='Course 5 Class'!$M$9 -> 0 | N58: ='Course 5 Class'!$N$9 -> 0 | O58: ='Course 5 Class'!$O$9 -> 0% | P58: ='Course 5 Class'!$P$9 -> 100% | Q58: ='Course 5 Class'!$Q$9 -> 72 | R58: ='Course 5 Class'!$R$9 -> 100% | S58: ='Course 5 Class'!$S$9 -> 0 | T58: ='Course 5 Class'!$T$9 -> 0% | U58: ='Course 5 Class'!$U$9 -> 25% | V58: ='Course 5 Class'!$V$9 -> F
A59: ='Student 1'!$A$59 -> Course 5 Brake Systems. Lab
A60: ='Student 1'!$A$60 -> Max Shop Points: | C60: ='Student 1'!$C$60 -> 970 | D60: ='Student 1'!$D$60 -> Drum | E60: ='Student 1'!$E$60 -> Drum | F60: ='Student 1'!$F$60 -> Disc | G60: ='Student 1'!$G$60 -> On Car | H60: ='Student 1'!$H$60 -> Off Car | I60: ='Student 1'!$I$60 -> Wheel | J60: ='Student 1'!$J$60 -> Hydr. | K60: ='Student 1'!$K$60 -> Vacuum | L60: ='Student 1'!$L$60 -> Warning | M60: ='Student 1'!$M$60 -> Brake | N60: ='Student 1'!$N$60 -> Brake | O60: ='Student 1'!$O$60 -> Dodge | P60: ='Student 1'!$P$60 -> Ford | Q60: ='Student 1'!$Q$60 -> GM | R60: ='Student 1'!$R$60 -> Cus | S60: ='Student 1'!$S$60 -> Brake
A61: ='Student 1'!$A$61 -> Max shop points available depend on how much customer work is done. | D61: ='Student 1'!$D$61 -> Brake | E61: ='Student 1'!$E$61 -> Brake | F61: ='Student 1'!$F$61 -> Brake | G61: ='Student 1'!$G$61 -> Disc | H61: ='Student 1'!$H$61 -> Disc | I61: ='Student 1'!$I$61 -> Bearing | J61: ='Student 1'!$J$61 -> Line | K61: ='Student 1'!$K$61 -> Booster | L61: ='Student 1'!$L$61 -> Light | M61: ='Student 1'!$M$61 -> System | N61: ='Student 1'!$N$61 -> Valves | O61: ='Student 1'!$O$61 -> Anti | P61: ='Student 1'!$P$61 -> Anti | Q61: ='Student 1'!$Q$61 -> Anti | R61: ='Student 1'!$R$61 -> tomer | S61: ='Student 1'!$S$61 -> Comp
D62: ='Student 1'!$D$62 -> Job | E62: ='Student 1'!$E$62 -> Mach. | F62: ='Student 1'!$F$62 -> Job | G62: ='Student 1'!$G$62 -> Mach. | H62: ='Student 1'!$H$62 -> Mach. | I62: ='Student 1'!$I$62 -> Service | J62: ='Student 1'!$J$62 -> Repair | K62: ='Student 1'!$K$62 -> Service | L62: ='Student 1'!$L$62 -> Service | M62: ='Student 1'!$M$62 -> Bleed | N62: ='Student 1'!$N$62 -> Check | O62: ='Student 1'!$O$62 -> Lock | P62: ='Student 1'!$P$62 -> Lock | Q62: ='Student 1'!$Q$62 -> Lock | R62: ='Student 1'!$R$62 -> Work | S62: ='Student 1'!$S$62 -> etency
D63: ='Student 1'!$D$63 -> 2 | E63: ='Student 1'!$E$63 -> 2 | F63: ='Student 1'!$F$63 -> 2 | G63: ='Student 1'!$G$63 -> 2 | H63: ='Student 1'!$H$63 -> 2 | I63: ='Student 1'!$I$63 -> 1 | J63: ='Student 1'!$J$63 -> 1 | K63: ='Student 1'!$K$63 -> 2 | L63: ='Student 1'!$L$63 -> 2 | M63: ='Student 1'!$M$63 -> 4 | N63: ='Student 1'!$N$63 -> 1 | O63: ='Student 1'!$O$63 -> 1 | P63: ='Student 1'!$P$63 -> 1 | Q63: ='Student 1'!$Q$63 -> 1 | R63: ='Student 1'!$R$63 ->  | S63: ='Student 1'!$S$63 -> Required | T63: ='Student 1'!$T$63 -> Lab
A64: ='Student 1'!$A$64 -> ID | B64: ='Student 1'!$B$64 -> First: | C64: ='Student 1'!$C$64 -> Last: | D64: ='Student 1'!$D$64 -> 150 | E64: ='Student 1'!$E$64 -> 40 | F64: ='Student 1'!$F$64 -> 150 | G64: ='Student 1'!$G$64 -> 80 | H64: ='Student 1'!$H$64 -> 40 | I64: ='Student 1'!$I$64 -> 50 | J64: ='Student 1'!$J$64 -> 30 | K64: ='Student 1'!$K$64 -> 30 | L64: ='Student 1'!$L$64 -> 40 | M64: ='Student 1'!$M$64 -> 80 | N64: ='Student 1'!$N$64 -> 40 | O64: ='Student 1'!$O$64 -> 80 | P64: ='Student 1'!$P$64 -> 80 | Q64: ='Student 1'!$Q$64 -> 80 | R64: ='Student 1'!$R$64 -> 300 | S64: ='Student 1'!$S$64 -> * | T64: ='Student 1'!$T$64 -> Points | U64: ='Student 1'!$U$64 -> %
A65: ='Course 5 Lab'!$A$10 -> 00000004 | B65: ='Course 5 Lab'!$B$10 -> Student | C65: ='Course 5 Lab'!$C$10 -> Four | D65: ='Course 5 Lab'!$D$10 -> 0 | E65: ='Course 5 Lab'!$E$10 -> 0 | F65: ='Course 5 Lab'!$F$10 -> 0 | G65: ='Course 5 Lab'!$G$10 -> 0 | H65: ='Course 5 Lab'!$H$10 -> 0 | I65: ='Course 5 Lab'!$I$10 -> 0 | J65: ='Course 5 Lab'!$J$10 -> 0 | K65: ='Course 5 Lab'!$K$10 -> 0 | L65: ='Course 5 Lab'!$L$10 -> 0 | M65: ='Course 5 Lab'!$M$10 -> 0 | N65: ='Course 5 Lab'!$N$10 -> 0 | O65: ='Course 5 Lab'!$O$10 -> 0 | P65: ='Course 5 Lab'!$P$10 -> 0 | Q65: ='Course 5 Lab'!$Q$10 -> 0 | R65: ='Course 5 Lab'!$R$10 -> 0 | S65: ='Course 5 Lab'!$S$10 -> 1 | T65: ='Course 5 Lab'!$T$10 -> 0 | U65: ='Course 5 Lab'!$U$10 -> 0%

Sheet Student 5
A1: ='Student 1'!$A$1 -> Course 1 Engine Diagnosis. Class | H1: ='Student 1'!$H$1 -> 25
A2: ='Student 1'!$A$2 -> Date assignment is due | C2: ='Student 1'!$C$2 ->  | D2: ='Student 1'!$D$2 -> TBD | E2: ='Student 1'!$E$2 -> TBD | F2: ='Student 1'!$F$2 -> TBD | G2: ='Student 1'!$G$2 -> TBD | H2: ='Student 1'!$H$2 -> TBD | I2: ='Student 1'!$I$2 -> TBD
A3: ='Student 1'!$A$3 -> Class Room Points: | C3: ='Student 1'!$C$3 -> 160 | D3: ='Student 1'!$D$3 -> 20 | E3: ='Student 1'!$E$3 -> 20 | F3: ='Student 1'!$F$3 -> 20 | G3: ='Student 1'!$G$3 -> 25 | H3: ='Student 1'!$H$3 ->  | I3: ='Student 1'!$I$3 -> 75 | J3: ='Student 1'!$J$3 -> Evaluation
A4: ='Student 1'!$A$4 -> Red is late turn-in | C4: ='Student 1'!$C$4 -> Blue is absent | D4: ='Student 1'!$D$4 -> CH 13 | E4: ='Student 1'!$E$4 -> Lube | F4: ='Student 1'!$F$4 -> Lube | G4: ='Student 1'!$G$4 -> Condition | H4: ='Student 1'!$H$4 -> Extra | I4: ='Student 1'!$I$4 -> Final | J4: ='Student 1'!$J$4 -> Classroom | L4: ='Student 1'!$L$4 -> Professionalism | O4: ='Student 1'!$O$4 -> Lab | Q4: ='Student 1'!$Q$4 -> Total | R4: ='Student 1'!$R$4 -> Letter
A5: ='Student 1'!$A$5 -> I D | B5: ='Student 1'!$B$5 -> First: | C5: ='Student 1'!$C$5 -> Last: | D5: ='Student 1'!$D$5 -> Test | E5: ='Student 1'!$E$5 -> HW | F5: ='Student 1'!$F$5 -> Test | G5: ='Student 1'!$G$5 -> Class | H5: ='Student 1'!$H$5 -> Credit | I5: ='Student 1'!$I$5 -> Test | J5: ='Student 1'!$J$5 -> Points | K5: ='Student 1'!$K$5 -> % | L5: ='Student 1'!$L$5 -> Attendance | M5: ='Student 1'!$M$5 -> Points | N5: ='Student 1'!$N$5 -> % | O5: ='Student 1'!$O$5 -> Points | P5: ='Student 1'!$P$5 -> % | Q5: ='Student 1'!$Q$5 -> % | R5: ='Student 1'!$R$5 -> Grade
A6: ='Course 1 Class'!$A$10 -> 00000005 | B6: ='Course 1 Class'!$B$10 -> Student | C6: ='Course 1 Class'!$C$10 -> Five | D6: ='Course 1 Class'!$D$10 -> 0 | E6: ='Course 1 Class'!$E$10 -> 0 | F6: ='Course 1 Class'!$F$10 -> 0 | G6: ='Course 1 Class'!$G$10 -> 0 | H6: ='Course 1 Class'!$H$10 -> 0 | I6: ='Course 1 Class'!$I$10 -> 0 | J6: ='Course 1 Class'!$J$10 -> 0 | K6: ='Course 1 Class'!$K$10 -> 0% | L6: ='Course 1 Class'!$L$10 -> 100% | M6: ='Course 1 Class'!$M$10 -> 72 | N6: ='Course 1 Class'!$N$10 -> 100% | O6: ='Course 1 Class'!$O$10 -> 0 | P6: ='Course 1 Class'!$P$10 -> 0% | Q6: ='Course 1 Class'!$Q$10 -> 25% | R6: ='Course 1 Class'!$R$10 -> F
A7: ='Student 1'!$A$7 -> Course 1 Engine Diagnosis. Lab
A8: ='Student 1'!$A$8 -> Max Shop Points: | C8: ='Student 1'!$C$8 -> 1325 | D8: ='Student 1'!$D$8 -> Dry | E8: ='Student 1'!$E$8 -> Wet | F8: ='Student 1'!$F$8 -> Running | G8: ='Student 1'!$G$8 -> Cylinder | H8: ='Student 1'!$H$8 -> Oil | I8: ='Student 1'!$I$8 -> Cooling | J8: ='Student 1'!$J$8 -> Vacuum | K8: ='Student 1'!$K$8 -> PCV | L8: ='Student 1'!$L$8 -> Thermostat | M8: ='Student 1'!$M$8 -> Fluid | N8: ='Student 1'!$N$8 -> Diag | O8: ='Student 1'!$O$8 -> 
A9: ='Student 1'!$A$9 -> Max shop points available depend on how much customer work is done. | D9: ='Student 1'!$D$9 -> Compr | E9: ='Student 1'!$E$9 -> Compr | F9: ='Student 1'!$F$9 -> Compr | G9: ='Student 1'!$G$9 -> Leakage | H9: ='Student 1'!$H$9 -> Pressure | I9: ='Student 1'!$I$9 -> System | J9: ='Student 1'!$J$9 -> Gauge | K9: ='Student 1'!$K$9 -> System | L9: ='Student 1'!$L$9 -> and fan | M9: ='Student 1'!$M$9 -> Leak | N9: ='Student 1'!$N$9 -> gauges | O9: ='Student 1'!$O$9 -> Cus | P9: ='Student 1'!$P$9 -> Comp
D10: ='Student 1'!$D$10 -> Test | E10: ='Student 1'!$E$10 -> Test | F10: ='Student 1'!$F$10 -> Test | G10: ='Student 1'!$G$10 -> Test | H10: ='Student 1'!$H$10 -> Test | I10: ='Student 1'!$I$10 -> Test | J10: ='Student 1'!$J$10 -> Test | K10: ='Student 1'!$K$10 -> Check | L10: ='Student 1'!$L$10 -> Operation | M10: ='Student 1'!$M$10 -> Check | N10: ='Student 1'!$N$10 -> any vehicle | O10: ='Student 1'!$O$10 -> tomer | P10: ='Student 1'!$P$10 -> etency | Q10: ='Student 1'!$Q$10 ->  | R10: ='Student 1'!$R$10 -> 
D11: ='Student 1'!$D$11 -> 2 | E11: ='Student 1'!$E$11 -> 2 | F11: ='Student 1'!$F$11 -> 2 | G11: ='Student 1'!$G$11 -> 2 | H11: ='Student 1'!$H$11 -> 2 | I11: ='Student 1'!$I$11 -> 2 | J11: ='Student 1'!$J$11 -> 2 | K11: ='Student 1'!$K$11 -> 2 | L11: ='Student 1'!$L$11 -> 2 | M11: ='Student 1'!$M$11 -> 1 | N11: ='Student 1'!$N$11 -> 1 | O11: ='Student 1'!$O$11 -> Work | P11: ='Student 1'!$P$11 -> 0 or 1 | Q11: ='Student 1'!$Q$11 -> Lab
A12: ='Student 1'!$A$12 -> ID | B12: ='Student 1'!$B$12 -> First: | C12: ='Student 1'!$C$12 -> Last: | D12: ='Student 1'!$D$12 -> 100 | E12: ='Student 1'!$E$12 -> 100 | F12: ='Student 1'!$F$12 -> 100 | G12: ='Student 1'!$G$12 -> 100 | H12: ='Student 1'!$H$12 -> 100 | I12: ='Student 1'!$I$12 -> 150 | J12: ='Student 1'!$J$12 -> 100 | K12: ='Student 1'!$K$12 -> 50 | L12: ='Student 1'!$L$12 -> 100 | M12: ='Student 1'!$M$12 -> 25 | N12: ='Student 1'!$N$12 -> 100 | O12: ='Student 1'!$O$12 -> 300 | P12: ='Student 1'!$P$12 -> * | Q12: ='Student 1'!$Q$12 -> Points | R12: ='Student 1'!$R$12 -> %
A13: ='Course 1 Lab'!$A$11 -> 00000005 | B13: ='Course 1 Lab'!$B$11 -> Student | C13: ='Course 1 Lab'!$C$11 -> Five | D13: ='Course 1 Lab'!$D$11 -> 0 | E13: ='Course 1 Lab'!$E$11 -> 0 | F13: ='Course 1 Lab'!$F$11 -> 0 | G13: ='Course 1 Lab'!$G$11 -> 0 | H13: ='Course 1 Lab'!$H$11 -> 0 | I13: ='Course 1 Lab'!$I$11 -> 0 | J13: ='Course 1 Lab'!$J$11 -> 0 | K13: ='Course 1 Lab'!$K$11 -> 0 | L13: ='Course 1 Lab'!$L$11 -> 0 | M13: ='Course 1 Lab'!$M$11 -> 0 | N13: ='Course 1 Lab'!$N$11 -> 0 | O13: ='Course 1 Lab'!$O$11 -> 0 | P13: ='Course 1 Lab'!$P$11 -> 1 | Q13: ='Course 1 Lab'!$Q$11 -> 0 | R13: ='Course 1 Lab'!$R$11 -> 0%
A14: ='Student 1'!$A$14 -> Course 2 Engine Theory & Repair. Class | J14: ='Student 1'!$J$14 -> 25
A15: ='Student 1'!$A$15 ->  | B15: ='Student 1'!$B$15 -> Date assignment is due: | D15: ='Student 1'!$D$15 -> TBD | E15: ='Student 1'!$E$15 -> TBD | F15: ='Student 1'!$F$15 -> TBD | G15: ='Student 1'!$G$15 -> TBD | H15: ='Student 1'!$H$15 -> TBD | I15: ='Student 1'!$I$15 -> TBD | J15: ='Student 1'!$J$15 -> TBD | K15: ='Student 1'!$K$15 -> TBD
A16: ='Student 1'!$A$16 -> Class Room Points: | C16: ='Student 1'!$C$16 -> 201 | D16: ='Student 1'!$D$16 -> 10 | E16: ='Student 1'!$E$16 -> 10 | F16: ='Student 1'!$F$16 -> 20 | G16: ='Student 1'!$G$16 -> 20 | H16: ='Student 1'!$H$16 -> 16 | I16: ='Student 1'!$I$16 -> 25 | J16: ='Student 1'!$J$16 ->  | K16: ='Student 1'!$K$16 -> 100 | L16: ='Student 1'!$L$16 -> Evaluation
A17: ='Student 1'!$A$17 -> Red is late turn-in | C17: ='Student 1'!$C$17 -> Blue is absent | D17: ='Student 1'!$D$17 -> HW | E17: ='Student 1'!$E$17 -> HW | F17: ='Student 1'!$F$17 -> Test | G17: ='Student 1'!$G$17 -> Test | H17: ='Student 1'!$H$17 -> HW | I17: ='Student 1'!$I$17 -> Test | J17: ='Student 1'!$J$17 -> Extra | K17: ='Student 1'!$K$17 -> Final | L17: ='Student 1'!$L$17 -> Class | N17: ='Student 1'!$N$17 -> Professionalism | Q17: ='Student 1'!$Q$17 -> Lab | S17: ='Student 1'!$S$17 -> Total | T17: ='Student 1'!$T$17 -> Letter
A18: ='Student 1'!$A$18 -> I D | B18: ='Student 1'!$B$18 -> First: | C18: ='Student 1'!$C$18 -> Last: | D18: ='Student 1'!$D$18 -> CH 7 | E18: ='Student 1'!$E$18 -> CH 14 | F18: ='Student 1'!$F$18 -> C & L | G18: ='Student 1'!$G$18 -> CH 18 | H18: ='Student 1'!$H$18 -> CH 22 | I18: ='Student 1'!$I$18 -> CH 22 | J18: ='Student 1'!$J$18 -> Credit | K18: ='Student 1'!$K$18 -> TEST | L18: ='Student 1'!$L$18 -> Points | M18: ='Student 1'!$M$18 -> % | N18: ='Student 1'!$N$18 -> Attendance | O18: ='Student 1'!$O$18 -> Points | P18: ='Student 1'!$P$18 -> % | Q18: ='Student 1'!$Q$18 -> Points | R18: ='Student 1'!$R$18 -> % | S18: ='Student 1'!$S$18 -> % | T18: ='Student 1'!$T$18 -> Grade
A19: ='Course 2 Class'!$A$10 -> 00000005 | B19: ='Course 2 Class'!$B$10 -> Student | C19: ='Course 2 Class'!$C$10 -> Five | D19: ='Course 2 Class'!$D$10 -> 0 | E19: ='Course 2 Class'!$E$10 -> 0 | F19: ='Course 2 Class'!$F$10 -> 0 | G19: ='Course 2 Class'!$G$10 -> 0 | H19: ='Course 2 Class'!$H$10 -> 0 | I19: ='Course 2 Class'!$I$10 -> 0 | J19: ='Course 2 Class'!$J$10 -> 0 | K19: ='Course 2 Class'!$K$10 -> 0 | L19: ='Course 2 Class'!$L$10 -> 0 | M19: ='Course 2 Class'!$M$10 -> 0% | N19: ='Course 2 Class'!$N$10 -> 100% | O19: ='Course 2 Class'!$O$10 -> 72 | P19: ='Course 2 Class'!$P$10 -> 100% | Q19: ='Course 2 Class'!$Q$10 -> 0 | R19: ='Course 2 Class'!$R$10 -> 0% | S19: ='Course 2 Class'!$S$10 -> 25% | T19: ='Course 2 Class'!$T$10 -> F
A20: ='Student 1'!$A$20 -> Course 2 Engine Theory & Repair. Lab
A21: ='Student 1'!$A$21 -> Max Shop Points: | C21: ='Student 1'!$C$21 -> 1450 | D21: ='Student 1'!$D$21 -> Engine | E21: ='Student 1'!$E$21 -> Cylinder | F21: ='Student 1'!$F$21 -> Red | G21: ='Student 1'!$G$21 -> Mitsubishi | H21: ='Student 1'!$H$21 -> Any | I21: ='Student 1'!$I$21 -> DOHC | J21: ='Student 1'!$J$21 -> Valve seal | K21: ='Student 1'!$K$21 -> Misc. | L21: ='Student 1'!$L$21 -> 
A22: ='Student 1'!$A$22 -> Max shop points available depend on how much customer work is done. | D22: ='Student 1'!$D$22 -> Disassemble | E22: ='Student 1'!$E$22 -> Head | F22: ='Student 1'!$F$22 -> Dodge | G22: ='Student 1'!$G$22 -> "3.0L" | H22: ='Student 1'!$H$22 -> Engine | I22: ='Student 1'!$I$22 -> Engine | J22: ='Student 1'!$J$22 -> & | K22: ='Student 1'!$K$22 -> Engine | L22: ='Student 1'!$L$22 -> Cus | M22: ='Student 1'!$M$22 -> Comp
D23: ='Student 1'!$D$23 -> & Measure | E23: ='Student 1'!$E$23 -> Repair | F23: ='Student 1'!$F$23 -> Clip | G23: ='Student 1'!$G$23 -> Clip | H23: ='Student 1'!$H$23 -> T-chain | I23: ='Student 1'!$I$23 -> Stand | J23: ='Student 1'!$J$23 -> Lobe lift | K23: ='Student 1'!$K$23 -> Points | L23: ='Student 1'!$L$23 -> tomer | M23: ='Student 1'!$M$23 -> etency | N23: ='Student 1'!$N$23 ->  | O23: ='Student 1'!$O$23 -> 
D24: ='Student 1'!$D$24 -> 1 | E24: ='Student 1'!$E$24 -> 1 | F24: ='Student 1'!$F$24 -> 1 | G24: ='Student 1'!$G$24 -> 1 | H24: ='Student 1'!$H$24 -> 1 | I24: ='Student 1'!$I$24 -> 1 | J24: ='Student 1'!$J$24 -> 1 | L24: ='Student 1'!$L$24 -> Work | M24: ='Student 1'!$M$24 -> 0 or 1 | N24: ='Student 1'!$N$24 -> Lab
A25: ='Student 1'!$A$25 -> ID | B25: ='Student 1'!$B$25 -> First: | C25: ='Student 1'!$C$25 -> Last: | D25: ='Student 1'!$D$25 -> 300 | E25: ='Student 1'!$E$25 -> 200 | F25: ='Student 1'!$F$25 -> 100 | G25: ='Student 1'!$G$25 -> 100 | H25: ='Student 1'!$H$25 -> 100 | I25: ='Student 1'!$I$25 -> 100 | J25: ='Student 1'!$J$25 -> 50 | K25: ='Student 1'!$K$25 -> 200 | L25: ='Student 1'!$L$25 -> 300 | M25: ='Student 1'!$M$25 -> * | N25: ='Student 1'!$N$25 -> Points | O25: ='Student 1'!$O$25 -> %
A26: ='Course 2 Lab'!$A$11 -> 00000005 | B26: ='Course 2 Lab'!$B$11 -> Student | C26: ='Course 2 Lab'!$C$11 -> Five | D26: ='Course 2 Lab'!$D$11 -> 0 | E26: ='Course 2 Lab'!$E$11 -> 0 | F26: ='Course 2 Lab'!$F$11 -> 0 | G26: ='Course 2 Lab'!$G$11 -> 0 | H26: ='Course 2 Lab'!$H$11 -> 0 | I26: ='Course 2 Lab'!$I$11 -> 0 | J26: ='Course 2 Lab'!$J$11 -> 0 | K26: ='Course 2 Lab'!$K$11 -> 0 | L26: ='Course 2 Lab'!$L$11 -> 0 | M26: ='Course 2 Lab'!$M$11 -> 1 | N26: ='Course 2 Lab'!$N$11 -> 0 | O26: ='Course 2 Lab'!$O$11 -> 0%
A27: ='Student 1'!$A$27 -> Course 3 Steering & Suspension. Class. | M27: ='Student 1'!$M$27 -> 25
A28: ='Student 1'!$A$28 ->  | B28: ='Student 1'!$B$28 -> Date assignment is due: | D28: ='Student 1'!$D$28 -> 1/18 | E28: ='Student 1'!$E$28 -> 2/2 | F28: ='Student 1'!$F$28 -> TBD | G28: ='Student 1'!$G$28 -> TBD | H28: ='Student 1'!$H$28 -> TBD | I28: ='Student 1'!$I$28 -> TBD | J28: ='Student 1'!$J$28 -> TBD | K28: ='Student 1'!$K$28 -> TBD | L28: ='Student 1'!$L$28 -> TBD | M28: ='Student 1'!$M$28 -> TBD | N28: ='Student 1'!$N$28 -> TBD
A29: ='Student 1'!$A$29 -> Class Room Points: | C29: ='Student 1'!$C$29 -> 330 | D29: ='Student 1'!$D$29 -> 20 | E29: ='Student 1'!$E$29 -> 20 | F29: ='Student 1'!$F$29 -> 24 | G29: ='Student 1'!$G$29 -> 20 | H29: ='Student 1'!$H$29 -> 25 | I29: ='Student 1'!$I$29 -> 30 | J29: ='Student 1'!$J$29 -> 20 | K29: ='Student 1'!$K$29 -> 26 | L29: ='Student 1'!$L$29 -> 45 | M29: ='Student 1'!$M$29 ->  | N29: ='Student 1'!$N$29 -> 100 | O29: ='Student 1'!$O$29 -> Evaluation
A30: ='Student 1'!$A$30 -> Red is late turn-in | C30: ='Student 1'!$C$30 -> Blue is absent | D30: ='Student 1'!$D$30 -> HW | E30: ='Student 1'!$E$30 -> HW | F30: ='Student 1'!$F$30 -> HW | G30: ='Student 1'!$G$30 -> QZ | H30: ='Student 1'!$H$30 -> HW | I30: ='Student 1'!$I$30 -> HW | J30: ='Student 1'!$J$30 -> Test | K30: ='Student 1'!$K$30 -> HW | L30: ='Student 1'!$L$30 -> Class | M30: ='Student 1'!$M$30 -> Extra | N30: ='Student 1'!$N$30 -> Final | O30: ='Student 1'!$O$30 -> Class | Q30: ='Student 1'!$Q$30 -> Professionalism | T30: ='Student 1'!$T$30 -> Lab | V30: ='Student 1'!$V$30 -> Total | W30: ='Student 1'!$W$30 -> Letter
A31: ='Student 1'!$A$31 -> I D | B31: ='Student 1'!$B$31 -> First: | C31: ='Student 1'!$C$31 -> Last: | D31: ='Student 1'!$D$31 -> CH 1 | E31: ='Student 1'!$E$31 -> CH 2 | F31: ='Student 1'!$F$31 -> CH 3 | G31: ='Student 1'!$G$31 -> 1 | H31: ='Student 1'!$H$31 -> CH 6 | I31: ='Student 1'!$I$31 -> CH 9 | J31: ='Student 1'!$J$31 -> 1 – 9 | K31: ='Student 1'!$K$31 -> CH 12 | L31: ='Student 1'!$L$31 -> Project | M31: ='Student 1'!$M$31 -> Credit | N31: ='Student 1'!$N$31 -> TEST | O31: ='Student 1'!$O$31 -> Points | P31: ='Student 1'!$P$31 -> % | Q31: ='Student 1'!$Q$31 -> Attendance | R31: ='Student 1'!$R$31 -> Points | S31: ='Student 1'!$S$31 -> % | T31: ='Student 1'!$T$31 -> Points | U31: ='Student 1'!$U$31 -> % | V31: ='Student 1'!$V$31 -> % | W31: ='Student 1'!$W$31 -> Grade
A32: ='Course 3 Class'!$A$10 -> 00000005 | B32: ='Course 3 Class'!$B$10 -> Student | C32: ='Course 3 Class'!$C$10 -> Five | D32: ='Course 3 Class'!$D$10 -> 0 | E32: ='Course 3 Class'!$E$10 -> 0 | F32: ='Course 3 Class'!$F$10 -> 0 | G32: ='Course 3 Class'!$G$10 -> 0 | H32: ='Course 3 Class'!$H$10 -> 0 | I32: ='Course 3 Class'!$I$10 -> 0 | J32: ='Course 3 Class'!$J$10 -> 0 | K32: ='Course 3 Class'!$K$10 -> 0 | L32: ='Course 3 Class'!$L$10 -> 0 | M32: ='Course 3 Class'!$M$10 -> 0 | N32: ='Course 3 Class'!$N$10 -> 0 | O32: ='Course 3 Class'!$O$10 -> 0 | P32: ='Course 3 Class'!$P$10 -> 0% | Q32: ='Course 3 Class'!$Q$10 -> 100% | R32: ='Course 3 Class'!$R$10 -> 72 | S32: ='Course 3 Class'!$S$10 -> 100% | T32: ='Course 3 Class'!$T$10 -> 0 | U32: ='Course 3 Class'!$U$10 -> 0% | V32: ='Course 3 Class'!$V$10 -> 25% | W32: ='Course 3 Class'!$W$10 -> F
A33: ='Student 1'!$A$33 -> Course 3 Steering & Suspension. Lab
A34: ='Student 1'!$A$34 -> Max shop points | C34: ='Student 1'!$C$34 -> 1350 | D34: ='Student 1'!$D$34 -> Repair | E34: ='Student 1'!$E$34 -> Identify | F34: ='Student 1'!$F$34 -> Repair | G34: ='Student 1'!$G$34 -> Identify | H34: ='Student 1'!$H$34 -> Repair | I34: ='Student 1'!$I$34 -> R&R | J34: ='Student 1'!$J$34 -> R&R | K34: ='Student 1'!$K$34 -> R&R | L34: ='Student 1'!$L$34 -> P/S | M34: ='Student 1'!$M$34 -> R&R | N34: ='Student 1'!$N$34 -> NVH | O34: ='Student 1'!$O$34 -> 
A35: ='Student 1'!$A$35 -> Max shop points available depend on how much customer work is done. | D35: ='Student 1'!$D$35 -> SLA | E35: ='Student 1'!$E$35 -> SLA | F35: ='Student 1'!$F$35 -> Mac-P | G35: ='Student 1'!$G$35 -> Mac-P | H35: ='Student 1'!$H$35 -> Rear | I35: ='Student 1'!$I$35 -> Rack & | J35: ='Student 1'!$J$35 -> Recirc. | K35: ='Student 1'!$K$35 -> P/S | L35: ='Student 1'!$L$35 -> Pump | M35: ='Student 1'!$M$35 -> Inner | N35: ='Student 1'!$N$35 -> Runout & | O35: ='Student 1'!$O$35 -> Cus | P35: ='Student 1'!$P$35 -> Comp
D36: ='Student 1'!$D$36 -> Susp | E36: ='Student 1'!$E$36 -> Parts | F36: ='Student 1'!$F$36 -> Susp | G36: ='Student 1'!$G$36 -> Parts | H36: ='Student 1'!$H$36 -> Susp | I36: ='Student 1'!$I$36 -> Pinion | J36: ='Student 1'!$J$36 -> Gear | K36: ='Student 1'!$K$36 -> Pump | L36: ='Student 1'!$L$36 -> Test | M36: ='Student 1'!$M$36 -> Tie-Rod | N36: ='Student 1'!$N$36 -> bal. Check | O36: ='Student 1'!$O$36 -> tomer | P36: ='Student 1'!$P$36 -> etency | Q36: ='Student 1'!$Q$36 ->  | R36: ='Student 1'!$R$36 ->  | U36: ='Student 1'!$U$36 -> Final Grade
D37: ='Student 1'!$D$37 -> 1 | E37: ='Student 1'!$E$37 -> 2 | F37: ='Student 1'!$F$37 -> 3 | G37: ='Student 1'!$G$37 -> 2 | H37: ='Student 1'!$H$37 -> 1 | I37: ='Student 1'!$I$37 -> 1 | J37: ='Student 1'!$J$37 -> 1 | K37: ='Student 1'!$K$37 -> 1 | L37: ='Student 1'!$L$37 -> 1 | M37: ='Student 1'!$M$37 -> 1 | N37: ='Student 1'!$N$37 -> 1 | O37: ='Student 1'!$O$37 -> Work | P37: ='Student 1'!$P$37 -> 0 or 1 | Q37: ='Student 1'!$Q$37 -> Lab | U37: ='Student 1'!$U$37 -> 0% | V37: ='Student 1'!$V$37 -> F
A38: ='Student 1'!$A$38 -> ID | B38: ='Student 1'!$B$38 -> First: | C38: ='Student 1'!$C$38 -> Last: | D38: ='Student 1'!$D$38 -> 150 | E38: ='Student 1'!$E$38 -> 50 | F38: ='Student 1'!$F$38 -> 225 | G38: ='Student 1'!$G$38 -> 50 | H38: ='Student 1'!$H$38 -> 50 | I38: ='Student 1'!$I$38 -> 150 | J38: ='Student 1'!$J$38 -> 125 | K38: ='Student 1'!$K$38 -> 50 | L38: ='Student 1'!$L$38 -> 50 | M38: ='Student 1'!$M$38 -> 50 | N38: ='Student 1'!$N$38 -> 100 | O38: ='Student 1'!$O$38 -> 300 | P38: ='Student 1'!$P$38 -> * | Q38: ='Student 1'!$Q$38 -> Points | R38: ='Student 1'!$R$38 -> % | U38: ='Student 1'!$U$38 -> 70% | V38: ='Student 1'!$V$38 -> D-
A39: ='Course 3 Lab'!$A$11 -> 00000005 | B39: ='Course 3 Lab'!$B$11 -> Student | C39: ='Course 3 Lab'!$C$11 -> Five | D39: ='Course 3 Lab'!$D$11 -> 0 | E39: ='Course 3 Lab'!$E$11 -> 0 | F39: ='Course 3 Lab'!$F$11 -> 0 | G39: ='Course 3 Lab'!$G$11 -> 0 | H39: ='Course 3 Lab'!$H$11 -> 0 | I39: ='Course 3 Lab'!$I$11 -> 0 | J39: ='Course 3 Lab'!$J$11 -> 0 | K39: ='Course 3 Lab'!$K$11 -> 0 | L39: ='Course 3 Lab'!$L$11 -> 0 | M39: ='Course 3 Lab'!$M$11 -> 0 | N39: ='Course 3 Lab'!$N$11 -> 0 | O39: ='Course 3 Lab'!$O$11 -> 0 | P39: ='Course 3 Lab'!$P$11 -> 1 | Q39: ='Course 3 Lab'!$Q$11 -> 0 | R39: ='Course 3 Lab'!$R$11 -> 0% | U39: ='Student 1'!$U$39 -> 72% | V39: ='Student 1'!$V$39 -> D
A40: ='Student 1'!$A$40 -> Course 4 Alignment. Class. | I40: ='Student 1'!$I$40 -> 25 | U40: ='Student 1'!$U$40 -> 74% | V40: ='Student 1'!$V$40 -> D+
A41: ='Student 1'!$A$41 ->  | B41: ='Student 1'!$B$41 -> Date assignment is due | D41: ='Student 1'!$D$41 -> TBD | E41: ='Student 1'!$E$41 -> TBD | F41: ='Student 1'!$F$41 -> TBD | G41: ='Student 1'!$G$41 -> TBD | H41: ='Student 1'!$H$41 -> TBD | I41: ='Student 1'!$I$41 -> TBD | J41: ='Student 1'!$J$41 -> TBD | U41: ='Student 1'!$U$41 -> 76% | V41: ='Student 1'!$V$41 -> C-
A42: ='Student 1'!$A$42 -> Class Room Points: | C42: ='Student 1'!$C$42 -> 235 | D42: ='Student 1'!$D$42 -> 25 | E42: ='Student 1'!$E$42 -> 25 | F42: ='Student 1'!$F$42 -> 20 | G42: ='Student 1'!$G$42 -> 40 | H42: ='Student 1'!$H$42 -> 50 | I42: ='Student 1'!$I$42 ->  | J42: ='Student 1'!$J$42 -> 75 | K42: ='Student 1'!$K$42 -> Evaluation | U42: ='Student 1'!$U$42 -> 79% | V42: ='Student 1'!$V$42 -> C
A43: ='Student 1'!$A$43 -> Red is late turn-in | C43: ='Student 1'!$C$43 -> Blue is absent | D43: ='Student 1'!$D$43 -> CH 16 | E43: ='Student 1'!$E$43 -> CH 16 | F43: ='Student 1'!$F$43 -> Align | G43: ='Student 1'!$G$43 -> In class | H43: ='Student 1'!$H$43 -> In class | I43: ='Student 1'!$I$43 -> Extra | J43: ='Student 1'!$J$43 -> Final | K43: ='Student 1'!$K$43 -> Class | M43: ='Student 1'!$M$43 -> Professionalism | P43: ='Student 1'!$P$43 -> Lab | R43: ='Student 1'!$R$43 -> Total | S43: ='Student 1'!$S$43 -> Letter | U43: ='Student 1'!$U$43 -> 82% | V43: ='Student 1'!$V$43 -> C+
A44: ='Student 1'!$A$44 -> I D | B44: ='Student 1'!$B$44 -> First: | C44: ='Student 1'!$C$44 -> Last: | D44: ='Student 1'!$D$44 -> HW | E44: ='Student 1'!$E$44 -> Test | F44: ='Student 1'!$F$44 -> HW | G44: ='Student 1'!$G$44 -> Project1 | H44: ='Student 1'!$H$44 -> Project2 | I44: ='Student 1'!$I$44 -> Credit | J44: ='Student 1'!$J$44 -> Test | K44: ='Student 1'!$K$44 -> Points | L44: ='Student 1'!$L$44 -> % | M44: ='Student 1'!$M$44 -> Attendance | N44: ='Student 1'!$N$44 -> Points | O44: ='Student 1'!$O$44 -> % | P44: ='Student 1'!$P$44 -> Points | Q44: ='Student 1'!$Q$44 -> % | R44: ='Student 1'!$R$44 -> % | S44: ='Student 1'!$S$44 -> Grade | U44: ='Student 1'!$U$44 -> 85% | V44: ='Student 1'!$V$44 -> B-
A45: ='Course 4 Class'!$A$10 -> 00000005 | B45: ='Course 4 Class'!$B$10 -> Student | C45: ='Course 4 Class'!$C$10 -> Five | D45: ='Course 4 Class'!$D$10 -> 0 | E45: ='Course 4 Class'!$E$10 -> 0 | F45: ='Course 4 Class'!$F$10 -> 0 | G45: ='Course 4 Class'!$G$10 -> 0 | H45: ='Course 4 Class'!$H$10 -> 0 | I45: ='Course 4 Class'!$I$10 -> 0 | J45: ='Course 4 Class'!$J$10 -> 0 | K45: ='Course 4 Class'!$K$10 -> 0 | L45: ='Course 4 Class'!$L$10 -> 0% | M45: ='Course 4 Class'!$M$10 -> 100% | N45: ='Course 4 Class'!$N$10 -> 72 | O45: ='Course 4 Class'!$O$10 -> 100% | P45: ='Course 4 Class'!$P$10 -> 0 | Q45: ='Course 4 Class'!$Q$10 -> 0% | R45: ='Course 4 Class'!$R$10 -> 25% | S45: ='Course 4 Class'!$S$10 -> F | U45: ='Student 1'!$U$45 -> 88% | V45: ='Student 1'!$V$45 -> B
A46: ='Student 1'!$A$46 -> Course 4 Alignment. Lab | U46: ='Student 1'!$U$46 -> 90% | V46: ='Student 1'!$V$46 -> B+
A47: ='Student 1'!$A$47 -> Max Shop Points: | C47: ='Student 1'!$C$47 -> 1300 | D47: ='Student 1'!$D$47 -> Alignment | E47: ='Student 1'!$E$47 -> Complete | F47: ='Student 1'!$F$47 -> Cus | G47: ='Student 1'!$G$47 ->  | U47: ='Student 1'!$U$47 -> 93% | V47: ='Student 1'!$V$47 -> A-
A48: ='Student 1'!$A$48 -> Max shop points available depend on how much customer work is done. | D48: ='Student 1'!$D$48 -> Pre-check | E48: ='Student 1'!$E$48 -> Wheel | F48: ='Student 1'!$F$48 -> tomer | G48: ='Student 1'!$G$48 -> Comp | U48: ='Student 1'!$U$48 -> 95% | V48: ='Student 1'!$V$48 -> A
D49: ='Student 1'!$D$49 -> 100 P | E49: ='Student 1'!$E$49 -> Alignment | F49: ='Student 1'!$F$49 -> Work | G49: ='Student 1'!$G$49 -> etency | H49: ='Student 1'!$H$49 ->  | I49: ='Student 1'!$I$49 ->  | U49: ='Student 1'!$U$49 -> 100% | V49: ='Student 1'!$V$49 -> A
D50: ='Student 1'!$D$50 -> 1 | E50: ='Student 1'!$E$50 -> 1 | F50: ='Student 1'!$F$50 ->  | G50: ='Student 1'!$G$50 -> 0 or 1 | H50: ='Student 1'!$H$50 -> Lab
A51: ='Student 1'!$A$51 -> ID | B51: ='Student 1'!$B$51 -> First: | C51: ='Student 1'!$C$51 -> Last: | D51: ='Student 1'!$D$51 -> 100 | E51: ='Student 1'!$E$51 -> 900 | F51: ='Student 1'!$F$51 -> 300 | G51: ='Student 1'!$G$51 -> * | H51: ='Student 1'!$H$51 -> Points | I51: ='Student 1'!$I$51 -> %
A52: ='Course 4 Lab'!$A$11 -> 00000005 | B52: ='Course 4 Lab'!$B$11 -> Student | C52: ='Course 4 Lab'!$C$11 -> Five | D52: ='Course 4 Lab'!$D$11 -> 0 | E52: ='Course 4 Lab'!$E$11 -> 0 | F52: ='Course 4 Lab'!$F$11 -> 0 | G52: ='Course 4 Lab'!$G$11 -> 1 | H52: ='Course 4 Lab'!$H$11 -> 0 | I52: ='Course 4 Lab'!$I$11 -> 0%
A53: ='Student 1'!$A$53 -> Course 5 Brake Systems. Class. | L53: ='Student 1'!$L$53 -> 35
A54: ='Student 1'!$A$54 -> Date assignment is due: | C54: ='Student 1'!$C$54 ->  | D54: ='Student 1'!$D$54 -> TBD | E54: ='Student 1'!$E$54 -> TBD | F54: ='Student 1'!$F$54 -> TBD | G54: ='Student 1'!$G$54 -> TBD | H54: ='Student 1'!$H$54 -> TBD | I54: ='Student 1'!$I$54 -> TBD | J54: ='Student 1'!$J$54 -> TBD | K54: ='Student 1'!$K$54 -> TBD | L54: ='Student 1'!$L$54 -> TBD | M54: ='Student 1'!$M$54 -> TBD
A55: ='Student 1'!$A$55 -> Class Room Points: | C55: ='Student 1'!$C$55 -> 440 | D55: ='Student 1'!$D$55 -> 30 | E55: ='Student 1'!$E$55 -> 25 | F55: ='Student 1'!$F$55 -> 100 | G55: ='Student 1'!$G$55 -> 30 | H55: ='Student 1'!$H$55 -> 50 | I55: ='Student 1'!$I$55 -> 30 | J55: ='Student 1'!$J$55 -> 25 | K55: ='Student 1'!$K$55 -> 50 | L55: ='Student 1'!$L$55 ->  | M55: ='Student 1'!$M$55 -> 100 | N55: ='Student 1'!$N$55 -> Evaluation
A56: ='Student 1'!$A$56 -> Red is late turn-in | C56: ='Student 1'!$C$56 -> Blue is absent | D56: ='Student 1'!$D$56 -> HW | E56: ='Student 1'!$E$56 -> HW | F56: ='Student 1'!$F$56 -> Test | G56: ='Student 1'!$G$56 -> HW | H56: ='Student 1'!$H$56 -> Test | I56: ='Student 1'!$I$56 -> HW | J56: ='Student 1'!$J$56 -> Test | K56: ='Student 1'!$K$56 -> Class | L56: ='Student 1'!$L$56 -> Extra | M56: ='Student 1'!$M$56 -> Final | N56: ='Student 1'!$N$56 -> Class | P56: ='Student 1'!$P$56 -> Professionalism | S56: ='Student 1'!$S$56 -> Lab | U56: ='Student 1'!$U$56 -> Total | V56: ='Student 1'!$V$56 -> Letter
A57: ='Student 1'!$A$57 -> I D | B57: ='Student 1'!$B$57 -> First: | C57: ='Student 1'!$C$57 -> Last: | D57: ='Student 1'!$D$57 -> CH 4 | E57: ='Student 1'!$E$57 -> CH 5 | F57: ='Student 1'!$F$57 -> #1 | G57: ='Student 1'!$G$57 -> CH 7 | H57: ='Student 1'!$H$57 -> Conv | I57: ='Student 1'!$I$57 -> CH 20 | J57: ='Student 1'!$J$57 -> 21/22 | K57: ='Student 1'!$K$57 -> Project | L57: ='Student 1'!$L$57 -> Credit | M57: ='Student 1'!$M$57 -> Test | N57: ='Student 1'!$N$57 -> Points | O57: ='Student 1'!$O$57 -> % | P57: ='Student 1'!$P$57 -> Attendance | Q57: ='Student 1'!$Q$57 -> Points | R57: ='Student 1'!$R$57 -> % | S57: ='Student 1'!$S$57 -> Points | T57: ='Student 1'!$T$57 -> % | U57: ='Student 1'!$U$57 -> % | V57: ='Student 1'!$V$57 -> Grade
A58: ='Course 5 Class'!$A$10 -> 00000005 | B58: ='Course 5 Class'!$B$10 -> Student | C58: ='Course 5 Class'!$C$10 -> Five | D58: ='Course 5 Class'!$D$10 -> 0 | E58: ='Course 5 Class'!$E$10 -> 0 | F58: ='Course 5 Class'!$F$10 -> 0 | G58: ='Course 5 Class'!$G$10 -> 0 | H58: ='Course 5 Class'!$H$10 -> 0 | I58: ='Course 5 Class'!$I$10 -> 0 | J58: ='Course 5 Class'!$J$10 -> 0 | K58: ='Course 5 Class'!$K$10 -> 0 | L58: ='Course 5 Class'!$L$10 -> 0 | M58: ='Course 5 Class'!$M$10 -> 0 | N58: ='Course 5 Class'!$N$10 -> 0 | O58: ='Course 5 Class'!$O$10 -> 0% | P58: ='Course 5 Class'!$P$10 -> 100% | Q58: ='Course 5 Class'!$Q$10 -> 72 | R58: ='Course 5 Class'!$R$10 -> 100% | S58: ='Course 5 Class'!$S$10 -> 0 | T58: ='Course 5 Class'!$T$10 -> 0% | U58: ='Course 5 Class'!$U$10 -> 25% | V58: ='Course 5 Class'!$V$10 -> F
A59: ='Student 1'!$A$59 -> Course 5 Brake Systems. Lab
A60: ='Student 1'!$A$60 -> Max Shop Points: | C60: ='Student 1'!$C$60 -> 970 | D60: ='Student 1'!$D$60 -> Drum | E60: ='Student 1'!$E$60 -> Drum | F60: ='Student 1'!$F$60 -> Disc | G60: ='Student 1'!$G$60 -> On Car | H60: ='Student 1'!$H$60 -> Off Car | I60: ='Student 1'!$I$60 -> Wheel | J60: ='Student 1'!$J$60 -> Hydr. | K60: ='Student 1'!$K$60 -> Vacuum | L60: ='Student 1'!$L$60 -> Warning | M60: ='Student 1'!$M$60 -> Brake | N60: ='Student 1'!$N$60 -> Brake | O60: ='Student 1'!$O$60 -> Dodge | P60: ='Student 1'!$P$60 -> Ford | Q60: ='Student 1'!$Q$60 -> GM | R60: ='Student 1'!$R$60 -> Cus | S60: ='Student 1'!$S$60 -> Brake
A61: ='Student 1'!$A$61 -> Max shop points available depend on how much customer work is done. | D61: ='Student 1'!$D$61 -> Brake | E61: ='Student 1'!$E$61 -> Brake | F61: ='Student 1'!$F$61 -> Brake | G61: ='Student 1'!$G$61 -> Disc | H61: ='Student 1'!$H$61 -> Disc | I61: ='Student 1'!$I$61 -> Bearing | J61: ='Student 1'!$J$61 -> Line | K61: ='Student 1'!$K$61 -> Booster | L61: ='Student 1'!$L$61 -> Light | M61: ='Student 1'!$M$61 -> System | N61: ='Student 1'!$N$61 -> Valves | O61: ='Student 1'!$O$61 -> Anti | P61: ='Student 1'!$P$61 -> Anti | Q61: ='Student 1'!$Q$61 -> Anti | R61: ='Student 1'!$R$61 -> tomer | S61: ='Student 1'!$S$61 -> Comp
D62: ='Student 1'!$D$62 -> Job | E62: ='Student 1'!$E$62 -> Mach. | F62: ='Student 1'!$F$62 -> Job | G62: ='Student 1'!$G$62 -> Mach. | H62: ='Student 1'!$H$62 -> Mach. | I62: ='Student 1'!$I$62 -> Service | J62: ='Student 1'!$J$62 -> Repair | K62: ='Student 1'!$K$62 -> Service | L62: ='Student 1'!$L$62 -> Service | M62: ='Student 1'!$M$62 -> Bleed | N62: ='Student 1'!$N$62 -> Check | O62: ='Student 1'!$O$62 -> Lock | P62: ='Student 1'!$P$62 -> Lock | Q62: ='Student 1'!$Q$62 -> Lock | R62: ='Student 1'!$R$62 -> Work | S62: ='Student 1'!$S$62 -> etency
D63: ='Student 1'!$D$63 -> 2 | E63: ='Student 1'!$E$63 -> 2 | F63: ='Student 1'!$F$63 -> 2 | G63: ='Student 1'!$G$63 -> 2 | H63: ='Student 1'!$H$63 -> 2 | I63: ='Student 1'!$I$63 -> 1 | J63: ='Student 1'!$J$63 -> 1 | K63: ='Student 1'!$K$63 -> 2 | L63: ='Student 1'!$L$63 -> 2 | M63: ='Student 1'!$M$63 -> 4 | N63: ='Student 1'!$N$63 -> 1 | O63: ='Student 1'!$O$63 -> 1 | P63: ='Student 1'!$P$63 -> 1 | Q63: ='Student 1'!$Q$63 -> 1 | R63: ='Student 1'!$R$63 ->  | S63: ='Student 1'!$S$63 -> Required | T63: ='Student 1'!$T$63 -> Lab
A64: ='Student 1'!$A$64 -> ID | B64: ='Student 1'!$B$64 -> First: | C64: ='Student 1'!$C$64 -> Last: | D64: ='Student 1'!$D$64 -> 150 | E64: ='Student 1'!$E$64 -> 40 | F64: ='Student 1'!$F$64 -> 150 | G64: ='Student 1'!$G$64 -> 80 | H64: ='Student 1'!$H$64 -> 40 | I64: ='Student 1'!$I$64 -> 50 | J64: ='Student 1'!$J$64 -> 30 | K64: ='Student 1'!$K$64 -> 30 | L64: ='Student 1'!$L$64 -> 40 | M64: ='Student 1'!$M$64 -> 80 | N64: ='Student 1'!$N$64 -> 40 | O64: ='Student 1'!$O$64 -> 80 | P64: ='Student 1'!$P$64 -> 80 | Q64: ='Student 1'!$Q$64 -> 80 | R64: ='Student 1'!$R$64 -> 300 | S64: ='Student 1'!$S$64 -> * | T64: ='Student 1'!$T$64 -> Points | U64: ='Student 1'!$U$64 -> %
A65: ='Course 5 Lab'!$A$11 -> 00000005 | B65: ='Course 5 Lab'!$B$11 -> Student | C65: ='Course 5 Lab'!$C$11 -> Five | D65: ='Course 5 Lab'!$D$11 -> 0 | E65: ='Course 5 Lab'!$E$11 -> 0 | F65: ='Course 5 Lab'!$F$11 -> 0 | G65: ='Course 5 Lab'!$G$11 -> 0 | H65: ='Course 5 Lab'!$H$11 -> 0 | I65: ='Course 5 Lab'!$I$11 -> 0 | J65: ='Course 5 Lab'!$J$11 -> 0 | K65: ='Course 5 Lab'!$K$11 -> 0 | L65: ='Course 5 Lab'!$L$11 -> 0 | M65: ='Course 5 Lab'!$M$11 -> 0 | N65: ='Course 5 Lab'!$N$11 -> 0 | O65: ='Course 5 Lab'!$O$11 -> 0 | P65: ='Course 5 Lab'!$P$11 -> 0 | Q65: ='Course 5 Lab'!$Q$11 -> 0 | R65: ='Course 5 Lab'!$R$11 -> 0 | S65: ='Course 5 Lab'!$S$11 -> 1 | T65: ='Course 5 Lab'!$T$11 -> 0 | U65: ='Course 5 Lab'!$U$11 -> 0%

Sheet Student 6
A1: ='Student 1'!$A$1 -> Course 1 Engine Diagnosis. Class | H1: ='Student 1'!$H$1 -> 25
A2: ='Student 1'!$A$2 -> Date assignment is due | C2: ='Student 1'!$C$2 ->  | D2: ='Student 1'!$D$2 -> TBD | E2: ='Student 1'!$E$2 -> TBD | F2: ='Student 1'!$F$2 -> TBD | G2: ='Student 1'!$G$2 -> TBD | H2: ='Student 1'!$H$2 -> TBD | I2: ='Student 1'!$I$2 -> TBD
A3: ='Student 1'!$A$3 -> Class Room Points: | C3: ='Student 1'!$C$3 -> 160 | D3: ='Student 1'!$D$3 -> 20 | E3: ='Student 1'!$E$3 -> 20 | F3: ='Student 1'!$F$3 -> 20 | G3: ='Student 1'!$G$3 -> 25 | H3: ='Student 1'!$H$3 ->  | I3: ='Student 1'!$I$3 -> 75 | J3: ='Student 1'!$J$3 -> Evaluation
A4: ='Student 1'!$A$4 -> Red is late turn-in | C4: ='Student 1'!$C$4 -> Blue is absent | D4: ='Student 1'!$D$4 -> CH 13 | E4: ='Student 1'!$E$4 -> Lube | F4: ='Student 1'!$F$4 -> Lube | G4: ='Student 1'!$G$4 -> Condition | H4: ='Student 1'!$H$4 -> Extra | I4: ='Student 1'!$I$4 -> Final | J4: ='Student 1'!$J$4 -> Classroom | L4: ='Student 1'!$L$4 -> Professionalism | O4: ='Student 1'!$O$4 -> Lab | Q4: ='Student 1'!$Q$4 -> Total | R4: ='Student 1'!$R$4 -> Letter
A5: ='Student 1'!$A$5 -> I D | B5: ='Student 1'!$B$5 -> First: | C5: ='Student 1'!$C$5 -> Last: | D5: ='Student 1'!$D$5 -> Test | E5: ='Student 1'!$E$5 -> HW | F5: ='Student 1'!$F$5 -> Test | G5: ='Student 1'!$G$5 -> Class | H5: ='Student 1'!$H$5 -> Credit | I5: ='Student 1'!$I$5 -> Test | J5: ='Student 1'!$J$5 -> Points | K5: ='Student 1'!$K$5 -> % | L5: ='Student 1'!$L$5 -> Attendance | M5: ='Student 1'!$M$5 -> Points | N5: ='Student 1'!$N$5 -> % | O5: ='Student 1'!$O$5 -> Points | P5: ='Student 1'!$P$5 -> % | Q5: ='Student 1'!$Q$5 -> % | R5: ='Student 1'!$R$5 -> Grade
A6: ='Course 1 Class'!$A$11 -> 00000006 | B6: ='Course 1 Class'!$B$11 -> Student | C6: ='Course 1 Class'!$C$11 -> Six | D6: ='Course 1 Class'!$D$11 -> 0 | E6: ='Course 1 Class'!$E$11 -> 0 | F6: ='Course 1 Class'!$F$11 -> 0 | G6: ='Course 1 Class'!$G$11 -> 0 | H6: ='Course 1 Class'!$H$11 -> 0 | I6: ='Course 1 Class'!$I$11 -> 0 | J6: ='Course 1 Class'!$J$11 -> 0 | K6: ='Course 1 Class'!$K$11 -> 0% | L6: ='Course 1 Class'!$L$11 -> 100% | M6: ='Course 1 Class'!$M$11 -> 72 | N6: ='Course 1 Class'!$N$11 -> 100% | O6: ='Course 1 Class'!$O$11 -> 0 | P6: ='Course 1 Class'!$P$11 -> 0% | Q6: ='Course 1 Class'!$Q$11 -> 25% | R6: ='Course 1 Class'!$R$11 -> F
A7: ='Student 1'!$A$7 -> Course 1 Engine Diagnosis. Lab
A8: ='Student 1'!$A$8 -> Max Shop Points: | C8: ='Student 1'!$C$8 -> 1325 | D8: ='Student 1'!$D$8 -> Dry | E8: ='Student 1'!$E$8 -> Wet | F8: ='Student 1'!$F$8 -> Running | G8: ='Student 1'!$G$8 -> Cylinder | H8: ='Student 1'!$H$8 -> Oil | I8: ='Student 1'!$I$8 -> Cooling | J8: ='Student 1'!$J$8 -> Vacuum | K8: ='Student 1'!$K$8 -> PCV | L8: ='Student 1'!$L$8 -> Thermostat | M8: ='Student 1'!$M$8 -> Fluid | N8: ='Student 1'!$N$8 -> Diag | O8: ='Student 1'!$O$8 -> 
A9: ='Student 1'!$A$9 -> Max shop points available depend on how much customer work is done. | D9: ='Student 1'!$D$9 -> Compr | E9: ='Student 1'!$E$9 -> Compr | F9: ='Student 1'!$F$9 -> Compr | G9: ='Student 1'!$G$9 -> Leakage | H9: ='Student 1'!$H$9 -> Pressure | I9: ='Student 1'!$I$9 -> System | J9: ='Student 1'!$J$9 -> Gauge | K9: ='Student 1'!$K$9 -> System | L9: ='Student 1'!$L$9 -> and fan | M9: ='Student 1'!$M$9 -> Leak | N9: ='Student 1'!$N$9 -> gauges | O9: ='Student 1'!$O$9 -> Cus | P9: ='Student 1'!$P$9 -> Comp
D10: ='Student 1'!$D$10 -> Test | E10: ='Student 1'!$E$10 -> Test | F10: ='Student 1'!$F$10 -> Test | G10: ='Student 1'!$G$10 -> Test | H10: ='Student 1'!$H$10 -> Test | I10: ='Student 1'!$I$10 -> Test | J10: ='Student 1'!$J$10 -> Test | K10: ='Student 1'!$K$10 -> Check | L10: ='Student 1'!$L$10 -> Operation | M10: ='Student 1'!$M$10 -> Check | N10: ='Student 1'!$N$10 -> any vehicle | O10: ='Student 1'!$O$10 -> tomer | P10: ='Student 1'!$P$10 -> etency | Q10: ='Student 1'!$Q$10 ->  | R10: ='Student 1'!$R$10 -> 
D11: ='Student 1'!$D$11 -> 2 | E11: ='Student 1'!$E$11 -> 2 | F11: ='Student 1'!$F$11 -> 2 | G11: ='Student 1'!$G$11 -> 2 | H11: ='Student 1'!$H$11 -> 2 | I11: ='Student 1'!$I$11 -> 2 | J11: ='Student 1'!$J$11 -> 2 | K11: ='Student 1'!$K$11 -> 2 | L11: ='Student 1'!$L$11 -> 2 | M11: ='Student 1'!$M$11 -> 1 | N11: ='Student 1'!$N$11 -> 1 | O11: ='Student 1'!$O$11 -> Work | P11: ='Student 1'!$P$11 -> 0 or 1 | Q11: ='Student 1'!$Q$11 -> Lab
A12: ='Student 1'!$A$12 -> ID | B12: ='Student 1'!$B$12 -> First: | C12: ='Student 1'!$C$12 -> Last: | D12: ='Student 1'!$D$12 -> 100 | E12: ='Student 1'!$E$12 -> 100 | F12: ='Student 1'!$F$12 -> 100 | G12: ='Student 1'!$G$12 -> 100 | H12: ='Student 1'!$H$12 -> 100 | I12: ='Student 1'!$I$12 -> 150 | J12: ='Student 1'!$J$12 -> 100 | K12: ='Student 1'!$K$12 -> 50 | L12: ='Student 1'!$L$12 -> 100 | M12: ='Student 1'!$M$12 -> 25 | N12: ='Student 1'!$N$12 -> 100 | O12: ='Student 1'!$O$12 -> 300 | P12: ='Student 1'!$P$12 -> * | Q12: ='Student 1'!$Q$12 -> Points | R12: ='Student 1'!$R$12 -> %
A13: ='Course 2 Lab'!$A$12 -> 00000006 | B13: ='Course 2 Lab'!$B$12 -> Student | C13: ='Course 2 Lab'!$C$12 -> Six | D13: ='Course 2 Lab'!$D$12 -> 0 | E13: ='Course 2 Lab'!$E$12 -> 0 | F13: ='Course 2 Lab'!$F$12 -> 0 | G13: ='Course 2 Lab'!$G$12 -> 0 | H13: ='Course 2 Lab'!$H$12 -> 0 | I13: ='Course 2 Lab'!$I$12 -> 0 | J13: ='Course 2 Lab'!$J$12 -> 0 | K13: ='Course 2 Lab'!$K$12 -> 0 | L13: ='Course 2 Lab'!$L$12 -> 0 | M13: ='Course 2 Lab'!$M$12 -> 1 | N13: ='Course 2 Lab'!$N$12 -> 0 | O13: ='Course 2 Lab'!$O$12 -> 0 | P13: ='Student 1'!$P$13 -> 1 | Q13: ='Student 1'!$Q$13 -> 0 | R13: ='Student 1'!$R$13 -> 0%
A14: ='Student 1'!$A$14 -> Course 2 Engine Theory & Repair. Class | J14: ='Student 1'!$J$14 -> 25
A15: ='Student 1'!$A$15 ->  | B15: ='Student 1'!$B$15 -> Date assignment is due: | D15: ='Student 1'!$D$15 -> TBD | E15: ='Student 1'!$E$15 -> TBD | F15: ='Student 1'!$F$15 -> TBD | G15: ='Student 1'!$G$15 -> TBD | H15: ='Student 1'!$H$15 -> TBD | I15: ='Student 1'!$I$15 -> TBD | J15: ='Student 1'!$J$15 -> TBD | K15: ='Student 1'!$K$15 -> TBD
A16: ='Student 1'!$A$16 -> Class Room Points: | C16: ='Student 1'!$C$16 -> 201 | D16: ='Student 1'!$D$16 -> 10 | E16: ='Student 1'!$E$16 -> 10 | F16: ='Student 1'!$F$16 -> 20 | G16: ='Student 1'!$G$16 -> 20 | H16: ='Student 1'!$H$16 -> 16 | I16: ='Student 1'!$I$16 -> 25 | J16: ='Student 1'!$J$16 ->  | K16: ='Student 1'!$K$16 -> 100 | L16: ='Student 1'!$L$16 -> Evaluation
A17: ='Student 1'!$A$17 -> Red is late turn-in | C17: ='Student 1'!$C$17 -> Blue is absent | D17: ='Student 1'!$D$17 -> HW | E17: ='Student 1'!$E$17 -> HW | F17: ='Student 1'!$F$17 -> Test | G17: ='Student 1'!$G$17 -> Test | H17: ='Student 1'!$H$17 -> HW | I17: ='Student 1'!$I$17 -> Test | J17: ='Student 1'!$J$17 -> Extra | K17: ='Student 1'!$K$17 -> Final | L17: ='Student 1'!$L$17 -> Class | N17: ='Student 1'!$N$17 -> Professionalism | Q17: ='Student 1'!$Q$17 -> Lab | S17: ='Student 1'!$S$17 -> Total | T17: ='Student 1'!$T$17 -> Letter
A18: ='Student 1'!$A$18 -> I D | B18: ='Student 1'!$B$18 -> First: | C18: ='Student 1'!$C$18 -> Last: | D18: ='Student 1'!$D$18 -> CH 7 | E18: ='Student 1'!$E$18 -> CH 14 | F18: ='Student 1'!$F$18 -> C & L | G18: ='Student 1'!$G$18 -> CH 18 | H18: ='Student 1'!$H$18 -> CH 22 | I18: ='Student 1'!$I$18 -> CH 22 | J18: ='Student 1'!$J$18 -> Credit | K18: ='Student 1'!$K$18 -> TEST | L18: ='Student 1'!$L$18 -> Points | M18: ='Student 1'!$M$18 -> % | N18: ='Student 1'!$N$18 -> Attendance | O18: ='Student 1'!$O$18 -> Points | P18: ='Student 1'!$P$18 -> % | Q18: ='Student 1'!$Q$18 -> Points | R18: ='Student 1'!$R$18 -> % | S18: ='Student 1'!$S$18 -> % | T18: ='Student 1'!$T$18 -> Grade
A19: ='Course 2 Class'!$A$11 -> 00000006 | B19: ='Course 2 Class'!$B$11 -> Student | C19: ='Course 2 Class'!$C$11 -> Six | D19: ='Course 2 Class'!$D$11 -> 0 | E19: ='Course 2 Class'!$E$11 -> 0 | F19: ='Course 2 Class'!$F$11 -> 0 | G19: ='Course 2 Class'!$G$11 -> 0 | H19: ='Course 2 Class'!$H$11 -> 0 | I19: ='Course 2 Class'!$I$11 -> 0 | J19: ='Course 2 Class'!$J$11 -> 0 | K19: ='Course 2 Class'!$K$11 -> 0 | L19: ='Course 2 Class'!$L$11 -> 0 | M19: ='Course 2 Class'!$M$11 -> 0% | N19: ='Course 2 Class'!$N$11 -> 100% | O19: ='Course 2 Class'!$O$11 -> 72 | P19: ='Course 2 Class'!$P$11 -> 100% | Q19: ='Course 2 Class'!$Q$11 -> 0 | R19: ='Course 2 Class'!$R$11 -> 0% | S19: ='Course 2 Class'!$S$11 -> 25% | T19: ='Course 2 Class'!$T$11 -> F
A20: ='Student 1'!$A$20 -> Course 2 Engine Theory & Repair. Lab
A21: ='Student 1'!$A$21 -> Max Shop Points: | C21: ='Student 1'!$C$21 -> 1450 | D21: ='Student 1'!$D$21 -> Engine | E21: ='Student 1'!$E$21 -> Cylinder | F21: ='Student 1'!$F$21 -> Red | G21: ='Student 1'!$G$21 -> Mitsubishi | H21: ='Student 1'!$H$21 -> Any | I21: ='Student 1'!$I$21 -> DOHC | J21: ='Student 1'!$J$21 -> Valve seal | K21: ='Student 1'!$K$21 -> Misc. | L21: ='Student 1'!$L$21 -> 
A22: ='Student 1'!$A$22 -> Max shop points available depend on how much customer work is done. | D22: ='Student 1'!$D$22 -> Disassemble | E22: ='Student 1'!$E$22 -> Head | F22: ='Student 1'!$F$22 -> Dodge | G22: ='Student 1'!$G$22 -> "3.0L" | H22: ='Student 1'!$H$22 -> Engine | I22: ='Student 1'!$I$22 -> Engine | J22: ='Student 1'!$J$22 -> & | K22: ='Student 1'!$K$22 -> Engine | L22: ='Student 1'!$L$22 -> Cus | M22: ='Student 1'!$M$22 -> Comp
D23: ='Student 1'!$D$23 -> & Measure | E23: ='Student 1'!$E$23 -> Repair | F23: ='Student 1'!$F$23 -> Clip | G23: ='Student 1'!$G$23 -> Clip | H23: ='Student 1'!$H$23 -> T-chain | I23: ='Student 1'!$I$23 -> Stand | J23: ='Student 1'!$J$23 -> Lobe lift | K23: ='Student 1'!$K$23 -> Points | L23: ='Student 1'!$L$23 -> tomer | M23: ='Student 1'!$M$23 -> etency | N23: ='Student 1'!$N$23 ->  | O23: ='Student 1'!$O$23 -> 
D24: ='Student 1'!$D$24 -> 1 | E24: ='Student 1'!$E$24 -> 1 | F24: ='Student 1'!$F$24 -> 1 | G24: ='Student 1'!$G$24 -> 1 | H24: ='Student 1'!$H$24 -> 1 | I24: ='Student 1'!$I$24 -> 1 | J24: ='Student 1'!$J$24 -> 1 | L24: ='Student 1'!$L$24 -> Work | M24: ='Student 1'!$M$24 -> 0 or 1 | N24: ='Student 1'!$N$24 -> Lab
A25: ='Student 1'!$A$25 -> ID | B25: ='Student 1'!$B$25 -> First: | C25: ='Student 1'!$C$25 -> Last: | D25: ='Student 1'!$D$25 -> 300 | E25: ='Student 1'!$E$25 -> 200 | F25: ='Student 1'!$F$25 -> 100 | G25: ='Student 1'!$G$25 -> 100 | H25: ='Student 1'!$H$25 -> 100 | I25: ='Student 1'!$I$25 -> 100 | J25: ='Student 1'!$J$25 -> 50 | K25: ='Student 1'!$K$25 -> 200 | L25: ='Student 1'!$L$25 -> 300 | M25: ='Student 1'!$M$25 -> * | N25: ='Student 1'!$N$25 -> Points | O25: ='Student 1'!$O$25 -> %
A26: ='Course 2 Lab'!$A$12 -> 00000006 | B26: ='Course 2 Lab'!$B$12 -> Student | C26: ='Course 2 Lab'!$C$12 -> Six | D26: ='Course 2 Lab'!$D$12 -> 0 | E26: ='Course 2 Lab'!$E$12 -> 0 | F26: ='Course 2 Lab'!$F$12 -> 0 | G26: ='Course 2 Lab'!$G$12 -> 0 | H26: ='Course 2 Lab'!$H$12 -> 0 | I26: ='Course 2 Lab'!$I$12 -> 0 | J26: ='Course 2 Lab'!$J$12 -> 0 | K26: ='Course 2 Lab'!$K$12 -> 0 | L26: ='Course 2 Lab'!$L$12 -> 0 | M26: ='Course 2 Lab'!$M$12 -> 1 | N26: ='Course 2 Lab'!$N$12 -> 0 | O26: ='Course 2 Lab'!$O$12 -> 0%
A27: ='Student 1'!$A$27 -> Course 3 Steering & Suspension. Class. | M27: ='Student 1'!$M$27 -> 25
A28: ='Student 1'!$A$28 ->  | B28: ='Student 1'!$B$28 -> Date assignment is due: | D28: ='Student 1'!$D$28 -> 1/18 | E28: ='Student 1'!$E$28 -> 2/2 | F28: ='Student 1'!$F$28 -> TBD | G28: ='Student 1'!$G$28 -> TBD | H28: ='Student 1'!$H$28 -> TBD | I28: ='Student 1'!$I$28 -> TBD | J28: ='Student 1'!$J$28 -> TBD | K28: ='Student 1'!$K$28 -> TBD | L28: ='Student 1'!$L$28 -> TBD | M28: ='Student 1'!$M$28 -> TBD | N28: ='Student 1'!$N$28 -> TBD
A29: ='Student 1'!$A$29 -> Class Room Points: | C29: ='Student 1'!$C$29 -> 330 | D29: ='Student 1'!$D$29 -> 20 | E29: ='Student 1'!$E$29 -> 20 | F29: ='Student 1'!$F$29 -> 24 | G29: ='Student 1'!$G$29 -> 20 | H29: ='Student 1'!$H$29 -> 25 | I29: ='Student 1'!$I$29 -> 30 | J29: ='Student 1'!$J$29 -> 20 | K29: ='Student 1'!$K$29 -> 26 | L29: ='Student 1'!$L$29 -> 45 | M29: ='Student 1'!$M$29 ->  | N29: ='Student 1'!$N$29 -> 100 | O29: ='Student 1'!$O$29 -> Evaluation
A30: ='Student 1'!$A$30 -> Red is late turn-in | C30: ='Student 1'!$C$30 -> Blue is absent | D30: ='Student 1'!$D$30 -> HW | E30: ='Student 1'!$E$30 -> HW | F30: ='Student 1'!$F$30 -> HW | G30: ='Student 1'!$G$30 -> QZ | H30: ='Student 1'!$H$30 -> HW | I30: ='Student 1'!$I$30 -> HW | J30: ='Student 1'!$J$30 -> Test | K30: ='Student 1'!$K$30 -> HW | L30: ='Student 1'!$L$30 -> Class | M30: ='Student 1'!$M$30 -> Extra | N30: ='Student 1'!$N$30 -> Final | O30: ='Student 1'!$O$30 -> Class | Q30: ='Student 1'!$Q$30 -> Professionalism | T30: ='Student 1'!$T$30 -> Lab | V30: ='Student 1'!$V$30 -> Total | W30: ='Student 1'!$W$30 -> Letter
